Workbook

Sheet Introduction
E19: Copyright © 2010, by the Texas Transportation Institute. All rights reserved.

Sheet Menu
E5: Welcome to the Early-Stage Toll Revenue Estimation Model
E7: This menu navigates the user through the many worksheets contained within this spreadsheet.
F9: Number of sections to study:
F13: PROJECT CHARACTERISTICS | H13: PROJECT CHARACTERISTICS (2) | J13: PROJECT CHARACTERISTICS (3)
F16: TRAFFIC | H16: TRAFFIC (2) | J16: TRAFFIC (3)
F19: TOLL RATE | H19: TOLL RATE (2) | J19: TOLL RATE (3)
F22: OPERATIONAL & MAINTENANCE COST | H22: OPERATIONAL & MAINTENANCE COSTS (2) | J22: OPERATIONAL & MAINTENANCE COSTS (3)
F25: TRANSACTIONS & REVENUE | H25: TRANSACTIONS & REVENUE (2) | J25: TRANSACTIONS & REVENUE (3)
F28: SUMMARY GRAPHS | H28: SUMMARY GRAPHS (2) | J28: SUMMARY GRAPHS (3)
F31: ANALYSIS | H31: ANALYSIS OF RESULTS (2) | J31: ANALYSIS OF RESULTS (3)
F37: COMBINED TRAFFIC & REVENUE | H37: COMBINED ANALYSIS OF RESULTS

Sheet Project Charact (hidden)
A2: PROJECT CHARACTERISTICS - Section 1
C7: General Facility Data Inputs - Section 1
D9: Facility Name | G9: Northwest Toll Road
D11: Project ID | G11: SH 345 | S11: Choose a Typical Section | W11: Choose a Typical Section
D13: District/Region | G13: 12 | S13: 2 lane undivided | W13: 2 lane undivided
S14: 4 lane divided | W14: 4 lane divided
D15: County | G15: Taylor | S15: 4 lane undivided | W15: 4 lane undivided
S16: 6 lane divided | W16: 6 lane divided
D17: Opening Year | G17: 2015 | S17: 8 lane divided | W17: 8 lane divided
S18: 10 lane divided | W18: 10 lane divided
D19: Origin | G19: CSJ 123-45-6789
D21: Destination | G21: CSJ 987-65-4321
D23: Length of Tolled Facility (Miles) | G23: 12
D25: Total Number of Lanes (Both Directions) | G25: 4 | W25: Choose Frontage Roads
W26: None
D27: Existing Typical Section | G27: 2 | W27: Continuous
W28: Discontinuous
D29: Tolled Typical Section | G29: 4 | W29: Choose a Project Type
W30: Local : Rural
D31: Frontage Roads | G31: 3 | W31: Local : Urban
W32: Regional: Rural
D33: Classification | G33: 4 | W33: Regional: Urban
W34: Loop
D35: Current Statewide Mobility Plan (SMP) Priority | G35: 4
D37: Max ADT per Lane | G37: 15000
D39: Interest Rate | G39: 0.055 | W39: Choose a Route Classification
W40: Interstate Highway
D41: Inflation Rate | G41: 0.025 | W41: US Highway
W42: State Highway
W43: Business Route
D45: Comments: | W45: Choose SMP Priority
W46: Construct
W47: Develop
W48: Plan
W49: Not in the SMP
C50: Traffic Data Inputs - Section 1
D52: Traffic Type | G52: 3 | T52: Choose a Traffic Type
T53: Unconstrained
D54: Level of Service of Constrained Traffic | G54: 3 | T54: Constrained
T55: Choose a LOS
D56: Traffic Distribution | G56: 2 | K56: 2 | T56: C
T57: D
G58: Anticipated Minimum | K58: Anticipated Maximum | T58: E | AA58: Mean | AE58: Std. Deviation
T59: F low
D60: Total (Autos & Trucks) Average Daily Traffic (ADT) at Opening Year | G60: 12000 | K60: 21000 | T60: F high | AA60: =(G60+K60)/2 -> 16500 | AE60: =(K60-G60)/6 -> 1500
T61: Choose a Type of Distribution
D62: Mean Percentage of Auto Traffic: Opening Year (% of ADT) | I62: 0.96 | T62: Normal
T63: Triangular
D64: Mean Percentage of Truck Traffic: Opening Year (% of ADT) | I64: =100%-I62 -> 0.04
I68: % Growth
D70: Mean Annual Growth Rate of Auto Traffic: | E70: Years 1-10 | I70: 0.05
E72: Years 11-20 | I72: 0.04
E74: Years 21-30 | I74: 0.03
E76: Years 31-40 | I76: 0.02
E78: Years 41-50 | I78: 0.01
D80: Mean Growth Rate of Truck Traffic: | E80: Years 1-10 | I80: 0.03
E82: Years 11-20 | I82: 0.025
E84: Years 21-30 | I84: 0.02
E86: Years 31-40 | I86: 0.015
E88: Years 41-50 | I88: 0.01
D93: Comments:
D94: -
C98: Toll Data Inputs - Section 1
D100: Mean Toll Revenue Days (Days per Year) | G100: 285
D102: Time Period between Manually Adjusted Toll Rates (Years) | G102: 5
D104: Toll Rate for Autos at Opening Year ($ per Mile) | G104: 0.15
D106: Toll Rate for Trucks at Opening Year ($ per Mile) | G106: 0.55
D108: Video-Tolling Premium (%) = | G108: 0.25
D109: (A factor applied to the base toll rate to recoup the additional costs associated with the back-office administration of video tolling; typically revenue nuetral.)
D112: Ramp-Up Factors (%)
E113: Year 1 | G113: 0.7
E114: Year 2 | G114: 0.8
E115: Year 3 | G115: 0.9
E116: Year 4 | G116: 1
E117: Year 5 | G117: 1
D119: ETC Penetration Rate for Autos (%)
E120: Years 1-5 | G120: 0.6
E121: Years 6-10 | G121: 0.7
E122: Years 11-20 | G122: 0.8
E123: Years 21-35 | G123: 0.9
E124: Years 36-50 | G124: 0.95
D126: ETC Penetration Rate for Trucks (%)
E127: Years 1-5 | G127: 0.4
E128: Years 6-10 | G128: 0.5
E129: Years 11-20 | G129: 0.55
E130: Years 21-35 | G130: 0.6
E131: Years 36-50 | G131: 0.7
D137: Comments
D138: --
G146: BACK TO MENU

Sheet Traffic (hidden)
A2: TRAFFIC DATA - Section 1
B6: Traffic Data - Section 1
D8: Year of Opening | F8: ='Project Charact'!G17 -> 2015 | J8: Maximum Total ADT | K8: =+'Project Charact'!G25*'Project Charact'!G37 -> 60000
F10: * Traffic volumes shown do NOT include ramp-up factors. | O10: For Normal Distribution | U10: For Triangular Distribution
O11: SD CAR | P11: SD Truck | U11: Mode CAR | V11: Mode Truck | AA11: Min CAR | AB11: Max CAR | AC11: Min Truck | AD11: Max Truck
D12: Year | F12: Auto | H12: Truck | J12: TOTAL
D13: Year No. | E13: Year | F13: Auto Mean Growth | G13: Auto Tolled ADT | H13: Truck Mean Growth | I13: Truck Tolled ADT | J13: TOTAL ADT | K13: FEASIBLE TOTAL ADT | R13: % Auto | S13: % Truck | X13: % Auto | Y13: % Truck
D14: 1 | E14: =F8 -> 2015 | F14: ='Project Charact'!$I$70 -> 0.05 | G14: =IF('Project Charact'!$G$56=3,'Project Charact'!$AC$60*'Project Charact'!$I$62,'Project Charact'!$AA$60*'Project Charact'!$I$62) -> 15840 | H14: ='Project Charact'!$I$80 -> 0.03 | I14: =IF('Project Charact'!$G$56=3,'Project Charact'!$AC$60*'Project Charact'!$I$64,'Project Charact'!$AA$60*'Project Charact'!$I$64) -> 660 | J14: =G14+I14 -> 16500 | K14: =IF(J14<$K$8,J14,$K$8) -> 16500 | O14: =+'Project Charact'!AE60*R14 -> 1440 | P14: =+'Project Charact'!AE60*S14 -> 60 | R14: =+G14/J14 -> 0.96 | S14: =+I14/J14 -> 0.04 | U14: =G14 -> 15840 | V14: =I14 -> 660 | X14: =U14/(U14+V14) -> 0.96 | Y14: =V14/(U14+V14) -> 0.04 | AA14: ='Project Charact'!$G$60*$X14*IF('Project Charact'!$G113<100%,'Project Charact'!$G113,100%) -> 8064 | AB14: ='Project Charact'!$K$60*$X14*IF('Project Charact'!$G113<100%,'Project Charact'!$G113,100%) -> 14112 | AC14: ='Project Charact'!$G$60*$Y14*IF('Project Charact'!$G113<100%,'Project Charact'!$G113,100%) -> 336 | AD14: ='Project Charact'!$K$60*$Y14*IF('Project Charact'!$G113<100%,'Project Charact'!$G113,100%) -> 588
D15: 2 | E15: =1+E14 -> 2016 | F15: ='Project Charact'!$I$70 -> 0.05 | G15: =G14*(1+F15) -> 16632 | H15: ='Project Charact'!$I$80 -> 0.03 | I15: =(H15+1)*I14 -> 679.8 | J15: =G15+I15 -> 17311.8 | K15: =IF(J15<$K$8,J15,$K$8) -> 17311.8 | O15: =+IF(J15<$K$8,O14*(1+F15),O14) -> 1512 | P15: =+IF(J15<$K$8,P14*(1+H15),P14) -> 61.8 | R15: =+G15/J15 -> 0.9607319863 | S15: =+I15/J15 -> 0.03926801372 | U15: =G15 -> 16632 | V15: =I15 -> 679.8 | X15: =U15/(U15+V15) -> 0.9607319863 | Y15: =V15/(U15+V15) -> 0.03926801372 | AA15: ='Project Charact'!$G$60*$X15*(1+$F14)^(D15-1)*IF('Project Charact'!$G114<100%,'Project Charact'!$G114,100%) -> 9684.178422 | AB15: ='Project Charact'!$K$60*$X15*(1+$F14)^(D15-1)*IF('Project Charact'!$G114<100%,'Project Charact'!$G114,100%) -> 16947.31224 | AC15: ='Project Charact'!$G$60*$Y15*(1+$F14)^(D15-1)*IF('Project Charact'!$G114<100%,'Project Charact'!$G114,100%) -> 395.8215783 | AD15: ='Project Charact'!$K$60*$Y15*(1+$F14)^(D15-1)*IF('Project Charact'!$G114<100%,'Project Charact'!$G114,100%) -> 692.6877621
D16: 3 | E16: =1+E15 -> 2017 | F16: ='Project Charact'!$I$70 -> 0.05 | G16: =G15*(1+F16) -> 17463.6 | H16: ='Project Charact'!$I$80 -> 0.03 | I16: =(H16+1)*I15 -> 700.194 | J16: 18163.794 | K16: 18163.794 | O16: =+IF(J16<$K$8,O15*(1+F16),O15) -> 1587.6 | P16: =+IF(J16<$K$8,P15*(1+H16),P15) -> 63.654 | R16: 0.9614511153 | S16: 0.03854888467 | U16: 17463.6 | V16: 700.194 | X16: 0.9614511153 | Y16: 0.03854888467 | AA16: ='Project Charact'!$G$60*$X16*(1+$F15)^(D16-1)*IF('Project Charact'!$G115<100%,'Project Charact'!$G115,100%) -> 11447.99843 | AB16: ='Project Charact'!$K$60*$X16*(1+$F15)^(D16-1)*IF('Project Charact'!$G115<100%,'Project Charact'!$G115,100%) -> 20033.99725 | AC16: ='Project Charact'!$G$60*$Y16*(1+$F15)^(D16-1)*IF('Project Charact'!$G115<100%,'Project Charact'!$G115,100%) -> 459.0015697 | AD16: ='Project Charact'!$K$60*$Y16*(1+$F15)^(D16-1)*IF('Project Charact'!$G115<100%,'Project Charact'!$G115,100%) -> 803.252747
D17: 4 | E17: 2018 | F17: ='Project Charact'!$I$70 -> 0.05 | G17: 18336.78 | H17: ='Project Charact'!$I$80 -> 0.03 | I17: =(H17+1)*I16 -> 721.19982 | J17: 19057.97982 | K17: 19057.97982 | O17: 1666.98 | P17: 65.56362 | R17: 0.9621575935 | S17: 0.03784240653 | U17: 18336.78 | V17: 721.19982 | X17: 0.9621575935 | Y17: 0.03784240653 | AA17: ='Project Charact'!$G$60*$X17*(1+$F16)^(D17-1)*IF('Project Charact'!$G116<100%,'Project Charact'!$G116,100%) -> 13365.81221 | AB17: ='Project Charact'!$K$60*$X17*(1+$F16)^(D17-1)*IF('Project Charact'!$G116<100%,'Project Charact'!$G116,100%) -> 23390.17137 | AC17: ='Project Charact'!$G$60*$Y17*(1+$F16)^(D17-1)*IF('Project Charact'!$G116<100%,'Project Charact'!$G116,100%) -> 525.6877903 | AD17: ='Project Charact'!$K$60*$Y17*(1+$F16)^(D17-1)*IF('Project Charact'!$G116<100%,'Project Charact'!$G116,100%) -> 919.9536331
D18: 5 | E18: 2019 | F18: ='Project Charact'!$I$70 -> 0.05 | G18: 19253.619 | H18: ='Project Charact'!$I$80 -> 0.03 | I18: 742.8358146 | J18: 19996.45481 | K18: 19996.45481 | O18: 1750.329 | P18: 67.5305286 | R18: 0.9628516244 | S18: 0.03714837562 | U18: 19253.619 | V18: 742.8358146 | X18: 0.9628516244 | Y18: 0.03714837562 | AA18: ='Project Charact'!$G$60*$X18*(1+$F17)^(D18-1)*IF('Project Charact'!$G117<100%,'Project Charact'!$G117,100%) -> 14044.22601 | AB18: ='Project Charact'!$K$60*$X18*(1+$F17)^(D18-1)*IF('Project Charact'!$G117<100%,'Project Charact'!$G117,100%) -> 24577.39551 | AC18: ='Project Charact'!$G$60*$Y18*(1+$F17)^(D18-1)*IF('Project Charact'!$G117<100%,'Project Charact'!$G117,100%) -> 541.848993 | AD18: ='Project Charact'!$K$60*$Y18*(1+$F17)^(D18-1)*IF('Project Charact'!$G117<100%,'Project Charact'!$G117,100%) -> 948.2357377
D19: 6 | E19: 2020 | F19: ='Project Charact'!$I$70 -> 0.05 | G19: 20216.29995 | H19: ='Project Charact'!$I$80 -> 0.03 | I19: 765.120889 | J19: 20981.42084 | K19: 20981.42084 | O19: 1837.84545 | P19: 69.55644446 | R19: 0.9635334092 | S19: 0.03646659084 | U19: 20216.29995 | V19: 765.120889 | X19: 0.9635334092 | Y19: 0.03646659084 | AA19: =IF($J19>$K$8,AA18,AA18*(1+$F19)) -> 14746.43731 | AB19: =IF($J19>$K$8,AB18,AB18*(1+$F19)) -> 25806.26529 | AC19: =IF($J19>$K$8,AC18,AC18*(1+$H19)) -> 558.1044628 | AD19: =IF($J19>$K$8,AD18,AD18*(1+$H19)) -> 976.6828098
D20: 7 | E20: 2021 | F20: ='Project Charact'!$I$70 -> 0.05 | G20: 21227.11495 | H20: ='Project Charact'!$I$80 -> 0.03 | I20: 788.0745157 | J20: 22015.18946 | K20: 22015.18946 | O20: 1929.737723 | P20: 71.64313779 | R20: 0.9642031463 | S20: 0.03579685367 | U20: 21227.11495 | V20: 788.0745157 | X20: 0.9642031463 | Y20: 0.03579685367 | AA20: 15483.75917 | AB20: 27096.57855 | AC20: 574.8475967 | AD20: 1005.983294
D21: 8 | E21: 2022 | F21: ='Project Charact'!$I$70 -> 0.05 | G21: 22288.47069 | H21: ='Project Charact'!$I$80 -> 0.03 | I21: 811.7167512 | J21: 23100.18745 | K21: 23100.18745 | O21: 2026.224609 | P21: 73.79243193 | R21: 0.9648610318 | S21: 0.03513896816 | U21: 22288.47069 | V21: 811.7167512 | X21: 0.9648610318 | Y21: 0.03513896816 | AA21: 16257.94713 | AB21: 28451.40748 | AC21: 592.0930246 | AD21: 1036.162793
D22: 9 | E22: 2023 | F22: ='Project Charact'!$I$70 -> 0.05 | G22: 23402.89423 | H22: ='Project Charact'!$I$80 -> 0.03 | I22: 836.0682537 | J22: 24238.96248 | K22: 24238.96248 | O22: 2127.535839 | P22: 76.00620488 | R22: 0.9655072591 | S22: 0.03449274095 | U22: 23402.89423 | V22: 836.0682537 | X22: 0.9655072591 | Y22: 0.03449274095 | AA22: 17070.84449 | AB22: 29873.97785 | AC22: 609.8558153 | AD22: 1067.247677
D23: 10 | E23: 2024 | F23: ='Project Charact'!$I$70 -> 0.05 | G23: 24573.03894 | H23: ='Project Charact'!$I$80 -> 0.03 | I23: 861.1503013 | J23: 25434.18924 | K23: 25434.18924 | O23: 2233.912631 | P23: 78.28639103 | R23: 0.9661420188 | S23: 0.0338579812 | U23: 24573.03894 | V23: 861.1503013 | X23: 0.9661420188 | Y23: 0.0338579812 | AA23: 17924.38671 | AB23: 31367.67675 | AC23: 628.1514897 | AD23: 1099.265107
D24: 11 | E24: 2025 | F24: ='Project Charact'!$I$72 -> 0.04 | G24: =G23*(1+F24) -> 25555.9605 | H24: ='Project Charact'!$I$82 -> 0.025 | I24: =I23*(1+H24) -> 882.6790589 | J24: 26438.63956 | K24: 26438.63956 | O24: 2323.269136 | P24: 80.24355081 | R24: 0.9666140515 | S24: 0.03338594851 | U24: 25555.9605 | V24: 882.6790589 | X24: 0.9666140515 | Y24: 0.03338594851 | AA24: 18641.36218 | AB24: 32622.38382 | AC24: 643.855277 | AD24: 1126.746735
D25: 12 | E25: 2026 | F25: ='Project Charact'!$I$72 -> 0.04 | G25: =G24*(1+F25) -> 26578.19892 | H25: ='Project Charact'!$I$82 -> 0.025 | I25: =I24*(1+H25) -> 904.7460353 | J25: 27482.94495 | K25: 27482.94495 | O25: 2416.199902 | P25: 82.24963958 | R25: 0.9670797276 | S25: 0.03292027244 | U25: 26578.19892 | V25: 904.7460353 | X25: 0.9670797276 | Y25: 0.03292027244 | AA25: 19387.01667 | AB25: 33927.27917 | AC25: 659.9516589 | AD25: 1154.915403
D26: 13 | E26: 2027 | F26: ='Project Charact'!$I$72 -> 0.04 | G26: 27641.32688 | H26: ='Project Charact'!$I$82 -> 0.025 | I26: 927.3646862 | J26: 28568.69156 | K26: 28568.69156 | O26: 2512.847898 | P26: 84.30588057 | R26: 0.9675391264 | S26: 0.03246087362 | U26: 27641.32688 | V26: 927.3646862 | X26: 0.9675391264 | Y26: 0.03246087362 | AA26: 20162.49733 | AB26: 35284.37034 | AC26: 676.4504504 | AD26: 1183.788288
D27: 14 | E27: 2028 | F27: ='Project Charact'!$I$72 -> 0.04 | G27: 28746.97995 | H27: ='Project Charact'!$I$82 -> 0.025 | I27: 950.5488034 | J27: 29697.52875 | K27: 29697.52875 | O27: 2613.361814 | P27: 86.41352758 | R27: 0.9679923265 | S27: 0.03200767348 | U27: 28746.97995 | V27: 950.5488034 | X27: 0.9679923265 | Y27: 0.03200767348 | AA27: 20968.99723 | AB27: 36695.74515 | AC27: 693.3617116 | AD27: 1213.382995
D28: 15 | E28: 2029 | F28: ='Project Charact'!$I$72 -> 0.04 | G28: 29896.85915 | H28: ='Project Charact'!$I$82 -> 0.025 | I28: 974.3125235 | J28: 30871.17167 | K28: 30871.17167 | O28: 2717.896286 | P28: 88.57386577 | R28: 0.9684394057 | S28: 0.03156059426 | U28: 29896.85915 | V28: 974.3125235 | X28: 0.9684394057 | Y28: 0.03156059426 | AA28: 21807.75712 | AB28: 38163.57496 | AC28: 710.6957544 | AD28: 1243.71757
D29: 16 | E29: 2030 | F29: ='Project Charact'!$I$72 -> 0.04 | G29: 31092.73351 | H29: ='Project Charact'!$I$82 -> 0.025 | I29: 998.6703365 | J29: 32091.40385 | K29: 32091.40385 | O29: 2826.612138 | P29: 90.78821241 | R29: 0.968880441 | S29: 0.03111955903 | U29: 31092.73351 | V29: 998.6703365 | X29: 0.968880441 | Y29: 0.03111955903 | AA29: 22680.0674 | AB29: 39690.11795 | AC29: 728.4631483 | AD29: 1274.81051
D30: 17 | E30: 2031 | F30: ='Project Charact'!$I$72 -> 0.04 | G30: 32336.44285 | H30: ='Project Charact'!$I$82 -> 0.025 | I30: 1023.637095 | J30: 33360.07995 | K30: 33360.07995 | O30: 2939.676623 | P30: 93.05791772 | R30: 0.9693155083 | S30: 0.03068449166 | U30: 32336.44285 | V30: 1023.637095 | X30: 0.9693155083 | Y30: 0.03068449166 | AA30: 23587.2701 | AB30: 41277.72267 | AC30: 746.674727 | AD30: 1306.680772
D31: 18 | E31: 2032 | F31: ='Project Charact'!$I$72 -> 0.04 | G31: 33629.90057 | H31: ='Project Charact'!$I$82 -> 0.025 | I31: 1049.228022 | J31: 34679.12859 | K31: 34679.12859 | O31: 3057.263688 | P31: 95.38436567 | R31: 0.9697446832 | S31: 0.03025531681 | U31: 33629.90057 | V31: 1049.228022 | X31: 0.9697446832 | Y31: 0.03025531681 | AA31: 24530.7609 | AB31: 42928.83158 | AC31: 765.3415952 | AD31: 1339.347792
D32: 19 | E32: 2033 | F32: ='Project Charact'!$I$72 -> 0.04 | G32: 34975.09659 | H32: ='Project Charact'!$I$82 -> 0.025 | I32: 1075.458723 | J32: 36050.55531 | K32: 36050.55531 | O32: 3179.554236 | P32: 97.76897481 | R32: 0.97016804 | S32: 0.02983195997 | U32: 34975.09659 | V32: 1075.458723 | X32: 0.97016804 | Y32: 0.02983195997 | AA32: 25511.99134 | AB32: 44645.98484 | AC32: 784.4751351 | AD32: 1372.831486
D33: 20 | E33: 2034 | F33: ='Project Charact'!$I$72 -> 0.04 | G33: 36374.10046 | H33: ='Project Charact'!$I$82 -> 0.025 | I33: 1102.345191 | J33: 37476.44565 | K33: 37476.44565 | O33: 3306.736405 | P33: 100.2131992 | R33: 0.9705856526 | S33: 0.02941434738 | U33: 36374.10046 | V33: 1102.345191 | X33: 0.9705856526 | Y33: 0.02941434738 | AA33: 26532.47099 | AB33: 46431.82424 | AC33: 804.0870134 | AD33: 1407.152274
D34: 21 | E34: 2035 | F34: ='Project Charact'!$I$74 -> 0.03 | G34: =G33*(1+F34) -> 37465.32347 | H34: ='Project Charact'!$I$84 -> 0.02 | I34: 1124.392095 | J34: 38589.71556 | K34: 38589.71556 | O34: 3405.938497 | P34: 102.2174632 | R34: 0.9708629079 | S34: 0.02913709206 | U34: 37465.32347 | V34: 1124.392095 | X34: 0.9708629079 | Y34: 0.02913709206 | AA34: 27328.44512 | AB34: 47824.77896 | AC34: 820.1687537 | AD34: 1435.295319
D35: 22 | E35: 2036 | F35: ='Project Charact'!$I$74 -> 0.03 | G35: =G34*(1+F35) -> 38589.28317 | H35: ='Project Charact'!$I$84 -> 0.02 | I35: 1146.879937 | J35: 39736.16311 | K35: 39736.16311 | O35: 3508.116652 | P35: 104.2618124 | R35: 0.9711376276 | S35: 0.02886237238 | U35: 38589.28317 | V35: 1146.879937 | X35: 0.9711376276 | Y35: 0.02886237238 | AA35: 28148.29848 | AB35: 49259.52233 | AC35: 836.5721288 | AD35: 1464.001225
D36: 23 | E36: 2037 | F36: ='Project Charact'!$I$74 -> 0.03 | G36: 39746.96167 | H36: ='Project Charact'!$I$84 -> 0.02 | I36: 1169.817535 | J36: 40916.7792 | K36: 40916.7792 | O36: 3613.360152 | P36: 106.3470487 | R36: 0.9714098334 | S36: 0.02859016663 | U36: 39746.96167 | V36: 1169.817535 | X36: 0.9714098334 | Y36: 0.02859016663 | AA36: 28992.74743 | AB36: 50737.308 | AC36: 853.3035714 | AD36: 1493.28125
D37: 24 | E37: 2038 | F37: ='Project Charact'!$I$74 -> 0.03 | G37: 40939.37052 | H37: ='Project Charact'!$I$84 -> 0.02 | I37: 1193.213886 | J37: 42132.5844 | K37: 42132.5844 | O37: 3721.760956 | P37: 108.4739896 | R37: 0.9716795468 | S37: 0.02832045323 | U37: 40939.37052 | V37: 1193.213886 | X37: 0.9716795468 | Y37: 0.02832045323 | AA37: 29862.52985 | AB37: 52259.42724 | AC37: 870.3696428 | AD37: 1523.146875
D38: 25 | E38: 2039 | F38: ='Project Charact'!$I$74 -> 0.03 | G38: 42167.55163 | H38: ='Project Charact'!$I$84 -> 0.02 | I38: 1217.078164 | J38: 43384.6298 | K38: 43384.6298 | O38: 3833.413785 | P38: 110.6434694 | R38: 0.9719467892 | S38: 0.02805321077 | U38: 42167.55163 | V38: 1217.078164 | X38: 0.9719467892 | Y38: 0.02805321077 | AA38: 30758.40575 | AB38: 53827.21006 | AC38: 887.7770356 | AD38: 1553.609812
D39: 26 | E39: 2040 | F39: ='Project Charact'!$I$74 -> 0.03 | G39: 43432.57818 | H39: ='Project Charact'!$I$84 -> 0.02 | I39: 1241.419727 | J39: 44673.99791 | K39: 44673.99791 | O39: 3948.416198 | P39: 112.8563388 | R39: 0.972211582 | S39: 0.02778841799 | U39: 43432.57818 | V39: 1241.419727 | X39: 0.972211582 | Y39: 0.02778841799 | AA39: 31681.15792 | AB39: 55442.02636 | AC39: 905.5325764 | AD39: 1584.682009
D40: 27 | E40: 2041 | F40: ='Project Charact'!$I$74 -> 0.03 | G40: 44735.55553 | H40: ='Project Charact'!$I$84 -> 0.02 | I40: 1266.248122 | J40: 46001.80365 | K40: 46001.80365 | O40: 4066.868684 | P40: 115.1134656 | R40: 0.9724739462 | S40: 0.02752605379 | U40: 44735.55553 | V40: 1266.248122 | X40: 0.9724739462 | Y40: 0.02752605379 | AA40: 32631.59266 | AB40: 57105.28715 | AC40: 923.6432279 | AD40: 1616.375649
D41: 28 | E41: 2042 | F41: ='Project Charact'!$I$74 -> 0.03 | G41: 46077.62219 | H41: ='Project Charact'!$I$84 -> 0.02 | I41: 1291.573084 | J41: 47369.19528 | K41: 47369.19528 | O41: 4188.874745 | P41: 117.4157349 | R41: 0.9727339028 | S41: 0.02726609723 | U41: 46077.62219 | V41: 1291.573084 | X41: 0.9727339028 | Y41: 0.02726609723 | AA41: 33610.54044 | AB41: 58818.44577 | AC41: 942.1160924 | AD41: 1648.703162
D42: 29 | E42: 2043 | F42: ='Project Charact'!$I$74 -> 0.03 | G42: 47459.95086 | H42: ='Project Charact'!$I$84 -> 0.02 | I42: 1317.404546 | J42: 48777.35541 | K42: 48777.35541 | O42: 4314.540987 | P42: 119.7640496 | R42: 0.9729914725 | S42: 0.02700852752 | U42: 47459.95086 | V42: 1317.404546 | X42: 0.9729914725 | Y42: 0.02700852752 | AA42: 34618.85665 | AB42: 60582.99914 | AC42: 960.9584143 | AD42: 1681.677225
D43: 30 | E43: 2044 | F43: ='Project Charact'!$I$74 -> 0.03 | G43: 48883.74939 | H43: ='Project Charact'!$I$84 -> 0.02 | I43: 1343.752637 | J43: 50227.50202 | K43: 50227.50202 | O43: 4443.977217 | P43: 122.1593306 | R43: 0.973246676 | S43: 0.02675332403 | U43: 48883.74939 | V43: 1343.752637 | X43: 0.973246676 | Y43: 0.02675332403 | AA43: 35657.42235 | AB43: 62400.48911 | AC43: 980.1775826 | AD43: 1715.310769
D44: 31 | E44: 2045 | F44: ='Project Charact'!I76 -> 0.02 | G44: =G43*(1+F44) -> 49861.42437 | H44: ='Project Charact'!$I$86 -> 0.015 | I44: 1363.908926 | J44: 51225.3333 | K44: 51225.3333 | O44: 4532.856761 | P44: 123.9917206 | R44: 0.9733743279 | S44: 0.02662567207 | U44: 49861.42437 | V44: 1363.908926 | X44: 0.9733743279 | Y44: 0.02662567207 | AA44: 36370.5708 | AB44: 63648.49889 | AC44: 994.8802463 | AD44: 1741.040431
D45: 32 | E45: 2046 | F45: ='Project Charact'!$I$76 -> 0.02 | G45: =G44*(1+F45) -> 50858.65286 | H45: ='Project Charact'!$I$86 -> 0.015 | I45: 1384.36756 | J45: 52243.02042 | K45: 52243.02042 | O45: 4623.513896 | P45: 125.8515964 | R45: 0.9735013874 | S45: 0.02649861262 | U45: 50858.65286 | V45: 1384.36756 | X45: 0.9735013874 | Y45: 0.02649861262 | AA45: 37097.98221 | AB45: 64921.46887 | AC45: 1009.80345 | AD45: 1767.156038
D46: 33 | E46: 2047 | F46: ='Project Charact'!$I$76 -> 0.02 | G46: 51875.82592 | H46: ='Project Charact'!$I$86 -> 0.015 | I46: 1405.133074 | J46: 53280.95899 | K46: 53280.95899 | O46: 4715.984174 | P46: 127.7393703 | R46: 0.9736278569 | S46: 0.02637214307 | U46: 51875.82592 | V46: 1405.133074 | X46: 0.9736278569 | Y46: 0.02637214307 | AA46: 37839.94186 | AB46: 66219.89825 | AC46: 1024.950502 | AD46: 1793.663378
D47: 34 | E47: 2048 | F47: ='Project Charact'!$I$76 -> 0.02 | G47: 52913.34244 | H47: ='Project Charact'!$I$86 -> 0.015 | I47: 1426.21007 | J47: 54339.55251 | K47: 54339.55251 | O47: 4810.303858 | P47: 129.6554609 | R47: 0.9737537391 | S47: 0.02624626085 | U47: 52913.34244 | V47: 1426.21007 | X47: 0.9737537391 | Y47: 0.02624626085 | AA47: 38596.74069 | AB47: 67544.29622 | AC47: 1040.324759 | AD47: 1820.568329
D48: 35 | E48: 2049 | F48: ='Project Charact'!$I$76 -> 0.02 | G48: 53971.60929 | H48: ='Project Charact'!$I$86 -> 0.015 | I48: 1447.603221 | J48: 55419.21251 | K48: 55419.21251 | O48: 4906.509935 | P48: 131.6002928 | R48: 0.9738790366 | S48: 0.02612096338 | U48: 53971.60929 | V48: 1447.603221 | X48: 0.9738790366 | Y48: 0.02612096338 | AA48: 39368.67551 | AB48: 68895.18214 | AC48: 1055.929631 | AD48: 1847.876854
D49: 36 | E49: 2050 | F49: ='Project Charact'!$I$76 -> 0.02 | G49: 55051.04147 | H49: ='Project Charact'!$I$86 -> 0.015 | I49: 1469.317269 | J49: 56520.35874 | K49: 56520.35874 | O49: 5004.640134 | P49: 133.5742972 | R49: 0.9740037519 | S49: 0.02599624811 | U49: 55051.04147 | V49: 1469.317269 | X49: 0.9740037519 | Y49: 0.02599624811 | AA49: 40156.04902 | AB49: 70273.08578 | AC49: 1071.768575 | AD49: 1875.595006
D50: 37 | E50: 2051 | F50: ='Project Charact'!$I$76 -> 0.02 | G50: 56152.0623 | H50: ='Project Charact'!$I$86 -> 0.015 | I50: 1491.357028 | J50: 57643.41933 | K50: 57643.41933 | O50: 5104.732936 | P50: 135.5779116 | R50: 0.9741278875 | S50: 0.02587211247 | U50: 56152.0623 | V50: 1491.357028 | X50: 0.9741278875 | Y50: 0.02587211247 | AA50: 40959.17 | AB50: 71678.5475 | AC50: 1087.845104 | AD50: 1903.728932
D51: 38 | E51: 2052 | F51: ='Project Charact'!$I$76 -> 0.02 | G51: 57275.10355 | H51: ='Project Charact'!$I$86 -> 0.015 | I51: 1513.727383 | J51: 58788.83093 | K51: 58788.83093 | O51: 5206.827595 | P51: 137.6115803 | R51: 0.9742514461 | S51: 0.02574855393 | U51: 57275.10355 | V51: 1513.727383 | X51: 0.9742514461 | Y51: 0.02574855393 | AA51: 41778.3534 | AB51: 73112.11845 | AC51: 1104.16278 | AD51: 1932.284866
D52: 39 | E52: 2053 | F52: ='Project Charact'!$I$76 -> 0.02 | G52: 58420.60562 | H52: ='Project Charact'!$I$86 -> 0.015 | I52: 1536.433294 | J52: 59957.03891 | K52: 59957.03891 | O52: 5310.964147 | P52: 139.675754 | R52: 0.9743744301 | S52: 0.02562556994 | U52: 58420.60562 | V52: 1536.433294 | X52: 0.9743744301 | Y52: 0.02562556994 | AA52: 42613.92047 | AB52: 74574.36082 | AC52: 1120.725222 | AD52: 1961.269139
D53: 40 | E53: 2054 | F53: ='Project Charact'!$I$76 -> 0.02 | G53: 59589.01773 | H53: ='Project Charact'!$I$86 -> 0.015 | I53: 1559.479794 | J53: 61148.49752 | K53: 60000 | O53: 5310.964147 | P53: 139.675754 | R53: 0.974496842 | S53: 0.025503158 | U53: 59589.01773 | V53: 1559.479794 | X53: 0.974496842 | Y53: 0.025503158 | AA53: 42613.92047 | AB53: 74574.36082 | AC53: 1120.725222 | AD53: 1961.269139
D54: 41 | E54: 2055 | F54: ='Project Charact'!I78 -> 0.01 | G54: =G53*(1+F54) -> 60184.90791 | H54: ='Project Charact'!$I$88 -> 0.01 | I54: 1575.074592 | J54: 61759.9825 | K54: 60000 | O54: 5310.964147 | P54: 139.675754 | R54: 0.974496842 | S54: 0.025503158 | U54: 60184.90791 | V54: 1575.074592 | X54: 0.974496842 | Y54: 0.025503158 | AA54: 42613.92047 | AB54: 74574.36082 | AC54: 1120.725222 | AD54: 1961.269139
D55: 42 | E55: 2056 | F55: ='Project Charact'!$I$78 -> 0.01 | G55: =G54*(1+F55) -> 60786.75699 | H55: ='Project Charact'!$I$88 -> 0.01 | I55: 1590.825337 | J55: 62377.58232 | K55: 60000 | O55: 5310.964147 | P55: 139.675754 | R55: 0.974496842 | S55: 0.025503158 | U55: 60786.75699 | V55: 1590.825337 | X55: 0.974496842 | Y55: 0.025503158 | AA55: 42613.92047 | AB55: 74574.36082 | AC55: 1120.725222 | AD55: 1961.269139
D56: 43 | E56: 2057 | F56: ='Project Charact'!$I$78 -> 0.01 | G56: 61394.62456 | H56: ='Project Charact'!$I$88 -> 0.01 | I56: 1606.733591 | J56: 63001.35815 | K56: 60000 | O56: 5310.964147 | P56: 139.675754 | R56: 0.974496842 | S56: 0.025503158 | U56: 61394.62456 | V56: 1606.733591 | X56: 0.974496842 | Y56: 0.025503158 | AA56: 42613.92047 | AB56: 74574.36082 | AC56: 1120.725222 | AD56: 1961.269139
D57: 44 | E57: 2058 | F57: ='Project Charact'!$I$78 -> 0.01 | G57: 62008.5708 | H57: ='Project Charact'!$I$88 -> 0.01 | I57: 1622.800927 | J57: 63631.37173 | K57: 60000 | O57: 5310.964147 | P57: 139.675754 | R57: 0.974496842 | S57: 0.025503158 | U57: 62008.5708 | V57: 1622.800927 | X57: 0.974496842 | Y57: 0.025503158 | AA57: 42613.92047 | AB57: 74574.36082 | AC57: 1120.725222 | AD57: 1961.269139
D58: 45 | E58: 2059 | F58: ='Project Charact'!$I$78 -> 0.01 | G58: 62628.65651 | H58: ='Project Charact'!$I$88 -> 0.01 | I58: 1639.028936 | J58: 64267.68545 | K58: 60000 | O58: 5310.964147 | P58: 139.675754 | R58: 0.974496842 | S58: 0.025503158 | U58: 62628.65651 | V58: 1639.028936 | X58: 0.974496842 | Y58: 0.025503158 | AA58: 42613.92047 | AB58: 74574.36082 | AC58: 1120.725222 | AD58: 1961.269139
D59: 46 | E59: 2060 | F59: ='Project Charact'!$I$78 -> 0.01 | G59: 63254.94308 | H59: ='Project Charact'!$I$88 -> 0.01 | I59: 1655.419225 | J59: 64910.3623 | K59: 60000 | O59: 5310.964147 | P59: 139.675754 | R59: 0.974496842 | S59: 0.025503158 | U59: 63254.94308 | V59: 1655.419225 | X59: 0.974496842 | Y59: 0.025503158 | AA59: 42613.92047 | AB59: 74574.36082 | AC59: 1120.725222 | AD59: 1961.269139
D60: 47 | E60: 2061 | F60: ='Project Charact'!$I$78 -> 0.01 | G60: 63887.49251 | H60: ='Project Charact'!$I$88 -> 0.01 | I60: 1671.973418 | J60: 65559.46592 | K60: 60000 | O60: 5310.964147 | P60: 139.675754 | R60: 0.974496842 | S60: 0.025503158 | U60: 63887.49251 | V60: 1671.973418 | X60: 0.974496842 | Y60: 0.025503158 | AA60: 42613.92047 | AB60: 74574.36082 | AC60: 1120.725222 | AD60: 1961.269139
D61: 48 | E61: 2062 | F61: ='Project Charact'!$I$78 -> 0.01 | G61: 64526.36743 | H61: ='Project Charact'!$I$88 -> 0.01 | I61: 1688.693152 | J61: 66215.06058 | K61: 60000 | O61: 5310.964147 | P61: 139.675754 | R61: 0.974496842 | S61: 0.025503158 | U61: 64526.36743 | V61: 1688.693152 | X61: 0.974496842 | Y61: 0.025503158 | AA61: 42613.92047 | AB61: 74574.36082 | AC61: 1120.725222 | AD61: 1961.269139
D62: 49 | E62: 2063 | F62: ='Project Charact'!$I$78 -> 0.01 | G62: 65171.63111 | H62: ='Project Charact'!$I$88 -> 0.01 | I62: 1705.580083 | J62: 66877.21119 | K62: 60000 | O62: 5310.964147 | P62: 139.675754 | R62: 0.974496842 | S62: 0.025503158 | U62: 65171.63111 | V62: 1705.580083 | X62: 0.974496842 | Y62: 0.025503158 | AA62: 42613.92047 | AB62: 74574.36082 | AC62: 1120.725222 | AD62: 1961.269139
D63: 50 | E63: 2064 | F63: ='Project Charact'!$I$78 -> 0.01 | G63: 65823.34742 | H63: ='Project Charact'!$I$88 -> 0.01 | I63: 1722.635884 | J63: 67545.9833 | K63: =IF(J63<$K$8,J63,$K$8) -> 60000 | O63: 5310.964147 | P63: 139.675754 | R63: 0.974496842 | S63: 0.025503158 | U63: 65823.34742 | V63: 1722.635884 | X63: 0.974496842 | Y63: 0.025503158 | AA63: 42613.92047 | AB63: 74574.36082 | AC63: 1120.725222 | AD63: 1961.269139
D65: Average | F65: =AVERAGE(F14:F63) -> 0.03 | G65: =AVERAGE(G14:G63) -> 42223.90695 | H65: =AVERAGE(H14:H63) -> 0.02 | I65: =AVERAGE(I14:I63) -> 1216.864666 | J65: =AVERAGE(J14:J63) -> 43440.77162 | K65: Maximum Allowable ADT is:
K67: =IF(J63>K8,"Exceeded","Not Exceeded") -> Exceeded
D69: Comments:
D70: -
H78: BACK TO MENU

Sheet Toll Rate (hidden)
A2: TOLL RATES - Section 1
E6: Base Toll Rate Schedule - Section 1
F8: Year of Analysis | I8: 2010
F10: Year of Opening | I10: ='Project Charact'!G17 -> 2015
F12: Toll Revenue Days | I12: ='Project Charact'!G100 -> 285
F14: Project Length (miles) | I14: ='Project Charact'!G23 -> 12
F16: Inflation Rate (%) | I16: ='Project Charact'!G41 -> 0.025
F18: Period Between Manual Toll Changes | I18: every five years
F20: The Early-Stage Toll Revenue Estimation Model assumes an annual adjustment to the toll rates based on the inflation rate from the Project Characteristics worksheet. The user, however, may enter other toll rate adjustments on a five-year basis in the yellow cells shown below.
F24: Year No . | G24: Year of Toll Rate | I24: Auto Toll Rate | J24: Truck Toll Rate
I25: (per mile) | J25: (per mile)
F26: 1 | G26: =I10 -> 2015 | I26: ='Project Charact'!G104 -> 0.15 | J26: ='Project Charact'!G106 -> 0.55
F27: 2 | G27: =G26+1 -> 2016 | I27: =($I$16+1)*I26 -> 0.15375 | J27: =($I$16+1)*J26 -> 0.56375
F28: 3 | G28: =G27+1 -> 2017 | I28: 0.15759375 | J28: 0.57784375
F29: 4 | G29: 2018 | I29: 0.1615335937 | J29: 0.5922898437
F30: 5 | G30: 2019 | I30: 0.1655719336 | J30: 0.6070970898
F31: 6 | G31: 2020 | I31: 0.1697112319 | J31: 0.6222745171
F32: 7 | G32: 2021 | I32: 0.1739540127 | J32: 0.63783138
F33: 8 | G33: 2022 | I33: 0.1783028631 | J33: 0.6537771645
F34: 9 | G34: 2023 | I34: 0.1827604346 | J34: 0.6701215936
F35: 10 | G35: 2024 | I35: 0.1873294455 | J35: 0.6868746335
F36: 11 | G36: 2025 | I36: 0.1920126816 | J36: 0.7040464993
F37: 12 | G37: 2026 | I37: 0.1968129987 | J37: 0.7216476618
F38: 13 | G38: 2027 | I38: 0.2017333236 | J38: 0.7396888533
F39: 14 | G39: 2028 | I39: 0.2067766567 | J39: 0.7581810747
F40: 15 | G40: 2029 | I40: 0.2119460731 | J40: 0.7771356015
F41: 16 | G41: 2030 | I41: 0.217244725 | J41: 0.7965639916
F42: 17 | G42: 2031 | I42: 0.2226758431 | J42: 0.8164780914
F43: 18 | G43: 2032 | I43: 0.2282427392 | J43: 0.8368900436
F44: 19 | G44: 2033 | I44: 0.2339488077 | J44: 0.8578122947
F45: 20 | G45: 2034 | I45: 0.2397975278 | J45: 0.8792576021
F46: 21 | G46: 2035 | I46: 0.245792466 | J46: 0.9012390422
F47: 22 | G47: 2036 | I47: 0.2519372777 | J47: 0.9237700182
F48: 23 | G48: 2037 | I48: 0.2582357096 | J48: 0.9468642687
F49: 24 | G49: 2038 | I49: 0.2646916024 | J49: 0.9705358754
F50: 25 | G50: 2039 | I50: 0.2713088924 | J50: 0.9947992723
F51: 26 | G51: 2040 | I51: 0.2780916147 | J51: 1.019669254
F52: 27 | G52: 2041 | I52: 0.2850439051 | J52: 1.045160985
F53: 28 | G53: 2042 | I53: 0.2921700027 | J53: 1.07129001
F54: 29 | G54: 2043 | I54: 0.2994742528 | J54: 1.09807226
F55: 30 | G55: 2044 | I55: 0.3069611091 | J55: 1.125524067
F56: 31 | G56: 2045 | I56: 0.3146351369 | J56: 1.153662168
F57: 32 | G57: 2046 | I57: 0.3225010153 | J57: 1.182503723
F58: 33 | G58: 2047 | I58: 0.3305635407 | J58: 1.212066316
F59: 34 | G59: 2048 | I59: =($I$16+1)*I58 -> 0.3388276292 | J59: =($I$16+1)*J58 -> 1.242367974
F60: 35 | G60: 2049 | I60: 0.3472983199 | J60: 1.273427173
F61: 36 | G61: 2050 | I61: 0.3559807779 | J61: 1.305262852
F62: 37 | G62: 2051 | I62: 0.3648802974 | J62: 1.337894424
F63: 38 | G63: 2052 | I63: 0.3740023048 | J63: 1.371341784
F64: 39 | G64: 2053 | I64: 0.3833523624 | J64: 1.405625329
F65: 40 | G65: 2054 | I65: 0.3929361715 | J65: 1.440765962
F66: 41 | G66: 2055 | I66: 0.4027595758 | J66: 1.476785111
F67: 42 | G67: 2056 | I67: 0.4128285652 | J67: 1.513704739
F68: 43 | G68: 2057 | I68: 0.4231492793 | J68: 1.551547357
F69: 44 | G69: 2058 | I69: 0.4337280113 | J69: 1.590336041
F70: 45 | G70: 2059 | I70: 0.4445712115 | J70: 1.630094442
F71: 46 | G71: 2060 | I71: 0.4556854918 | J71: 1.670846803
F72: 47 | G72: 2061 | I72: 0.4670776291 | J72: 1.712617973
F73: 48 | G73: 2062 | I73: 0.4787545699 | J73: 1.755433423
F74: 49 | G74: 2063 | I74: 0.4907234341 | J74: 1.799319258
F75: 50 | G75: 2064 | I75: 0.50299152 | J75: 1.84430224
F77: Average Toll Rates | I77: =AVERAGE(I26:I75) -> 0.2924530464 | J77: =AVERAGE(J26:J75) -> 1.072327837
F82: Comments:
F83: -
H90: BACK TO MENU

Sheet O&M (hidden)
A2: TRANSACTIONAL, OPERATING, & MAINTENANCE COSTS - Section 1
B5: Annual Transactional Cost - Section 1 | M5: Annual Operations Cost - Section 1 | V5: Annual Maintenance Cost - Section 1
D7: Year of Opening | I7: ='Project Charact'!G17 -> 2015 | O7: Year of Opening | R7: ='Project Charact'!G17 -> 2015 | X7: Year of Opening | AA7: ='Project Charact'!G17 -> 2015
D9: Cost of Each Transaction (at Opening Year) | I9: 0.085 | O9: Enter the Annual Operations Cost in the yellow cell if items are not already included in the individual transaction costs. Use total costs and NOT per mile. | X9: Enter the Annual Maintenance Cost for the facility in the yellow cells.
D11: *Ramp-up factors are taken into consideration in transaction numbers.
D13: Year No | E13: Year | F13: Autos* | G13: % ETC | H13: Trucks* | I13: % ETC | O13: Year No. | P13: Year | Q13: Annual Operations Cost | X13: Year No. | Y13: Year | Z13: Annual Maintenance Cost (per mile)
D14: 1 | E14: ='Project Charact'!G17 -> 2015 | F14: =IF('Project Charact'!G113<100%,IF(Traffic!J14>Traffic!$K$8,Traffic!K14*Traffic!R14*'Project Charact'!G113,Traffic!G14*'Project Charact'!G113),Traffic!G14)*$G$74*'Project Charact'!$G$100 -> 3160080 | G14: =IF('Project Charact'!$G$120>0,'Project Charact'!$G$120,100%) -> 0.6 | H14: =IF('Project Charact'!I113<100%,IF(Traffic!J14>Traffic!$K$8,Traffic!K14*Traffic!S14*'Project Charact'!G113,Traffic!I14*'Project Charact'!G113),Traffic!I14)*$G$74*'Project Charact'!$G$100 -> 131670 | I14: =IF('Project Charact'!$G$127>0,'Project Charact'!$G$127,100%) -> 0.4 | O14: 1 | P14: ='Project Charact'!G17 -> 2015 | Q14: 400000 | X14: 1 | Y14: =AA7 -> 2015 | Z14: 40000
D15: 2 | E15: =1+E14 -> 2016 | F15: =IF('Project Charact'!G114<100%,IF(Traffic!J15>Traffic!$K$8,Traffic!K15*Traffic!R15*'Project Charact'!G114,Traffic!G15*'Project Charact'!G114),Traffic!G15)*$G$74*'Project Charact'!$G$100 -> 3792096 | G15: =IF('Project Charact'!$G$120>0,'Project Charact'!$G$120,100%) -> 0.6 | H15: =IF('Project Charact'!I114<100%,IF(Traffic!J15>Traffic!$K$8,Traffic!K15*Traffic!S15*'Project Charact'!G114,Traffic!I15*'Project Charact'!G114),Traffic!I15)*$G$74*'Project Charact'!$G$100 -> 154994.4 | I15: =IF('Project Charact'!$G$127>0,'Project Charact'!$G$127,100%) -> 0.4 | O15: 2 | P15: =1+P14 -> 2016 | Q15: =+Q14*(1+'Project Charact'!$G$41) -> 410000 | X15: 2 | Y15: =1+Y14 -> 2016 | Z15: =+Z14*(1+'Project Charact'!$G$41) -> 41000
D16: 3 | E16: =1+E15 -> 2017 | F16: =IF('Project Charact'!G115<100%,IF(Traffic!J16>Traffic!$K$8,Traffic!K16*Traffic!R16*'Project Charact'!G115,Traffic!G16*'Project Charact'!G115),Traffic!G16)*$G$74*'Project Charact'!$G$100 -> 4479413.4 | G16: =IF('Project Charact'!$G$120>0,'Project Charact'!$G$120,100%) -> 0.6 | H16: =IF('Project Charact'!I115<100%,IF(Traffic!J16>Traffic!$K$8,Traffic!K16*Traffic!S16*'Project Charact'!G115,Traffic!I16*'Project Charact'!G115),Traffic!I16)*$G$74*'Project Charact'!$G$100 -> 179599.761 | I16: =IF('Project Charact'!$G$127>0,'Project Charact'!$G$127,100%) -> 0.4 | O16: 3 | P16: =1+P15 -> 2017 | Q16: =+Q15*(1+'Project Charact'!$G$41) -> 420250 | X16: 3 | Y16: =1+Y15 -> 2017 | Z16: =+Z15*(1+'Project Charact'!$G$41) -> 42025
D17: 4 | E17: 2018 | F17: =IF('Project Charact'!G116<100%,IF(Traffic!J17>Traffic!$K$8,Traffic!K17*Traffic!R17*'Project Charact'!G116,Traffic!G17*'Project Charact'!G116),Traffic!G17)*$G$74*'Project Charact'!$G$100 -> 5225982.3 | G17: =IF('Project Charact'!$G$120>0,'Project Charact'!$G$120,100%) -> 0.6 | H17: =IF('Project Charact'!I116<100%,IF(Traffic!J17>Traffic!$K$8,Traffic!K17*Traffic!S17*'Project Charact'!G116,Traffic!I17*'Project Charact'!G116),Traffic!I17)*$G$74*'Project Charact'!$G$100 -> 205541.9487 | I17: =IF('Project Charact'!$G$127>0,'Project Charact'!$G$127,100%) -> 0.4 | O17: 4 | P17: 2018 | Q17: =+Q16*(1+'Project Charact'!$G$41) -> 430756.25 | X17: 4 | Y17: 2018 | Z17: =+Z16*(1+'Project Charact'!$G$41) -> 43075.625
D18: 5 | E18: 2019 | F18: =IF('Project Charact'!G117<100%,IF(Traffic!J18>Traffic!$K$8,Traffic!K18*Traffic!R18*'Project Charact'!G117,Traffic!G18*'Project Charact'!G117),Traffic!G18)*$G$74*'Project Charact'!$G$100 -> 5487281.415 | G18: =IF('Project Charact'!$G$120>0,'Project Charact'!$G$120,100%) -> 0.6 | H18: =IF('Project Charact'!I117<100%,IF(Traffic!J18>Traffic!$K$8,Traffic!K18*Traffic!S18*'Project Charact'!G117,Traffic!I18*'Project Charact'!G117),Traffic!I18)*$G$74*'Project Charact'!$G$100 -> 211708.2072 | I18: =IF('Project Charact'!$G$127>0,'Project Charact'!$G$127,100%) -> 0.4 | O18: 5 | P18: 2019 | Q18: =+Q17*(1+'Project Charact'!$G$41) -> 441525.1562 | X18: 5 | Y18: 2019 | Z18: =+Z17*(1+'Project Charact'!$G$41) -> 44152.51562
D19: 6 | E19: 2020 | F19: =IF(Traffic!J19>Traffic!$K$8,Traffic!K19*Traffic!R19,Traffic!G19)*$G$74*'Project Charact'!$G$100 -> 5761645.486 | G19: =IF('Project Charact'!$G$121>0,'Project Charact'!$G$121,100%) -> 0.7 | H19: =IF(Traffic!J19>Traffic!$K$8,Traffic!K19*Traffic!S19,Traffic!I19)*$G$74*'Project Charact'!$G$100 -> 218059.4534 | I19: =IF('Project Charact'!$G$128>0,'Project Charact'!$G$128,100%) -> 0.5 | O19: 6 | P19: 2020 | Q19: =+Q18*(1+'Project Charact'!$G$41) -> 452563.2852 | X19: 6 | Y19: 2020 | Z19: =+Z18*(1+'Project Charact'!$G$41) -> 45256.32852
D20: 7 | E20: 2021 | F20: =IF(Traffic!J20>Traffic!$K$8,Traffic!K20*Traffic!R20,Traffic!G20)*$G$74*'Project Charact'!$G$100 -> 6049727.76 | G20: =IF('Project Charact'!$G$121>0,'Project Charact'!$G$121,100%) -> 0.7 | H20: =IF(Traffic!J20>Traffic!$K$8,Traffic!K20*Traffic!S20,Traffic!I20)*$G$74*'Project Charact'!$G$100 -> 224601.237 | I20: =IF('Project Charact'!$G$128>0,'Project Charact'!$G$128,100%) -> 0.5 | O20: 7 | P20: 2021 | Q20: =+Q19*(1+'Project Charact'!$G$41) -> 463877.3673 | X20: 7 | Y20: 2021 | Z20: =+Z19*(1+'Project Charact'!$G$41) -> 46387.73673
D21: 8 | E21: 2022 | F21: =IF(Traffic!J21>Traffic!$K$8,Traffic!K21*Traffic!R21,Traffic!G21)*$G$74*'Project Charact'!$G$100 -> 6352214.148 | G21: =IF('Project Charact'!$G$121>0,'Project Charact'!$G$121,100%) -> 0.7 | H21: =IF(Traffic!J21>Traffic!$K$8,Traffic!K21*Traffic!S21,Traffic!I21)*$G$74*'Project Charact'!$G$100 -> 231339.2741 | I21: =IF('Project Charact'!$G$128>0,'Project Charact'!$G$128,100%) -> 0.5 | O21: 8 | P21: 2022 | Q21: =+Q20*(1+'Project Charact'!$G$41) -> 475474.3015 | X21: 8 | Y21: 2022 | Z21: =+Z20*(1+'Project Charact'!$G$41) -> 47547.43015
D22: 9 | E22: 2023 | F22: =IF(Traffic!J22>Traffic!$K$8,Traffic!K22*Traffic!R22,Traffic!G22)*$G$74*'Project Charact'!$G$100 -> 6669824.855 | G22: =IF('Project Charact'!$G$121>0,'Project Charact'!$G$121,100%) -> 0.7 | H22: =IF(Traffic!J22>Traffic!$K$8,Traffic!K22*Traffic!S22,Traffic!I22)*$G$74*'Project Charact'!$G$100 -> 238279.4523 | I22: =IF('Project Charact'!$G$128>0,'Project Charact'!$G$128,100%) -> 0.5 | O22: 9 | P22: 2023 | Q22: =+Q21*(1+'Project Charact'!$G$41) -> 487361.159 | X22: 9 | Y22: 2023 | Z22: =+Z21*(1+'Project Charact'!$G$41) -> 48736.1159
D23: 10 | E23: 2024 | F23: =IF(Traffic!J23>Traffic!$K$8,Traffic!K23*Traffic!R23,Traffic!G23)*$G$74*'Project Charact'!$G$100 -> 7003316.098 | G23: =IF('Project Charact'!$G$121>0,'Project Charact'!$G$121,100%) -> 0.7 | H23: =IF(Traffic!J23>Traffic!$K$8,Traffic!K23*Traffic!S23,Traffic!I23)*$G$74*'Project Charact'!$G$100 -> 245427.8359 | I23: =IF('Project Charact'!$G$128>0,'Project Charact'!$G$128,100%) -> 0.5 | O23: 10 | P23: 2024 | Q23: =+Q22*(1+'Project Charact'!$G$41) -> 499545.188 | X23: 10 | Y23: 2024 | Z23: =+Z22*(1+'Project Charact'!$G$41) -> 49954.5188
D24: 11 | E24: 2025 | F24: =IF(Traffic!J24>Traffic!$K$8,Traffic!K24*Traffic!R24,Traffic!G24)*$G$74*'Project Charact'!$G$100 -> 7283448.742 | G24: =IF('Project Charact'!$G$122>0,'Project Charact'!$G$122,100%) -> 0.8 | H24: =IF(Traffic!J24>Traffic!$K$8,Traffic!K24*Traffic!S24,Traffic!I24)*$G$74*'Project Charact'!$G$100 -> 251563.5318 | I24: =IF('Project Charact'!$G$129>0,'Project Charact'!$G$129,100%) -> 0.55 | O24: 11 | P24: 2025 | Q24: =+Q23*(1+'Project Charact'!$G$41) -> 512033.8177 | X24: 11 | Y24: 2025 | Z24: =+Z23*(1+'Project Charact'!$G$41) -> 51203.38177
D25: 12 | E25: 2026 | F25: =IF(Traffic!J25>Traffic!$K$8,Traffic!K25*Traffic!R25,Traffic!G25)*$G$74*'Project Charact'!$G$100 -> 7574786.692 | G25: =IF('Project Charact'!$G$122>0,'Project Charact'!$G$122,100%) -> 0.8 | H25: =IF(Traffic!J25>Traffic!$K$8,Traffic!K25*Traffic!S25,Traffic!I25)*$G$74*'Project Charact'!$G$100 -> 257852.6201 | I25: =IF('Project Charact'!$G$129>0,'Project Charact'!$G$129,100%) -> 0.55 | O25: 12 | P25: 2026 | Q25: =+Q24*(1+'Project Charact'!$G$41) -> 524834.6631 | X25: 12 | Y25: 2026 | Z25: =+Z24*(1+'Project Charact'!$G$41) -> 52483.46631
D26: 13 | E26: 2027 | F26: =IF(Traffic!J26>Traffic!$K$8,Traffic!K26*Traffic!R26,Traffic!G26)*$G$74*'Project Charact'!$G$100 -> 7877778.16 | G26: =IF('Project Charact'!$G$122>0,'Project Charact'!$G$122,100%) -> 0.8 | H26: =IF(Traffic!J26>Traffic!$K$8,Traffic!K26*Traffic!S26,Traffic!I26)*$G$74*'Project Charact'!$G$100 -> 264298.9356 | I26: =IF('Project Charact'!$G$129>0,'Project Charact'!$G$129,100%) -> 0.55 | O26: 13 | P26: 2027 | Q26: =+Q25*(1+'Project Charact'!$G$41) -> 537955.5297 | X26: 13 | Y26: 2027 | Z26: =+Z25*(1+'Project Charact'!$G$41) -> 53795.55297
D27: 14 | E27: 2028 | F27: =IF(Traffic!J27>Traffic!$K$8,Traffic!K27*Traffic!R27,Traffic!G27)*$G$74*'Project Charact'!$G$100 -> 8192889.286 | G27: =IF('Project Charact'!$G$122>0,'Project Charact'!$G$122,100%) -> 0.8 | H27: =IF(Traffic!J27>Traffic!$K$8,Traffic!K27*Traffic!S27,Traffic!I27)*$G$74*'Project Charact'!$G$100 -> 270906.409 | I27: =IF('Project Charact'!$G$129>0,'Project Charact'!$G$129,100%) -> 0.55 | O27: 14 | P27: 2028 | Q27: =+Q26*(1+'Project Charact'!$G$41) -> 551404.4179 | X27: 14 | Y27: 2028 | Z27: =+Z26*(1+'Project Charact'!$G$41) -> 55140.44179
D28: 15 | E28: 2029 | F28: =IF(Traffic!J28>Traffic!$K$8,Traffic!K28*Traffic!R28,Traffic!G28)*$G$74*'Project Charact'!$G$100 -> 8520604.857 | G28: =IF('Project Charact'!$G$122>0,'Project Charact'!$G$122,100%) -> 0.8 | H28: =IF(Traffic!J28>Traffic!$K$8,Traffic!K28*Traffic!S28,Traffic!I28)*$G$74*'Project Charact'!$G$100 -> 277679.0692 | I28: =IF('Project Charact'!$G$129>0,'Project Charact'!$G$129,100%) -> 0.55 | O28: 15 | P28: 2029 | Q28: =+Q27*(1+'Project Charact'!$G$41) -> 565189.5284 | X28: 15 | Y28: 2029 | Z28: =+Z27*(1+'Project Charact'!$G$41) -> 56518.95284
D29: 16 | E29: 2030 | F29: =IF(Traffic!J29>Traffic!$K$8,Traffic!K29*Traffic!R29,Traffic!G29)*$G$74*'Project Charact'!$G$100 -> 8861429.052 | G29: =IF('Project Charact'!$G$122>0,'Project Charact'!$G$122,100%) -> 0.8 | H29: =IF(Traffic!J29>Traffic!$K$8,Traffic!K29*Traffic!S29,Traffic!I29)*$G$74*'Project Charact'!$G$100 -> 284621.0459 | I29: =IF('Project Charact'!$G$129>0,'Project Charact'!$G$129,100%) -> 0.55 | O29: 16 | P29: 2030 | Q29: =+Q28*(1+'Project Charact'!$G$41) -> 579319.2666 | X29: 16 | Y29: 2030 | Z29: =+Z28*(1+'Project Charact'!$G$41) -> 57931.92666
D30: 17 | E30: 2031 | F30: =IF(Traffic!J30>Traffic!$K$8,Traffic!K30*Traffic!R30,Traffic!G30)*$G$74*'Project Charact'!$G$100 -> 9215886.214 | G30: =IF('Project Charact'!$G$122>0,'Project Charact'!$G$122,100%) -> 0.8 | H30: =IF(Traffic!J30>Traffic!$K$8,Traffic!K30*Traffic!S30,Traffic!I30)*$G$74*'Project Charact'!$G$100 -> 291736.5721 | I30: =IF('Project Charact'!$G$129>0,'Project Charact'!$G$129,100%) -> 0.55 | O30: 17 | P30: 2031 | Q30: =+Q29*(1+'Project Charact'!$G$41) -> 593802.2483 | X30: 17 | Y30: 2031 | Z30: =+Z29*(1+'Project Charact'!$G$41) -> 59380.22483
D31: 18 | E31: 2032 | F31: =IF(Traffic!J31>Traffic!$K$8,Traffic!K31*Traffic!R31,Traffic!G31)*$G$74*'Project Charact'!$G$100 -> 9584521.662 | G31: =IF('Project Charact'!$G$122>0,'Project Charact'!$G$122,100%) -> 0.8 | H31: =IF(Traffic!J31>Traffic!$K$8,Traffic!K31*Traffic!S31,Traffic!I31)*$G$74*'Project Charact'!$G$100 -> 299029.9864 | I31: =IF('Project Charact'!$G$129>0,'Project Charact'!$G$129,100%) -> 0.55 | O31: 18 | P31: 2032 | Q31: =+Q30*(1+'Project Charact'!$G$41) -> 608647.3045 | X31: 18 | Y31: 2032 | Z31: =+Z30*(1+'Project Charact'!$G$41) -> 60864.73045
D32: 19 | E32: 2033 | F32: =IF(Traffic!J32>Traffic!$K$8,Traffic!K32*Traffic!R32,Traffic!G32)*$G$74*'Project Charact'!$G$100 -> 9967902.529 | G32: =IF('Project Charact'!$G$122>0,'Project Charact'!$G$122,100%) -> 0.8 | H32: =IF(Traffic!J32>Traffic!$K$8,Traffic!K32*Traffic!S32,Traffic!I32)*$G$74*'Project Charact'!$G$100 -> 306505.736 | I32: =IF('Project Charact'!$G$129>0,'Project Charact'!$G$129,100%) -> 0.55 | O32: 19 | P32: 2033 | Q32: =+Q31*(1+'Project Charact'!$G$41) -> 623863.4871 | X32: 19 | Y32: 2033 | Z32: =+Z31*(1+'Project Charact'!$G$41) -> 62386.34871
D33: 20 | E33: 2034 | F33: =IF(Traffic!J33>Traffic!$K$8,Traffic!K33*Traffic!R33,Traffic!G33)*$G$74*'Project Charact'!$G$100 -> 10366618.63 | G33: =IF('Project Charact'!$G$122>0,'Project Charact'!$G$122,100%) -> 0.8 | H33: =IF(Traffic!J33>Traffic!$K$8,Traffic!K33*Traffic!S33,Traffic!I33)*$G$74*'Project Charact'!$G$100 -> 314168.3794 | I33: =IF('Project Charact'!$G$129>0,'Project Charact'!$G$129,100%) -> 0.55 | O33: 20 | P33: 2034 | Q33: =+Q32*(1+'Project Charact'!$G$41) -> 639460.0743 | X33: 20 | Y33: 2034 | Z33: =+Z32*(1+'Project Charact'!$G$41) -> 63946.00743
D34: 21 | E34: 2035 | F34: =IF(Traffic!J34>Traffic!$K$8,Traffic!K34*Traffic!R34,Traffic!G34)*$G$74*'Project Charact'!$G$100 -> 10677617.19 | G34: =IF('Project Charact'!$G$123>0,'Project Charact'!$G$123,100%) -> 0.9 | H34: =IF(Traffic!J34>Traffic!$K$8,Traffic!K34*Traffic!S34,Traffic!I34)*$G$74*'Project Charact'!$G$100 -> 320451.747 | I34: =IF('Project Charact'!$G$130>0,'Project Charact'!$G$130,100%) -> 0.6 | O34: 21 | P34: 2035 | Q34: =+Q33*(1+'Project Charact'!$G$41) -> 655446.5761 | X34: 21 | Y34: 2035 | Z34: =+Z33*(1+'Project Charact'!$G$41) -> 65544.65761
D35: 22 | E35: 2036 | F35: =IF(Traffic!J35>Traffic!$K$8,Traffic!K35*Traffic!R35,Traffic!G35)*$G$74*'Project Charact'!$G$100 -> 10997945.7 | G35: =IF('Project Charact'!$G$123>0,'Project Charact'!$G$123,100%) -> 0.9 | H35: =IF(Traffic!J35>Traffic!$K$8,Traffic!K35*Traffic!S35,Traffic!I35)*$G$74*'Project Charact'!$G$100 -> 326860.782 | I35: =IF('Project Charact'!$G$130>0,'Project Charact'!$G$130,100%) -> 0.6 | O35: 22 | P35: 2036 | Q35: =+Q34*(1+'Project Charact'!$G$41) -> 671832.7405 | X35: 22 | Y35: 2036 | Z35: =+Z34*(1+'Project Charact'!$G$41) -> 67183.27405
D36: 23 | E36: 2037 | F36: =IF(Traffic!J36>Traffic!$K$8,Traffic!K36*Traffic!R36,Traffic!G36)*$G$74*'Project Charact'!$G$100 -> 11327884.08 | G36: =IF('Project Charact'!$G$123>0,'Project Charact'!$G$123,100%) -> 0.9 | H36: =IF(Traffic!J36>Traffic!$K$8,Traffic!K36*Traffic!S36,Traffic!I36)*$G$74*'Project Charact'!$G$100 -> 333397.9976 | I36: =IF('Project Charact'!$G$130>0,'Project Charact'!$G$130,100%) -> 0.6 | O36: 23 | P36: 2037 | Q36: =+Q35*(1+'Project Charact'!$G$41) -> 688628.559 | X36: 23 | Y36: 2037 | Z36: =+Z35*(1+'Project Charact'!$G$41) -> 68862.8559
D37: 24 | E37: 2038 | F37: =IF(Traffic!J37>Traffic!$K$8,Traffic!K37*Traffic!R37,Traffic!G37)*$G$74*'Project Charact'!$G$100 -> 11667720.6 | G37: =IF('Project Charact'!$G$123>0,'Project Charact'!$G$123,100%) -> 0.9 | H37: =IF(Traffic!J37>Traffic!$K$8,Traffic!K37*Traffic!S37,Traffic!I37)*$G$74*'Project Charact'!$G$100 -> 340065.9575 | I37: =IF('Project Charact'!$G$130>0,'Project Charact'!$G$130,100%) -> 0.6 | O37: 24 | P37: 2038 | Q37: =+Q36*(1+'Project Charact'!$G$41) -> 705844.273 | X37: 24 | Y37: 2038 | Z37: =+Z36*(1+'Project Charact'!$G$41) -> 70584.4273
D38: 25 | E38: 2039 | F38: =IF(Traffic!J38>Traffic!$K$8,Traffic!K38*Traffic!R38,Traffic!G38)*$G$74*'Project Charact'!$G$100 -> 12017752.22 | G38: =IF('Project Charact'!$G$123>0,'Project Charact'!$G$123,100%) -> 0.9 | H38: =IF(Traffic!J38>Traffic!$K$8,Traffic!K38*Traffic!S38,Traffic!I38)*$G$74*'Project Charact'!$G$100 -> 346867.2767 | I38: =IF('Project Charact'!$G$130>0,'Project Charact'!$G$130,100%) -> 0.6 | O38: 25 | P38: 2039 | Q38: =+Q37*(1+'Project Charact'!$G$41) -> 723490.3798 | X38: 25 | Y38: 2039 | Z38: =+Z37*(1+'Project Charact'!$G$41) -> 72349.03798
D39: 26 | E39: 2040 | F39: =IF(Traffic!J39>Traffic!$K$8,Traffic!K39*Traffic!R39,Traffic!G39)*$G$74*'Project Charact'!$G$100 -> 12378284.78 | G39: =IF('Project Charact'!$G$123>0,'Project Charact'!$G$123,100%) -> 0.9 | H39: =IF(Traffic!J39>Traffic!$K$8,Traffic!K39*Traffic!S39,Traffic!I39)*$G$74*'Project Charact'!$G$100 -> 353804.6222 | I39: =IF('Project Charact'!$G$130>0,'Project Charact'!$G$130,100%) -> 0.6 | O39: 26 | P39: 2040 | Q39: =+Q38*(1+'Project Charact'!$G$41) -> 741577.6393 | X39: 26 | Y39: 2040 | Z39: =+Z38*(1+'Project Charact'!$G$41) -> 74157.76393
D40: 27 | E40: 2041 | F40: =IF(Traffic!J40>Traffic!$K$8,Traffic!K40*Traffic!R40,Traffic!G40)*$G$74*'Project Charact'!$G$100 -> 12749633.33 | G40: =IF('Project Charact'!$G$123>0,'Project Charact'!$G$123,100%) -> 0.9 | H40: =IF(Traffic!J40>Traffic!$K$8,Traffic!K40*Traffic!S40,Traffic!I40)*$G$74*'Project Charact'!$G$100 -> 360880.7147 | I40: =IF('Project Charact'!$G$130>0,'Project Charact'!$G$130,100%) -> 0.6 | O40: 27 | P40: 2041 | Q40: =+Q39*(1+'Project Charact'!$G$41) -> 760117.0803 | X40: 27 | Y40: 2041 | Z40: =+Z39*(1+'Project Charact'!$G$41) -> 76011.70803
D41: 28 | E41: 2042 | F41: =IF(Traffic!J41>Traffic!$K$8,Traffic!K41*Traffic!R41,Traffic!G41)*$G$74*'Project Charact'!$G$100 -> 13132122.33 | G41: =IF('Project Charact'!$G$123>0,'Project Charact'!$G$123,100%) -> 0.9 | H41: =IF(Traffic!J41>Traffic!$K$8,Traffic!K41*Traffic!S41,Traffic!I41)*$G$74*'Project Charact'!$G$100 -> 368098.329 | I41: =IF('Project Charact'!$G$130>0,'Project Charact'!$G$130,100%) -> 0.6 | O41: 28 | P41: 2042 | Q41: =+Q40*(1+'Project Charact'!$G$41) -> 779120.0073 | X41: 28 | Y41: 2042 | Z41: =+Z40*(1+'Project Charact'!$G$41) -> 77912.00073
D42: 29 | E42: 2043 | F42: =IF(Traffic!J42>Traffic!$K$8,Traffic!K42*Traffic!R42,Traffic!G42)*$G$74*'Project Charact'!$G$100 -> 13526086 | G42: =IF('Project Charact'!$G$123>0,'Project Charact'!$G$123,100%) -> 0.9 | H42: =IF(Traffic!J42>Traffic!$K$8,Traffic!K42*Traffic!S42,Traffic!I42)*$G$74*'Project Charact'!$G$100 -> 375460.2955 | I42: =IF('Project Charact'!$G$130>0,'Project Charact'!$G$130,100%) -> 0.6 | O42: 29 | P42: 2043 | Q42: =+Q41*(1+'Project Charact'!$G$41) -> 798598.0075 | X42: 29 | Y42: 2043 | Z42: =+Z41*(1+'Project Charact'!$G$41) -> 79859.80075
D43: 30 | E43: 2044 | F43: =IF(Traffic!J43>Traffic!$K$8,Traffic!K43*Traffic!R43,Traffic!G43)*$G$74*'Project Charact'!$G$100 -> 13931868.58 | G43: =IF('Project Charact'!$G$123>0,'Project Charact'!$G$123,100%) -> 0.9 | H43: =IF(Traffic!J43>Traffic!$K$8,Traffic!K43*Traffic!S43,Traffic!I43)*$G$74*'Project Charact'!$G$100 -> 382969.5015 | I43: =IF('Project Charact'!$G$130>0,'Project Charact'!$G$130,100%) -> 0.6 | O43: 30 | P43: 2044 | Q43: =+Q42*(1+'Project Charact'!$G$41) -> 818562.9577 | X43: 30 | Y43: 2044 | Z43: =+Z42*(1+'Project Charact'!$G$41) -> 81856.29577
D44: 31 | E44: 2045 | F44: =IF(Traffic!J44>Traffic!$K$8,Traffic!K44*Traffic!R44,Traffic!G44)*$G$74*'Project Charact'!$G$100 -> 14210505.95 | G44: =IF('Project Charact'!$G$123>0,'Project Charact'!$G$123,100%) -> 0.9 | H44: =IF(Traffic!J44>Traffic!$K$8,Traffic!K44*Traffic!S44,Traffic!I44)*$G$74*'Project Charact'!$G$100 -> 388714.044 | I44: =IF('Project Charact'!$G$130>0,'Project Charact'!$G$130,100%) -> 0.6 | O44: 31 | P44: 2045 | Q44: =+Q43*(1+'Project Charact'!$G$41) -> 839027.0316 | X44: 31 | Y44: 2045 | Z44: =+Z43*(1+'Project Charact'!$G$41) -> 83902.70316
D45: 32 | E45: 2046 | F45: =IF(Traffic!J45>Traffic!$K$8,Traffic!K45*Traffic!R45,Traffic!G45)*$G$74*'Project Charact'!$G$100 -> 14494716.07 | G45: =IF('Project Charact'!$G$123>0,'Project Charact'!$G$123,100%) -> 0.9 | H45: =IF(Traffic!J45>Traffic!$K$8,Traffic!K45*Traffic!S45,Traffic!I45)*$G$74*'Project Charact'!$G$100 -> 394544.7546 | I45: =IF('Project Charact'!$G$130>0,'Project Charact'!$G$130,100%) -> 0.6 | O45: 32 | P45: 2046 | Q45: =+Q44*(1+'Project Charact'!$G$41) -> 860002.7074 | X45: 32 | Y45: 2046 | Z45: =+Z44*(1+'Project Charact'!$G$41) -> 86000.27074
D46: 33 | E46: 2047 | F46: =IF(Traffic!J46>Traffic!$K$8,Traffic!K46*Traffic!R46,Traffic!G46)*$G$74*'Project Charact'!$G$100 -> 14784610.39 | G46: =IF('Project Charact'!$G$123>0,'Project Charact'!$G$123,100%) -> 0.9 | H46: =IF(Traffic!J46>Traffic!$K$8,Traffic!K46*Traffic!S46,Traffic!I46)*$G$74*'Project Charact'!$G$100 -> 400462.926 | I46: =IF('Project Charact'!$G$130>0,'Project Charact'!$G$130,100%) -> 0.6 | O46: 33 | P46: 2047 | Q46: =+Q45*(1+'Project Charact'!$G$41) -> 881502.7751 | X46: 33 | Y46: 2047 | Z46: =+Z45*(1+'Project Charact'!$G$41) -> 88150.27751
D47: 34 | E47: 2048 | F47: =IF(Traffic!J47>Traffic!$K$8,Traffic!K47*Traffic!R47,Traffic!G47)*$G$74*'Project Charact'!$G$100 -> 15080302.59 | G47: =IF('Project Charact'!$G$123>0,'Project Charact'!$G$123,100%) -> 0.9 | H47: =IF(Traffic!J47>Traffic!$K$8,Traffic!K47*Traffic!S47,Traffic!I47)*$G$74*'Project Charact'!$G$100 -> 406469.8698 | I47: =IF('Project Charact'!$G$130>0,'Project Charact'!$G$130,100%) -> 0.6 | O47: 34 | P47: 2048 | Q47: =+Q46*(1+'Project Charact'!$G$41) -> 903540.3445 | X47: 34 | Y47: 2048 | Z47: =+Z46*(1+'Project Charact'!$G$41) -> 90354.03445
D48: 35 | E48: 2049 | F48: =IF(Traffic!J48>Traffic!$K$8,Traffic!K48*Traffic!R48,Traffic!G48)*$G$74*'Project Charact'!$G$100 -> 15381908.65 | G48: =IF('Project Charact'!$G$123>0,'Project Charact'!$G$123,100%) -> 0.9 | H48: =IF(Traffic!J48>Traffic!$K$8,Traffic!K48*Traffic!S48,Traffic!I48)*$G$74*'Project Charact'!$G$100 -> 412566.9179 | I48: =IF('Project Charact'!$G$130>0,'Project Charact'!$G$130,100%) -> 0.6 | O48: 35 | P48: 2049 | Q48: =+Q47*(1+'Project Charact'!$G$41) -> 926128.8531 | X48: 35 | Y48: 2049 | Z48: =+Z47*(1+'Project Charact'!$G$41) -> 92612.88531
D49: 36 | E49: 2050 | F49: =IF(Traffic!J49>Traffic!$K$8,Traffic!K49*Traffic!R49,Traffic!G49)*$G$74*'Project Charact'!$G$100 -> 15689546.82 | G49: =IF('Project Charact'!$G$124>0,'Project Charact'!$G$124,100%) -> 0.95 | H49: =IF(Traffic!J49>Traffic!$K$8,Traffic!K49*Traffic!S49,Traffic!I49)*$G$74*'Project Charact'!$G$100 -> 418755.4217 | I49: =IF('Project Charact'!$G$131>0,'Project Charact'!$G$131,100%) -> 0.7 | O49: 36 | P49: 2050 | Q49: =+Q48*(1+'Project Charact'!$G$41) -> 949282.0744 | X49: 36 | Y49: 2050 | Z49: =+Z48*(1+'Project Charact'!$G$41) -> 94928.20744
D50: 37 | E50: 2051 | F50: =IF(Traffic!J50>Traffic!$K$8,Traffic!K50*Traffic!R50,Traffic!G50)*$G$74*'Project Charact'!$G$100 -> 16003337.76 | G50: =IF('Project Charact'!$G$124>0,'Project Charact'!$G$124,100%) -> 0.95 | H50: =IF(Traffic!J50>Traffic!$K$8,Traffic!K50*Traffic!S50,Traffic!I50)*$G$74*'Project Charact'!$G$100 -> 425036.753 | I50: =IF('Project Charact'!$G$131>0,'Project Charact'!$G$131,100%) -> 0.7 | O50: 37 | P50: 2051 | Q50: =+Q49*(1+'Project Charact'!$G$41) -> 973014.1263 | X50: 37 | Y50: 2051 | Z50: =+Z49*(1+'Project Charact'!$G$41) -> 97301.41263
D51: 38 | E51: 2052 | F51: =IF(Traffic!J51>Traffic!$K$8,Traffic!K51*Traffic!R51,Traffic!G51)*$G$74*'Project Charact'!$G$100 -> 16323404.51 | G51: =IF('Project Charact'!$G$124>0,'Project Charact'!$G$124,100%) -> 0.95 | H51: =IF(Traffic!J51>Traffic!$K$8,Traffic!K51*Traffic!S51,Traffic!I51)*$G$74*'Project Charact'!$G$100 -> 431412.3043 | I51: =IF('Project Charact'!$G$131>0,'Project Charact'!$G$131,100%) -> 0.7 | O51: 38 | P51: 2052 | Q51: =+Q50*(1+'Project Charact'!$G$41) -> 997339.4794 | X51: 38 | Y51: 2052 | Z51: =+Z50*(1+'Project Charact'!$G$41) -> 99733.94794
D52: 39 | E52: 2053 | F52: =IF(Traffic!J52>Traffic!$K$8,Traffic!K52*Traffic!R52,Traffic!G52)*$G$74*'Project Charact'!$G$100 -> 16649872.6 | G52: =IF('Project Charact'!$G$124>0,'Project Charact'!$G$124,100%) -> 0.95 | H52: =IF(Traffic!J52>Traffic!$K$8,Traffic!K52*Traffic!S52,Traffic!I52)*$G$74*'Project Charact'!$G$100 -> 437883.4888 | I52: =IF('Project Charact'!$G$131>0,'Project Charact'!$G$131,100%) -> 0.7 | O52: 39 | P52: 2053 | Q52: =+Q51*(1+'Project Charact'!$G$41) -> 1022272.966 | X52: 39 | Y52: 2053 | Z52: =+Z51*(1+'Project Charact'!$G$41) -> 102227.2966
D53: 40 | E53: 2054 | F53: =IF(Traffic!J53>Traffic!$K$8,Traffic!K53*Traffic!R53,Traffic!G53)*$G$74*'Project Charact'!$G$100 -> 16663896 | G53: =IF('Project Charact'!$G$124>0,'Project Charact'!$G$124,100%) -> 0.95 | H53: =IF(Traffic!J53>Traffic!$K$8,Traffic!K53*Traffic!S53,Traffic!I53)*$G$74*'Project Charact'!$G$100 -> 436104.0017 | I53: =IF('Project Charact'!$G$131>0,'Project Charact'!$G$131,100%) -> 0.7 | O53: 40 | P53: 2054 | Q53: =+Q52*(1+'Project Charact'!$G$41) -> 1047829.791 | X53: 40 | Y53: 2054 | Z53: =+Z52*(1+'Project Charact'!$G$41) -> 104782.9791
D54: 41 | E54: 2055 | F54: =IF(Traffic!J54>Traffic!$K$8,Traffic!K54*Traffic!R54,Traffic!G54)*$G$74*'Project Charact'!$G$100 -> 16663896 | G54: =IF('Project Charact'!$G$124>0,'Project Charact'!$G$124,100%) -> 0.95 | H54: =IF(Traffic!J54>Traffic!$K$8,Traffic!K54*Traffic!S54,Traffic!I54)*$G$74*'Project Charact'!$G$100 -> 436104.0017 | I54: =IF('Project Charact'!$G$131>0,'Project Charact'!$G$131,100%) -> 0.7 | O54: 41 | P54: 2055 | Q54: =+Q53*(1+'Project Charact'!$G$41) -> 1074025.535 | X54: 41 | Y54: 2055 | Z54: =+Z53*(1+'Project Charact'!$G$41) -> 107402.5535
D55: 42 | E55: 2056 | F55: =IF(Traffic!J55>Traffic!$K$8,Traffic!K55*Traffic!R55,Traffic!G55)*$G$74*'Project Charact'!$G$100 -> 16663896 | G55: =IF('Project Charact'!$G$124>0,'Project Charact'!$G$124,100%) -> 0.95 | H55: =IF(Traffic!J55>Traffic!$K$8,Traffic!K55*Traffic!S55,Traffic!I55)*$G$74*'Project Charact'!$G$100 -> 436104.0017 | I55: =IF('Project Charact'!$G$131>0,'Project Charact'!$G$131,100%) -> 0.7 | O55: 42 | P55: 2056 | Q55: =+Q54*(1+'Project Charact'!$G$41) -> 1100876.174 | X55: 42 | Y55: 2056 | Z55: =+Z54*(1+'Project Charact'!$G$41) -> 110087.6174
D56: 43 | E56: 2057 | F56: =IF(Traffic!J56>Traffic!$K$8,Traffic!K56*Traffic!R56,Traffic!G56)*$G$74*'Project Charact'!$G$100 -> 16663896 | G56: =IF('Project Charact'!$G$124>0,'Project Charact'!$G$124,100%) -> 0.95 | H56: =IF(Traffic!J56>Traffic!$K$8,Traffic!K56*Traffic!S56,Traffic!I56)*$G$74*'Project Charact'!$G$100 -> 436104.0017 | I56: =IF('Project Charact'!$G$131>0,'Project Charact'!$G$131,100%) -> 0.7 | O56: 43 | P56: 2057 | Q56: =+Q55*(1+'Project Charact'!$G$41) -> 1128398.078 | X56: 43 | Y56: 2057 | Z56: =+Z55*(1+'Project Charact'!$G$41) -> 112839.8078
D57: 44 | E57: 2058 | F57: =IF(Traffic!J57>Traffic!$K$8,Traffic!K57*Traffic!R57,Traffic!G57)*$G$74*'Project Charact'!$G$100 -> 16663896 | G57: =IF('Project Charact'!$G$124>0,'Project Charact'!$G$124,100%) -> 0.95 | H57: =IF(Traffic!J57>Traffic!$K$8,Traffic!K57*Traffic!S57,Traffic!I57)*$G$74*'Project Charact'!$G$100 -> 436104.0017 | I57: =IF('Project Charact'!$G$131>0,'Project Charact'!$G$131,100%) -> 0.7 | O57: 44 | P57: 2058 | Q57: =+Q56*(1+'Project Charact'!$G$41) -> 1156608.03 | X57: 44 | Y57: 2058 | Z57: =+Z56*(1+'Project Charact'!$G$41) -> 115660.803
D58: 45 | E58: 2059 | F58: =IF(Traffic!J58>Traffic!$K$8,Traffic!K58*Traffic!R58,Traffic!G58)*$G$74*'Project Charact'!$G$100 -> 16663896 | G58: =IF('Project Charact'!$G$124>0,'Project Charact'!$G$124,100%) -> 0.95 | H58: =IF(Traffic!J58>Traffic!$K$8,Traffic!K58*Traffic!S58,Traffic!I58)*$G$74*'Project Charact'!$G$100 -> 436104.0017 | I58: =IF('Project Charact'!$G$131>0,'Project Charact'!$G$131,100%) -> 0.7 | O58: 45 | P58: 2059 | Q58: =+Q57*(1+'Project Charact'!$G$41) -> 1185523.231 | X58: 45 | Y58: 2059 | Z58: =+Z57*(1+'Project Charact'!$G$41) -> 118552.3231
D59: 46 | E59: 2060 | F59: =IF(Traffic!J59>Traffic!$K$8,Traffic!K59*Traffic!R59,Traffic!G59)*$G$74*'Project Charact'!$G$100 -> 16663896 | G59: =IF('Project Charact'!$G$124>0,'Project Charact'!$G$124,100%) -> 0.95 | H59: =IF(Traffic!J59>Traffic!$K$8,Traffic!K59*Traffic!S59,Traffic!I59)*$G$74*'Project Charact'!$G$100 -> 436104.0017 | I59: =IF('Project Charact'!$G$131>0,'Project Charact'!$G$131,100%) -> 0.7 | O59: 46 | P59: 2060 | Q59: =+Q58*(1+'Project Charact'!$G$41) -> 1215161.312 | X59: 46 | Y59: 2060 | Z59: =+Z58*(1+'Project Charact'!$G$41) -> 121516.1312
D60: 47 | E60: 2061 | F60: =IF(Traffic!J60>Traffic!$K$8,Traffic!K60*Traffic!R60,Traffic!G60)*$G$74*'Project Charact'!$G$100 -> 16663896 | G60: =IF('Project Charact'!$G$124>0,'Project Charact'!$G$124,100%) -> 0.95 | H60: =IF(Traffic!J60>Traffic!$K$8,Traffic!K60*Traffic!S60,Traffic!I60)*$G$74*'Project Charact'!$G$100 -> 436104.0017 | I60: =IF('Project Charact'!$G$131>0,'Project Charact'!$G$131,100%) -> 0.7 | O60: 47 | P60: 2061 | Q60: =+Q59*(1+'Project Charact'!$G$41) -> 1245540.344 | X60: 47 | Y60: 2061 | Z60: =+Z59*(1+'Project Charact'!$G$41) -> 124554.0344
D61: 48 | E61: 2062 | F61: =IF(Traffic!J61>Traffic!$K$8,Traffic!K61*Traffic!R61,Traffic!G61)*$G$74*'Project Charact'!$G$100 -> 16663896 | G61: =IF('Project Charact'!$G$124>0,'Project Charact'!$G$124,100%) -> 0.95 | H61: =IF(Traffic!J61>Traffic!$K$8,Traffic!K61*Traffic!S61,Traffic!I61)*$G$74*'Project Charact'!$G$100 -> 436104.0017 | I61: =IF('Project Charact'!$G$131>0,'Project Charact'!$G$131,100%) -> 0.7 | O61: 48 | P61: 2062 | Q61: =+Q60*(1+'Project Charact'!$G$41) -> 1276678.853 | X61: 48 | Y61: 2062 | Z61: =+Z60*(1+'Project Charact'!$G$41) -> 127667.8853
D62: 49 | E62: 2063 | F62: =IF(Traffic!J62>Traffic!$K$8,Traffic!K62*Traffic!R62,Traffic!G62)*$G$74*'Project Charact'!$G$100 -> 16663896 | G62: =IF('Project Charact'!$G$124>0,'Project Charact'!$G$124,100%) -> 0.95 | H62: =IF(Traffic!J62>Traffic!$K$8,Traffic!K62*Traffic!S62,Traffic!I62)*$G$74*'Project Charact'!$G$100 -> 436104.0017 | I62: =IF('Project Charact'!$G$131>0,'Project Charact'!$G$131,100%) -> 0.7 | O62: 49 | P62: 2063 | Q62: =+Q61*(1+'Project Charact'!$G$41) -> 1308595.824 | X62: 49 | Y62: 2063 | Z62: =+Z61*(1+'Project Charact'!$G$41) -> 130859.5824
D63: 50 | E63: 2064 | F63: =IF(Traffic!J63>Traffic!$K$8,Traffic!K63*Traffic!R63,Traffic!G63)*$G$74*'Project Charact'!$G$100 -> 16663896 | G63: =IF('Project Charact'!$G$124>0,'Project Charact'!$G$124,100%) -> 0.95 | H63: =IF(Traffic!J63>Traffic!$K$8,Traffic!K63*Traffic!S63,Traffic!I63)*$G$74*'Project Charact'!$G$100 -> 436104.0017 | I63: =IF('Project Charact'!$G$131>0,'Project Charact'!$G$131,100%) -> 0.7 | O63: 50 | P63: 2064 | Q63: =+Q62*(1+'Project Charact'!$G$41) -> 1341310.72 | X63: 50 | Y63: 2064 | Z63: =+Z62*(1+'Project Charact'!$G$41) -> 134131.072
D65: The percentage of ETC transactions is presented as a reference.
D68: Comments: | O68: Comments: | X68: Comments:
D69: - | O69: - | X69: -
D74: Transactions per vehicle: | G74: 1
Q76: BACK TO MENU

Sheet T & R (hidden)
A2: TRANSACTIONS & REVENUE - Section 1
B6: TOTAL TRANSACTIONS & REVENUE - Section 1
D8: Year No. | E8: Year | F8: Annual Traffic | G8: Annual Toll Transactions | H8: Annual Toll Revenue | I8: Operational Costs | J8: Maintenance Costs | K8: Net Annual Revenue
D9: 1 | E9: ='Project Charact'!G17 -> 2015 | F9: =+G79+G143 -> 3291750 | G9: ='O&M'!F14+'O&M'!H14 -> 3291750 | H9: =P79+P143 -> 7256333.7 | I9: ='O&M'!Q14*'Project Charact'!$G$23+'O&M'!$I$9*(1+'Project Charact'!$G$41)^D9*(I79+I143)+'O&M'!$I$9*(1+'Project Charact'!$G$108)*(1+'Project Charact'!$G$41)^D9*(J79+J143) -> 5116046.678 | J9: ='O&M'!Z14*'Project Charact'!$G$23 -> 480000 | K9: =+H9-I9-J9 -> 1660287.022
D10: 2 | E10: =1+E9 -> 2016 | F10: 3947090.4 | G10: ='O&M'!F15+'O&M'!H15 -> 3947090.4 | H10: 8901876.515 | I10: ='O&M'!Q15*'Project Charact'!$G$23+'O&M'!$I$9*(1+'Project Charact'!$G$41)^D10*(I80+I144)+'O&M'!$I$9*(1+'Project Charact'!$G$108)*(1+'Project Charact'!$G$41)^D10*(J80+J144) -> 5308428.332 | J10: ='O&M'!Z15*'Project Charact'!$G$23 -> 492000 | K10: =+H10-I10-J10 -> 3101448.183
D11: 3 | E11: =1+E10 -> 2017 | F11: 4659013.161 | G11: ='O&M'!F16+'O&M'!H16 -> 4659013.161 | H11: 10750416 | I11: ='O&M'!Q16*'Project Charact'!$G$23+'O&M'!$I$9*(1+'Project Charact'!$G$41)^D11*(I81+I145)+'O&M'!$I$9*(1+'Project Charact'!$G$108)*(1+'Project Charact'!$G$41)^D11*(J81+J145) -> 5512934.64 | J11: ='O&M'!Z16*'Project Charact'!$G$23 -> 504300 | K11: 4733181.365
D12: 4 | E12: 2018 | F12: 5431524.249 | G12: ='O&M'!F17+'O&M'!H17 -> 5431524.249 | H12: 12823084.1 | I12: ='O&M'!Q17*'Project Charact'!$G$23+'O&M'!$I$9*(1+'Project Charact'!$G$41)^D12*(I82+I146)+'O&M'!$I$9*(1+'Project Charact'!$G$108)*(1+'Project Charact'!$G$41)^D12*(J82+J146) -> 5730607.875 | J12: ='O&M'!Z17*'Project Charact'!$G$23 -> 516907.5 | K12: 6575568.728
D13: 5 | E13: 2019 | F13: 5698989.622 | G13: ='O&M'!F18+'O&M'!H18 -> 5698989.622 | H13: 13766403.9 | I13: ='O&M'!Q18*'Project Charact'!$G$23+'O&M'!$I$9*(1+'Project Charact'!$G$41)^D13*(I83+I147)+'O&M'!$I$9*(1+'Project Charact'!$G$108)*(1+'Project Charact'!$G$41)^D13*(J83+J147) -> 5902196.993 | J13: ='O&M'!Z18*'Project Charact'!$G$23 -> 529830.1875 | K13: 7334376.724
D14: 6 | E14: 2020 | F14: 5979704.939 | G14: ='O&M'!F19+'O&M'!H19 -> 5979704.939 | H14: 14445679.15 | I14: ='O&M'!Q19*'Project Charact'!$G$23+'O&M'!$I$9*(1+'Project Charact'!$G$41)^D14*(I84+I148)+'O&M'!$I$9*(1+'Project Charact'!$G$108)*(1+'Project Charact'!$G$41)^D14*(J84+J148) -> 6065485.481 | J14: ='O&M'!Z19*'Project Charact'!$G$23 -> 543075.9422 | K14: 7837117.729
D15: 7 | E15: 2021 | F15: 6274328.997 | G15: ='O&M'!F20+'O&M'!H20 -> 6274328.997 | H15: 15509609.19 | I15: ='O&M'!Q20*'Project Charact'!$G$23+'O&M'!$I$9*(1+'Project Charact'!$G$41)^D15*(I85+I149)+'O&M'!$I$9*(1+'Project Charact'!$G$108)*(1+'Project Charact'!$G$41)^D15*(J85+J149) -> 6249156.601 | J15: ='O&M'!Z20*'Project Charact'!$G$23 -> 556652.8407 | K15: 8703799.753
D16: 8 | E16: 2022 | F16: 6583553.422 | G16: ='O&M'!F21+'O&M'!H21 -> 6583553.422 | H16: 16652570.32 | I16: ='O&M'!Q21*'Project Charact'!$G$23+'O&M'!$I$9*(1+'Project Charact'!$G$41)^D16*(I86+I150)+'O&M'!$I$9*(1+'Project Charact'!$G$108)*(1+'Project Charact'!$G$41)^D16*(J86+J150) -> 6439846.846 | J16: ='O&M'!Z21*'Project Charact'!$G$23 -> 570569.1618 | K16: 9642154.314
D17: 9 | E17: 2023 | F17: 6908104.308 | G17: ='O&M'!F22+'O&M'!H22 -> 6908104.308 | H17: 17880471.94 | I17: ='O&M'!Q22*'Project Charact'!$G$23+'O&M'!$I$9*(1+'Project Charact'!$G$41)^D17*(I87+I151)+'O&M'!$I$9*(1+'Project Charact'!$G$108)*(1+'Project Charact'!$G$41)^D17*(J87+J151) -> 6637915.93 | J17: ='O&M'!Z22*'Project Charact'!$G$23 -> 584833.3908 | K17: 10657722.62
D18: 10 | E18: 2024 | F18: 7248743.934 | G18: ='O&M'!F23+'O&M'!H23 -> 7248743.934 | H18: 19199667.53 | I18: ='O&M'!Q23*'Project Charact'!$G$23+'O&M'!$I$9*(1+'Project Charact'!$G$41)^D18*(I88+I152)+'O&M'!$I$9*(1+'Project Charact'!$G$108)*(1+'Project Charact'!$G$41)^D18*(J88+J152) -> 6843746.56 | J18: ='O&M'!Z23*'Project Charact'!$G$23 -> 599454.2256 | K18: 11756466.75
D19: 11 | E19: 2025 | F19: 7535012.274 | G19: ='O&M'!F24+'O&M'!H24 -> 7535012.274 | H19: 19985733.87 | I19: ='O&M'!Q24*'Project Charact'!$G$23+'O&M'!$I$9*(1+'Project Charact'!$G$41)^D19*(I89+I153)+'O&M'!$I$9*(1+'Project Charact'!$G$108)*(1+'Project Charact'!$G$41)^D19*(J89+J153) -> 7028537.4 | J19: ='O&M'!Z24*'Project Charact'!$G$23 -> 614440.5812 | K19: 12342755.89
D20: 12 | E20: 2026 | F20: 7832639.312 | G20: ='O&M'!F25+'O&M'!H25 -> 7832639.312 | H20: 21268438.87 | I20: ='O&M'!Q25*'Project Charact'!$G$23+'O&M'!$I$9*(1+'Project Charact'!$G$41)^D20*(I90+I154)+'O&M'!$I$9*(1+'Project Charact'!$G$108)*(1+'Project Charact'!$G$41)^D20*(J90+J154) -> 7240020.338 | J20: ='O&M'!Z25*'Project Charact'!$G$23 -> 629801.5957 | K20: 13398616.94
D21: 13 | E21: 2027 | F21: 8142077.095 | G21: ='O&M'!F26+'O&M'!H26 -> 8142077.095 | H21: 22633962.01 | I21: ='O&M'!Q26*'Project Charact'!$G$23+'O&M'!$I$9*(1+'Project Charact'!$G$41)^D21*(I91+I155)+'O&M'!$I$9*(1+'Project Charact'!$G$108)*(1+'Project Charact'!$G$41)^D21*(J91+J155) -> 7459138.838 | J21: ='O&M'!Z26*'Project Charact'!$G$23 -> 645546.6356 | K21: 14529276.54
D22: 14 | E22: 2028 | F22: 8463795.695 | G22: ='O&M'!F27+'O&M'!H27 -> 8463795.695 | H22: 24087676.12 | I22: ='O&M'!Q27*'Project Charact'!$G$23+'O&M'!$I$9*(1+'Project Charact'!$G$41)^D22*(I92+I156)+'O&M'!$I$9*(1+'Project Charact'!$G$108)*(1+'Project Charact'!$G$41)^D22*(J92+J156) -> 7686238.169 | J22: ='O&M'!Z27*'Project Charact'!$G$23 -> 661685.3015 | K22: 15739752.65
D23: 15 | E23: 2029 | F23: 8798283.927 | G23: ='O&M'!F28+'O&M'!H28 -> 8798283.927 | H23: 25635303.91 | I23: ='O&M'!Q28*'Project Charact'!$G$23+'O&M'!$I$9*(1+'Project Charact'!$G$41)^D23*(I93+I157)+'O&M'!$I$9*(1+'Project Charact'!$G$108)*(1+'Project Charact'!$G$41)^D23*(J93+J157) -> 7921682.386 | J23: ='O&M'!Z28*'Project Charact'!$G$23 -> 678227.4341 | K23: 17035394.09
D24: 16 | E24: 2030 | F24: 9146050.098 | G24: ='O&M'!F29+'O&M'!H29 -> 9146050.098 | H24: 27282940.84 | I24: ='O&M'!Q29*'Project Charact'!$G$23+'O&M'!$I$9*(1+'Project Charact'!$G$41)^D24*(I94+I158)+'O&M'!$I$9*(1+'Project Charact'!$G$108)*(1+'Project Charact'!$G$41)^D24*(J94+J158) -> 8165855.473 | J24: ='O&M'!Z29*'Project Charact'!$G$23 -> 695183.1199 | K24: 18421902.24
D25: 17 | E25: 2031 | F25: 9507622.786 | G25: ='O&M'!F30+'O&M'!H30 -> 9507622.786 | H25: 29037079.47 | I25: ='O&M'!Q30*'Project Charact'!$G$23+'O&M'!$I$9*(1+'Project Charact'!$G$41)^D25*(I95+I159)+'O&M'!$I$9*(1+'Project Charact'!$G$108)*(1+'Project Charact'!$G$41)^D25*(J95+J159) -> 8419162.551 | J25: ='O&M'!Z30*'Project Charact'!$G$23 -> 712562.6979 | K25: 19905354.22
D26: 18 | E26: 2032 | F26: 9883551.649 | G26: ='O&M'!F31+'O&M'!H31 -> 9883551.649 | H26: 30904635.39 | I26: ='O&M'!Q31*'Project Charact'!$G$23+'O&M'!$I$9*(1+'Project Charact'!$G$41)^D26*(I96+I160)+'O&M'!$I$9*(1+'Project Charact'!$G$108)*(1+'Project Charact'!$G$41)^D26*(J96+J160) -> 8682031.171 | J26: ='O&M'!Z31*'Project Charact'!$G$23 -> 730376.7654 | K26: 21492227.45
D27: 19 | E27: 2033 | F27: 10274408.26 | G27: ='O&M'!F32+'O&M'!H32 -> 10274408.26 | H27: 32892974.87 | I27: ='O&M'!Q32*'Project Charact'!$G$23+'O&M'!$I$9*(1+'Project Charact'!$G$41)^D27*(I97+I161)+'O&M'!$I$9*(1+'Project Charact'!$G$108)*(1+'Project Charact'!$G$41)^D27*(J97+J161) -> 8954912.679 | J27: ='O&M'!Z32*'Project Charact'!$G$23 -> 748636.1845 | K27: 23189426.01
D28: 20 | E28: 2034 | F28: 10680787.01 | G28: ='O&M'!F33+'O&M'!H33 -> 10680787.01 | H28: 35009944.34 | I28: ='O&M'!Q33*'Project Charact'!$G$23+'O&M'!$I$9*(1+'Project Charact'!$G$41)^D28*(I98+I162)+'O&M'!$I$9*(1+'Project Charact'!$G$108)*(1+'Project Charact'!$G$41)^D28*(J98+J162) -> 9238283.676 | J28: ='O&M'!Z33*'Project Charact'!$G$23 -> 767352.0891 | K28: 25004308.58
D29: 21 | E29: 2035 | F29: 10998068.94 | G29: ='O&M'!F34+'O&M'!H34 -> 10998068.94 | H29: 36093285.54 | I29: ='O&M'!Q34*'Project Charact'!$G$23+'O&M'!$I$9*(1+'Project Charact'!$G$41)^D29*(I99+I163)+'O&M'!$I$9*(1+'Project Charact'!$G$108)*(1+'Project Charact'!$G$41)^D29*(J99+J163) -> 9478176.775 | J29: ='O&M'!Z34*'Project Charact'!$G$23 -> 786535.8913 | K29: 25828572.87
D30: 22 | E30: 2036 | F30: 11324806.49 | G30: ='O&M'!F35+'O&M'!H35 -> 11324806.49 | H30: 38066411.08 | I30: ='O&M'!Q35*'Project Charact'!$G$23+'O&M'!$I$9*(1+'Project Charact'!$G$41)^D30*(I100+I164)+'O&M'!$I$9*(1+'Project Charact'!$G$108)*(1+'Project Charact'!$G$41)^D30*(J100+J164) -> 9764209.522 | J30: ='O&M'!Z35*'Project Charact'!$G$23 -> 806199.2886 | K30: 27496002.27
D31: 23 | E31: 2037 | F31: 11661282.07 | G31: ='O&M'!F36+'O&M'!H36 -> 11661282.07 | H31: 40147760.45 | I31: ='O&M'!Q36*'Project Charact'!$G$23+'O&M'!$I$9*(1+'Project Charact'!$G$41)^D31*(I101+I165)+'O&M'!$I$9*(1+'Project Charact'!$G$108)*(1+'Project Charact'!$G$41)^D31*(J101+J165) -> 10060118.63 | J31: ='O&M'!Z36*'Project Charact'!$G$23 -> 826354.2708 | K31: 29261287.54
D32: 24 | E32: 2038 | F32: 12007786.56 | G32: ='O&M'!F37+'O&M'!H37 -> 12007786.56 | H32: 42343286.23 | I32: ='O&M'!Q37*'Project Charact'!$G$23+'O&M'!$I$9*(1+'Project Charact'!$G$41)^D32*(I102+I166)+'O&M'!$I$9*(1+'Project Charact'!$G$108)*(1+'Project Charact'!$G$41)^D32*(J102+J166) -> 10366302.48 | J32: ='O&M'!Z37*'Project Charact'!$G$23 -> 847013.1276 | K32: 31129970.62
D33: 25 | E33: 2039 | F33: 12364619.49 | G33: ='O&M'!F38+'O&M'!H38 -> 12364619.49 | H33: 44659269.18 | I33: ='O&M'!Q38*'Project Charact'!$G$23+'O&M'!$I$9*(1+'Project Charact'!$G$41)^D33*(I103+I167)+'O&M'!$I$9*(1+'Project Charact'!$G$108)*(1+'Project Charact'!$G$41)^D33*(J103+J167) -> 10683177.82 | J33: ='O&M'!Z38*'Project Charact'!$G$23 -> 868188.4558 | K33: 33107902.91
D34: 26 | E34: 2040 | F34: 12732089.4 | G34: ='O&M'!F39+'O&M'!H39 -> 12732089.4 | H34: 47102336.37 | I34: ='O&M'!Q39*'Project Charact'!$G$23+'O&M'!$I$9*(1+'Project Charact'!$G$41)^D34*(I104+I168)+'O&M'!$I$9*(1+'Project Charact'!$G$108)*(1+'Project Charact'!$G$41)^D34*(J104+J168) -> 11011180.73 | J34: ='O&M'!Z39*'Project Charact'!$G$23 -> 889893.1672 | K34: 35201262.48
D35: 27 | E35: 2041 | F35: 13110514.04 | G35: ='O&M'!F40+'O&M'!H40 -> 13110514.04 | H35: 49679480.3 | I35: ='O&M'!Q40*'Project Charact'!$G$23+'O&M'!$I$9*(1+'Project Charact'!$G$41)^D35*(I105+I169)+'O&M'!$I$9*(1+'Project Charact'!$G$108)*(1+'Project Charact'!$G$41)^D35*(J105+J169) -> 11350767.56 | J35: ='O&M'!Z40*'Project Charact'!$G$23 -> 912140.4964 | K35: 37416572.24
D36: 28 | E36: 2042 | F36: 13500220.65 | G36: ='O&M'!F41+'O&M'!H41 -> 13500220.65 | H36: 52398079.08 | I36: ='O&M'!Q41*'Project Charact'!$G$23+'O&M'!$I$9*(1+'Project Charact'!$G$41)^D36*(I106+I170)+'O&M'!$I$9*(1+'Project Charact'!$G$108)*(1+'Project Charact'!$G$41)^D36*(J106+J170) -> 11702415.98 | J36: ='O&M'!Z41*'Project Charact'!$G$23 -> 934944.0088 | K36: 39760719.09
D37: 29 | E37: 2043 | F37: 13901546.29 | G37: ='O&M'!F42+'O&M'!H42 -> 13901546.29 | H37: 55265917.78 | I37: ='O&M'!Q42*'Project Charact'!$G$23+'O&M'!$I$9*(1+'Project Charact'!$G$41)^D37*(I107+I171)+'O&M'!$I$9*(1+'Project Charact'!$G$108)*(1+'Project Charact'!$G$41)^D37*(J107+J171) -> 12066626.08 | J37: ='O&M'!Z42*'Project Charact'!$G$23 -> 958317.609 | K37: 42240974.09
D38: 30 | E38: 2044 | F38: 14314838.08 | G38: ='O&M'!F43+'O&M'!H43 -> 14314838.08 | H38: 58291210.87 | I38: ='O&M'!Q43*'Project Charact'!$G$23+'O&M'!$I$9*(1+'Project Charact'!$G$41)^D38*(I108+I172)+'O&M'!$I$9*(1+'Project Charact'!$G$108)*(1+'Project Charact'!$G$41)^D38*(J108+J172) -> 12443921.45 | J38: ='O&M'!Z43*'Project Charact'!$G$23 -> 982275.5492 | K38: 44865013.87
D39: 31 | E39: 2045 | F39: 14599219.99 | G39: ='O&M'!F44+'O&M'!H44 -> 14599219.99 | H39: 60914301.01 | I39: ='O&M'!Q44*'Project Charact'!$G$23+'O&M'!$I$9*(1+'Project Charact'!$G$41)^D39*(I109+I173)+'O&M'!$I$9*(1+'Project Charact'!$G$108)*(1+'Project Charact'!$G$41)^D39*(J109+J173) -> 12808368.46 | J39: ='O&M'!Z44*'Project Charact'!$G$23 -> 1006832.438 | K39: 47099100.12
D40: 32 | E40: 2046 | F40: 14889260.82 | G40: ='O&M'!F45+'O&M'!H45 -> 14889260.82 | H40: 63655564.43 | I40: ='O&M'!Q45*'Project Charact'!$G$23+'O&M'!$I$9*(1+'Project Charact'!$G$41)^D40*(I110+I174)+'O&M'!$I$9*(1+'Project Charact'!$G$108)*(1+'Project Charact'!$G$41)^D40*(J110+J174) -> 13184348.1 | J40: ='O&M'!Z45*'Project Charact'!$G$23 -> 1032003.249 | K40: 49439213.08
D41: 33 | E41: 2047 | F41: =+G111+G175 -> 15185073.31 | G41: ='O&M'!F46+'O&M'!H46 -> 15185073.31 | H41: =P111+P175 -> 66520330.46 | I41: ='O&M'!Q46*'Project Charact'!$G$23+'O&M'!$I$9*(1+'Project Charact'!$G$41)^D41*(I111+I175)+'O&M'!$I$9*(1+'Project Charact'!$G$108)*(1+'Project Charact'!$G$41)^D41*(J111+J175) -> 13572258.63 | J41: ='O&M'!Z46*'Project Charact'!$G$23 -> 1057803.33 | K41: 51890268.5
D42: 34 | E42: 2048 | F42: 15486772.46 | G42: ='O&M'!F47+'O&M'!H47 -> 15486772.46 | H42: 69514169.02 | I42: ='O&M'!Q47*'Project Charact'!$G$23+'O&M'!$I$9*(1+'Project Charact'!$G$41)^D42*(I112+I176)+'O&M'!$I$9*(1+'Project Charact'!$G$108)*(1+'Project Charact'!$G$41)^D42*(J112+J176) -> 13972513.24 | J42: ='O&M'!Z47*'Project Charact'!$G$23 -> 1084248.413 | K42: 54457407.36
D43: 35 | E43: 2049 | F43: 15794475.56 | G43: ='O&M'!F48+'O&M'!H48 -> 15794475.56 | H43: 72642901.46 | I43: ='O&M'!Q48*'Project Charact'!$G$23+'O&M'!$I$9*(1+'Project Charact'!$G$41)^D43*(I113+I177)+'O&M'!$I$9*(1+'Project Charact'!$G$108)*(1+'Project Charact'!$G$41)^D43*(J113+J177) -> 14385540.7 | J43: ='O&M'!Z48*'Project Charact'!$G$23 -> 1111354.624 | K43: 57146006.14
D44: 36 | E44: 2050 | F44: 16108302.24 | G44: ='O&M'!F49+'O&M'!H49 -> 16108302.24 | H44: 74910859.6 | I44: ='O&M'!Q49*'Project Charact'!$G$23+'O&M'!$I$9*(1+'Project Charact'!$G$41)^D44*(I114+I178)+'O&M'!$I$9*(1+'Project Charact'!$G$108)*(1+'Project Charact'!$G$41)^D44*(J114+J178) -> 14769070.62 | J44: ='O&M'!Z49*'Project Charact'!$G$23 -> 1139138.489 | K44: 59002650.5
D45: 37 | E45: 2051 | F45: 16428374.51 | G45: ='O&M'!F50+'O&M'!H50 -> 16428374.51 | H45: 78283167.56 | I45: ='O&M'!Q50*'Project Charact'!$G$23+'O&M'!$I$9*(1+'Project Charact'!$G$41)^D45*(I115+I179)+'O&M'!$I$9*(1+'Project Charact'!$G$108)*(1+'Project Charact'!$G$41)^D45*(J115+J179) -> 15207062.91 | J45: ='O&M'!Z50*'Project Charact'!$G$23 -> 1167616.952 | K45: 61908487.69
D46: 38 | E46: 2052 | F46: 16754816.82 | G46: ='O&M'!F51+'O&M'!H51 -> 16754816.82 | H46: 81807456.52 | I46: ='O&M'!Q51*'Project Charact'!$G$23+'O&M'!$I$9*(1+'Project Charact'!$G$41)^D46*(I116+I180)+'O&M'!$I$9*(1+'Project Charact'!$G$108)*(1+'Project Charact'!$G$41)^D46*(J116+J180) -> 15659126.52 | J46: ='O&M'!Z51*'Project Charact'!$G$23 -> 1196807.375 | K46: 64951522.63
D47: 39 | E47: 2053 | F47: 17087756.09 | G47: ='O&M'!F52+'O&M'!H52 -> 17087756.09 | H47: 85490582.73 | I47: ='O&M'!Q52*'Project Charact'!$G$23+'O&M'!$I$9*(1+'Project Charact'!$G$41)^D47*(I117+I181)+'O&M'!$I$9*(1+'Project Charact'!$G$108)*(1+'Project Charact'!$G$41)^D47*(J117+J181) -> 16125754.94 | J47: ='O&M'!Z52*'Project Charact'!$G$23 -> 1226727.56 | K47: 68138100.23
D48: 40 | E48: 2054 | F48: 17100000 | G48: ='O&M'!F53+'O&M'!H53 -> 17100000 | H48: 87661724.11 | I48: ='O&M'!Q53*'Project Charact'!$G$23+'O&M'!$I$9*(1+'Project Charact'!$G$41)^D48*(I118+I182)+'O&M'!$I$9*(1+'Project Charact'!$G$108)*(1+'Project Charact'!$G$41)^D48*(J118+J182) -> 16531702.79 | J48: ='O&M'!Z53*'Project Charact'!$G$23 -> 1257395.749 | K48: 69872625.57
D49: 41 | E49: 2055 | F49: 17100000 | G49: ='O&M'!F54+'O&M'!H54 -> 17100000 | H49: 89853267.21 | I49: ='O&M'!Q54*'Project Charact'!$G$23+'O&M'!$I$9*(1+'Project Charact'!$G$41)^D49*(I119+I183)+'O&M'!$I$9*(1+'Project Charact'!$G$108)*(1+'Project Charact'!$G$41)^D49*(J119+J183) -> 16944995.36 | J49: ='O&M'!Z54*'Project Charact'!$G$23 -> 1288830.642 | K49: 71619441.21
D50: 42 | E50: 2056 | F50: 17100000 | G50: ='O&M'!F55+'O&M'!H55 -> 17100000 | H50: 92099598.89 | I50: ='O&M'!Q55*'Project Charact'!$G$23+'O&M'!$I$9*(1+'Project Charact'!$G$41)^D50*(I120+I184)+'O&M'!$I$9*(1+'Project Charact'!$G$108)*(1+'Project Charact'!$G$41)^D50*(J120+J184) -> 17368620.25 | J50: ='O&M'!Z55*'Project Charact'!$G$23 -> 1321051.408 | K50: 73409927.24
D51: 43 | E51: 2057 | F51: 17100000 | G51: ='O&M'!F56+'O&M'!H56 -> 17100000 | H51: 94402088.87 | I51: ='O&M'!Q56*'Project Charact'!$G$23+'O&M'!$I$9*(1+'Project Charact'!$G$41)^D51*(I121+I185)+'O&M'!$I$9*(1+'Project Charact'!$G$108)*(1+'Project Charact'!$G$41)^D51*(J121+J185) -> 17802835.75 | J51: ='O&M'!Z56*'Project Charact'!$G$23 -> 1354077.694 | K51: 75245175.42
D52: 44 | E52: 2058 | F52: 17100000 | G52: ='O&M'!F57+'O&M'!H57 -> 17100000 | H52: 96762141.09 | I52: ='O&M'!Q57*'Project Charact'!$G$23+'O&M'!$I$9*(1+'Project Charact'!$G$41)^D52*(I122+I186)+'O&M'!$I$9*(1+'Project Charact'!$G$108)*(1+'Project Charact'!$G$41)^D52*(J122+J186) -> 18247906.65 | J52: ='O&M'!Z57*'Project Charact'!$G$23 -> 1387929.636 | K52: 77126304.8
D53: 45 | E53: 2059 | F53: 17100000 | G53: ='O&M'!F58+'O&M'!H58 -> 17100000 | H53: 99181194.61 | I53: ='O&M'!Q58*'Project Charact'!$G$23+'O&M'!$I$9*(1+'Project Charact'!$G$41)^D53*(I123+I187)+'O&M'!$I$9*(1+'Project Charact'!$G$108)*(1+'Project Charact'!$G$41)^D53*(J123+J187) -> 18704104.31 | J53: ='O&M'!Z58*'Project Charact'!$G$23 -> 1422627.877 | K53: 79054462.42
D54: 46 | E54: 2060 | F54: 17100000 | G54: ='O&M'!F59+'O&M'!H59 -> 17100000 | H54: 101660724.5 | I54: ='O&M'!Q59*'Project Charact'!$G$23+'O&M'!$I$9*(1+'Project Charact'!$G$41)^D54*(I124+I188)+'O&M'!$I$9*(1+'Project Charact'!$G$108)*(1+'Project Charact'!$G$41)^D54*(J124+J188) -> 19171706.92 | J54: ='O&M'!Z59*'Project Charact'!$G$23 -> 1458193.574 | K54: 81030823.99
D55: 47 | E55: 2061 | F55: 17100000 | G55: ='O&M'!F60+'O&M'!H60 -> 17100000 | H55: 104202242.6 | I55: ='O&M'!Q60*'Project Charact'!$G$23+'O&M'!$I$9*(1+'Project Charact'!$G$41)^D55*(I125+I189)+'O&M'!$I$9*(1+'Project Charact'!$G$108)*(1+'Project Charact'!$G$41)^D55*(J125+J189) -> 19650999.59 | J55: ='O&M'!Z60*'Project Charact'!$G$23 -> 1494648.413 | K55: 83056594.58
D56: 48 | E56: 2062 | F56: 17100000 | G56: ='O&M'!F61+'O&M'!H61 -> 17100000 | H56: 106807298.7 | I56: ='O&M'!Q61*'Project Charact'!$G$23+'O&M'!$I$9*(1+'Project Charact'!$G$41)^D56*(I126+I190)+'O&M'!$I$9*(1+'Project Charact'!$G$108)*(1+'Project Charact'!$G$41)^D56*(J126+J190) -> 20142274.58 | J56: ='O&M'!Z61*'Project Charact'!$G$23 -> 1532014.624 | K56: 85133009.45
D57: 49 | E57: 2063 | F57: 17100000 | G57: ='O&M'!F62+'O&M'!H62 -> 17100000 | H57: 109477481.1 | I57: ='O&M'!Q62*'Project Charact'!$G$23+'O&M'!$I$9*(1+'Project Charact'!$G$41)^D57*(I127+I191)+'O&M'!$I$9*(1+'Project Charact'!$G$108)*(1+'Project Charact'!$G$41)^D57*(J127+J191) -> 20645831.45 | J57: ='O&M'!Z62*'Project Charact'!$G$23 -> 1570314.989 | K57: 87261334.69
D58: 50 | E58: 2064 | F58: 17100000 | G58: ='O&M'!F63+'O&M'!H63 -> 17100000 | H58: 112214418.2 | I58: ='O&M'!Q63*'Project Charact'!$G$23+'O&M'!$I$9*(1+'Project Charact'!$G$41)^D58*(I128+I192)+'O&M'!$I$9*(1+'Project Charact'!$G$108)*(1+'Project Charact'!$G$41)^D58*(J128+J192) -> 21161977.23 | J58: ='O&M'!Z63*'Project Charact'!$G$23 -> 1609572.864 | K58: 89442868.05
D60: AVERAGE | F60: =AVERAGE(F9:F58) -> 12052737.1 | G60: 12052737.1 | H60: 52360667.03 | I60: 11711722.49 | J60: 935849.7484 | K60: 39713094.79
I62: TOTAL NET REVENUE | K62: =SUM(K9:K58) -> 1985654739
H68: BACK TO MENU
B75: TRANSACTIONS & REVENUE FOR AUTOS - Section 1
D77: Year | F77: ANNUAL TRAFFIC | H77: ANNUAL TRANSACTIONS | L77: ANNUAL GROSS REVENUE
D78: Year No. | E78: Year | F78: % of Total Veh | G78: Autos | H78: % ETC | I78: ETC | J78: VIDEO | K78: TOTAL | L78: ETC | O78: VIDEO | P78: TOTAL
D79: 1 | E79: ='Project Charact'!G17 -> 2015 | F79: =Traffic!G14/(Traffic!G14+Traffic!I14) -> 0.96 | G79: =+Traffic!G14*'Project Charact'!$G$100*IF('Project Charact'!G113<100%,'Project Charact'!G113,100%) -> 3160080 | H79: ='O&M'!G14 -> 0.6 | I79: =H79*K79 -> 1896048 | J79: =K79*(1-H79) -> 1264032 | K79: =+G79*'O&M'!$G$74 -> 3160080 | L79: =I79*'Toll Rate'!I26*'Project Charact'!$G$23 -> 3412886.4 | O79: =J79*'Toll Rate'!I26*(1+'Project Charact'!$G$108)*'Project Charact'!$G$23 -> 2844072 | P79: =L79+O79 -> 6256958.4
D80: 2 | E80: =1+E79 -> 2016 | F80: =Traffic!G15/(Traffic!G15+Traffic!I15) -> 0.9607319863 | G80: =+Traffic!G15*'Project Charact'!$G$100*IF('Project Charact'!G114<100%,'Project Charact'!G114,100%) -> 3792096 | H80: ='O&M'!G15 -> 0.6 | I80: =H80*K80 -> 2275257.6 | J80: =K80*(1-H80) -> 1516838.4 | K80: =+G80*'O&M'!$G$74 -> 3792096 | L80: =I80*'Toll Rate'!I27*'Project Charact'!$G$23 -> 4197850.272 | O80: =J80*'Toll Rate'!I27*(1+'Project Charact'!$G$108)*'Project Charact'!$G$23 -> 3498208.56 | P80: 7696058.832
D81: 3 | E81: =1+E80 -> 2017 | F81: =Traffic!G16/(Traffic!G16+Traffic!I16) -> 0.9614511153 | G81: =+Traffic!G16*'Project Charact'!$G$100*IF('Project Charact'!G115<100%,'Project Charact'!G115,100%) -> 4479413.4 | H81: ='O&M'!G16 -> 0.6 | I81: 2687648.04 | J81: 1791765.36 | K81: =+G81*'O&M'!$G$74 -> 4479413.4 | L81: =I81*'Toll Rate'!I28*'Project Charact'!$G$23 -> 5082678.4 | O81: =J81*'Toll Rate'!I28*(1+'Project Charact'!$G$108)*'Project Charact'!$G$23 -> 4235565.333 | P81: 9318243.733
D82: 4 | E82: 2018 | F82: =Traffic!G17/(Traffic!G17+Traffic!I17) -> 0.9621575935 | G82: =+Traffic!G17*'Project Charact'!$G$100*IF('Project Charact'!G116<100%,'Project Charact'!G116,100%) -> 5225982.3 | H82: ='O&M'!G17 -> 0.6 | I82: 3135589.38 | J82: 2090392.92 | K82: =+G82*'O&M'!$G$74 -> 5225982.3 | L82: =I82*'Toll Rate'!I29*'Project Charact'!$G$23 -> 6078036.253 | O82: =J82*'Toll Rate'!I29*(1+'Project Charact'!$G$108)*'Project Charact'!$G$23 -> 5065030.211 | P82: 11143066.46
D83: 5 | E83: 2019 | F83: =Traffic!G18/(Traffic!G18+Traffic!I18) -> 0.9628516244 | G83: =+Traffic!G18*'Project Charact'!$G$100*IF('Project Charact'!G117<100%,'Project Charact'!G117,100%) -> 5487281.415 | H83: ='O&M'!G18 -> 0.6 | I83: 3292368.849 | J83: 2194912.566 | K83: =+G83*'O&M'!$G$74 -> 5487281.415 | L83: =I83*'Toll Rate'!I30*'Project Charact'!$G$23 -> 6541486.517 | O83: =J83*'Toll Rate'!I30*(1+'Project Charact'!$G$108)*'Project Charact'!$G$23 -> 5451238.764 | P83: 11992725.28
D84: 6 | E84: 2020 | F84: =Traffic!G19/(Traffic!G19+Traffic!I19) -> 0.9635334092 | G84: =+IF(Traffic!J19>Traffic!$K$8,Traffic!K19*Traffic!R19,Traffic!G19)*'Project Charact'!$G$100 -> 5761645.486 | H84: ='O&M'!G19 -> 0.7 | I84: 4033151.84 | J84: 1728493.646 | K84: =+G84*'O&M'!$G$74 -> 5761645.486 | L84: =I84*'Toll Rate'!I31*'Project Charact'!$G$23 -> 8213654.008 | O84: =J84*'Toll Rate'!I31*(1+'Project Charact'!$G$108)*'Project Charact'!$G$23 -> 4400171.79 | P84: 12613825.8
D85: 7 | E85: 2021 | F85: =Traffic!G20/(Traffic!G20+Traffic!I20) -> 0.9642031463 | G85: =+IF(Traffic!J20>Traffic!$K$8,Traffic!K20*Traffic!R20,Traffic!G20)*'Project Charact'!$G$100 -> 6049727.76 | H85: ='O&M'!G20 -> 0.7 | I85: 4234809.432 | J85: 1814918.328 | K85: =+G85*'O&M'!$G$74 -> 6049727.76 | L85: =I85*'Toll Rate'!I32*'Project Charact'!$G$23 -> 8839945.126 | O85: =J85*'Toll Rate'!I32*(1+'Project Charact'!$G$108)*'Project Charact'!$G$23 -> 4735684.889 | P85: 13575630.02
D86: 8 | E86: 2022 | F86: =Traffic!G21/(Traffic!G21+Traffic!I21) -> 0.9648610318 | G86: =+IF(Traffic!J21>Traffic!$K$8,Traffic!K21*Traffic!R21,Traffic!G21)*'Project Charact'!$G$100 -> 6352214.148 | H86: ='O&M'!G21 -> 0.7 | I86: 4446549.904 | J86: 1905664.244 | K86: =+G86*'O&M'!$G$74 -> 6352214.148 | L86: =I86*'Toll Rate'!I33*'Project Charact'!$G$23 -> 9513990.942 | O86: =J86*'Toll Rate'!I33*(1+'Project Charact'!$G$108)*'Project Charact'!$G$23 -> 5096780.862 | P86: 14610771.8
D87: 9 | E87: 2023 | F87: =Traffic!G22/(Traffic!G22+Traffic!I22) -> 0.9655072591 | G87: =+IF(Traffic!J22>Traffic!$K$8,Traffic!K22*Traffic!R22,Traffic!G22)*'Project Charact'!$G$100 -> 6669824.855 | H87: ='O&M'!G22 -> 0.7 | I87: 4668877.399 | J87: 2000947.457 | K87: =+G87*'O&M'!$G$74 -> 6669824.855 | L87: =I87*'Toll Rate'!I34*'Project Charact'!$G$23 -> 10239432.75 | O87: =J87*'Toll Rate'!I34*(1+'Project Charact'!$G$108)*'Project Charact'!$G$23 -> 5485410.403 | P87: 15724843.15
D88: 10 | E88: 2024 | F88: =Traffic!G23/(Traffic!G23+Traffic!I23) -> 0.9661420188 | G88: =+IF(Traffic!J23>Traffic!$K$8,Traffic!K23*Traffic!R23,Traffic!G23)*'Project Charact'!$G$100 -> 7003316.098 | H88: ='O&M'!G23 -> 0.7 | I88: 4902321.269 | J88: 2100994.829 | K88: =+G88*'O&M'!$G$74 -> 7003316.098 | L88: =I88*'Toll Rate'!I35*'Project Charact'!$G$23 -> 11020189.5 | O88: =J88*'Toll Rate'!I35*(1+'Project Charact'!$G$108)*'Project Charact'!$G$23 -> 5903672.946 | P88: 16923862.44
D89: 11 | E89: 2025 | F89: =Traffic!G24/(Traffic!G24+Traffic!I24) -> 0.9666140515 | G89: =+IF(Traffic!J24>Traffic!$K$8,Traffic!K24*Traffic!R24,Traffic!G24)*'Project Charact'!$G$100 -> 7283448.742 | H89: ='O&M'!G24 -> 0.8 | I89: 5826758.994 | J89: 1456689.748 | K89: =+G89*'O&M'!$G$74 -> 7283448.742 | L89: =I89*'Toll Rate'!I36*'Project Charact'!$G$23 -> 13425739.44 | O89: =J89*'Toll Rate'!I36*(1+'Project Charact'!$G$108)*'Project Charact'!$G$23 -> 4195543.573 | P89: 17621283.01
D90: 12 | E90: 2026 | F90: =Traffic!G25/(Traffic!G25+Traffic!I25) -> 0.9670797276 | G90: =+IF(Traffic!J25>Traffic!$K$8,Traffic!K25*Traffic!R25,Traffic!G25)*'Project Charact'!$G$100 -> 7574786.692 | H90: ='O&M'!G25 -> 0.8 | I90: 6059829.353 | J90: 1514957.338 | K90: =+G90*'O&M'!$G$74 -> 7574786.692 | L90: =I90*'Toll Rate'!I37*'Project Charact'!$G$23 -> 14311838.24 | O90: =J90*'Toll Rate'!I37*(1+'Project Charact'!$G$108)*'Project Charact'!$G$23 -> 4472449.449 | P90: 18784287.69
D91: 13 | E91: 2027 | F91: =Traffic!G26/(Traffic!G26+Traffic!I26) -> 0.9675391264 | G91: =+IF(Traffic!J26>Traffic!$K$8,Traffic!K26*Traffic!R26,Traffic!G26)*'Project Charact'!$G$100 -> 7877778.16 | H91: ='O&M'!G26 -> 0.8 | I91: 6302222.528 | J91: 1575555.632 | K91: =+G91*'O&M'!$G$74 -> 7877778.16 | L91: =I91*'Toll Rate'!I38*'Project Charact'!$G$23 -> 15256419.56 | O91: =J91*'Toll Rate'!I38*(1+'Project Charact'!$G$108)*'Project Charact'!$G$23 -> 4767631.113 | P91: 20024050.67
D92: 14 | E92: 2028 | F92: =Traffic!G27/(Traffic!G27+Traffic!I27) -> 0.9679923265 | G92: =+IF(Traffic!J27>Traffic!$K$8,Traffic!K27*Traffic!R27,Traffic!G27)*'Project Charact'!$G$100 -> 8192889.286 | H92: ='O&M'!G27 -> 0.8 | I92: 6554311.429 | J92: 1638577.857 | K92: =+G92*'O&M'!$G$74 -> 8192889.286 | L92: =I92*'Toll Rate'!I39*'Project Charact'!$G$23 -> 16263343.25 | O92: =J92*'Toll Rate'!I39*(1+'Project Charact'!$G$108)*'Project Charact'!$G$23 -> 5082294.766 | P92: 21345638.02
D93: 15 | E93: 2029 | F93: =Traffic!G28/(Traffic!G28+Traffic!I28) -> 0.9684394057 | G93: =+IF(Traffic!J28>Traffic!$K$8,Traffic!K28*Traffic!R28,Traffic!G28)*'Project Charact'!$G$100 -> 8520604.857 | H93: ='O&M'!G28 -> 0.8 | I93: 6816483.886 | J93: 1704120.971 | K93: =+G93*'O&M'!$G$74 -> 8520604.857 | L93: =I93*'Toll Rate'!I40*'Project Charact'!$G$23 -> 17336723.91 | O93: =J93*'Toll Rate'!I40*(1+'Project Charact'!$G$108)*'Project Charact'!$G$23 -> 5417726.221 | P93: 22754450.13
D94: 16 | E94: 2030 | F94: =Traffic!G29/(Traffic!G29+Traffic!I29) -> 0.968880441 | G94: =+IF(Traffic!J29>Traffic!$K$8,Traffic!K29*Traffic!R29,Traffic!G29)*'Project Charact'!$G$100 -> 8861429.052 | H94: ='O&M'!G29 -> 0.8 | I94: 7089143.241 | J94: 1772285.81 | K94: =+G94*'O&M'!$G$74 -> 8861429.052 | L94: =I94*'Toll Rate'!I41*'Project Charact'!$G$23 -> 18480947.69 | O94: =J94*'Toll Rate'!I41*(1+'Project Charact'!$G$108)*'Project Charact'!$G$23 -> 5775296.152 | P94: 24256243.84
D95: 17 | E95: 2031 | F95: =Traffic!G30/(Traffic!G30+Traffic!I30) -> 0.9693155083 | G95: =+IF(Traffic!J30>Traffic!$K$8,Traffic!K30*Traffic!R30,Traffic!G30)*'Project Charact'!$G$100 -> 9215886.214 | H95: ='O&M'!G30 -> 0.8 | I95: 7372708.971 | J95: 1843177.243 | K95: =+G95*'O&M'!$G$74 -> 9215886.214 | L95: =I95*'Toll Rate'!I42*'Project Charact'!$G$23 -> 19700690.23 | O95: =J95*'Toll Rate'!I42*(1+'Project Charact'!$G$108)*'Project Charact'!$G$23 -> 6156465.698 | P95: 25857155.93
D96: 18 | E96: 2032 | F96: =Traffic!G31/(Traffic!G31+Traffic!I31) -> 0.9697446832 | G96: =+IF(Traffic!J31>Traffic!$K$8,Traffic!K31*Traffic!R31,Traffic!G31)*'Project Charact'!$G$100 -> 9584521.662 | H96: ='O&M'!G31 -> 0.8 | I96: 7667617.33 | J96: 1916904.332 | K96: =+G96*'O&M'!$G$74 -> 9584521.662 | L96: =I96*'Toll Rate'!I43*'Project Charact'!$G$23 -> 21000935.79 | O96: =J96*'Toll Rate'!I43*(1+'Project Charact'!$G$108)*'Project Charact'!$G$23 -> 6562792.434 | P96: 27563728.22
D97: 19 | E97: 2033 | F97: =Traffic!G32/(Traffic!G32+Traffic!I32) -> 0.97016804 | G97: =+IF(Traffic!J32>Traffic!$K$8,Traffic!K32*Traffic!R32,Traffic!G32)*'Project Charact'!$G$100 -> 9967902.529 | H97: ='O&M'!G32 -> 0.8 | I97: 7974322.023 | J97: 1993580.506 | K97: =+G97*'O&M'!$G$74 -> 9967902.529 | L97: =I97*'Toll Rate'!I44*'Project Charact'!$G$23 -> 22386997.55 | O97: =J97*'Toll Rate'!I44*(1+'Project Charact'!$G$108)*'Project Charact'!$G$23 -> 6995936.734 | P97: 29382934.28
D98: 20 | E98: 2034 | F98: =Traffic!G33/(Traffic!G33+Traffic!I33) -> 0.9705856526 | G98: =+IF(Traffic!J33>Traffic!$K$8,Traffic!K33*Traffic!R33,Traffic!G33)*'Project Charact'!$G$100 -> 10366618.63 | H98: ='O&M'!G33 -> 0.8 | I98: 8293294.904 | J98: 2073323.726 | K98: =+G98*'O&M'!$G$74 -> 10366618.63 | L98: =I98*'Toll Rate'!I45*'Project Charact'!$G$23 -> 23864539.39 | O98: =J98*'Toll Rate'!I45*(1+'Project Charact'!$G$108)*'Project Charact'!$G$23 -> 7457668.559 | P98: 31322207.95
D99: 21 | E99: 2035 | F99: =Traffic!G34/(Traffic!G34+Traffic!I34) -> 0.9708629079 | G99: =+IF(Traffic!J34>Traffic!$K$8,Traffic!K34*Traffic!R34,Traffic!G34)*'Project Charact'!$G$100 -> 10677617.19 | H99: ='O&M'!G34 -> 0.9 | I99: 9609855.47 | J99: 1067761.719 | K99: =+G99*'O&M'!$G$74 -> 10677617.19 | L99: =I99*'Toll Rate'!I46*'Project Charact'!$G$23 -> 28344360.89 | O99: =J99*'Toll Rate'!I46*(1+'Project Charact'!$G$108)*'Project Charact'!$G$23 -> 3936716.79 | P99: 32281077.68
D100: 22 | E100: 2036 | F100: =Traffic!G35/(Traffic!G35+Traffic!I35) -> 0.9711376276 | G100: =+IF(Traffic!J35>Traffic!$K$8,Traffic!K35*Traffic!R35,Traffic!G35)*'Project Charact'!$G$100 -> 10997945.7 | H100: ='O&M'!G35 -> 0.9 | I100: 9898151.134 | J100: 1099794.57 | K100: =+G100*'O&M'!$G$74 -> 10997945.7 | L100: =I100*'Toll Rate'!I47*'Project Charact'!$G$23 -> 29924559.01 | O100: =J100*'Toll Rate'!I47*(1+'Project Charact'!$G$108)*'Project Charact'!$G$23 -> 4156188.752 | P100: 34080747.76
D101: 23 | E101: 2037 | F101: =Traffic!G36/(Traffic!G36+Traffic!I36) -> 0.9714098334 | G101: =+IF(Traffic!J36>Traffic!$K$8,Traffic!K36*Traffic!R36,Traffic!G36)*'Project Charact'!$G$100 -> 11327884.08 | H101: ='O&M'!G36 -> 0.9 | I101: 10195095.67 | J101: 1132788.408 | K101: =+G101*'O&M'!$G$74 -> 11327884.08 | L101: =I101*'Toll Rate'!I48*'Project Charact'!$G$23 -> 31592853.18 | O101: =J101*'Toll Rate'!I48*(1+'Project Charact'!$G$108)*'Project Charact'!$G$23 -> 4387896.274 | P101: 35980749.45
D102: 24 | E102: 2038 | F102: =Traffic!G37/(Traffic!G37+Traffic!I37) -> 0.9716795468 | G102: =+IF(Traffic!J37>Traffic!$K$8,Traffic!K37*Traffic!R37,Traffic!G37)*'Project Charact'!$G$100 -> 11667720.6 | H102: ='O&M'!G37 -> 0.9 | I102: 10500948.54 | J102: 1166772.06 | K102: =+G102*'O&M'!$G$74 -> 11667720.6 | L102: =I102*'Toll Rate'!I49*'Project Charact'!$G$23 -> 33354154.74 | O102: =J102*'Toll Rate'!I49*(1+'Project Charact'!$G$108)*'Project Charact'!$G$23 -> 4632521.492 | P102: 37986676.23
D103: 25 | E103: 2039 | F103: =Traffic!G38/(Traffic!G38+Traffic!I38) -> 0.9719467892 | G103: =+IF(Traffic!J38>Traffic!$K$8,Traffic!K38*Traffic!R38,Traffic!G38)*'Project Charact'!$G$100 -> 12017752.22 | H103: ='O&M'!G38 -> 0.9 | I103: 10815976.99 | J103: 1201775.222 | K103: =+G103*'O&M'!$G$74 -> 12017752.22 | L103: =I103*'Toll Rate'!I50*'Project Charact'!$G$23 -> 35213648.87 | O103: =J103*'Toll Rate'!I50*(1+'Project Charact'!$G$108)*'Project Charact'!$G$23 -> 4890784.565 | P103: 40104433.43
D104: 26 | E104: 2040 | F104: =Traffic!G39/(Traffic!G39+Traffic!I39) -> 0.972211582 | G104: =+IF(Traffic!J39>Traffic!$K$8,Traffic!K39*Traffic!R39,Traffic!G39)*'Project Charact'!$G$100 -> 12378284.78 | H104: ='O&M'!G39 -> 0.9 | I104: 11140456.3 | J104: 1237828.478 | K104: =+G104*'O&M'!$G$74 -> 12378284.78 | L104: =I104*'Toll Rate'!I51*'Project Charact'!$G$23 -> 37176809.79 | O104: =J104*'Toll Rate'!I51*(1+'Project Charact'!$G$108)*'Project Charact'!$G$23 -> 5163445.804 | P104: 42340255.6
D105: 27 | E105: 2041 | F105: =Traffic!G40/(Traffic!G40+Traffic!I40) -> 0.9724739462 | G105: =+IF(Traffic!J40>Traffic!$K$8,Traffic!K40*Traffic!R40,Traffic!G40)*'Project Charact'!$G$100 -> 12749633.33 | H105: ='O&M'!G40 -> 0.9 | I105: 11474669.99 | J105: 1274963.333 | K105: =+G105*'O&M'!$G$74 -> 12749633.33 | L105: =I105*'Toll Rate'!I52*'Project Charact'!$G$23 -> 39249416.94 | O105: =J105*'Toll Rate'!I52*(1+'Project Charact'!$G$108)*'Project Charact'!$G$23 -> 5451307.908 | P105: 44700724.85
D106: 28 | E106: 2042 | F106: =Traffic!G41/(Traffic!G41+Traffic!I41) -> 0.9727339028 | G106: =+IF(Traffic!J41>Traffic!$K$8,Traffic!K41*Traffic!R41,Traffic!G41)*'Project Charact'!$G$100 -> 13132122.33 | H106: ='O&M'!G41 -> 0.9 | I106: 11818910.09 | J106: 1313212.233 | K106: =+G106*'O&M'!$G$74 -> 13132122.33 | L106: =I106*'Toll Rate'!I53*'Project Charact'!$G$23 -> 41437571.93 | O106: =J106*'Toll Rate'!I53*(1+'Project Charact'!$G$108)*'Project Charact'!$G$23 -> 5755218.324 | P106: 47192790.26
D107: 29 | E107: 2043 | F107: =Traffic!G42/(Traffic!G42+Traffic!I42) -> 0.9729914725 | G107: =+IF(Traffic!J42>Traffic!$K$8,Traffic!K42*Traffic!R42,Traffic!G42)*'Project Charact'!$G$100 -> 13526086 | H107: ='O&M'!G42 -> 0.9 | I107: 12173477.4 | J107: 1352608.6 | K107: =+G107*'O&M'!$G$74 -> 13526086 | L107: =I107*'Toll Rate'!I54*'Project Charact'!$G$23 -> 43747716.57 | O107: =J107*'Toll Rate'!I54*(1+'Project Charact'!$G$108)*'Project Charact'!$G$23 -> 6076071.745 | P107: 49823788.31
D108: 30 | E108: 2044 | F108: =Traffic!G43/(Traffic!G43+Traffic!I43) -> 0.973246676 | G108: =+IF(Traffic!J43>Traffic!$K$8,Traffic!K43*Traffic!R43,Traffic!G43)*'Project Charact'!$G$100 -> 13931868.58 | H108: ='O&M'!G43 -> 0.9 | I108: 12538681.72 | J108: 1393186.858 | K108: =+G108*'O&M'!$G$74 -> 13931868.58 | L108: =I108*'Toll Rate'!I55*'Project Charact'!$G$23 -> 46186651.77 | O108: =J108*'Toll Rate'!I55*(1+'Project Charact'!$G$108)*'Project Charact'!$G$23 -> 6414812.745 | P108: 52601464.51
D109: 31 | E109: 2045 | F109: =Traffic!G44/(Traffic!G44+Traffic!I44) -> 0.9733743279 | G109: =+IF(Traffic!J44>Traffic!$K$8,Traffic!K44*Traffic!R44,Traffic!G44)*'Project Charact'!$G$100 -> 14210505.95 | H109: ='O&M'!G44 -> 0.9 | I109: 12789455.35 | J109: 1421050.595 | K109: =+G109*'O&M'!$G$74 -> 14210505.95 | L109: =I109*'Toll Rate'!I56*'Project Charact'!$G$23 -> 48288144.42 | O109: =J109*'Toll Rate'!I56*(1+'Project Charact'!$G$108)*'Project Charact'!$G$23 -> 6706686.725 | P109: 54994831.15
D110: 32 | E110: 2046 | F110: =Traffic!G45/(Traffic!G45+Traffic!I45) -> 0.9735013874 | G110: =+IF(Traffic!J45>Traffic!$K$8,Traffic!K45*Traffic!R45,Traffic!G45)*'Project Charact'!$G$100 -> 14494716.07 | H110: ='O&M'!G45 -> 0.9 | I110: 13045244.46 | J110: 1449471.607 | K110: =+G110*'O&M'!$G$74 -> 14494716.07 | L110: =I110*'Toll Rate'!I57*'Project Charact'!$G$23 -> 50485254.99 | O110: =J110*'Toll Rate'!I57*(1+'Project Charact'!$G$108)*'Project Charact'!$G$23 -> 7011840.971 | P110: 57497095.96
D111: 33 | E111: 2047 | F111: =Traffic!G46/(Traffic!G46+Traffic!I46) -> 0.9736278569 | G111: =+IF(Traffic!J46>Traffic!$K$8,Traffic!K46*Traffic!R46,Traffic!G46)*'Project Charact'!$G$100 -> 14784610.39 | H111: ='O&M'!G46 -> 0.9 | I111: 13306149.35 | J111: =K111*(1-H111) -> 1478461.039 | K111: =+G111*'O&M'!$G$74 -> 14784610.39 | L111: =I111*'Toll Rate'!I58*'Project Charact'!$G$23 -> 52782334.09 | O111: =J111*'Toll Rate'!I58*(1+'Project Charact'!$G$108)*'Project Charact'!$G$23 -> 7330879.735 | P111: =L111+O111 -> 60113213.83
D112: 34 | E112: 2048 | F112: =Traffic!G47/(Traffic!G47+Traffic!I47) -> 0.9737537391 | G112: =+IF(Traffic!J47>Traffic!$K$8,Traffic!K47*Traffic!R47,Traffic!G47)*'Project Charact'!$G$100 -> 15080302.59 | H112: ='O&M'!G47 -> 0.9 | I112: 13572272.34 | J112: 1508030.259 | K112: =+G112*'O&M'!$G$74 -> 15080302.59 | L112: =I112*'Toll Rate'!I59*'Project Charact'!$G$23 -> 55183930.3 | O112: =J112*'Toll Rate'!I59*(1+'Project Charact'!$G$108)*'Project Charact'!$G$23 -> 7664434.763 | P112: 62848365.06
D113: 35 | E113: 2049 | F113: =Traffic!G48/(Traffic!G48+Traffic!I48) -> 0.9738790366 | G113: =+IF(Traffic!J48>Traffic!$K$8,Traffic!K48*Traffic!R48,Traffic!G48)*'Project Charact'!$G$100 -> 15381908.65 | H113: ='O&M'!G48 -> 0.9 | I113: 13843717.78 | J113: 1538190.865 | K113: =+G113*'O&M'!$G$74 -> 15381908.65 | L113: =I113*'Toll Rate'!I60*'Project Charact'!$G$23 -> 57694799.12 | O113: =J113*'Toll Rate'!I60*(1+'Project Charact'!$G$108)*'Project Charact'!$G$23 -> 8013166.545 | P113: 65707965.67
D114: 36 | E114: 2050 | F114: =Traffic!G49/(Traffic!G49+Traffic!I49) -> 0.9740037519 | G114: =+IF(Traffic!J49>Traffic!$K$8,Traffic!K49*Traffic!R49,Traffic!G49)*'Project Charact'!$G$100 -> 15689546.82 | H114: ='O&M'!G49 -> 0.95 | I114: 14905069.48 | J114: 784477.341 | K114: =+G114*'O&M'!$G$74 -> 15689546.82 | L114: =I114*'Toll Rate'!I61*'Project Charact'!$G$23 -> 63671018.73 | O114: =J114*'Toll Rate'!I61*(1+'Project Charact'!$G$108)*'Project Charact'!$G$23 -> 4188882.811 | P114: 67859901.54
D115: 37 | E115: 2051 | F115: =Traffic!G50/(Traffic!G50+Traffic!I50) -> 0.9741278875 | G115: =+IF(Traffic!J50>Traffic!$K$8,Traffic!K50*Traffic!R50,Traffic!G50)*'Project Charact'!$G$100 -> 16003337.76 | H115: ='O&M'!G50 -> 0.95 | I115: 15203170.87 | J115: 800166.8878 | K115: =+G115*'O&M'!$G$74 -> 16003337.76 | L115: =I115*'Toll Rate'!I62*'Project Charact'!$G$23 -> 66568050.09 | O115: =J115*'Toll Rate'!I62*(1+'Project Charact'!$G$108)*'Project Charact'!$G$23 -> 4379476.979 | P115: 70947527.06
D116: 38 | E116: 2052 | F116: =Traffic!G51/(Traffic!G51+Traffic!I51) -> 0.9742514461 | G116: =+IF(Traffic!J51>Traffic!$K$8,Traffic!K51*Traffic!R51,Traffic!G51)*'Project Charact'!$G$100 -> 16323404.51 | H116: ='O&M'!G51 -> 0.95 | I116: 15507234.29 | J116: 816170.2255 | K116: =+G116*'O&M'!$G$74 -> 16323404.51 | L116: =I116*'Toll Rate'!I63*'Project Charact'!$G$23 -> 69596896.36 | O116: =J116*'Toll Rate'!I63*(1+'Project Charact'!$G$108)*'Project Charact'!$G$23 -> 4578743.182 | P116: 74175639.55
D117: 39 | E117: 2053 | F117: =Traffic!G52/(Traffic!G52+Traffic!I52) -> 0.9743744301 | G117: =+IF(Traffic!J52>Traffic!$K$8,Traffic!K52*Traffic!R52,Traffic!G52)*'Project Charact'!$G$100 -> 16649872.6 | H117: ='O&M'!G52 -> 0.95 | I117: 15817378.97 | J117: 832493.6301 | K117: =+G117*'O&M'!$G$74 -> 16649872.6 | L117: =I117*'Toll Rate'!I64*'Project Charact'!$G$23 -> 72763555.15 | O117: =J117*'Toll Rate'!I64*(1+'Project Charact'!$G$108)*'Project Charact'!$G$23 -> 4787075.997 | P117: 77550631.15
D118: 40 | E118: 2054 | F118: =Traffic!G53/(Traffic!G53+Traffic!I53) -> 0.974496842 | G118: =+IF(Traffic!J53>Traffic!$K$8,Traffic!K53*Traffic!R53,Traffic!G53)*'Project Charact'!$G$100 -> 16663896 | H118: ='O&M'!G53 -> 0.95 | I118: 15830701.2 | J118: 833194.7999 | K118: =+G118*'O&M'!$G$74 -> 16663896 | L118: =I118*'Toll Rate'!I65*'Project Charact'!$G$23 -> 74645461.45 | O118: =J118*'Toll Rate'!I65*(1+'Project Charact'!$G$108)*'Project Charact'!$G$23 -> 4910885.622 | P118: 79556347.07
D119: 41 | E119: 2055 | F119: =Traffic!G54/(Traffic!G54+Traffic!I54) -> 0.974496842 | G119: =+IF(Traffic!J54>Traffic!$K$8,Traffic!K54*Traffic!R54,Traffic!G54)*'Project Charact'!$G$100 -> 16663896 | H119: ='O&M'!G54 -> 0.95 | I119: 15830701.2 | J119: 833194.7999 | K119: =+G119*'O&M'!$G$74 -> 16663896 | L119: =I119*'Toll Rate'!I66*'Project Charact'!$G$23 -> 76511597.98 | O119: =J119*'Toll Rate'!I66*(1+'Project Charact'!$G$108)*'Project Charact'!$G$23 -> 5033657.762 | P119: 81545255.75
D120: 42 | E120: 2056 | F120: =Traffic!G55/(Traffic!G55+Traffic!I55) -> 0.974496842 | G120: =+IF(Traffic!J55>Traffic!$K$8,Traffic!K55*Traffic!R55,Traffic!G55)*'Project Charact'!$G$100 -> 16663896 | H120: ='O&M'!G55 -> 0.95 | I120: 15830701.2 | J120: 833194.7999 | K120: =+G120*'O&M'!$G$74 -> 16663896 | L120: =I120*'Toll Rate'!I67*'Project Charact'!$G$23 -> 78424387.93 | O120: =J120*'Toll Rate'!I67*(1+'Project Charact'!$G$108)*'Project Charact'!$G$23 -> 5159499.206 | P120: 83583887.14
D121: 43 | E121: 2057 | F121: =Traffic!G56/(Traffic!G56+Traffic!I56) -> 0.974496842 | G121: =+IF(Traffic!J56>Traffic!$K$8,Traffic!K56*Traffic!R56,Traffic!G56)*'Project Charact'!$G$100 -> 16663896 | H121: ='O&M'!G56 -> 0.95 | I121: 15830701.2 | J121: 833194.7999 | K121: =+G121*'O&M'!$G$74 -> 16663896 | L121: =I121*'Toll Rate'!I68*'Project Charact'!$G$23 -> 80384997.63 | O121: =J121*'Toll Rate'!I68*(1+'Project Charact'!$G$108)*'Project Charact'!$G$23 -> 5288486.686 | P121: 85673484.32
D122: 44 | E122: 2058 | F122: =Traffic!G57/(Traffic!G57+Traffic!I57) -> 0.974496842 | G122: =+IF(Traffic!J57>Traffic!$K$8,Traffic!K57*Traffic!R57,Traffic!G57)*'Project Charact'!$G$100 -> 16663896 | H122: ='O&M'!G57 -> 0.95 | I122: 15830701.2 | J122: 833194.7999 | K122: =+G122*'O&M'!$G$74 -> 16663896 | L122: =I122*'Toll Rate'!I69*'Project Charact'!$G$23 -> 82394622.57 | O122: =J122*'Toll Rate'!I69*(1+'Project Charact'!$G$108)*'Project Charact'!$G$23 -> 5420698.853 | P122: 87815321.43
D123: 45 | E123: 2059 | F123: =Traffic!G58/(Traffic!G58+Traffic!I58) -> 0.974496842 | G123: =+IF(Traffic!J58>Traffic!$K$8,Traffic!K58*Traffic!R58,Traffic!G58)*'Project Charact'!$G$100 -> 16663896 | H123: ='O&M'!G58 -> 0.95 | I123: 15830701.2 | J123: 833194.7999 | K123: =+G123*'O&M'!$G$74 -> 16663896 | L123: =I123*'Toll Rate'!I70*'Project Charact'!$G$23 -> 84454488.14 | O123: =J123*'Toll Rate'!I70*(1+'Project Charact'!$G$108)*'Project Charact'!$G$23 -> 5556216.325 | P123: 90010704.46
D124: 46 | E124: 2060 | F124: =Traffic!G59/(Traffic!G59+Traffic!I59) -> 0.974496842 | G124: =+IF(Traffic!J59>Traffic!$K$8,Traffic!K59*Traffic!R59,Traffic!G59)*'Project Charact'!$G$100 -> 16663896 | H124: ='O&M'!G59 -> 0.95 | I124: 15830701.2 | J124: 833194.7999 | K124: =+G124*'O&M'!$G$74 -> 16663896 | L124: =I124*'Toll Rate'!I71*'Project Charact'!$G$23 -> 86565850.34 | O124: =J124*'Toll Rate'!I71*(1+'Project Charact'!$G$108)*'Project Charact'!$G$23 -> 5695121.733 | P124: 92260972.07
D125: 47 | E125: 2061 | F125: =Traffic!G60/(Traffic!G60+Traffic!I60) -> 0.974496842 | G125: =+IF(Traffic!J60>Traffic!$K$8,Traffic!K60*Traffic!R60,Traffic!G60)*'Project Charact'!$G$100 -> 16663896 | H125: ='O&M'!G60 -> 0.95 | I125: 15830701.2 | J125: 833194.7999 | K125: =+G125*'O&M'!$G$74 -> 16663896 | L125: =I125*'Toll Rate'!I72*'Project Charact'!$G$23 -> 88729996.6 | O125: =J125*'Toll Rate'!I72*(1+'Project Charact'!$G$108)*'Project Charact'!$G$23 -> 5837499.776 | P125: 94567496.37
D126: 48 | E126: 2062 | F126: =Traffic!G61/(Traffic!G61+Traffic!I61) -> 0.974496842 | G126: =+IF(Traffic!J61>Traffic!$K$8,Traffic!K61*Traffic!R61,Traffic!G61)*'Project Charact'!$G$100 -> 16663896 | H126: ='O&M'!G61 -> 0.95 | I126: 15830701.2 | J126: 833194.7999 | K126: =+G126*'O&M'!$G$74 -> 16663896 | L126: =I126*'Toll Rate'!I73*'Project Charact'!$G$23 -> 90948246.51 | O126: =J126*'Toll Rate'!I73*(1+'Project Charact'!$G$108)*'Project Charact'!$G$23 -> 5983437.271 | P126: 96931683.78
D127: 49 | E127: 2063 | F127: =Traffic!G62/(Traffic!G62+Traffic!I62) -> 0.974496842 | G127: =+IF(Traffic!J62>Traffic!$K$8,Traffic!K62*Traffic!R62,Traffic!G62)*'Project Charact'!$G$100 -> 16663896 | H127: ='O&M'!G62 -> 0.95 | I127: 15830701.2 | J127: 833194.7999 | K127: =+G127*'O&M'!$G$74 -> 16663896 | L127: =I127*'Toll Rate'!I74*'Project Charact'!$G$23 -> 93221952.68 | O127: =J127*'Toll Rate'!I74*(1+'Project Charact'!$G$108)*'Project Charact'!$G$23 -> 6133023.202 | P127: 99354975.88
D128: 50 | E128: 2064 | F128: =Traffic!G63/(Traffic!G63+Traffic!I63) -> 0.974496842 | G128: =+IF(Traffic!J63>Traffic!$K$8,Traffic!K63*Traffic!R63,Traffic!G63)*'Project Charact'!$G$100 -> 16663896 | H128: ='O&M'!G63 -> 0.95 | I128: 15830701.2 | J128: 833194.7999 | K128: =+G128*'O&M'!$G$74 -> 16663896 | L128: =I128*'Toll Rate'!I75*'Project Charact'!$G$23 -> 95552501.49 | O128: =J128*'Toll Rate'!I75*(1+'Project Charact'!$G$108)*'Project Charact'!$G$23 -> 6286348.782 | P128: 101838850.3
D130: AVERAGE | F130: =AVERAGE(F79:F128) -> 0.9704570311 | G130: 11715108.47 | H130: 0.845 | I130: 10356458.87 | J130: 1358649.593 | K130: 11715108.47 | L130: =AVERAGE(L79:L128) -> 41805283.11 | O130: =AVERAGE(O79:O128) -> 5408613.356 | P130: =AVERAGE(P79:P128) -> 47213896.46
J132: TOTAL | K132: =SUM(K81:K128) -> 578803247.4 | P132: =SUM(P81:P128) -> 2346741806
B139: TRANSACTIONS & REVENUE FOR TRUCKS - Section 1
D141: Year | F141: ANNUAL TRAFFIC | H141: ANNUAL TRANSACTIONS | L141: ANNUAL GROSS REVENUE
D142: Year No. | E142: Year | F142: % of Total Veh | G142: Trucks | H142: % ETC | I142: ETC | J142: VIDEO | K142: TOTAL | L142: ETC | O142: VIDEO | P142: TOTAL
D143: 1 | E143: ='Project Charact'!G17 -> 2015 | F143: =Traffic!I14/Traffic!J14 -> 0.04 | G143: =+Traffic!I14*'Project Charact'!$G$100*IF('Project Charact'!G113<100%,'Project Charact'!G113,100%) -> 131670 | H143: ='O&M'!I14 -> 0.4 | I143: =K143*H143 -> 52668 | J143: =K143*(1-H143) -> 79002 | K143: =+G143*'O&M'!$G$74 -> 131670 | L143: =I143*'Toll Rate'!J26*'Project Charact'!$G$23 -> 347608.8 | O143: =J143*(1+'Project Charact'!$G$108)*'Toll Rate'!J26*'Project Charact'!$G$23 -> 651766.5 | P143: =L143+O143 -> 999375.3
D144: 2 | E144: =1+E143 -> 2016 | F144: =Traffic!I15/Traffic!J15 -> 0.03926801372 | G144: =+Traffic!I15*'Project Charact'!$G$100*IF('Project Charact'!G114<100%,'Project Charact'!G114,100%) -> 154994.4 | H144: ='O&M'!I15 -> 0.4 | I144: 61997.76 | J144: 92996.64 | K144: =+G144*'O&M'!$G$74 -> 154994.4 | L144: =I144*'Toll Rate'!J27*'Project Charact'!$G$23 -> 419414.8464 | O144: =J144*(1+'Project Charact'!$G$108)*'Toll Rate'!J27*'Project Charact'!$G$23 -> 786402.837 | P144: 1205817.683
D145: 3 | E145: =1+E144 -> 2017 | F145: =Traffic!I16/Traffic!J16 -> 0.03854888467 | G145: =+Traffic!I16*'Project Charact'!$G$100*IF('Project Charact'!G115<100%,'Project Charact'!G115,100%) -> 179599.761 | H145: ='O&M'!I16 -> 0.4 | I145: 71839.9044 | J145: 107759.8566 | K145: =+G145*'O&M'!$G$74 -> 179599.761 | L145: =I145*'Toll Rate'!J28*'Project Charact'!$G$23 -> 498146.8771 | O145: =J145*(1+'Project Charact'!$G$108)*'Toll Rate'!J28*'Project Charact'!$G$23 -> 934025.3946 | P145: 1432172.272
D146: 4 | E146: 2018 | F146: =Traffic!I17/Traffic!J17 -> 0.03784240653 | G146: =+Traffic!I17*'Project Charact'!$G$100*IF('Project Charact'!G116<100%,'Project Charact'!G116,100%) -> 205541.9487 | H146: ='O&M'!I17 -> 0.4 | I146: 82216.77948 | J146: 123325.1692 | K146: =+G146*'O&M'!$G$74 -> 205541.9487 | L146: =I146*'Toll Rate'!J29*'Project Charact'!$G$23 -> 584353.9617 | O146: =J146*(1+'Project Charact'!$G$108)*'Toll Rate'!J29*'Project Charact'!$G$23 -> 1095663.678 | P146: 1680017.64
D147: 5 | E147: 2019 | F147: =Traffic!I18/Traffic!J18 -> 0.03714837562 | G147: =+Traffic!I18*'Project Charact'!$G$100*IF('Project Charact'!G117<100%,'Project Charact'!G117,100%) -> 211708.2072 | H147: ='O&M'!I18 -> 0.4 | I147: 84683.28286 | J147: 127024.9243 | K147: =+G147*'O&M'!$G$74 -> 211708.2072 | L147: =I147*'Toll Rate'!J30*'Project Charact'!$G$23 -> 616931.695 | O147: =J147*(1+'Project Charact'!$G$108)*'Toll Rate'!J30*'Project Charact'!$G$23 -> 1156746.928 | P147: 1773678.623
D148: 6 | E148: 2020 | F148: =Traffic!I19/Traffic!J19 -> 0.03646659084 | G148: =+IF(Traffic!J19>Traffic!$K$8,Traffic!K19*Traffic!S19,Traffic!I19)*'Project Charact'!$G$100 -> 218059.4534 | H148: ='O&M'!I19 -> 0.5 | I148: 109029.7267 | J148: 109029.7267 | K148: =+G148*'O&M'!$G$74 -> 218059.4534 | L148: =I148*'Toll Rate'!J31*'Project Charact'!$G$23 -> 814157.0463 | O148: =J148*(1+'Project Charact'!$G$108)*'Toll Rate'!J31*'Project Charact'!$G$23 -> 1017696.308 | P148: 1831853.354
D149: 7 | E149: 2021 | F149: =Traffic!I20/Traffic!J20 -> 0.03579685367 | G149: =+IF(Traffic!J20>Traffic!$K$8,Traffic!K20*Traffic!S20,Traffic!I20)*'Project Charact'!$G$100 -> 224601.237 | H149: ='O&M'!I20 -> 0.5 | I149: 112300.6185 | J149: 112300.6185 | K149: =+G149*'O&M'!$G$74 -> 224601.237 | L149: =I149*'Toll Rate'!J32*'Project Charact'!$G$23 -> 859546.3016 | O149: =J149*(1+'Project Charact'!$G$108)*'Toll Rate'!J32*'Project Charact'!$G$23 -> 1074432.877 | P149: 1933979.179
D150: 8 | E150: 2022 | F150: =Traffic!I21/Traffic!J21 -> 0.03513896816 | G150: =+IF(Traffic!J21>Traffic!$K$8,Traffic!K21*Traffic!S21,Traffic!I21)*'Project Charact'!$G$100 -> 231339.2741 | H150: ='O&M'!I21 -> 0.5 | I150: 115669.637 | J150: 115669.637 | K150: =+G150*'O&M'!$G$74 -> 231339.2741 | L150: =I150*'Toll Rate'!J33*'Project Charact'!$G$23 -> 907466.0079 | O150: =J150*(1+'Project Charact'!$G$108)*'Toll Rate'!J33*'Project Charact'!$G$23 -> 1134332.51 | P150: 2041798.518
D151: 9 | E151: 2023 | F151: =Traffic!I22/Traffic!J22 -> 0.03449274095 | G151: =+IF(Traffic!J22>Traffic!$K$8,Traffic!K22*Traffic!S22,Traffic!I22)*'Project Charact'!$G$100 -> 238279.4523 | H151: ='O&M'!I22 -> 0.5 | I151: 119139.7262 | J151: 119139.7262 | K151: =+G151*'O&M'!$G$74 -> 238279.4523 | L151: =I151*'Toll Rate'!J34*'Project Charact'!$G$23 -> 958057.2379 | O151: =J151*(1+'Project Charact'!$G$108)*'Toll Rate'!J34*'Project Charact'!$G$23 -> 1197571.547 | P151: 2155628.785
D152: 10 | E152: 2024 | F152: =Traffic!I23/Traffic!J23 -> 0.0338579812 | G152: =+IF(Traffic!J23>Traffic!$K$8,Traffic!K23*Traffic!S23,Traffic!I23)*'Project Charact'!$G$100 -> 245427.8359 | H152: ='O&M'!I23 -> 0.5 | I152: 122713.9179 | J152: 122713.9179 | K152: =+G152*'O&M'!$G$74 -> 245427.8359 | L152: =I152*'Toll Rate'!J35*'Project Charact'!$G$23 -> 1011468.929 | O152: =J152*(1+'Project Charact'!$G$108)*'Toll Rate'!J35*'Project Charact'!$G$23 -> 1264336.161 | P152: 2275805.09
D153: 11 | E153: 2025 | F153: =Traffic!I24/Traffic!J24 -> 0.03338594851 | G153: =+IF(Traffic!J24>Traffic!$K$8,Traffic!K24*Traffic!S24,Traffic!I24)*'Project Charact'!$G$100 -> 251563.5318 | H153: ='O&M'!I24 -> 0.55 | I153: 138359.9425 | J153: 113203.5893 | K153: =+G153*'O&M'!$G$74 -> 251563.5318 | L153: =I153*'Toll Rate'!J36*'Project Charact'!$G$23 -> 1168941.998 | O153: =J153*(1+'Project Charact'!$G$108)*'Toll Rate'!J36*'Project Charact'!$G$23 -> 1195508.861 | P153: 2364450.859
D154: 12 | E154: 2026 | F154: =Traffic!I25/Traffic!J25 -> 0.03292027244 | G154: =+IF(Traffic!J25>Traffic!$K$8,Traffic!K25*Traffic!S25,Traffic!I25)*'Project Charact'!$G$100 -> 257852.6201 | H154: ='O&M'!I25 -> 0.55 | I154: 141818.941 | J154: 116033.679 | K154: =+G154*'O&M'!$G$74 -> 257852.6201 | L154: =I154*'Toll Rate'!J37*'Project Charact'!$G$23 -> 1228119.686 | O154: =J154*(1+'Project Charact'!$G$108)*'Toll Rate'!J37*'Project Charact'!$G$23 -> 1256031.497 | P154: 2484151.184
D155: 13 | E155: 2027 | F155: =Traffic!I26/Traffic!J26 -> 0.03246087362 | G155: =+IF(Traffic!J26>Traffic!$K$8,Traffic!K26*Traffic!S26,Traffic!I26)*'Project Charact'!$G$100 -> 264298.9356 | H155: ='O&M'!I26 -> 0.55 | I155: 145364.4146 | J155: 118934.521 | K155: =+G155*'O&M'!$G$74 -> 264298.9356 | L155: =I155*'Toll Rate'!J38*'Project Charact'!$G$23 -> 1290293.245 | O155: =J155*(1+'Project Charact'!$G$108)*'Toll Rate'!J38*'Project Charact'!$G$23 -> 1319618.092 | P155: 2609911.337
D156: 14 | E156: 2028 | F156: =Traffic!I27/Traffic!J27 -> 0.03200767348 | G156: =+IF(Traffic!J27>Traffic!$K$8,Traffic!K27*Traffic!S27,Traffic!I27)*'Project Charact'!$G$100 -> 270906.409 | H156: ='O&M'!I27 -> 0.55 | I156: 148998.5249 | J156: 121907.884 | K156: =+G156*'O&M'!$G$74 -> 270906.409 | L156: =I156*'Toll Rate'!J39*'Project Charact'!$G$23 -> 1355614.341 | O156: =J156*(1+'Project Charact'!$G$108)*'Toll Rate'!J39*'Project Charact'!$G$23 -> 1386423.758 | P156: 2742038.099
D157: 15 | E157: 2029 | F157: =Traffic!I28/Traffic!J28 -> 0.03156059426 | G157: =+IF(Traffic!J28>Traffic!$K$8,Traffic!K28*Traffic!S28,Traffic!I28)*'Project Charact'!$G$100 -> 277679.0692 | H157: ='O&M'!I28 -> 0.55 | I157: 152723.4881 | J157: 124955.5811 | K157: =+G157*'O&M'!$G$74 -> 277679.0692 | L157: =I157*'Toll Rate'!J40*'Project Charact'!$G$23 -> 1424242.317 | O157: =J157*(1+'Project Charact'!$G$108)*'Toll Rate'!J40*'Project Charact'!$G$23 -> 1456611.461 | P157: 2880853.778
D158: 16 | E158: 2030 | F158: =Traffic!I29/Traffic!J29 -> 0.03111955903 | G158: =+IF(Traffic!J29>Traffic!$K$8,Traffic!K29*Traffic!S29,Traffic!I29)*'Project Charact'!$G$100 -> 284621.0459 | H158: ='O&M'!I29 -> 0.55 | I158: 156541.5753 | J158: 128079.4707 | K158: =+G158*'O&M'!$G$74 -> 284621.0459 | L158: =I158*'Toll Rate'!J41*'Project Charact'!$G$23 -> 1496344.584 | O158: =J158*(1+'Project Charact'!$G$108)*'Toll Rate'!J41*'Project Charact'!$G$23 -> 1530352.416 | P158: 3026697
D159: 17 | E159: 2031 | F159: =Traffic!I30/Traffic!J30 -> 0.03068449166 | G159: =+IF(Traffic!J30>Traffic!$K$8,Traffic!K30*Traffic!S30,Traffic!I30)*'Project Charact'!$G$100 -> 291736.5721 | H159: ='O&M'!I30 -> 0.55 | I159: 160455.1146 | J159: 131281.4574 | K159: =+G159*'O&M'!$G$74 -> 291736.5721 | L159: =I159*'Toll Rate'!J42*'Project Charact'!$G$23 -> 1572097.029 | O159: =J159*(1+'Project Charact'!$G$108)*'Toll Rate'!J42*'Project Charact'!$G$23 -> 1607826.507 | P159: 3179923.536
D160: 18 | E160: 2032 | F160: =Traffic!I31/Traffic!J31 -> 0.03025531681 | G160: =+IF(Traffic!J31>Traffic!$K$8,Traffic!K31*Traffic!S31,Traffic!I31)*'Project Charact'!$G$100 -> 299029.9864 | H160: ='O&M'!I31 -> 0.55 | I160: 164466.4925 | J160: 134563.4939 | K160: =+G160*'O&M'!$G$74 -> 299029.9864 | L160: =I160*'Toll Rate'!J43*'Project Charact'!$G$23 -> 1651684.441 | O160: =J160*(1+'Project Charact'!$G$108)*'Toll Rate'!J43*'Project Charact'!$G$23 -> 1689222.724 | P160: 3340907.165
D161: 19 | E161: 2033 | F161: =Traffic!I32/Traffic!J32 -> 0.02983195997 | G161: =+IF(Traffic!J32>Traffic!$K$8,Traffic!K32*Traffic!S32,Traffic!I32)*'Project Charact'!$G$100 -> 306505.736 | H161: ='O&M'!I32 -> 0.55 | I161: 168578.1548 | J161: 137927.5812 | K161: =+G161*'O&M'!$G$74 -> 306505.736 | L161: =I161*'Toll Rate'!J44*'Project Charact'!$G$23 -> 1735300.966 | O161: =J161*(1+'Project Charact'!$G$108)*'Toll Rate'!J44*'Project Charact'!$G$23 -> 1774739.624 | P161: 3510040.59
D162: 20 | E162: 2034 | F162: =Traffic!I33/Traffic!J33 -> 0.02941434738 | G162: =+IF(Traffic!J33>Traffic!$K$8,Traffic!K33*Traffic!S33,Traffic!I33)*'Project Charact'!$G$100 -> 314168.3794 | H162: ='O&M'!I33 -> 0.55 | I162: 172792.6087 | J162: 141375.7707 | K162: =+G162*'O&M'!$G$74 -> 314168.3794 | L162: =I162*'Toll Rate'!J45*'Project Charact'!$G$23 -> 1823150.577 | O162: =J162*(1+'Project Charact'!$G$108)*'Toll Rate'!J45*'Project Charact'!$G$23 -> 1864585.818 | P162: 3687736.395
D163: 21 | E163: 2035 | F163: =Traffic!I34/Traffic!J34 -> 0.02913709206 | G163: =+IF(Traffic!J34>Traffic!$K$8,Traffic!K34*Traffic!S34,Traffic!I34)*'Project Charact'!$G$100 -> 320451.747 | H163: ='O&M'!I34 -> 0.6 | I163: 192271.0482 | J163: 128180.6988 | K163: =+G163*'O&M'!$G$74 -> 320451.747 | L163: =I163*'Toll Rate'!J46*'Project Charact'!$G$23 -> 2079386.104 | O163: =J163*(1+'Project Charact'!$G$108)*'Toll Rate'!J46*'Project Charact'!$G$23 -> 1732821.753 | P163: 3812207.857
D164: 22 | E164: 2036 | F164: =Traffic!I35/Traffic!J35 -> 0.02886237238 | G164: =+IF(Traffic!J35>Traffic!$K$8,Traffic!K35*Traffic!S35,Traffic!I35)*'Project Charact'!$G$100 -> 326860.782 | H164: ='O&M'!I35 -> 0.6 | I164: 196116.4692 | J164: 130744.3128 | K164: =+G164*'O&M'!$G$74 -> 326860.782 | L164: =I164*'Toll Rate'!J47*'Project Charact'!$G$23 -> 2173998.172 | O164: =J164*(1+'Project Charact'!$G$108)*'Toll Rate'!J47*'Project Charact'!$G$23 -> 1811665.143 | P164: 3985663.315
D165: 23 | E165: 2037 | F165: =Traffic!I36/Traffic!J36 -> 0.02859016663 | G165: =+IF(Traffic!J36>Traffic!$K$8,Traffic!K36*Traffic!S36,Traffic!I36)*'Project Charact'!$G$100 -> 333397.9976 | H165: ='O&M'!I36 -> 0.6 | I165: 200038.7986 | J165: 133359.199 | K165: =+G165*'O&M'!$G$74 -> 333397.9976 | L165: =I165*'Toll Rate'!J48*'Project Charact'!$G$23 -> 2272915.088 | O165: =J165*(1+'Project Charact'!$G$108)*'Toll Rate'!J48*'Project Charact'!$G$23 -> 1894095.907 | P165: 4167010.995
D166: 24 | E166: 2038 | F166: =Traffic!I37/Traffic!J37 -> 0.02832045323 | G166: =+IF(Traffic!J37>Traffic!$K$8,Traffic!K37*Traffic!S37,Traffic!I37)*'Project Charact'!$G$100 -> 340065.9575 | H166: ='O&M'!I37 -> 0.6 | I166: 204039.5745 | J166: 136026.383 | K166: =+G166*'O&M'!$G$74 -> 340065.9575 | L166: =I166*'Toll Rate'!J49*'Project Charact'!$G$23 -> 2376332.725 | O166: =J166*(1+'Project Charact'!$G$108)*'Toll Rate'!J49*'Project Charact'!$G$23 -> 1980277.271 | P166: 4356609.996
D167: 25 | E167: 2039 | F167: =Traffic!I38/Traffic!J38 -> 0.02805321077 | G167: =+IF(Traffic!J38>Traffic!$K$8,Traffic!K38*Traffic!S38,Traffic!I38)*'Project Charact'!$G$100 -> 346867.2767 | H167: ='O&M'!I38 -> 0.6 | I167: 208120.366 | J167: 138746.9107 | K167: =+G167*'O&M'!$G$74 -> 346867.2767 | L167: =I167*'Toll Rate'!J50*'Project Charact'!$G$23 -> 2484455.864 | O167: =J167*(1+'Project Charact'!$G$108)*'Toll Rate'!J50*'Project Charact'!$G$23 -> 2070379.887 | P167: 4554835.75
D168: 26 | E168: 2040 | F168: =Traffic!I39/Traffic!J39 -> 0.02778841799 | G168: =+IF(Traffic!J39>Traffic!$K$8,Traffic!K39*Traffic!S39,Traffic!I39)*'Project Charact'!$G$100 -> 353804.6222 | H168: ='O&M'!I39 -> 0.6 | I168: 212282.7733 | J168: 141521.8489 | K168: =+G168*'O&M'!$G$74 -> 353804.6222 | L168: =I168*'Toll Rate'!J51*'Project Charact'!$G$23 -> 2597498.606 | O168: =J168*(1+'Project Charact'!$G$108)*'Toll Rate'!J51*'Project Charact'!$G$23 -> 2164582.171 | P168: 4762080.777
D169: 27 | E169: 2041 | F169: =Traffic!I40/Traffic!J40 -> 0.02752605379 | G169: =+IF(Traffic!J40>Traffic!$K$8,Traffic!K40*Traffic!S40,Traffic!I40)*'Project Charact'!$G$100 -> 360880.7147 | H169: ='O&M'!I40 -> 0.6 | I169: 216528.4288 | J169: 144352.2859 | K169: =+G169*'O&M'!$G$74 -> 360880.7147 | L169: =I169*'Toll Rate'!J52*'Project Charact'!$G$23 -> 2715684.792 | O169: =J169*(1+'Project Charact'!$G$108)*'Toll Rate'!J52*'Project Charact'!$G$23 -> 2263070.66 | P169: 4978755.452
D170: 28 | E170: 2042 | F170: =Traffic!I41/Traffic!J41 -> 0.02726609723 | G170: =+IF(Traffic!J41>Traffic!$K$8,Traffic!K41*Traffic!S41,Traffic!I41)*'Project Charact'!$G$100 -> 368098.329 | H170: ='O&M'!I41 -> 0.6 | I170: 220858.9974 | J170: 147239.3316 | K170: =+G170*'O&M'!$G$74 -> 368098.329 | L170: =I170*'Toll Rate'!J53*'Project Charact'!$G$23 -> 2839248.45 | O170: =J170*(1+'Project Charact'!$G$108)*'Toll Rate'!J53*'Project Charact'!$G$23 -> 2366040.375 | P170: 5205288.826
D171: 29 | E171: 2043 | F171: =Traffic!I42/Traffic!J42 -> 0.02700852752 | G171: =+IF(Traffic!J42>Traffic!$K$8,Traffic!K42*Traffic!S42,Traffic!I42)*'Project Charact'!$G$100 -> 375460.2955 | H171: ='O&M'!I42 -> 0.6 | I171: 225276.1773 | J171: 150184.1182 | K171: =+G171*'O&M'!$G$74 -> 375460.2955 | L171: =I171*'Toll Rate'!J54*'Project Charact'!$G$23 -> 2968434.255 | O171: =J171*(1+'Project Charact'!$G$108)*'Toll Rate'!J54*'Project Charact'!$G$23 -> 2473695.212 | P171: 5442129.467
D172: 30 | E172: 2044 | F172: =Traffic!I43/Traffic!J43 -> 0.02675332403 | G172: =+IF(Traffic!J43>Traffic!$K$8,Traffic!K43*Traffic!S43,Traffic!I43)*'Project Charact'!$G$100 -> 382969.5015 | H172: ='O&M'!I43 -> 0.6 | I172: 229781.7009 | J172: 153187.8006 | K172: =+G172*'O&M'!$G$74 -> 382969.5015 | L172: =I172*'Toll Rate'!J55*'Project Charact'!$G$23 -> 3103498.013 | O172: =J172*(1+'Project Charact'!$G$108)*'Toll Rate'!J55*'Project Charact'!$G$23 -> 2586248.344 | P172: 5689746.358
D173: 31 | E173: 2045 | F173: =Traffic!I44/Traffic!J44 -> 0.02662567207 | G173: =+IF(Traffic!J44>Traffic!$K$8,Traffic!K44*Traffic!S44,Traffic!I44)*'Project Charact'!$G$100 -> 388714.044 | H173: ='O&M'!I44 -> 0.6 | I173: 233228.4264 | J173: 155485.6176 | K173: =+G173*'O&M'!$G$74 -> 388714.044 | L173: =I173*'Toll Rate'!J56*'Project Charact'!$G$23 -> 3228801.746 | O173: =J173*(1+'Project Charact'!$G$108)*'Toll Rate'!J56*'Project Charact'!$G$23 -> 2690668.121 | P173: 5919469.867
D174: 32 | E174: 2046 | F174: =Traffic!I45/Traffic!J45 -> 0.02649861262 | G174: =+IF(Traffic!J45>Traffic!$K$8,Traffic!K45*Traffic!S45,Traffic!I45)*'Project Charact'!$G$100 -> 394544.7546 | H174: ='O&M'!I45 -> 0.6 | I174: 236726.8528 | J174: 157817.9019 | K174: =+G174*'O&M'!$G$74 -> 394544.7546 | L174: =I174*'Toll Rate'!J57*'Project Charact'!$G$23 -> 3359164.616 | O174: =J174*(1+'Project Charact'!$G$108)*'Toll Rate'!J57*'Project Charact'!$G$23 -> 2799303.847 | P174: 6158468.463
D175: 33 | E175: 2047 | F175: =Traffic!I46/Traffic!J46 -> 0.02637214307 | G175: =+IF(Traffic!J46>Traffic!$K$8,Traffic!K46*Traffic!S46,Traffic!I46)*'Project Charact'!$G$100 -> 400462.926 | H175: ='O&M'!I46 -> 0.6 | I175: =K175*H175 -> 240277.7556 | J175: =K175*(1-H175) -> 160185.1704 | K175: =+G175*'O&M'!$G$74 -> 400462.926 | L175: =I175*'Toll Rate'!J58*'Project Charact'!$G$23 -> 3494790.888 | O175: =J175*(1+'Project Charact'!$G$108)*'Toll Rate'!J58*'Project Charact'!$G$23 -> 2912325.74 | P175: =L175+O175 -> 6407116.627
D176: 34 | E176: 2048 | F176: =Traffic!I47/Traffic!J47 -> 0.02624626085 | G176: =+IF(Traffic!J47>Traffic!$K$8,Traffic!K47*Traffic!S47,Traffic!I47)*'Project Charact'!$G$100 -> 406469.8698 | H176: ='O&M'!I47 -> 0.6 | I176: 243881.9219 | J176: 162587.9479 | K176: =+G176*'O&M'!$G$74 -> 406469.8698 | L176: =I176*'Toll Rate'!J59*'Project Charact'!$G$23 -> 3635893.07 | O176: =J176*(1+'Project Charact'!$G$108)*'Toll Rate'!J59*'Project Charact'!$G$23 -> 3029910.891 | P176: 6665803.961
D177: 35 | E177: 2049 | F177: =Traffic!I48/Traffic!J48 -> 0.02612096338 | G177: =+IF(Traffic!J48>Traffic!$K$8,Traffic!K48*Traffic!S48,Traffic!I48)*'Project Charact'!$G$100 -> 412566.9179 | H177: ='O&M'!I48 -> 0.6 | I177: 247540.1507 | J177: 165026.7672 | K177: =+G177*'O&M'!$G$74 -> 412566.9179 | L177: =I177*'Toll Rate'!J60*'Project Charact'!$G$23 -> 3782692.252 | O177: =J177*(1+'Project Charact'!$G$108)*'Toll Rate'!J60*'Project Charact'!$G$23 -> 3152243.544 | P177: 6934935.796
D178: 36 | E178: 2050 | F178: =Traffic!I49/Traffic!J49 -> 0.02599624811 | G178: =+IF(Traffic!J49>Traffic!$K$8,Traffic!K49*Traffic!S49,Traffic!I49)*'Project Charact'!$G$100 -> 418755.4217 | H178: ='O&M'!I49 -> 0.7 | I178: 293128.7952 | J178: 125626.6265 | K178: =+G178*'O&M'!$G$74 -> 418755.4217 | L178: =I178*'Toll Rate'!J61*'Project Charact'!$G$23 -> 4591321.527 | O178: =J178*(1+'Project Charact'!$G$108)*'Toll Rate'!J61*'Project Charact'!$G$23 -> 2459636.532 | P178: 7050958.06
D179: 37 | E179: 2051 | F179: =Traffic!I50/Traffic!J50 -> 0.02587211247 | G179: =+IF(Traffic!J50>Traffic!$K$8,Traffic!K50*Traffic!S50,Traffic!I50)*'Project Charact'!$G$100 -> 425036.753 | H179: ='O&M'!I50 -> 0.7 | I179: 297525.7271 | J179: 127511.0259 | K179: =+G179*'O&M'!$G$74 -> 425036.753 | L179: =I179*'Toll Rate'!J62*'Project Charact'!$G$23 -> 4776696.134 | O179: =J179*(1+'Project Charact'!$G$108)*'Toll Rate'!J62*'Project Charact'!$G$23 -> 2558944.357 | P179: 7335640.491
D180: 38 | E180: 2052 | F180: =Traffic!I51/Traffic!J51 -> 0.02574855393 | G180: =+IF(Traffic!J51>Traffic!$K$8,Traffic!K51*Traffic!S51,Traffic!I51)*'Project Charact'!$G$100 -> 431412.3043 | H180: ='O&M'!I51 -> 0.7 | I180: 301988.613 | J180: 129423.6913 | K180: =+G180*'O&M'!$G$74 -> 431412.3043 | L180: =I180*'Toll Rate'!J63*'Project Charact'!$G$23 -> 4969555.24 | O180: =J180*(1+'Project Charact'!$G$108)*'Toll Rate'!J63*'Project Charact'!$G$23 -> 2662261.736 | P180: 7631816.976
D181: 39 | E181: 2053 | F181: =Traffic!I52/Traffic!J52 -> 0.02562556994 | G181: =+IF(Traffic!J52>Traffic!$K$8,Traffic!K52*Traffic!S52,Traffic!I52)*'Project Charact'!$G$100 -> 437883.4888 | H181: ='O&M'!I52 -> 0.7 | I181: 306518.4422 | J181: 131365.0467 | K181: =+G181*'O&M'!$G$74 -> 437883.4888 | L181: =I181*'Toll Rate'!J64*'Project Charact'!$G$23 -> 5170201.033 | O181: =J181*(1+'Project Charact'!$G$108)*'Toll Rate'!J64*'Project Charact'!$G$23 -> 2769750.554 | P181: 7939951.587
D182: 40 | E182: 2054 | F182: =Traffic!I53/Traffic!J53 -> 0.025503158 | G182: =+IF(Traffic!J53>Traffic!$K$8,Traffic!K53*Traffic!S53,Traffic!I53)*'Project Charact'!$G$100 -> 436104.0017 | H182: ='O&M'!I53 -> 0.7 | I182: 305272.8012 | J182: 130831.2005 | K182: =+G182*'O&M'!$G$74 -> 436104.0017 | L182: =I182*'Toll Rate'!J65*'Project Charact'!$G$23 -> 5277919.934 | O182: =J182*(1+'Project Charact'!$G$108)*'Toll Rate'!J65*'Project Charact'!$G$23 -> 2827457.107 | P182: 8105377.041
D183: 41 | E183: 2055 | F183: =Traffic!I54/Traffic!J54 -> 0.025503158 | G183: =+IF(Traffic!J54>Traffic!$K$8,Traffic!K54*Traffic!S54,Traffic!I54)*'Project Charact'!$G$100 -> 436104.0017 | H183: ='O&M'!I54 -> 0.7 | I183: 305272.8012 | J183: 130831.2005 | K183: =+G183*'O&M'!$G$74 -> 436104.0017 | L183: =I183*'Toll Rate'!J66*'Project Charact'!$G$23 -> 5409867.932 | O183: =J183*(1+'Project Charact'!$G$108)*'Toll Rate'!J66*'Project Charact'!$G$23 -> 2898143.535 | P183: 8308011.467
D184: 42 | E184: 2056 | F184: =Traffic!I55/Traffic!J55 -> 0.025503158 | G184: =+IF(Traffic!J55>Traffic!$K$8,Traffic!K55*Traffic!S55,Traffic!I55)*'Project Charact'!$G$100 -> 436104.0017 | H184: ='O&M'!I55 -> 0.7 | I184: 305272.8012 | J184: 130831.2005 | K184: =+G184*'O&M'!$G$74 -> 436104.0017 | L184: =I184*'Toll Rate'!J67*'Project Charact'!$G$23 -> 5545114.63 | O184: =J184*(1+'Project Charact'!$G$108)*'Toll Rate'!J67*'Project Charact'!$G$23 -> 2970597.123 | P184: 8515711.754
D185: 43 | E185: 2057 | F185: =Traffic!I56/Traffic!J56 -> 0.025503158 | G185: =+IF(Traffic!J56>Traffic!$K$8,Traffic!K56*Traffic!S56,Traffic!I56)*'Project Charact'!$G$100 -> 436104.0017 | H185: ='O&M'!I56 -> 0.7 | I185: 305272.8012 | J185: 130831.2005 | K185: =+G185*'O&M'!$G$74 -> 436104.0017 | L185: =I185*'Toll Rate'!J68*'Project Charact'!$G$23 -> 5683742.496 | O185: =J185*(1+'Project Charact'!$G$108)*'Toll Rate'!J68*'Project Charact'!$G$23 -> 3044862.051 | P185: 8728604.548
D186: 44 | E186: 2058 | F186: =Traffic!I57/Traffic!J57 -> 0.025503158 | G186: =+IF(Traffic!J57>Traffic!$K$8,Traffic!K57*Traffic!S57,Traffic!I57)*'Project Charact'!$G$100 -> 436104.0017 | H186: ='O&M'!I57 -> 0.7 | I186: 305272.8012 | J186: 130831.2005 | K186: =+G186*'O&M'!$G$74 -> 436104.0017 | L186: =I186*'Toll Rate'!J69*'Project Charact'!$G$23 -> 5825836.059 | O186: =J186*(1+'Project Charact'!$G$108)*'Toll Rate'!J69*'Project Charact'!$G$23 -> 3120983.603 | P186: 8946819.661
D187: 45 | E187: 2059 | F187: =Traffic!I58/Traffic!J58 -> 0.025503158 | G187: =+IF(Traffic!J58>Traffic!$K$8,Traffic!K58*Traffic!S58,Traffic!I58)*'Project Charact'!$G$100 -> 436104.0017 | H187: ='O&M'!I58 -> 0.7 | I187: 305272.8012 | J187: 130831.2005 | K187: =+G187*'O&M'!$G$74 -> 436104.0017 | L187: =I187*'Toll Rate'!J70*'Project Charact'!$G$23 -> 5971481.96 | O187: =J187*(1+'Project Charact'!$G$108)*'Toll Rate'!J70*'Project Charact'!$G$23 -> 3199008.193 | P187: 9170490.153
D188: 46 | E188: 2060 | F188: =Traffic!I59/Traffic!J59 -> 0.025503158 | G188: =+IF(Traffic!J59>Traffic!$K$8,Traffic!K59*Traffic!S59,Traffic!I59)*'Project Charact'!$G$100 -> 436104.0017 | H188: ='O&M'!I59 -> 0.7 | I188: 305272.8012 | J188: 130831.2005 | K188: =+G188*'O&M'!$G$74 -> 436104.0017 | L188: =I188*'Toll Rate'!J71*'Project Charact'!$G$23 -> 6120769.009 | O188: =J188*(1+'Project Charact'!$G$108)*'Toll Rate'!J71*'Project Charact'!$G$23 -> 3278983.398 | P188: 9399752.407
D189: 47 | E189: 2061 | F189: =Traffic!I60/Traffic!J60 -> 0.025503158 | G189: =+IF(Traffic!J60>Traffic!$K$8,Traffic!K60*Traffic!S60,Traffic!I60)*'Project Charact'!$G$100 -> 436104.0017 | H189: ='O&M'!I60 -> 0.7 | I189: 305272.8012 | J189: 130831.2005 | K189: =+G189*'O&M'!$G$74 -> 436104.0017 | L189: =I189*'Toll Rate'!J72*'Project Charact'!$G$23 -> 6273788.234 | O189: =J189*(1+'Project Charact'!$G$108)*'Toll Rate'!J72*'Project Charact'!$G$23 -> 3360957.983 | P189: 9634746.217
D190: 48 | E190: 2062 | F190: =Traffic!I61/Traffic!J61 -> 0.025503158 | G190: =+IF(Traffic!J61>Traffic!$K$8,Traffic!K61*Traffic!S61,Traffic!I61)*'Project Charact'!$G$100 -> 436104.0017 | H190: ='O&M'!I61 -> 0.7 | I190: 305272.8012 | J190: 130831.2005 | K190: =+G190*'O&M'!$G$74 -> 436104.0017 | L190: =I190*'Toll Rate'!J73*'Project Charact'!$G$23 -> 6430632.94 | O190: =J190*(1+'Project Charact'!$G$108)*'Toll Rate'!J73*'Project Charact'!$G$23 -> 3444981.932 | P190: 9875614.872
D191: 49 | E191: 2063 | F191: =Traffic!I62/Traffic!J62 -> 0.025503158 | G191: =+IF(Traffic!J62>Traffic!$K$8,Traffic!K62*Traffic!S62,Traffic!I62)*'Project Charact'!$G$100 -> 436104.0017 | H191: ='O&M'!I62 -> 0.7 | I191: 305272.8012 | J191: 130831.2005 | K191: =+G191*'O&M'!$G$74 -> 436104.0017 | L191: =I191*'Toll Rate'!J74*'Project Charact'!$G$23 -> 6591398.764 | O191: =J191*(1+'Project Charact'!$G$108)*'Toll Rate'!J74*'Project Charact'!$G$23 -> 3531106.48 | P191: 10122505.24
D192: 50 | E192: 2064 | F192: =Traffic!I63/Traffic!J63 -> 0.025503158 | G192: =+IF(Traffic!J63>Traffic!$K$8,Traffic!K63*Traffic!S63,Traffic!I63)*'Project Charact'!$G$100 -> 436104.0017 | H192: ='O&M'!I63 -> 0.7 | I192: 305272.8012 | J192: 130831.2005 | K192: =+G192*'O&M'!$G$74 -> 436104.0017 | L192: =I192*'Toll Rate'!J75*'Project Charact'!$G$23 -> 6756183.733 | O192: =J192*(1+'Project Charact'!$G$108)*'Toll Rate'!J75*'Project Charact'!$G$23 -> 3619384.142 | P192: 10375567.88
D194: AVERAGE | F194: =AVERAGE(F143:F192) -> 0.02954296885 | G194: 337628.6316 | H194: 0.59 | I194: 206929.8088 | J194: 130698.8227 | K194: 337628.6316 | L194: 3005404.903 | O194: =AVERAGE(O143:O192) -> 2141365.662 | P194: =AVERAGE(P143:P192) -> 5146770.565
J196: TOTAL | K196: =SUM(K143:K192) -> 16881431.58 | P196: =SUM(P143:P192) -> 257338528.2
J202: BACK TO MENU

Sheet Summary Graphs (hidden)
A2: SUMMARY GRAPHS - Section 1
O60: BACK TO MENU

Sheet Analysis (hidden)
A2: ANALYSIS OF RESULTS - Section 1
B6: Analysis of Results (Total) - Section 1
D8: YEAR | F8: TRAFFIC (AADT) | G8: ANNUAL REVENUE | H8: CONFIDENCE INTERVAL | M8: CONFIDENCE INTERVAL
D9: Year No. | E9: Year | F9: Most Likely | G9: Most Likely | H9: Lower Bound | I9: Lower Revenue Limit | J9: Upper Bound | K9: Upper Revenue Limit | L9: Confidence Interval | M9: Lower Bound | N9: Lower Revenue Limit | O9: Upper Bound | P9: Upper Revenue Limit | Q9: Confidence Interval
D10: 1 | E10: ='Project Charact'!G17 -> 2015 | F10: =Traffic!K14 -> 16500 | G10: =SUM(G143+G76) -> 7256333.7 | H10: 0.05 | I10: =I76+I143 -> 5375503.635 | J10: 0.95 | K10: =K76+K143 -> 7779968.194 | L10: =J10-H10 -> 0.9 | M10: 0.05 | N10: =N76+N143 -> 6171278.536 | O10: 0.95 | P10: =P76+P143 -> 8341388.864 | Q10: =O10-M10 -> 0.9
D11: 2 | E11: =1+E10 -> 2016 | F11: =Traffic!K15 -> 17311.8 | G11: 8751149.305 | H11: 0.05 | I11: 6582156.522 | J11: 0.95 | K11: 9532758.865 | L11: 0.9 | M11: 0.05 | N11: 7420032.589 | O11: 0.95 | P11: 10082266.02 | Q11: 0.9
D12: 3 | E12: 2017 | F12: =Traffic!K16 -> 18163.794 | G12: 10432155.5 | H12: 0.05 | I12: 7934095.797 | J12: 0.95 | K12: 11506353.21 | L12: 0.9 | M12: 0.05 | N12: 8824622.704 | O12: 0.95 | P12: 12039688.3 | Q12: 0.9
D13: 4 | E13: 2018 | F13: =Traffic!K17 -> 19057.97982 | G13: 12319078.81 | H13: 0.05 | J13: 0.95 | K13: 13722813.86 | L13: 0.9 | M13: 0.05 | N13: 10401615.5 | O13: 0.95 | P13: 14236542.12 | Q13: 0.9
D14: 5 | E14: 2019 | F14: =Traffic!K18 -> 19996.45481 | G14: 13234300.32 | H14: 0.05 | J14: 0.95 | K14: 14744039.57 | L14: 0.9 | M14: 0.05 | N14: 11175780.37 | O14: 0.95 | P14: 15292820.26 | Q14: 0.9
D15: 6 | E15: 2020 | F15: =Traffic!K19 -> 20981.42084 | G15: 14445679.15 | H15: 0.05 | I15: 10960904.11 | J15: 0.95 | K15: 15894749.88 | L15: 0.9 | M15: 0.05 | N15: 12285585.72 | O15: 0.95 | P15: 16605772.58 | Q15: 0.9
D16: 7 | E16: 2021 | F16: =Traffic!K20 -> 22015.18946 | G16: 15509609.19 | H16: 0.05 | I16: 11768128.02 | J16: 0.95 | K16: 17067017.22 | L16: 0.9 | M16: 0.05 | N16: 13190424.02 | O16: 0.95 | P16: 17828794.37 | Q16: 0.9
D17: 8 | E17: 2022 | F17: =Traffic!K21 -> 23100.18745 | G17: 16652570.32 | H17: 0.05 | I17: 12635311.36 | J17: 0.95 | K17: 18326456.25 | L17: 0.9 | M17: 0.05 | N17: 14162475.71 | O17: 0.95 | P17: 19142664.93 | Q17: 0.9
D18: 9 | E18: 2023 | F18: =Traffic!K22 -> 24238.96248 | G18: 17880471.94 | H18: 0.05 | I18: 13566937.33 | J18: 0.95 | K18: 19679590.42 | L18: 0.9 | M18: 0.05 | N18: 15206766.56 | O18: 0.95 | P18: 20554177.31 | Q18: 0.9
D19: 10 | E19: 2024 | F19: =Traffic!K23 -> 25434.18924 | G19: 19199667.53 | H19: 0.05 | I19: 14567826.01 | J19: 0.95 | K19: 21133433.67 | L19: 0.9 | M19: 0.05 | N19: 16328700.01 | O19: 0.95 | P19: 22070635.06 | Q19: 0.9
D20: 11 | E20: 2025 | F20: =Traffic!K24 -> 26438.63956 | G20: 19985733.87 | H20: 0.05 | I20: 15494271.88 | J20: 0.95 | K20: 22491242.44 | L20: 0.9 | M20: 0.05 | N20: 16997224.15 | O20: 0.95 | P20: 22974243.58 | Q20: 0.9
D21: 12 | E21: 2026 | F21: =Traffic!K25 -> 27482.94495 | G21: 21268438.87 | H21: 0.05 | I21: 16489079.79 | J21: 0.95 | K21: 23936793.58 | L21: 0.9 | M21: 0.05 | N21: 18088123.52 | O21: 0.95 | P21: 24448754.22 | Q21: 0.9
D22: 13 | E22: 2027 | F22: =Traffic!K26 -> 28568.69156 | G22: 22633962.01 | H22: 0.05 | I22: 17548136.94 | J22: 0.95 | K22: 25475783.25 | L22: 0.9 | M22: 0.05 | N22: 19249457.06 | O22: 0.95 | P22: 26018466.97 | Q22: 0.9
D23: 14 | E23: 2028 | F23: =Traffic!K27 -> 29697.52875 | G23: 24087676.12 | H23: 0.05 | I23: 18675612.48 | J23: 0.95 | K23: 27114278.79 | L23: 0.9 | M23: 0.05 | N23: 20485794.17 | O23: 0.95 | P23: 27689558.07 | Q23: 0.9
D24: 15 | E24: 2029 | F24: =Traffic!K28 -> 30871.17167 | G24: 25635303.91 | H24: 0.05 | I24: 19875947.16 | J24: 0.95 | K24: 28858742.9 | L24: 0.9 | M24: 0.05 | N24: 21802001.85 | O24: 0.95 | P24: 29468605.96 | Q24: 0.9
D25: 16 | E25: 2030 | F25: =Traffic!K29 -> 32091.40385 | G25: 27282940.84 | H25: 0.05 | I25: 21153870.97 | J25: 0.95 | K25: 30716059.56 | L25: 0.9 | M25: 0.05 | N25: 23203264.09 | O25: 0.95 | P25: 31362617.58 | Q25: 0.9
D26: 17 | E26: 2031 | F26: =Traffic!K30 -> 33360.07995 | G26: 29037079.47 | H26: 0.05 | I26: 22514422.14 | J26: 0.95 | K26: 32693561.5 | L26: 0.9 | M26: 0.05 | N26: 24695102.6 | O26: 0.95 | P26: 33379056.33 | Q26: 0.9
D27: 18 | E27: 2032 | F27: =Traffic!K31 -> 34679.12859 | G27: 30904635.39 | H27: 0.05 | I27: 23962967.22 | J27: 0.95 | K27: 34799059.56 | L27: 0.9 | M27: 0.05 | N27: 26283398.88 | O27: 0.95 | P27: 35525871.9 | Q27: 0.9
D28: 19 | E28: 2033 | F28: =Traffic!K32 -> 36050.55531 | G28: 32892974.87 | H28: 0.05 | I28: 25505222.55 | J28: 0.95 | K28: 37040873.98 | L28: 0.9 | M28: 0.05 | N28: 27974417.69 | O28: 0.95 | P28: 37811532.06 | Q28: 0.9
D29: 20 | E29: 2034 | F29: =Traffic!K33 -> 37476.44565 | G29: 35009944.34 | H29: 0.05 | I29: 27147277.15 | J29: 0.95 | K29: 39427867.65 | L29: 0.9 | M29: 0.05 | N29: 29774832.17 | O29: 0.95 | P29: 40245056.52 | Q29: 0.9
D30: 21 | E30: 2035 | F30: =Traffic!K34 -> 38589.71556 | G30: 36093285.54 | H30: 0.05 | I30: 28618065.83 | J30: 0.95 | K30: 41585554.41 | L30: 0.9 | M30: 0.05 | N30: 30696179.03 | O30: 0.95 | P30: 41490392.05 | Q30: 0.9
D31: 22 | E31: 2036 | F31: =Traffic!K35 -> 39736.16311 | G31: 38066411.08 | H31: 0.05 | I31: 30183427.82 | J31: 0.95 | K31: 43861693.25 | L31: 0.9 | M31: 0.05 | N31: 32374258.87 | O31: 0.95 | P31: 43758563.29 | Q31: 0.9
D32: 23 | E32: 2037 | F32: =Traffic!K36 -> 40916.7792 | G32: 40147760.45 | H32: 0.05 | I32: 31834689.41 | J32: 0.95 | K32: 46262804.19 | L32: 0.9 | M32: 0.05 | N32: 34144379.59 | O32: 0.95 | P32: 46151141.3 | Q32: 0.9
D33: 24 | E33: 2038 | F33: =Traffic!K37 -> 42132.5844 | G33: 42343286.23 | H33: 0.05 | I33: 33576577.19 | J33: 0.95 | K33: 48795766.94 | L33: 0.9 | M33: 0.05 | N33: 36011603.69 | O33: 0.95 | P33: 48674968.77 | Q33: 0.9
D34: 25 | E34: 2039 | F34: =Traffic!K38 -> 43384.6298 | G34: 44659269.18 | H34: 0.05 | I34: 35414078.45 | J34: 0.95 | K34: 51467840.78 | L34: 0.9 | M34: 0.05 | N34: 37981272.74 | O34: 0.95 | P34: 51337265.63 | Q34: 0.9
D35: 26 | E35: 2040 | F35: =Traffic!K39 -> 44673.99791 | G35: 47102336.37 | H35: 0.05 | I35: 37352455.52 | J35: 0.95 | K35: 54286685.54 | L35: 0.9 | M35: 0.05 | N35: 40059022.84 | O35: 0.95 | P35: 54145649.9 | Q35: 0.9
D36: 27 | E36: 2041 | F36: =Traffic!K40 -> 46001.80365 | G36: 49679480.3 | H36: 0.05 | I36: 39397261.03 | J36: 0.95 | K36: 57260383.72 | L36: 0.9 | M36: 0.05 | N36: 42250800.9 | O36: 0.95 | P36: 57108159.69 | Q36: 0.9
D37: 28 | E37: 2042 | F37: =Traffic!K41 -> 47369.19528 | G37: 52398079.08 | H37: 0.05 | I37: 41554353.93 | J37: 0.95 | K37: 60397463.88 | L37: 0.9 | M37: 0.05 | N37: 44562881.77 | O37: 0.95 | P37: 60233276.39 | Q37: 0.9
D38: 29 | E38: 2043 | F38: =Traffic!K42 -> 48777.35541 | G38: 55265917.78 | H38: 0.05 | I38: 43829916.41 | J38: 0.95 | K38: 63706925.28 | L38: 0.9 | M38: 0.05 | N38: 47001886.39 | O38: 0.95 | P38: 63529949.17 | Q38: 0.9
D39: 30 | E39: 2044 | F39: =Traffic!K43 -> 50227.50202 | G39: 58291210.87 | H39: 0.05 | I39: 46230471.77 | J39: 0.95 | K39: 67198263.93 | L39: 0.9 | M39: 0.05 | N39: 49574800.9 | O39: 0.95 | P39: 67007620.83 | Q39: 0.9
D40: 31 | E40: 2045 | F40: =Traffic!K44 -> 51225.3333 | G40: 60914301.01 | H40: 0.05 | I40: 48311499.6 | J40: 0.95 | K40: 70224251.39 | L40: 0.9 | M40: 0.05 | N40: 51805654.74 | O40: 0.95 | P40: 70022947.28 | Q40: 0.9
D41: 32 | E41: 2046 | F41: =Traffic!K45 -> 52243.02042 | G41: 63655564.43 | H41: 0.05 | I41: 50486307.44 | J41: 0.95 | K41: 73386648.11 | L41: 0.9 | M41: 0.05 | N41: 54137011.15 | O41: 0.95 | P41: 73174117.7 | Q41: 0.9
D42: 33 | E42: 2047 | F42: =Traffic!K46 -> 53280.95899 | G42: =SUM(G175+G108) -> 66520330.46 | H42: 0.05 | I42: =I108+I175 -> 52759125.65 | J42: 0.95 | K42: =K108+K175 -> 76691609.3 | L42: =J42-H42 -> 0.9 | M42: 0.05 | N42: =N108+N175 -> 56573402.56 | O42: 0.95 | P42: =P108+P175 -> 76467258.35 | Q42: =O42-M42 -> 0.9
D43: 34 | E43: =1+E42 -> 2048 | F43: =Traffic!K47 -> 54339.55251 | G43: 69514169.02 | H43: 0.05 | I43: 55134375.62 | J43: 0.95 | K43: 80145568.19 | L43: 0.9 | M43: 0.05 | N43: 59119566.02 | O43: 0.95 | P43: 79908772.02 | Q43: 0.9
D44: 35 | E44: 2049 | F44: =Traffic!K48 -> 55419.21251 | G44: 72642901.46 | H44: 0.05 | I44: 57616678.37 | J44: 0.95 | K44: 83755248.51 | L44: 0.9 | M44: 0.05 | N44: 61780452.38 | O44: 0.95 | P44: 83505350.55 | Q44: 0.9
D45: 36 | E45: 2050 | F45: =Traffic!K49 -> 56520.35874 | G45: 74910859.6 | H45: 0.05 | I45: 60158810.78 | J45: 0.95 | K45: 87527677.71 | L45: 0.9 | M45: 0.05 | N45: 63709277.87 | O45: 0.95 | P45: 86112441.34 | Q45: 0.9
D46: 37 | E46: 2051 | F46: =Traffic!K50 -> 57643.41933 | G46: 78283167.56 | H46: 0.05 | I46: 62867824.57 | J46: 0.95 | K46: 91470200.64 | L46: 0.9 | M46: 0.05 | N46: 66577317.37 | O46: 0.95 | P46: 89989017.75 | Q46: 0.9
D47: 38 | E47: 2052 | F47: =Traffic!K51 -> 58788.83093 | G47: 81807456.52 | H47: 0.05 | I47: 65698959.43 | J47: 0.95 | K47: 95590493.92 | L47: 0.9 | M47: 0.05 | N47: 69574611.83 | O47: 0.95 | P47: 94040301.21 | Q47: 0.9
D48: 39 | E48: 2053 | F48: =Traffic!K52 -> 59957.03891 | G48: 85490582.73 | H48: 0.05 | I48: 68657725.86 | J48: 0.95 | K48: 99896580.9 | L48: 0.9 | M48: 0.05 | N48: 72706992.27 | O48: 0.95 | P48: 98274173.19 | Q48: 0.9
D49: 40 | E49: 2054 | F49: =Traffic!K53 -> 60000 | G49: 87661724.11 | H49: 0.05 | I49: 70380472.35 | J49: 0.95 | K49: 102399581.4 | L49: 0.9 | M49: 0.05 | N49: 74558543.89 | O49: 0.95 | P49: 100764904.3 | Q49: 0.9
D50: 41 | E50: 2055 | F50: =Traffic!K54 -> 60000 | G50: 89853267.21 | H50: 0.05 | I50: 72139984.16 | J50: 0.95 | K50: 104959571 | L50: 0.9 | M50: 0.05 | N50: 76422507.48 | O50: 0.95 | P50: 103284026.9 | Q50: 0.9
D51: 42 | E51: 2056 | F51: =Traffic!K55 -> 60000 | G51: 92099598.89 | H51: 0.05 | I51: 73943483.76 | J51: 0.95 | K51: 107583560.2 | L51: 0.9 | M51: 0.05 | N51: 78333070.17 | O51: 0.95 | P51: 105866127.6 | Q51: 0.9
D52: 43 | E52: 2057 | F52: =Traffic!K56 -> 60000 | G52: 94402088.87 | H52: 0.05 | I52: 75792070.86 | J52: 0.95 | K52: 110273149.3 | L52: 0.9 | M52: 0.05 | N52: 80291396.93 | O52: 0.95 | P52: 108512780.8 | Q52: 0.9
D53: 44 | E53: 2058 | F53: =Traffic!K57 -> 60000 | G53: 96762141.09 | H53: 0.05 | I53: 77686872.63 | J53: 0.95 | K53: 113029978 | L53: 0.9 | M53: 0.05 | N53: 82298681.85 | O53: 0.95 | P53: 111225600.3 | Q53: 0.9
D54: 45 | E54: 2059 | F54: =Traffic!K58 -> 60000 | G54: 99181194.61 | H54: 0.05 | I54: 79629044.44 | J54: 0.95 | K54: 115855727.4 | L54: 0.9 | M54: 0.05 | N54: 84356148.89 | O54: 0.95 | P54: 114006240.3 | Q54: 0.9
D55: 46 | E55: 2060 | F55: =Traffic!K59 -> 60000 | G55: 101660724.5 | H55: 0.05 | I55: 81619770.55 | J55: 0.95 | K55: 118752120.6 | L55: 0.9 | M55: 0.05 | N55: 86465052.62 | O55: 0.95 | P55: 116856396.3 | Q55: 0.9
D56: 47 | E56: 2061 | F56: =Traffic!K60 -> 60000 | G56: 104202242.6 | H56: 0.05 | I56: 83660264.82 | J56: 0.95 | K56: 121720923.6 | L56: 0.9 | M56: 0.05 | N56: 88626678.93 | O56: 0.95 | P56: 119777806.3 | Q56: 0.9
D57: 48 | E57: 2062 | F57: =Traffic!K61 -> 60000 | G57: 106807298.7 | H57: 0.05 | I57: 85751771.44 | J57: 0.95 | K57: 124763946.7 | L57: 0.9 | M57: 0.05 | N57: 90842345.91 | O57: 0.95 | P57: 122772251.4 | Q57: 0.9
D58: 49 | E58: 2063 | F58: =Traffic!K62 -> 60000 | G58: 109477481.1 | H58: 0.05 | I58: 87895565.73 | J58: 0.95 | K58: 127883045.4 | L58: 0.9 | M58: 0.05 | N58: 93113404.55 | O58: 0.95 | P58: 125841557.7 | Q58: 0.9
D59: 50 | E59: 2064 | F59: =Traffic!K63 -> 60000 | G59: 112214418.2 | H59: 0.05 | I59: 90092954.87 | J59: 0.95 | K59: 131080121.5 | L59: 0.9 | M59: 0.05 | N59: 95441239.67 | O59: 0.95 | P59: 128987596.6 | Q59: 0.9
D61: AVERAGE | F61: =AVERAGE(F10:F59) -> 42494.8804 | G61: 52330565.1 | I61: =AVERAGE(I10:I59) ->  | K61: =AVERAGE(K10:K59) -> 60475096.6 | N61: =AVERAGE(N10:N59) -> 44502226.83 | P61: =AVERAGE(P10:P59) -> 60158903.36
D63: TOTAL | F63: =SUM(F10:F59) -> 2124744.02 | G63: =SUM(G10:G59) -> 2616528255 | I63: =SUM(I10:I59) ->  | K63: =SUM(K10:K59) -> 3023754830 | N63: =SUM(N10:N59) -> 2225111342 | P63: =SUM(P10:P59) -> 3007945168
G67: BACK TO MENU
B72: Analysis of Results (Autos) - Section 1
D74: =+D8 -> YEAR | F74: TRAFFIC (AADT) | G74: ANNUAL REVENUE | H74: CONFIDENCE INTERVAL | M74: CONFIDENCE INTERVAL
D75: Year No. | E75: Year | F75: Most Likely | G75: Most Likely | H75: Lower Bound | I75: Lower Revenue Limit | J75: Upper Bound | K75: Upper Revenue Limit | L75: Confidence Interval | M75: Lower Bound | N75: Lower Revenue Limit | O75: Upper Bound | P75: Upper Revenue Limit | Q75: Confidence Interval | V75: Mean CAR | W75: SD
D76: 1 | E76: ='Project Charact'!G17 -> 2015 | F76: =Traffic!G14*IF('Project Charact'!$G$113<100%,'Project Charact'!$G$113,100%) -> 11088 | G76: =+((F76*'Project Charact'!$G$100)*'Toll Rate'!$I26*'Project Charact'!$G$23*'T & R'!$H79)+((F76*'Project Charact'!$G$100)*'Toll Rate'!$I26*(1+'Project Charact'!$G$108)*'Project Charact'!$G$23*(1-'T & R'!$H79)) -> 6256958.4 | H76: 0.05 | I76: =('Project Charact'!$G$100*'Toll Rate'!I26*'Project Charact'!$G$23*(Traffic!AA14+SQRT(H76*(F76-Traffic!AA14)*(Traffic!AB14-Traffic!AA14)))*('T & R'!H79))+('Project Charact'!$G$100*'Toll Rate'!I26*'Project Charact'!$G$23*(Traffic!AA14+SQRT(H76*(F76-Traffic!AA14)*(Traffic!AB14-Traffic!AA14)))*(1-'T & R'!H79)) -> 4627399.928 | J76: 0.95 | K76: =('Project Charact'!$G$100*'Toll Rate'!I26*'Project Charact'!$G$23*(Traffic!AB14-SQRT((1-J76)*(Traffic!AB14-F76)*(Traffic!AB14-Traffic!AA14)))*('T & R'!H79))+('Project Charact'!$G$100*'Toll Rate'!I26*'Project Charact'!$G$23*(Traffic!AB14-SQRT((1-J76)*(Traffic!AB14-F76)*(Traffic!AB14-Traffic!AA14)))*(1-'T & R'!H79)) -> 6748888.072 | L76: =J76-H76 -> 0.9 | M76: 0.05 | N76: =(NORMINV(M76,$F76,$W76)*'Project Charact'!$G$100*'Toll Rate'!$I26*'Project Charact'!$G$23*'T & R'!$H79)+(NORMINV(M76,$F76,$W76)*'Project Charact'!$G$100*'Toll Rate'!$I26*(1+'Project Charact'!$G$108)*'Project Charact'!$G$23*(1-'T & R'!$H79)) -> 5321341.971 | O76: 0.95 | P76: =(NORMINV(O76,$F76,$W76)*'Project Charact'!$G$100*'Toll Rate'!$I26*'Project Charact'!$G$23*'T & R'!$H79)+(NORMINV(O76,$F76,$W76)*'Project Charact'!$G$100*'Toll Rate'!$I26*(1+'Project Charact'!$G$108)*'Project Charact'!$G$23*(1-'T & R'!$H79)) -> 7192574.829 | Q76: =O76-M76 -> 0.9 | W76: =+Traffic!O14*IF('Project Charact'!$G$113<100%,'Project Charact'!$G$113,100%) -> 1008
D77: 2 | E77: =1+E76 -> 2016 | F77: =Traffic!G15*IF('Project Charact'!G114<100%,'Project Charact'!G114,100%) -> 13305.6 | G77: =+((F77*'Project Charact'!$G$100)*'Toll Rate'!$I27*'Project Charact'!$G$23*'T & R'!$H80)+((F77*'Project Charact'!$G$100)*'Toll Rate'!$I27*(1+'Project Charact'!$G$108)*'Project Charact'!$G$23*(1-'T & R'!$H80)) -> 7696058.832 | H77: 0.05 | I77: =('Project Charact'!$G$100*'Toll Rate'!I27*'Project Charact'!$G$23*(Traffic!AA15+SQRT(H77*(F77-Traffic!AA15)*(Traffic!AB15-Traffic!AA15)))*('T & R'!H80))+('Project Charact'!$G$100*'Toll Rate'!I27*'Project Charact'!$G$23*(Traffic!AA15+SQRT(H77*(F77-Traffic!AA15)*(Traffic!AB15-Traffic!AA15)))*(1-'T & R'!H80)) -> 5695197.678 | J77: 0.95 | K77: =('Project Charact'!$G$100*'Toll Rate'!I27*'Project Charact'!$G$23*(Traffic!AB15-SQRT((1-J77)*(Traffic!AB15-F77)*(Traffic!AB15-Traffic!AA15)))*('T & R'!H80))+('Project Charact'!$G$100*'Toll Rate'!I27*'Project Charact'!$G$23*(Traffic!AB15-SQRT((1-J77)*(Traffic!AB15-F77)*(Traffic!AB15-Traffic!AA15)))*(1-'T & R'!H80)) -> 8306618.926 | L77: 0.9 | M77: 0.05 | N77: =(NORMINV(M77,$F77,$W77)*'Project Charact'!$G$100*'Toll Rate'!$I27*'Project Charact'!$G$23*'T & R'!$H80)+(NORMINV(M77,$F77,$W77)*'Project Charact'!$G$100*'Toll Rate'!$I27*(1+'Project Charact'!$G$108)*'Project Charact'!$G$23*(1-'T & R'!$H80)) -> 6545250.624 | O77: 0.95 | P77: =(NORMINV(O77,$F77,$W77)*'Project Charact'!$G$100*'Toll Rate'!$I27*'Project Charact'!$G$23*'T & R'!$H80)+(NORMINV(O77,$F77,$W77)*'Project Charact'!$G$100*'Toll Rate'!$I27*(1+'Project Charact'!$G$108)*'Project Charact'!$G$23*(1-'T & R'!$H80)) -> 8846867.04 | Q77: 0.9 | W77: =+Traffic!O15*IF('Project Charact'!$G$114<100%,'Project Charact'!$G$114,100%) -> 1209.6
D78: 3 | E78: 2017 | F78: =Traffic!G16*IF('Project Charact'!G115<100%,'Project Charact'!G115,100%) -> 15717.24 | G78: =+((F78*'Project Charact'!$G$100)*'Toll Rate'!$I28*'Project Charact'!$G$23*'T & R'!$H81)+((F78*'Project Charact'!$G$100)*'Toll Rate'!$I28*(1+'Project Charact'!$G$108)*'Project Charact'!$G$23*(1-'T & R'!$H81)) -> 9318243.733 | H78: 0.05 | I78: =('Project Charact'!$G$100*'Toll Rate'!I28*'Project Charact'!$G$23*(Traffic!AA16+SQRT(H78*(F78-Traffic!AA16)*(Traffic!AB16-Traffic!AA16)))*('T & R'!H81))+('Project Charact'!$G$100*'Toll Rate'!I28*'Project Charact'!$G$23*(Traffic!AA16+SQRT(H78*(F78-Traffic!AA16)*(Traffic!AB16-Traffic!AA16)))*(1-'T & R'!H81)) -> 6899795.434 | J78: 0.95 | K78: =('Project Charact'!$G$100*'Toll Rate'!I28*'Project Charact'!$G$23*(Traffic!AB16-SQRT((1-J78)*(Traffic!AB16-F78)*(Traffic!AB16-Traffic!AA16)))*('T & R'!H81))+('Project Charact'!$G$100*'Toll Rate'!I28*'Project Charact'!$G$23*(Traffic!AB16-SQRT((1-J78)*(Traffic!AB16-F78)*(Traffic!AB16-Traffic!AA16)))*(1-'T & R'!H81)) -> 10064026.21 | L78: 0.9 | M78: 0.05 | N78: =(NORMINV(M78,$F78,$W78)*'Project Charact'!$G$100*'Toll Rate'!$I28*'Project Charact'!$G$23*'T & R'!$H81)+(NORMINV(M78,$F78,$W78)*'Project Charact'!$G$100*'Toll Rate'!$I28*(1+'Project Charact'!$G$108)*'Project Charact'!$G$23*(1-'T & R'!$H81)) -> 7924866.733 | O78: 0.95 | P78: =(NORMINV(O78,$F78,$W78)*'Project Charact'!$G$100*'Toll Rate'!$I28*'Project Charact'!$G$23*'T & R'!$H81)+(NORMINV(O78,$F78,$W78)*'Project Charact'!$G$100*'Toll Rate'!$I28*(1+'Project Charact'!$G$108)*'Project Charact'!$G$23*(1-'T & R'!$H81)) -> 10711620.73 | Q78: 0.9 | W78: =+Traffic!O16*IF('Project Charact'!$G$115<100%,'Project Charact'!$G$115,100%) -> 1428.84
D79: 4 | E79: 2018 | F79: =Traffic!G17*IF('Project Charact'!G116<100%,'Project Charact'!G116,100%) -> 18336.78 | G79: =+((F79*'Project Charact'!$G$100)*'Toll Rate'!$I29*'Project Charact'!$G$23*'T & R'!$H82)+((F79*'Project Charact'!$G$100)*'Toll Rate'!$I29*(1+'Project Charact'!$G$108)*'Project Charact'!$G$23*(1-'T & R'!$H82)) -> 11143066.46 | H79: 0.05 | I79: =('Project Charact'!$G$100*'Toll Rate'!I29*'Project Charact'!$G$23*(Traffic!AA17+SQRT(H79*(F79-Traffic!AA17)*(Traffic!AB17-Traffic!AA17)))*('T & R'!H82))+('Project Charact'!$G$100*'Toll Rate'!I29*'Project Charact'!$G$23*(Traffic!AA17+SQRT(H79*(F79-Traffic!AA17)*(Traffic!AB17-Traffic!AA17)))*(1-'T & R'!H82)) -> 8255887.238 | J79: 0.95 | K79: =('Project Charact'!$G$100*'Toll Rate'!I29*'Project Charact'!$G$23*(Traffic!AB17-SQRT((1-J79)*(Traffic!AB17-F79)*(Traffic!AB17-Traffic!AA17)))*('T & R'!H82))+('Project Charact'!$G$100*'Toll Rate'!I29*'Project Charact'!$G$23*(Traffic!AB17-SQRT((1-J79)*(Traffic!AB17-F79)*(Traffic!AB17-Traffic!AA17)))*(1-'T & R'!H82)) -> 12042568.39 | L79: 0.9 | M79: 0.05 | N79: =(NORMINV(M79,$F79,$W79)*'Project Charact'!$G$100*'Toll Rate'!$I29*'Project Charact'!$G$23*'T & R'!$H82)+(NORMINV(M79,$F79,$W79)*'Project Charact'!$G$100*'Toll Rate'!$I29*(1+'Project Charact'!$G$108)*'Project Charact'!$G$23*(1-'T & R'!$H82)) -> 9476819.801 | O79: 0.95 | P79: =(NORMINV(O79,$F79,$W79)*'Project Charact'!$G$100*'Toll Rate'!$I29*'Project Charact'!$G$23*'T & R'!$H82)+(NORMINV(O79,$F79,$W79)*'Project Charact'!$G$100*'Toll Rate'!$I29*(1+'Project Charact'!$G$108)*'Project Charact'!$G$23*(1-'T & R'!$H82)) -> 12809313.13 | Q79: 0.9 | W79: =+Traffic!O17*IF('Project Charact'!$G$116<100%,'Project Charact'!$G$116,100%) -> 1666.98
D80: 5 | E80: 2019 | F80: =Traffic!G18*IF('Project Charact'!G117<100%,'Project Charact'!G117,100%) -> 19253.619 | G80: =+((F80*'Project Charact'!$G$100)*'Toll Rate'!$I30*'Project Charact'!$G$23*'T & R'!$H83)+((F80*'Project Charact'!$G$100)*'Toll Rate'!$I30*(1+'Project Charact'!$G$108)*'Project Charact'!$G$23*(1-'T & R'!$H83)) -> 11992725.28 | H80: 0.05 | I80: =('Project Charact'!$G$100*'Toll Rate'!I30*'Project Charact'!$G$23*(Traffic!AA18+SQRT(H80*(F80-Traffic!AA18)*(Traffic!AB18-Traffic!AA18)))*('T & R'!H83))+('Project Charact'!$G$100*'Toll Rate'!I30*'Project Charact'!$G$23*(Traffic!AA18+SQRT(H80*(F80-Traffic!AA18)*(Traffic!AB18-Traffic!AA18)))*(1-'T & R'!H83)) -> 8890558.501 | J80: 0.95 | K80: =('Project Charact'!$G$100*'Toll Rate'!I30*'Project Charact'!$G$23*(Traffic!AB18-SQRT((1-J80)*(Traffic!AB18-F80)*(Traffic!AB18-Traffic!AA18)))*('T & R'!H83))+('Project Charact'!$G$100*'Toll Rate'!I30*'Project Charact'!$G$23*(Traffic!AB18-SQRT((1-J80)*(Traffic!AB18-F80)*(Traffic!AB18-Traffic!AA18)))*(1-'T & R'!H83)) -> 12968925.67 | L80: 0.9 | M80: 0.05 | N80: =(NORMINV(M80,$F80,$W80)*'Project Charact'!$G$100*'Toll Rate'!$I30*'Project Charact'!$G$23*'T & R'!$H83)+(NORMINV(M80,$F80,$W80)*'Project Charact'!$G$100*'Toll Rate'!$I30*(1+'Project Charact'!$G$108)*'Project Charact'!$G$23*(1-'T & R'!$H83)) -> 10199427.31 | O80: 0.95 | P80: =(NORMINV(O80,$F80,$W80)*'Project Charact'!$G$100*'Toll Rate'!$I30*'Project Charact'!$G$23*'T & R'!$H83)+(NORMINV(O80,$F80,$W80)*'Project Charact'!$G$100*'Toll Rate'!$I30*(1+'Project Charact'!$G$108)*'Project Charact'!$G$23*(1-'T & R'!$H83)) -> 13786023.25 | Q80: 0.9 | W80: =+Traffic!O18*IF('Project Charact'!$G$117<100%,'Project Charact'!$G$117,100%) -> 1750.329
D81: 6 | E81: 2020 | F81: =+IF(Traffic!$J$19>Traffic!$K$8,Traffic!$K$19*Traffic!$R$19,Traffic!$G$19) -> 20216.29995 | G81: =+((F81*'Project Charact'!$G$100)*'Toll Rate'!$I31*'Project Charact'!$G$23*'T & R'!$H84)+((F81*'Project Charact'!$G$100)*'Toll Rate'!$I31*(1+'Project Charact'!$G$108)*'Project Charact'!$G$23*(1-'T & R'!$H84)) -> 12613825.8 | H81: 0.05 | I81: =('Project Charact'!$G$100*'Toll Rate'!I31*'Project Charact'!$G$23*(Traffic!AA19+SQRT(H81*(F81-Traffic!AA19)*(Traffic!AB19-Traffic!AA19)))*('T & R'!H84))+('Project Charact'!$G$100*'Toll Rate'!I31*'Project Charact'!$G$23*(Traffic!AA19+SQRT(H81*(F81-Traffic!AA19)*(Traffic!AB19-Traffic!AA19)))*(1-'T & R'!H84)) -> 9568463.586 | J81: 0.95 | K81: =('Project Charact'!$G$100*'Toll Rate'!I31*'Project Charact'!$G$23*(Traffic!AB19-SQRT((1-J81)*(Traffic!AB19-F81)*(Traffic!AB19-Traffic!AA19)))*('T & R'!H84))+('Project Charact'!$G$100*'Toll Rate'!I31*'Project Charact'!$G$23*(Traffic!AB19-SQRT((1-J81)*(Traffic!AB19-F81)*(Traffic!AB19-Traffic!AA19)))*(1-'T & R'!H84)) -> 13957806.25 | L81: 0.9 | M81: 0.05 | N81: =(NORMINV(M81,$F81,$W81)*'Project Charact'!$G$100*'Toll Rate'!$I31*'Project Charact'!$G$23*'T & R'!$H84)+(NORMINV(M81,$F81,$W81)*'Project Charact'!$G$100*'Toll Rate'!$I31*(1+'Project Charact'!$G$108)*'Project Charact'!$G$23*(1-'T & R'!$H84)) -> 10727653.33 | O81: 0.95 | P81: =(NORMINV(O81,$F81,$W81)*'Project Charact'!$G$100*'Toll Rate'!$I31*'Project Charact'!$G$23*'T & R'!$H84)+(NORMINV(O81,$F81,$W81)*'Project Charact'!$G$100*'Toll Rate'!$I31*(1+'Project Charact'!$G$108)*'Project Charact'!$G$23*(1-'T & R'!$H84)) -> 14499998.26 | Q81: 0.9 | W81: =+Traffic!O19 -> 1837.84545
D82: 7 | E82: 2021 | F82: =+IF(Traffic!J20>Traffic!$K$8,Traffic!K20*Traffic!R20,Traffic!G20) -> 21227.11495 | G82: =+((F82*'Project Charact'!$G$100)*'Toll Rate'!$I32*'Project Charact'!$G$23*'T & R'!$H85)+((F82*'Project Charact'!$G$100)*'Toll Rate'!$I32*(1+'Project Charact'!$G$108)*'Project Charact'!$G$23*(1-'T & R'!$H85)) -> 13575630.02 | H82: 0.05 | I82: =('Project Charact'!$G$100*'Toll Rate'!I32*'Project Charact'!$G$23*(Traffic!AA20+SQRT(H82*(F82-Traffic!AA20)*(Traffic!AB20-Traffic!AA20)))*('T & R'!H85))+('Project Charact'!$G$100*'Toll Rate'!I32*'Project Charact'!$G$23*(Traffic!AA20+SQRT(H82*(F82-Traffic!AA20)*(Traffic!AB20-Traffic!AA20)))*(1-'T & R'!H85)) -> 10298058.93 | J82: 0.95 | K82: =('Project Charact'!$G$100*'Toll Rate'!I32*'Project Charact'!$G$23*(Traffic!AB20-SQRT((1-J82)*(Traffic!AB20-F82)*(Traffic!AB20-Traffic!AA20)))*('T & R'!H85))+('Project Charact'!$G$100*'Toll Rate'!I32*'Project Charact'!$G$23*(Traffic!AB20-SQRT((1-J82)*(Traffic!AB20-F82)*(Traffic!AB20-Traffic!AA20)))*(1-'T & R'!H85)) -> 15022088.98 | L82: 0.9 | M82: 0.05 | N82: =(NORMINV(M82,$F82,$W82)*'Project Charact'!$G$100*'Toll Rate'!$I32*'Project Charact'!$G$23*'T & R'!$H85)+(NORMINV(M82,$F82,$W82)*'Project Charact'!$G$100*'Toll Rate'!$I32*(1+'Project Charact'!$G$108)*'Project Charact'!$G$23*(1-'T & R'!$H85)) -> 11545636.9 | O82: 0.95 | P82: =(NORMINV(O82,$F82,$W82)*'Project Charact'!$G$100*'Toll Rate'!$I32*'Project Charact'!$G$23*'T & R'!$H85)+(NORMINV(O82,$F82,$W82)*'Project Charact'!$G$100*'Toll Rate'!$I32*(1+'Project Charact'!$G$108)*'Project Charact'!$G$23*(1-'T & R'!$H85)) -> 15605623.13 | Q82: 0.9 | W82: =+Traffic!O20 -> 1929.737723
D83: 8 | E83: 2022 | F83: =+IF(Traffic!J21>Traffic!$K$8,Traffic!K21*Traffic!R21,Traffic!G21) -> 22288.47069 | G83: =+((F83*'Project Charact'!$G$100)*'Toll Rate'!$I33*'Project Charact'!$G$23*'T & R'!$H86)+((F83*'Project Charact'!$G$100)*'Toll Rate'!$I33*(1+'Project Charact'!$G$108)*'Project Charact'!$G$23*(1-'T & R'!$H86)) -> 14610771.8 | H83: 0.05 | I83: =('Project Charact'!$G$100*'Toll Rate'!I33*'Project Charact'!$G$23*(Traffic!AA21+SQRT(H83*(F83-Traffic!AA21)*(Traffic!AB21-Traffic!AA21)))*('T & R'!H86))+('Project Charact'!$G$100*'Toll Rate'!I33*'Project Charact'!$G$23*(Traffic!AA21+SQRT(H83*(F83-Traffic!AA21)*(Traffic!AB21-Traffic!AA21)))*(1-'T & R'!H86)) -> 11083285.93 | J83: 0.95 | K83: =('Project Charact'!$G$100*'Toll Rate'!I33*'Project Charact'!$G$23*(Traffic!AB21-SQRT((1-J83)*(Traffic!AB21-F83)*(Traffic!AB21-Traffic!AA21)))*('T & R'!H86))+('Project Charact'!$G$100*'Toll Rate'!I33*'Project Charact'!$G$23*(Traffic!AB21-SQRT((1-J83)*(Traffic!AB21-F83)*(Traffic!AB21-Traffic!AA21)))*(1-'T & R'!H86)) -> 16167523.26 | L83: 0.9 | M83: 0.05 | N83: =(NORMINV(M83,$F83,$W83)*'Project Charact'!$G$100*'Toll Rate'!$I33*'Project Charact'!$G$23*'T & R'!$H86)+(NORMINV(M83,$F83,$W83)*'Project Charact'!$G$100*'Toll Rate'!$I33*(1+'Project Charact'!$G$108)*'Project Charact'!$G$23*(1-'T & R'!$H86)) -> 12425991.71 | O83: 0.95 | P83: =(NORMINV(O83,$F83,$W83)*'Project Charact'!$G$100*'Toll Rate'!$I33*'Project Charact'!$G$23*'T & R'!$H86)+(NORMINV(O83,$F83,$W83)*'Project Charact'!$G$100*'Toll Rate'!$I33*(1+'Project Charact'!$G$108)*'Project Charact'!$G$23*(1-'T & R'!$H86)) -> 16795551.89 | Q83: 0.9 | W83: =+Traffic!O21 -> 2026.224609
D84: 9 | E84: 2023 | F84: =+IF(Traffic!J22>Traffic!$K$8,Traffic!K22*Traffic!R22,Traffic!G22) -> 23402.89423 | G84: =+((F84*'Project Charact'!$G$100)*'Toll Rate'!$I34*'Project Charact'!$G$23*'T & R'!$H87)+((F84*'Project Charact'!$G$100)*'Toll Rate'!$I34*(1+'Project Charact'!$G$108)*'Project Charact'!$G$23*(1-'T & R'!$H87)) -> 15724843.15 | H84: 0.05 | I84: =('Project Charact'!$G$100*'Toll Rate'!I34*'Project Charact'!$G$23*(Traffic!AA22+SQRT(H84*(F84-Traffic!AA22)*(Traffic!AB22-Traffic!AA22)))*('T & R'!H87))+('Project Charact'!$G$100*'Toll Rate'!I34*'Project Charact'!$G$23*(Traffic!AA22+SQRT(H84*(F84-Traffic!AA22)*(Traffic!AB22-Traffic!AA22)))*(1-'T & R'!H87)) -> 11928386.48 | J84: 0.95 | K84: =('Project Charact'!$G$100*'Toll Rate'!I34*'Project Charact'!$G$23*(Traffic!AB22-SQRT((1-J84)*(Traffic!AB22-F84)*(Traffic!AB22-Traffic!AA22)))*('T & R'!H87))+('Project Charact'!$G$100*'Toll Rate'!I34*'Project Charact'!$G$23*(Traffic!AB22-SQRT((1-J84)*(Traffic!AB22-F84)*(Traffic!AB22-Traffic!AA22)))*(1-'T & R'!H87)) -> 17400296.91 | L84: 0.9 | M84: 0.05 | N84: =(NORMINV(M84,$F84,$W84)*'Project Charact'!$G$100*'Toll Rate'!$I34*'Project Charact'!$G$23*'T & R'!$H87)+(NORMINV(M84,$F84,$W84)*'Project Charact'!$G$100*'Toll Rate'!$I34*(1+'Project Charact'!$G$108)*'Project Charact'!$G$23*(1-'T & R'!$H87)) -> 13373473.58 | O84: 0.95 | P84: =(NORMINV(O84,$F84,$W84)*'Project Charact'!$G$100*'Toll Rate'!$I34*'Project Charact'!$G$23*'T & R'!$H87)+(NORMINV(O84,$F84,$W84)*'Project Charact'!$G$100*'Toll Rate'!$I34*(1+'Project Charact'!$G$108)*'Project Charact'!$G$23*(1-'T & R'!$H87)) -> 18076212.73 | Q84: 0.9 | W84: =+Traffic!O22 -> 2127.535839
D85: 10 | E85: 2024 | F85: =+IF(Traffic!J23>Traffic!$K$8,Traffic!K23*Traffic!R23,Traffic!G23) -> 24573.03894 | G85: =+((F85*'Project Charact'!$G$100)*'Toll Rate'!$I35*'Project Charact'!$G$23*'T & R'!$H88)+((F85*'Project Charact'!$G$100)*'Toll Rate'!$I35*(1+'Project Charact'!$G$108)*'Project Charact'!$G$23*(1-'T & R'!$H88)) -> 16923862.44 | H85: 0.05 | I85: =('Project Charact'!$G$100*'Toll Rate'!I35*'Project Charact'!$G$23*(Traffic!AA23+SQRT(H85*(F85-Traffic!AA23)*(Traffic!AB23-Traffic!AA23)))*('T & R'!H88))+('Project Charact'!$G$100*'Toll Rate'!I35*'Project Charact'!$G$23*(Traffic!AA23+SQRT(H85*(F85-Traffic!AA23)*(Traffic!AB23-Traffic!AA23)))*(1-'T & R'!H88)) -> 12837925.95 | J85: 0.95 | K85: =('Project Charact'!$G$100*'Toll Rate'!I35*'Project Charact'!$G$23*(Traffic!AB23-SQRT((1-J85)*(Traffic!AB23-F85)*(Traffic!AB23-Traffic!AA23)))*('T & R'!H88))+('Project Charact'!$G$100*'Toll Rate'!I35*'Project Charact'!$G$23*(Traffic!AB23-SQRT((1-J85)*(Traffic!AB23-F85)*(Traffic!AB23-Traffic!AA23)))*(1-'T & R'!H88)) -> 18727069.55 | L85: 0.9 | M85: 0.05 | N85: =(NORMINV(M85,$F85,$W85)*'Project Charact'!$G$100*'Toll Rate'!$I35*'Project Charact'!$G$23*'T & R'!$H88)+(NORMINV(M85,$F85,$W85)*'Project Charact'!$G$100*'Toll Rate'!$I35*(1+'Project Charact'!$G$108)*'Project Charact'!$G$23*(1-'T & R'!$H88)) -> 14393200.94 | O85: 0.95 | P85: =(NORMINV(O85,$F85,$W85)*'Project Charact'!$G$100*'Toll Rate'!$I35*'Project Charact'!$G$23*'T & R'!$H88)+(NORMINV(O85,$F85,$W85)*'Project Charact'!$G$100*'Toll Rate'!$I35*(1+'Project Charact'!$G$108)*'Project Charact'!$G$23*(1-'T & R'!$H88)) -> 19454523.95 | Q85: 0.9 | W85: =+Traffic!O23 -> 2233.912631
D86: 11 | E86: 2025 | F86: =+IF(Traffic!J24>Traffic!$K$8,Traffic!K24*Traffic!R24,Traffic!G24) -> 25555.9605 | G86: =+((F86*'Project Charact'!$G$100)*'Toll Rate'!$I36*'Project Charact'!$G$23*'T & R'!$H89)+((F86*'Project Charact'!$G$100)*'Toll Rate'!$I36*(1+'Project Charact'!$G$108)*'Project Charact'!$G$23*(1-'T & R'!$H89)) -> 17621283.01 | H86: 0.05 | I86: =('Project Charact'!$G$100*'Toll Rate'!I36*'Project Charact'!$G$23*(Traffic!AA24+SQRT(H86*(F86-Traffic!AA24)*(Traffic!AB24-Traffic!AA24)))*('T & R'!H89))+('Project Charact'!$G$100*'Toll Rate'!I36*'Project Charact'!$G$23*(Traffic!AA24+SQRT(H86*(F86-Traffic!AA24)*(Traffic!AB24-Traffic!AA24)))*(1-'T & R'!H89)) -> 13685229.06 | J86: 0.95 | K86: =('Project Charact'!$G$100*'Toll Rate'!I36*'Project Charact'!$G$23*(Traffic!AB24-SQRT((1-J86)*(Traffic!AB24-F86)*(Traffic!AB24-Traffic!AA24)))*('T & R'!H89))+('Project Charact'!$G$100*'Toll Rate'!I36*'Project Charact'!$G$23*(Traffic!AB24-SQRT((1-J86)*(Traffic!AB24-F86)*(Traffic!AB24-Traffic!AA24)))*(1-'T & R'!H89)) -> 19963056.14 | L86: 0.9 | M86: 0.05 | N86: =(NORMINV(M86,$F86,$W86)*'Project Charact'!$G$100*'Toll Rate'!$I36*'Project Charact'!$G$23*'T & R'!$H89)+(NORMINV(M86,$F86,$W86)*'Project Charact'!$G$100*'Toll Rate'!$I36*(1+'Project Charact'!$G$108)*'Project Charact'!$G$23*(1-'T & R'!$H89)) -> 14986334.71 | O86: 0.95 | P86: =(NORMINV(O86,$F86,$W86)*'Project Charact'!$G$100*'Toll Rate'!$I36*'Project Charact'!$G$23*'T & R'!$H89)+(NORMINV(O86,$F86,$W86)*'Project Charact'!$G$100*'Toll Rate'!$I36*(1+'Project Charact'!$G$108)*'Project Charact'!$G$23*(1-'T & R'!$H89)) -> 20256231.31 | Q86: 0.9 | W86: =+Traffic!O24 -> 2323.269136
D87: 12 | E87: 2026 | F87: =+IF(Traffic!J25>Traffic!$K$8,Traffic!K25*Traffic!R25,Traffic!G25) -> 26578.19892 | G87: =+((F87*'Project Charact'!$G$100)*'Toll Rate'!$I37*'Project Charact'!$G$23*'T & R'!$H90)+((F87*'Project Charact'!$G$100)*'Toll Rate'!$I37*(1+'Project Charact'!$G$108)*'Project Charact'!$G$23*(1-'T & R'!$H90)) -> 18784287.69 | H87: 0.05 | I87: =('Project Charact'!$G$100*'Toll Rate'!I37*'Project Charact'!$G$23*(Traffic!AA25+SQRT(H87*(F87-Traffic!AA25)*(Traffic!AB25-Traffic!AA25)))*('T & R'!H90))+('Project Charact'!$G$100*'Toll Rate'!I37*'Project Charact'!$G$23*(Traffic!AA25+SQRT(H87*(F87-Traffic!AA25)*(Traffic!AB25-Traffic!AA25)))*(1-'T & R'!H90)) -> 14588454.18 | J87: 0.95 | K87: =('Project Charact'!$G$100*'Toll Rate'!I37*'Project Charact'!$G$23*(Traffic!AB25-SQRT((1-J87)*(Traffic!AB25-F87)*(Traffic!AB25-Traffic!AA25)))*('T & R'!H90))+('Project Charact'!$G$100*'Toll Rate'!I37*'Project Charact'!$G$23*(Traffic!AB25-SQRT((1-J87)*(Traffic!AB25-F87)*(Traffic!AB25-Traffic!AA25)))*(1-'T & R'!H90)) -> 21280617.85 | L87: 0.9 | M87: 0.05 | N87: =(NORMINV(M87,$F87,$W87)*'Project Charact'!$G$100*'Toll Rate'!$I37*'Project Charact'!$G$23*'T & R'!$H90)+(NORMINV(M87,$F87,$W87)*'Project Charact'!$G$100*'Toll Rate'!$I37*(1+'Project Charact'!$G$108)*'Project Charact'!$G$23*(1-'T & R'!$H90)) -> 15975432.8 | O87: 0.95 | P87: =(NORMINV(O87,$F87,$W87)*'Project Charact'!$G$100*'Toll Rate'!$I37*'Project Charact'!$G$23*'T & R'!$H90)+(NORMINV(O87,$F87,$W87)*'Project Charact'!$G$100*'Toll Rate'!$I37*(1+'Project Charact'!$G$108)*'Project Charact'!$G$23*(1-'T & R'!$H90)) -> 21593142.57 | Q87: 0.9 | W87: =+Traffic!O25 -> 2416.199902
D88: 13 | E88: 2027 | F88: =+IF(Traffic!J26>Traffic!$K$8,Traffic!K26*Traffic!R26,Traffic!G26) -> 27641.32688 | G88: =+((F88*'Project Charact'!$G$100)*'Toll Rate'!$I38*'Project Charact'!$G$23*'T & R'!$H91)+((F88*'Project Charact'!$G$100)*'Toll Rate'!$I38*(1+'Project Charact'!$G$108)*'Project Charact'!$G$23*(1-'T & R'!$H91)) -> 20024050.67 | H88: 0.05 | I88: =('Project Charact'!$G$100*'Toll Rate'!I38*'Project Charact'!$G$23*(Traffic!AA26+SQRT(H88*(F88-Traffic!AA26)*(Traffic!AB26-Traffic!AA26)))*('T & R'!H91))+('Project Charact'!$G$100*'Toll Rate'!I38*'Project Charact'!$G$23*(Traffic!AA26+SQRT(H88*(F88-Traffic!AA26)*(Traffic!AB26-Traffic!AA26)))*(1-'T & R'!H91)) -> 15551292.16 | J88: 0.95 | K88: =('Project Charact'!$G$100*'Toll Rate'!I38*'Project Charact'!$G$23*(Traffic!AB26-SQRT((1-J88)*(Traffic!AB26-F88)*(Traffic!AB26-Traffic!AA26)))*('T & R'!H91))+('Project Charact'!$G$100*'Toll Rate'!I38*'Project Charact'!$G$23*(Traffic!AB26-SQRT((1-J88)*(Traffic!AB26-F88)*(Traffic!AB26-Traffic!AA26)))*(1-'T & R'!H91)) -> 22685138.62 | L88: 0.9 | M88: 0.05 | N88: =(NORMINV(M88,$F88,$W88)*'Project Charact'!$G$100*'Toll Rate'!$I38*'Project Charact'!$G$23*'T & R'!$H91)+(NORMINV(M88,$F88,$W88)*'Project Charact'!$G$100*'Toll Rate'!$I38*(1+'Project Charact'!$G$108)*'Project Charact'!$G$23*(1-'T & R'!$H91)) -> 17029811.37 | O88: 0.95 | P88: =(NORMINV(O88,$F88,$W88)*'Project Charact'!$G$100*'Toll Rate'!$I38*'Project Charact'!$G$23*'T & R'!$H91)+(NORMINV(O88,$F88,$W88)*'Project Charact'!$G$100*'Toll Rate'!$I38*(1+'Project Charact'!$G$108)*'Project Charact'!$G$23*(1-'T & R'!$H91)) -> 23018289.98 | Q88: 0.9 | W88: =+Traffic!O26 -> 2512.847898
D89: 14 | E89: 2028 | F89: =+IF(Traffic!J27>Traffic!$K$8,Traffic!K27*Traffic!R27,Traffic!G27) -> 28746.97995 | G89: =+((F89*'Project Charact'!$G$100)*'Toll Rate'!$I39*'Project Charact'!$G$23*'T & R'!$H92)+((F89*'Project Charact'!$G$100)*'Toll Rate'!$I39*(1+'Project Charact'!$G$108)*'Project Charact'!$G$23*(1-'T & R'!$H92)) -> 21345638.02 | H89: 0.05 | I89: =('Project Charact'!$G$100*'Toll Rate'!I39*'Project Charact'!$G$23*(Traffic!AA27+SQRT(H89*(F89-Traffic!AA27)*(Traffic!AB27-Traffic!AA27)))*('T & R'!H92))+('Project Charact'!$G$100*'Toll Rate'!I39*'Project Charact'!$G$23*(Traffic!AA27+SQRT(H89*(F89-Traffic!AA27)*(Traffic!AB27-Traffic!AA27)))*(1-'T & R'!H92)) -> 16577677.44 | J89: 0.95 | K89: =('Project Charact'!$G$100*'Toll Rate'!I39*'Project Charact'!$G$23*(Traffic!AB27-SQRT((1-J89)*(Traffic!AB27-F89)*(Traffic!AB27-Traffic!AA27)))*('T & R'!H92))+('Project Charact'!$G$100*'Toll Rate'!I39*'Project Charact'!$G$23*(Traffic!AB27-SQRT((1-J89)*(Traffic!AB27-F89)*(Traffic!AB27-Traffic!AA27)))*(1-'T & R'!H92)) -> 24182357.77 | L89: 0.9 | M89: 0.05 | N89: =(NORMINV(M89,$F89,$W89)*'Project Charact'!$G$100*'Toll Rate'!$I39*'Project Charact'!$G$23*'T & R'!$H92)+(NORMINV(M89,$F89,$W89)*'Project Charact'!$G$100*'Toll Rate'!$I39*(1+'Project Charact'!$G$108)*'Project Charact'!$G$23*(1-'T & R'!$H92)) -> 18153778.92 | O89: 0.95 | P89: =(NORMINV(O89,$F89,$W89)*'Project Charact'!$G$100*'Toll Rate'!$I39*'Project Charact'!$G$23*'T & R'!$H92)+(NORMINV(O89,$F89,$W89)*'Project Charact'!$G$100*'Toll Rate'!$I39*(1+'Project Charact'!$G$108)*'Project Charact'!$G$23*(1-'T & R'!$H92)) -> 24537497.12 | Q89: 0.9 | W89: =+Traffic!O27 -> 2613.361814
D90: 15 | E90: 2029 | F90: =+IF(Traffic!J28>Traffic!$K$8,Traffic!K28*Traffic!R28,Traffic!G28) -> 29896.85915 | G90: =+((F90*'Project Charact'!$G$100)*'Toll Rate'!$I40*'Project Charact'!$G$23*'T & R'!$H93)+((F90*'Project Charact'!$G$100)*'Toll Rate'!$I40*(1+'Project Charact'!$G$108)*'Project Charact'!$G$23*(1-'T & R'!$H93)) -> 22754450.13 | H90: 0.05 | I90: =('Project Charact'!$G$100*'Toll Rate'!I40*'Project Charact'!$G$23*(Traffic!AA28+SQRT(H90*(F90-Traffic!AA28)*(Traffic!AB28-Traffic!AA28)))*('T & R'!H93))+('Project Charact'!$G$100*'Toll Rate'!I40*'Project Charact'!$G$23*(Traffic!AA28+SQRT(H90*(F90-Traffic!AA28)*(Traffic!AB28-Traffic!AA28)))*(1-'T & R'!H93)) -> 17671804.15 | J90: 0.95 | K90: =('Project Charact'!$G$100*'Toll Rate'!I40*'Project Charact'!$G$23*(Traffic!AB28-SQRT((1-J90)*(Traffic!AB28-F90)*(Traffic!AB28-Traffic!AA28)))*('T & R'!H93))+('Project Charact'!$G$100*'Toll Rate'!I40*'Project Charact'!$G$23*(Traffic!AB28-SQRT((1-J90)*(Traffic!AB28-F90)*(Traffic!AB28-Traffic!AA28)))*(1-'T & R'!H93)) -> 25778393.39 | L90: 0.9 | M90: 0.05 | N90: =(NORMINV(M90,$F90,$W90)*'Project Charact'!$G$100*'Toll Rate'!$I40*'Project Charact'!$G$23*'T & R'!$H93)+(NORMINV(M90,$F90,$W90)*'Project Charact'!$G$100*'Toll Rate'!$I40*(1+'Project Charact'!$G$108)*'Project Charact'!$G$23*(1-'T & R'!$H93)) -> 19351928.33 | O90: 0.95 | P90: =(NORMINV(O90,$F90,$W90)*'Project Charact'!$G$100*'Toll Rate'!$I40*'Project Charact'!$G$23*'T & R'!$H93)+(NORMINV(O90,$F90,$W90)*'Project Charact'!$G$100*'Toll Rate'!$I40*(1+'Project Charact'!$G$108)*'Project Charact'!$G$23*(1-'T & R'!$H93)) -> 26156971.93 | Q90: 0.9 | W90: =+Traffic!O28 -> 2717.896286
D91: 16 | E91: 2030 | F91: =+IF(Traffic!J29>Traffic!$K$8,Traffic!K29*Traffic!R29,Traffic!G29) -> 31092.73351 | G91: =+((F91*'Project Charact'!$G$100)*'Toll Rate'!$I41*'Project Charact'!$G$23*'T & R'!$H94)+((F91*'Project Charact'!$G$100)*'Toll Rate'!$I41*(1+'Project Charact'!$G$108)*'Project Charact'!$G$23*(1-'T & R'!$H94)) -> 24256243.84 | H91: 0.05 | I91: =('Project Charact'!$G$100*'Toll Rate'!I41*'Project Charact'!$G$23*(Traffic!AA29+SQRT(H91*(F91-Traffic!AA29)*(Traffic!AB29-Traffic!AA29)))*('T & R'!H94))+('Project Charact'!$G$100*'Toll Rate'!I41*'Project Charact'!$G$23*(Traffic!AA29+SQRT(H91*(F91-Traffic!AA29)*(Traffic!AB29-Traffic!AA29)))*(1-'T & R'!H94)) -> 18838143.22 | J91: 0.95 | K91: =('Project Charact'!$G$100*'Toll Rate'!I41*'Project Charact'!$G$23*(Traffic!AB29-SQRT((1-J91)*(Traffic!AB29-F91)*(Traffic!AB29-Traffic!AA29)))*('T & R'!H94))+('Project Charact'!$G$100*'Toll Rate'!I41*'Project Charact'!$G$23*(Traffic!AB29-SQRT((1-J91)*(Traffic!AB29-F91)*(Traffic!AB29-Traffic!AA29)))*(1-'T & R'!H94)) -> 27479767.35 | L91: 0.9 | M91: 0.05 | N91: =(NORMINV(M91,$F91,$W91)*'Project Charact'!$G$100*'Toll Rate'!$I41*'Project Charact'!$G$23*'T & R'!$H94)+(NORMINV(M91,$F91,$W91)*'Project Charact'!$G$100*'Toll Rate'!$I41*(1+'Project Charact'!$G$108)*'Project Charact'!$G$23*(1-'T & R'!$H94)) -> 20629155.6 | O91: 0.95 | P91: =(NORMINV(O91,$F91,$W91)*'Project Charact'!$G$100*'Toll Rate'!$I41*'Project Charact'!$G$23*'T & R'!$H94)+(NORMINV(O91,$F91,$W91)*'Project Charact'!$G$100*'Toll Rate'!$I41*(1+'Project Charact'!$G$108)*'Project Charact'!$G$23*(1-'T & R'!$H94)) -> 27883332.08 | Q91: 0.9 | W91: =+Traffic!O29 -> 2826.612138
D92: 17 | E92: 2031 | F92: =+IF(Traffic!J30>Traffic!$K$8,Traffic!K30*Traffic!R30,Traffic!G30) -> 32336.44285 | G92: =+((F92*'Project Charact'!$G$100)*'Toll Rate'!$I42*'Project Charact'!$G$23*'T & R'!$H95)+((F92*'Project Charact'!$G$100)*'Toll Rate'!$I42*(1+'Project Charact'!$G$108)*'Project Charact'!$G$23*(1-'T & R'!$H95)) -> 25857155.93 | H92: 0.05 | I92: =('Project Charact'!$G$100*'Toll Rate'!I42*'Project Charact'!$G$23*(Traffic!AA30+SQRT(H92*(F92-Traffic!AA30)*(Traffic!AB30-Traffic!AA30)))*('T & R'!H95))+('Project Charact'!$G$100*'Toll Rate'!I42*'Project Charact'!$G$23*(Traffic!AA30+SQRT(H92*(F92-Traffic!AA30)*(Traffic!AB30-Traffic!AA30)))*(1-'T & R'!H95)) -> 20081460.68 | J92: 0.95 | K92: =('Project Charact'!$G$100*'Toll Rate'!I42*'Project Charact'!$G$23*(Traffic!AB30-SQRT((1-J92)*(Traffic!AB30-F92)*(Traffic!AB30-Traffic!AA30)))*('T & R'!H95))+('Project Charact'!$G$100*'Toll Rate'!I42*'Project Charact'!$G$23*(Traffic!AB30-SQRT((1-J92)*(Traffic!AB30-F92)*(Traffic!AB30-Traffic!AA30)))*(1-'T & R'!H95)) -> 29293431.99 | L92: 0.9 | M92: 0.05 | N92: =(NORMINV(M92,$F92,$W92)*'Project Charact'!$G$100*'Toll Rate'!$I42*'Project Charact'!$G$23*'T & R'!$H95)+(NORMINV(M92,$F92,$W92)*'Project Charact'!$G$100*'Toll Rate'!$I42*(1+'Project Charact'!$G$108)*'Project Charact'!$G$23*(1-'T & R'!$H95)) -> 21990679.87 | O92: 0.95 | P92: =(NORMINV(O92,$F92,$W92)*'Project Charact'!$G$100*'Toll Rate'!$I42*'Project Charact'!$G$23*'T & R'!$H95)+(NORMINV(O92,$F92,$W92)*'Project Charact'!$G$100*'Toll Rate'!$I42*(1+'Project Charact'!$G$108)*'Project Charact'!$G$23*(1-'T & R'!$H95)) -> 29723631.99 | Q92: 0.9 | W92: =+Traffic!O30 -> 2939.676623
D93: 18 | E93: 2032 | F93: =+IF(Traffic!J31>Traffic!$K$8,Traffic!K31*Traffic!R31,Traffic!G31) -> 33629.90057 | G93: =+((F93*'Project Charact'!$G$100)*'Toll Rate'!$I43*'Project Charact'!$G$23*'T & R'!$H96)+((F93*'Project Charact'!$G$100)*'Toll Rate'!$I43*(1+'Project Charact'!$G$108)*'Project Charact'!$G$23*(1-'T & R'!$H96)) -> 27563728.22 | H93: 0.05 | I93: =('Project Charact'!$G$100*'Toll Rate'!I43*'Project Charact'!$G$23*(Traffic!AA31+SQRT(H93*(F93-Traffic!AA31)*(Traffic!AB31-Traffic!AA31)))*('T & R'!H96))+('Project Charact'!$G$100*'Toll Rate'!I43*'Project Charact'!$G$23*(Traffic!AA31+SQRT(H93*(F93-Traffic!AA31)*(Traffic!AB31-Traffic!AA31)))*(1-'T & R'!H96)) -> 21406837.08 | J93: 0.95 | K93: =('Project Charact'!$G$100*'Toll Rate'!I43*'Project Charact'!$G$23*(Traffic!AB31-SQRT((1-J93)*(Traffic!AB31-F93)*(Traffic!AB31-Traffic!AA31)))*('T & R'!H96))+('Project Charact'!$G$100*'Toll Rate'!I43*'Project Charact'!$G$23*(Traffic!AB31-SQRT((1-J93)*(Traffic!AB31-F93)*(Traffic!AB31-Traffic!AA31)))*(1-'T & R'!H96)) -> 31226798.51 | L93: 0.9 | M93: 0.05 | N93: =(NORMINV(M93,$F93,$W93)*'Project Charact'!$G$100*'Toll Rate'!$I43*'Project Charact'!$G$23*'T & R'!$H96)+(NORMINV(M93,$F93,$W93)*'Project Charact'!$G$100*'Toll Rate'!$I43*(1+'Project Charact'!$G$108)*'Project Charact'!$G$23*(1-'T & R'!$H96)) -> 23442064.74 | O93: 0.95 | P93: =(NORMINV(O93,$F93,$W93)*'Project Charact'!$G$100*'Toll Rate'!$I43*'Project Charact'!$G$23*'T & R'!$H96)+(NORMINV(O93,$F93,$W93)*'Project Charact'!$G$100*'Toll Rate'!$I43*(1+'Project Charact'!$G$108)*'Project Charact'!$G$23*(1-'T & R'!$H96)) -> 31685391.71 | Q93: 0.9 | W93: =+Traffic!O31 -> 3057.263688
D94: 19 | E94: 2033 | F94: =+IF(Traffic!J32>Traffic!$K$8,Traffic!K32*Traffic!R32,Traffic!G32) -> 34975.09659 | G94: =+((F94*'Project Charact'!$G$100)*'Toll Rate'!$I44*'Project Charact'!$G$23*'T & R'!$H97)+((F94*'Project Charact'!$G$100)*'Toll Rate'!$I44*(1+'Project Charact'!$G$108)*'Project Charact'!$G$23*(1-'T & R'!$H97)) -> 29382934.28 | H94: 0.05 | I94: =('Project Charact'!$G$100*'Toll Rate'!I44*'Project Charact'!$G$23*(Traffic!AA32+SQRT(H94*(F94-Traffic!AA32)*(Traffic!AB32-Traffic!AA32)))*('T & R'!H97))+('Project Charact'!$G$100*'Toll Rate'!I44*'Project Charact'!$G$23*(Traffic!AA32+SQRT(H94*(F94-Traffic!AA32)*(Traffic!AB32-Traffic!AA32)))*(1-'T & R'!H97)) -> 22819688.33 | J94: 0.95 | K94: =('Project Charact'!$G$100*'Toll Rate'!I44*'Project Charact'!$G$23*(Traffic!AB32-SQRT((1-J94)*(Traffic!AB32-F94)*(Traffic!AB32-Traffic!AA32)))*('T & R'!H97))+('Project Charact'!$G$100*'Toll Rate'!I44*'Project Charact'!$G$23*(Traffic!AB32-SQRT((1-J94)*(Traffic!AB32-F94)*(Traffic!AB32-Traffic!AA32)))*(1-'T & R'!H97)) -> 33287767.21 | L94: 0.9 | M94: 0.05 | N94: =(NORMINV(M94,$F94,$W94)*'Project Charact'!$G$100*'Toll Rate'!$I44*'Project Charact'!$G$23*'T & R'!$H97)+(NORMINV(M94,$F94,$W94)*'Project Charact'!$G$100*'Toll Rate'!$I44*(1+'Project Charact'!$G$108)*'Project Charact'!$G$23*(1-'T & R'!$H97)) -> 24989241.01 | O94: 0.95 | P94: =(NORMINV(O94,$F94,$W94)*'Project Charact'!$G$100*'Toll Rate'!$I44*'Project Charact'!$G$23*'T & R'!$H97)+(NORMINV(O94,$F94,$W94)*'Project Charact'!$G$100*'Toll Rate'!$I44*(1+'Project Charact'!$G$108)*'Project Charact'!$G$23*(1-'T & R'!$H97)) -> 33776627.56 | Q94: 0.9 | W94: =+Traffic!O32 -> 3179.554236
D95: 20 | E95: 2034 | F95: =+IF(Traffic!J33>Traffic!$K$8,Traffic!K33*Traffic!R33,Traffic!G33) -> 36374.10046 | G95: =+((F95*'Project Charact'!$G$100)*'Toll Rate'!$I45*'Project Charact'!$G$23*'T & R'!$H98)+((F95*'Project Charact'!$G$100)*'Toll Rate'!$I45*(1+'Project Charact'!$G$108)*'Project Charact'!$G$23*(1-'T & R'!$H98)) -> 31322207.95 | H95: 0.05 | I95: =('Project Charact'!$G$100*'Toll Rate'!I45*'Project Charact'!$G$23*(Traffic!AA33+SQRT(H95*(F95-Traffic!AA33)*(Traffic!AB33-Traffic!AA33)))*('T & R'!H98))+('Project Charact'!$G$100*'Toll Rate'!I45*'Project Charact'!$G$23*(Traffic!AA33+SQRT(H95*(F95-Traffic!AA33)*(Traffic!AB33-Traffic!AA33)))*(1-'T & R'!H98)) -> 24325787.76 | J95: 0.95 | K95: =('Project Charact'!$G$100*'Toll Rate'!I45*'Project Charact'!$G$23*(Traffic!AB33-SQRT((1-J95)*(Traffic!AB33-F95)*(Traffic!AB33-Traffic!AA33)))*('T & R'!H98))+('Project Charact'!$G$100*'Toll Rate'!I45*'Project Charact'!$G$23*(Traffic!AB33-SQRT((1-J95)*(Traffic!AB33-F95)*(Traffic!AB33-Traffic!AA33)))*(1-'T & R'!H98)) -> 35484759.84 | L95: 0.9 | M95: 0.05 | N95: =(NORMINV(M95,$F95,$W95)*'Project Charact'!$G$100*'Toll Rate'!$I45*'Project Charact'!$G$23*'T & R'!$H98)+(NORMINV(M95,$F95,$W95)*'Project Charact'!$G$100*'Toll Rate'!$I45*(1+'Project Charact'!$G$108)*'Project Charact'!$G$23*(1-'T & R'!$H98)) -> 26638530.92 | O95: 0.95 | P95: =(NORMINV(O95,$F95,$W95)*'Project Charact'!$G$100*'Toll Rate'!$I45*'Project Charact'!$G$23*'T & R'!$H98)+(NORMINV(O95,$F95,$W95)*'Project Charact'!$G$100*'Toll Rate'!$I45*(1+'Project Charact'!$G$108)*'Project Charact'!$G$23*(1-'T & R'!$H98)) -> 36005884.98 | Q95: 0.9 | W95: =+Traffic!O33 -> 3306.736405
D96: 21 | E96: 2035 | F96: =+IF(Traffic!J34>Traffic!$K$8,Traffic!K34*Traffic!R34,Traffic!G34) -> 37465.32347 | G96: =+((F96*'Project Charact'!$G$100)*'Toll Rate'!$I46*'Project Charact'!$G$23*'T & R'!$H99)+((F96*'Project Charact'!$G$100)*'Toll Rate'!$I46*(1+'Project Charact'!$G$108)*'Project Charact'!$G$23*(1-'T & R'!$H99)) -> 32281077.68 | H96: 0.05 | I96: =('Project Charact'!$G$100*'Toll Rate'!I46*'Project Charact'!$G$23*(Traffic!AA34+SQRT(H96*(F96-Traffic!AA34)*(Traffic!AB34-Traffic!AA34)))*('T & R'!H99))+('Project Charact'!$G$100*'Toll Rate'!I46*'Project Charact'!$G$23*(Traffic!AA34+SQRT(H96*(F96-Traffic!AA34)*(Traffic!AB34-Traffic!AA34)))*(1-'T & R'!H99)) -> 25681950.43 | J96: 0.95 | K96: =('Project Charact'!$G$100*'Toll Rate'!I46*'Project Charact'!$G$23*(Traffic!AB34-SQRT((1-J96)*(Traffic!AB34-F96)*(Traffic!AB34-Traffic!AA34)))*('T & R'!H99))+('Project Charact'!$G$100*'Toll Rate'!I46*'Project Charact'!$G$23*(Traffic!AB34-SQRT((1-J96)*(Traffic!AB34-F96)*(Traffic!AB34-Traffic!AA34)))*(1-'T & R'!H99)) -> 37463035.2 | L96: 0.9 | M96: 0.05 | N96: =(NORMINV(M96,$F96,$W96)*'Project Charact'!$G$100*'Toll Rate'!$I46*'Project Charact'!$G$23*'T & R'!$H99)+(NORMINV(M96,$F96,$W96)*'Project Charact'!$G$100*'Toll Rate'!$I46*(1+'Project Charact'!$G$108)*'Project Charact'!$G$23*(1-'T & R'!$H99)) -> 27454018.8 | O96: 0.95 | P96: =(NORMINV(O96,$F96,$W96)*'Project Charact'!$G$100*'Toll Rate'!$I46*'Project Charact'!$G$23*'T & R'!$H99)+(NORMINV(O96,$F96,$W96)*'Project Charact'!$G$100*'Toll Rate'!$I46*(1+'Project Charact'!$G$108)*'Project Charact'!$G$23*(1-'T & R'!$H99)) -> 37108136.56 | Q96: 0.9 | W96: =+Traffic!O34 -> 3405.938497
D97: 22 | E97: 2036 | F97: =+IF(Traffic!J35>Traffic!$K$8,Traffic!K35*Traffic!R35,Traffic!G35) -> 38589.28317 | G97: =+((F97*'Project Charact'!$G$100)*'Toll Rate'!$I47*'Project Charact'!$G$23*'T & R'!$H100)+((F97*'Project Charact'!$G$100)*'Toll Rate'!$I47*(1+'Project Charact'!$G$108)*'Project Charact'!$G$23*(1-'T & R'!$H100)) -> 34080747.76 | H97: 0.05 | I97: =('Project Charact'!$G$100*'Toll Rate'!I47*'Project Charact'!$G$23*(Traffic!AA35+SQRT(H97*(F97-Traffic!AA35)*(Traffic!AB35-Traffic!AA35)))*('T & R'!H100))+('Project Charact'!$G$100*'Toll Rate'!I47*'Project Charact'!$G$23*(Traffic!AA35+SQRT(H97*(F97-Traffic!AA35)*(Traffic!AB35-Traffic!AA35)))*(1-'T & R'!H100)) -> 27113719.16 | J97: 0.95 | K97: =('Project Charact'!$G$100*'Toll Rate'!I47*'Project Charact'!$G$23*(Traffic!AB35-SQRT((1-J97)*(Traffic!AB35-F97)*(Traffic!AB35-Traffic!AA35)))*('T & R'!H100))+('Project Charact'!$G$100*'Toll Rate'!I47*'Project Charact'!$G$23*(Traffic!AB35-SQRT((1-J97)*(Traffic!AB35-F97)*(Traffic!AB35-Traffic!AA35)))*(1-'T & R'!H100)) -> 39551599.42 | L97: 0.9 | M97: 0.05 | N97: =(NORMINV(M97,$F97,$W97)*'Project Charact'!$G$100*'Toll Rate'!$I47*'Project Charact'!$G$23*'T & R'!$H100)+(NORMINV(M97,$F97,$W97)*'Project Charact'!$G$100*'Toll Rate'!$I47*(1+'Project Charact'!$G$108)*'Project Charact'!$G$23*(1-'T & R'!$H100)) -> 28984580.35 | O97: 0.95 | P97: =(NORMINV(O97,$F97,$W97)*'Project Charact'!$G$100*'Toll Rate'!$I47*'Project Charact'!$G$23*'T & R'!$H100)+(NORMINV(O97,$F97,$W97)*'Project Charact'!$G$100*'Toll Rate'!$I47*(1+'Project Charact'!$G$108)*'Project Charact'!$G$23*(1-'T & R'!$H100)) -> 39176915.18 | Q97: 0.9 | W97: =+Traffic!O35 -> 3508.116652
D98: 23 | E98: 2037 | F98: =+IF(Traffic!J36>Traffic!$K$8,Traffic!K36*Traffic!R36,Traffic!G36) -> 39746.96167 | G98: =+((F98*'Project Charact'!$G$100)*'Toll Rate'!$I48*'Project Charact'!$G$23*'T & R'!$H101)+((F98*'Project Charact'!$G$100)*'Toll Rate'!$I48*(1+'Project Charact'!$G$108)*'Project Charact'!$G$23*(1-'T & R'!$H101)) -> 35980749.45 | H98: 0.05 | I98: =('Project Charact'!$G$100*'Toll Rate'!I48*'Project Charact'!$G$23*(Traffic!AA36+SQRT(H98*(F98-Traffic!AA36)*(Traffic!AB36-Traffic!AA36)))*('T & R'!H101))+('Project Charact'!$G$100*'Toll Rate'!I48*'Project Charact'!$G$23*(Traffic!AA36+SQRT(H98*(F98-Traffic!AA36)*(Traffic!AB36-Traffic!AA36)))*(1-'T & R'!H101)) -> 28625309.01 | J98: 0.95 | K98: =('Project Charact'!$G$100*'Toll Rate'!I48*'Project Charact'!$G$23*(Traffic!AB36-SQRT((1-J98)*(Traffic!AB36-F98)*(Traffic!AB36-Traffic!AA36)))*('T & R'!H101))+('Project Charact'!$G$100*'Toll Rate'!I48*'Project Charact'!$G$23*(Traffic!AB36-SQRT((1-J98)*(Traffic!AB36-F98)*(Traffic!AB36-Traffic!AA36)))*(1-'T & R'!H101)) -> 41756601.09 | L98: 0.9 | M98: 0.05 | N98: =(NORMINV(M98,$F98,$W98)*'Project Charact'!$G$100*'Toll Rate'!$I48*'Project Charact'!$G$23*'T & R'!$H101)+(NORMINV(M98,$F98,$W98)*'Project Charact'!$G$100*'Toll Rate'!$I48*(1+'Project Charact'!$G$108)*'Project Charact'!$G$23*(1-'T & R'!$H101)) -> 30600470.7 | O98: 0.95 | P98: =(NORMINV(O98,$F98,$W98)*'Project Charact'!$G$100*'Toll Rate'!$I48*'Project Charact'!$G$23*'T & R'!$H101)+(NORMINV(O98,$F98,$W98)*'Project Charact'!$G$100*'Toll Rate'!$I48*(1+'Project Charact'!$G$108)*'Project Charact'!$G$23*(1-'T & R'!$H101)) -> 41361028.2 | Q98: 0.9 | W98: =+Traffic!O36 -> 3613.360152
D99: 24 | E99: 2038 | F99: =+IF(Traffic!J37>Traffic!$K$8,Traffic!K37*Traffic!R37,Traffic!G37) -> 40939.37052 | G99: =+((F99*'Project Charact'!$G$100)*'Toll Rate'!$I49*'Project Charact'!$G$23*'T & R'!$H102)+((F99*'Project Charact'!$G$100)*'Toll Rate'!$I49*(1+'Project Charact'!$G$108)*'Project Charact'!$G$23*(1-'T & R'!$H102)) -> 37986676.23 | H99: 0.05 | I99: =('Project Charact'!$G$100*'Toll Rate'!I49*'Project Charact'!$G$23*(Traffic!AA37+SQRT(H99*(F99-Traffic!AA37)*(Traffic!AB37-Traffic!AA37)))*('T & R'!H102))+('Project Charact'!$G$100*'Toll Rate'!I49*'Project Charact'!$G$23*(Traffic!AA37+SQRT(H99*(F99-Traffic!AA37)*(Traffic!AB37-Traffic!AA37)))*(1-'T & R'!H102)) -> 30221169.98 | J99: 0.95 | K99: =('Project Charact'!$G$100*'Toll Rate'!I49*'Project Charact'!$G$23*(Traffic!AB37-SQRT((1-J99)*(Traffic!AB37-F99)*(Traffic!AB37-Traffic!AA37)))*('T & R'!H102))+('Project Charact'!$G$100*'Toll Rate'!I49*'Project Charact'!$G$23*(Traffic!AB37-SQRT((1-J99)*(Traffic!AB37-F99)*(Traffic!AB37-Traffic!AA37)))*(1-'T & R'!H102)) -> 44084531.6 | L99: 0.9 | M99: 0.05 | N99: =(NORMINV(M99,$F99,$W99)*'Project Charact'!$G$100*'Toll Rate'!$I49*'Project Charact'!$G$23*'T & R'!$H102)+(NORMINV(M99,$F99,$W99)*'Project Charact'!$G$100*'Toll Rate'!$I49*(1+'Project Charact'!$G$108)*'Project Charact'!$G$23*(1-'T & R'!$H102)) -> 32306446.94 | O99: 0.95 | P99: =(NORMINV(O99,$F99,$W99)*'Project Charact'!$G$100*'Toll Rate'!$I49*'Project Charact'!$G$23*'T & R'!$H102)+(NORMINV(O99,$F99,$W99)*'Project Charact'!$G$100*'Toll Rate'!$I49*(1+'Project Charact'!$G$108)*'Project Charact'!$G$23*(1-'T & R'!$H102)) -> 43666905.52 | Q99: 0.9 | W99: =+Traffic!O37 -> 3721.760956
D100: 25 | E100: 2039 | F100: =+IF(Traffic!J38>Traffic!$K$8,Traffic!K38*Traffic!R38,Traffic!G38) -> 42167.55163 | G100: =+((F100*'Project Charact'!$G$100)*'Toll Rate'!$I50*'Project Charact'!$G$23*'T & R'!$H103)+((F100*'Project Charact'!$G$100)*'Toll Rate'!$I50*(1+'Project Charact'!$G$108)*'Project Charact'!$G$23*(1-'T & R'!$H103)) -> 40104433.43 | H100: 0.05 | I100: =('Project Charact'!$G$100*'Toll Rate'!I50*'Project Charact'!$G$23*(Traffic!AA38+SQRT(H100*(F100-Traffic!AA38)*(Traffic!AB38-Traffic!AA38)))*('T & R'!H103))+('Project Charact'!$G$100*'Toll Rate'!I50*'Project Charact'!$G$23*(Traffic!AA38+SQRT(H100*(F100-Traffic!AA38)*(Traffic!AB38-Traffic!AA38)))*(1-'T & R'!H103)) -> 31906000.21 | J100: 0.95 | K100: =('Project Charact'!$G$100*'Toll Rate'!I50*'Project Charact'!$G$23*(Traffic!AB38-SQRT((1-J100)*(Traffic!AB38-F100)*(Traffic!AB38-Traffic!AA38)))*('T & R'!H103))+('Project Charact'!$G$100*'Toll Rate'!I50*'Project Charact'!$G$23*(Traffic!AB38-SQRT((1-J100)*(Traffic!AB38-F100)*(Traffic!AB38-Traffic!AA38)))*(1-'T & R'!H103)) -> 46542244.23 | L100: 0.9 | M100: 0.05 | N100: =(NORMINV(M100,$F100,$W100)*'Project Charact'!$G$100*'Toll Rate'!$I50*'Project Charact'!$G$23*'T & R'!$H103)+(NORMINV(M100,$F100,$W100)*'Project Charact'!$G$100*'Toll Rate'!$I50*(1+'Project Charact'!$G$108)*'Project Charact'!$G$23*(1-'T & R'!$H103)) -> 34107531.36 | O100: 0.95 | P100: =(NORMINV(O100,$F100,$W100)*'Project Charact'!$G$100*'Toll Rate'!$I50*'Project Charact'!$G$23*'T & R'!$H103)+(NORMINV(O100,$F100,$W100)*'Project Charact'!$G$100*'Toll Rate'!$I50*(1+'Project Charact'!$G$108)*'Project Charact'!$G$23*(1-'T & R'!$H103)) -> 46101335.5 | Q100: 0.9 | W100: =+Traffic!O38 -> 3833.413785
D101: 26 | E101: 2040 | F101: =+IF(Traffic!J39>Traffic!$K$8,Traffic!K39*Traffic!R39,Traffic!G39) -> 43432.57818 | G101: =+((F101*'Project Charact'!$G$100)*'Toll Rate'!$I51*'Project Charact'!$G$23*'T & R'!$H104)+((F101*'Project Charact'!$G$100)*'Toll Rate'!$I51*(1+'Project Charact'!$G$108)*'Project Charact'!$G$23*(1-'T & R'!$H104)) -> 42340255.6 | H101: 0.05 | I101: =('Project Charact'!$G$100*'Toll Rate'!I51*'Project Charact'!$G$23*(Traffic!AA39+SQRT(H101*(F101-Traffic!AA39)*(Traffic!AB39-Traffic!AA39)))*('T & R'!H104))+('Project Charact'!$G$100*'Toll Rate'!I51*'Project Charact'!$G$23*(Traffic!AA39+SQRT(H101*(F101-Traffic!AA39)*(Traffic!AB39-Traffic!AA39)))*(1-'T & R'!H104)) -> 33684759.72 | J101: 0.95 | K101: =('Project Charact'!$G$100*'Toll Rate'!I51*'Project Charact'!$G$23*(Traffic!AB39-SQRT((1-J101)*(Traffic!AB39-F101)*(Traffic!AB39-Traffic!AA39)))*('T & R'!H104))+('Project Charact'!$G$100*'Toll Rate'!I51*'Project Charact'!$G$23*(Traffic!AB39-SQRT((1-J101)*(Traffic!AB39-F101)*(Traffic!AB39-Traffic!AA39)))*(1-'T & R'!H104)) -> 49136974.35 | L101: 0.9 | M101: 0.05 | N101: =(NORMINV(M101,$F101,$W101)*'Project Charact'!$G$100*'Toll Rate'!$I51*'Project Charact'!$G$23*'T & R'!$H104)+(NORMINV(M101,$F101,$W101)*'Project Charact'!$G$100*'Toll Rate'!$I51*(1+'Project Charact'!$G$108)*'Project Charact'!$G$23*(1-'T & R'!$H104)) -> 36009026.23 | O101: 0.95 | P101: =(NORMINV(O101,$F101,$W101)*'Project Charact'!$G$100*'Toll Rate'!$I51*'Project Charact'!$G$23*'T & R'!$H104)+(NORMINV(O101,$F101,$W101)*'Project Charact'!$G$100*'Toll Rate'!$I51*(1+'Project Charact'!$G$108)*'Project Charact'!$G$23*(1-'T & R'!$H104)) -> 48671484.96 | Q101: 0.9 | W101: =+Traffic!O39 -> 3948.416198
D102: 27 | E102: 2041 | F102: =+IF(Traffic!J40>Traffic!$K$8,Traffic!K40*Traffic!R40,Traffic!G40) -> 44735.55553 | G102: =+((F102*'Project Charact'!$G$100)*'Toll Rate'!$I52*'Project Charact'!$G$23*'T & R'!$H105)+((F102*'Project Charact'!$G$100)*'Toll Rate'!$I52*(1+'Project Charact'!$G$108)*'Project Charact'!$G$23*(1-'T & R'!$H105)) -> 44700724.85 | H102: 0.05 | I102: =('Project Charact'!$G$100*'Toll Rate'!I52*'Project Charact'!$G$23*(Traffic!AA40+SQRT(H102*(F102-Traffic!AA40)*(Traffic!AB40-Traffic!AA40)))*('T & R'!H105))+('Project Charact'!$G$100*'Toll Rate'!I52*'Project Charact'!$G$23*(Traffic!AA40+SQRT(H102*(F102-Traffic!AA40)*(Traffic!AB40-Traffic!AA40)))*(1-'T & R'!H105)) -> 35562685.07 | J102: 0.95 | K102: =('Project Charact'!$G$100*'Toll Rate'!I52*'Project Charact'!$G$23*(Traffic!AB40-SQRT((1-J102)*(Traffic!AB40-F102)*(Traffic!AB40-Traffic!AA40)))*('T & R'!H105))+('Project Charact'!$G$100*'Toll Rate'!I52*'Project Charact'!$G$23*(Traffic!AB40-SQRT((1-J102)*(Traffic!AB40-F102)*(Traffic!AB40-Traffic!AA40)))*(1-'T & R'!H105)) -> 51876360.67 | L102: 0.9 | M102: 0.05 | N102: =(NORMINV(M102,$F102,$W102)*'Project Charact'!$G$100*'Toll Rate'!$I52*'Project Charact'!$G$23*'T & R'!$H105)+(NORMINV(M102,$F102,$W102)*'Project Charact'!$G$100*'Toll Rate'!$I52*(1+'Project Charact'!$G$108)*'Project Charact'!$G$23*(1-'T & R'!$H105)) -> 38016529.45 | O102: 0.95 | P102: =(NORMINV(O102,$F102,$W102)*'Project Charact'!$G$100*'Toll Rate'!$I52*'Project Charact'!$G$23*'T & R'!$H105)+(NORMINV(O102,$F102,$W102)*'Project Charact'!$G$100*'Toll Rate'!$I52*(1+'Project Charact'!$G$108)*'Project Charact'!$G$23*(1-'T & R'!$H105)) -> 51384920.24 | Q102: 0.9 | W102: =+Traffic!O40 -> 4066.868684
D103: 28 | E103: 2042 | F103: =+IF(Traffic!J41>Traffic!$K$8,Traffic!K41*Traffic!R41,Traffic!G41) -> 46077.62219 | G103: =+((F103*'Project Charact'!$G$100)*'Toll Rate'!$I53*'Project Charact'!$G$23*'T & R'!$H106)+((F103*'Project Charact'!$G$100)*'Toll Rate'!$I53*(1+'Project Charact'!$G$108)*'Project Charact'!$G$23*(1-'T & R'!$H106)) -> 47192790.26 | H103: 0.05 | I103: =('Project Charact'!$G$100*'Toll Rate'!I53*'Project Charact'!$G$23*(Traffic!AA41+SQRT(H103*(F103-Traffic!AA41)*(Traffic!AB41-Traffic!AA41)))*('T & R'!H106))+('Project Charact'!$G$100*'Toll Rate'!I53*'Project Charact'!$G$23*(Traffic!AA41+SQRT(H103*(F103-Traffic!AA41)*(Traffic!AB41-Traffic!AA41)))*(1-'T & R'!H106)) -> 37545304.77 | J103: 0.95 | K103: =('Project Charact'!$G$100*'Toll Rate'!I53*'Project Charact'!$G$23*(Traffic!AB41-SQRT((1-J103)*(Traffic!AB41-F103)*(Traffic!AB41-Traffic!AA41)))*('T & R'!H106))+('Project Charact'!$G$100*'Toll Rate'!I53*'Project Charact'!$G$23*(Traffic!AB41-SQRT((1-J103)*(Traffic!AB41-F103)*(Traffic!AB41-Traffic!AA41)))*(1-'T & R'!H106)) -> 54768467.78 | L103: 0.9 | M103: 0.05 | N103: =(NORMINV(M103,$F103,$W103)*'Project Charact'!$G$100*'Toll Rate'!$I53*'Project Charact'!$G$23*'T & R'!$H106)+(NORMINV(M103,$F103,$W103)*'Project Charact'!$G$100*'Toll Rate'!$I53*(1+'Project Charact'!$G$108)*'Project Charact'!$G$23*(1-'T & R'!$H106)) -> 40135950.96 | O103: 0.95 | P103: =(NORMINV(O103,$F103,$W103)*'Project Charact'!$G$100*'Toll Rate'!$I53*'Project Charact'!$G$23*'T & R'!$H106)+(NORMINV(O103,$F103,$W103)*'Project Charact'!$G$100*'Toll Rate'!$I53*(1+'Project Charact'!$G$108)*'Project Charact'!$G$23*(1-'T & R'!$H106)) -> 54249629.55 | Q103: 0.9 | W103: =+Traffic!O41 -> 4188.874745
D104: 29 | E104: 2043 | F104: =+IF(Traffic!J42>Traffic!$K$8,Traffic!K42*Traffic!R42,Traffic!G42) -> 47459.95086 | G104: =+((F104*'Project Charact'!$G$100)*'Toll Rate'!$I54*'Project Charact'!$G$23*'T & R'!$H107)+((F104*'Project Charact'!$G$100)*'Toll Rate'!$I54*(1+'Project Charact'!$G$108)*'Project Charact'!$G$23*(1-'T & R'!$H107)) -> 49823788.31 | H104: 0.05 | I104: =('Project Charact'!$G$100*'Toll Rate'!I54*'Project Charact'!$G$23*(Traffic!AA42+SQRT(H104*(F104-Traffic!AA42)*(Traffic!AB42-Traffic!AA42)))*('T & R'!H107))+('Project Charact'!$G$100*'Toll Rate'!I54*'Project Charact'!$G$23*(Traffic!AA42+SQRT(H104*(F104-Traffic!AA42)*(Traffic!AB42-Traffic!AA42)))*(1-'T & R'!H107)) -> 39638455.51 | J104: 0.95 | K104: =('Project Charact'!$G$100*'Toll Rate'!I54*'Project Charact'!$G$23*(Traffic!AB42-SQRT((1-J104)*(Traffic!AB42-F104)*(Traffic!AB42-Traffic!AA42)))*('T & R'!H107))+('Project Charact'!$G$100*'Toll Rate'!I54*'Project Charact'!$G$23*(Traffic!AB42-SQRT((1-J104)*(Traffic!AB42-F104)*(Traffic!AB42-Traffic!AA42)))*(1-'T & R'!H107)) -> 57821809.85 | L104: 0.9 | M104: 0.05 | N104: =(NORMINV(M104,$F104,$W104)*'Project Charact'!$G$100*'Toll Rate'!$I54*'Project Charact'!$G$23*'T & R'!$H107)+(NORMINV(M104,$F104,$W104)*'Project Charact'!$G$100*'Toll Rate'!$I54*(1+'Project Charact'!$G$108)*'Project Charact'!$G$23*(1-'T & R'!$H107)) -> 42373530.23 | O104: 0.95 | P104: =(NORMINV(O104,$F104,$W104)*'Project Charact'!$G$100*'Toll Rate'!$I54*'Project Charact'!$G$23*'T & R'!$H107)+(NORMINV(O104,$F104,$W104)*'Project Charact'!$G$100*'Toll Rate'!$I54*(1+'Project Charact'!$G$108)*'Project Charact'!$G$23*(1-'T & R'!$H107)) -> 57274046.4 | Q104: 0.9 | W104: =+Traffic!O42 -> 4314.540987
D105: 30 | E105: 2044 | F105: =+IF(Traffic!J43>Traffic!$K$8,Traffic!K43*Traffic!R43,Traffic!G43) -> 48883.74939 | G105: =+((F105*'Project Charact'!$G$100)*'Toll Rate'!$I55*'Project Charact'!$G$23*'T & R'!$H108)+((F105*'Project Charact'!$G$100)*'Toll Rate'!$I55*(1+'Project Charact'!$G$108)*'Project Charact'!$G$23*(1-'T & R'!$H108)) -> 52601464.51 | H105: 0.05 | I105: =('Project Charact'!$G$100*'Toll Rate'!I55*'Project Charact'!$G$23*(Traffic!AA43+SQRT(H105*(F105-Traffic!AA43)*(Traffic!AB43-Traffic!AA43)))*('T & R'!H108))+('Project Charact'!$G$100*'Toll Rate'!I55*'Project Charact'!$G$23*(Traffic!AA43+SQRT(H105*(F105-Traffic!AA43)*(Traffic!AB43-Traffic!AA43)))*(1-'T & R'!H108)) -> 41848299.4 | J105: 0.95 | K105: =('Project Charact'!$G$100*'Toll Rate'!I55*'Project Charact'!$G$23*(Traffic!AB43-SQRT((1-J105)*(Traffic!AB43-F105)*(Traffic!AB43-Traffic!AA43)))*('T & R'!H108))+('Project Charact'!$G$100*'Toll Rate'!I55*'Project Charact'!$G$23*(Traffic!AB43-SQRT((1-J105)*(Traffic!AB43-F105)*(Traffic!AB43-Traffic!AA43)))*(1-'T & R'!H108)) -> 61045375.75 | L105: 0.9 | M105: 0.05 | N105: =(NORMINV(M105,$F105,$W105)*'Project Charact'!$G$100*'Toll Rate'!$I55*'Project Charact'!$G$23*'T & R'!$H108)+(NORMINV(M105,$F105,$W105)*'Project Charact'!$G$100*'Toll Rate'!$I55*(1+'Project Charact'!$G$108)*'Project Charact'!$G$23*(1-'T & R'!$H108)) -> 44735854.54 | O105: 0.95 | P105: =(NORMINV(O105,$F105,$W105)*'Project Charact'!$G$100*'Toll Rate'!$I55*'Project Charact'!$G$23*'T & R'!$H108)+(NORMINV(O105,$F105,$W105)*'Project Charact'!$G$100*'Toll Rate'!$I55*(1+'Project Charact'!$G$108)*'Project Charact'!$G$23*(1-'T & R'!$H108)) -> 60467074.48 | Q105: 0.9 | W105: =+Traffic!O43 -> 4443.977217
D106: 31 | E106: 2045 | F106: =+IF(Traffic!J44>Traffic!$K$8,Traffic!K44*Traffic!R44,Traffic!G44) -> 49861.42437 | G106: =+((F106*'Project Charact'!$G$100)*'Toll Rate'!$I56*'Project Charact'!$G$23*'T & R'!$H109)+((F106*'Project Charact'!$G$100)*'Toll Rate'!$I56*(1+'Project Charact'!$G$108)*'Project Charact'!$G$23*(1-'T & R'!$H109)) -> 54994831.15 | H106: 0.05 | I106: =('Project Charact'!$G$100*'Toll Rate'!I56*'Project Charact'!$G$23*(Traffic!AA44+SQRT(H106*(F106-Traffic!AA44)*(Traffic!AB44-Traffic!AA44)))*('T & R'!H109))+('Project Charact'!$G$100*'Toll Rate'!I56*'Project Charact'!$G$23*(Traffic!AA44+SQRT(H106*(F106-Traffic!AA44)*(Traffic!AB44-Traffic!AA44)))*(1-'T & R'!H109)) -> 43752397.03 | J106: 0.95 | K106: =('Project Charact'!$G$100*'Toll Rate'!I56*'Project Charact'!$G$23*(Traffic!AB44-SQRT((1-J106)*(Traffic!AB44-F106)*(Traffic!AB44-Traffic!AA44)))*('T & R'!H109))+('Project Charact'!$G$100*'Toll Rate'!I56*'Project Charact'!$G$23*(Traffic!AB44-SQRT((1-J106)*(Traffic!AB44-F106)*(Traffic!AB44-Traffic!AA44)))*(1-'T & R'!H109)) -> 63822940.35 | L106: 0.9 | M106: 0.05 | N106: =(NORMINV(M106,$F106,$W106)*'Project Charact'!$G$100*'Toll Rate'!$I56*'Project Charact'!$G$23*'T & R'!$H109)+(NORMINV(M106,$F106,$W106)*'Project Charact'!$G$100*'Toll Rate'!$I56*(1+'Project Charact'!$G$108)*'Project Charact'!$G$23*(1-'T & R'!$H109)) -> 46771335.92 | O106: 0.95 | P106: =(NORMINV(O106,$F106,$W106)*'Project Charact'!$G$100*'Toll Rate'!$I56*'Project Charact'!$G$23*'T & R'!$H109)+(NORMINV(O106,$F106,$W106)*'Project Charact'!$G$100*'Toll Rate'!$I56*(1+'Project Charact'!$G$108)*'Project Charact'!$G$23*(1-'T & R'!$H109)) -> 63218326.37 | Q106: 0.9 | W106: =+Traffic!O44 -> 4532.856761
D107: 32 | E107: 2046 | F107: =+IF(Traffic!J45>Traffic!$K$8,Traffic!K45*Traffic!R45,Traffic!G45) -> 50858.65286 | G107: =+((F107*'Project Charact'!$G$100)*'Toll Rate'!$I57*'Project Charact'!$G$23*'T & R'!$H110)+((F107*'Project Charact'!$G$100)*'Toll Rate'!$I57*(1+'Project Charact'!$G$108)*'Project Charact'!$G$23*(1-'T & R'!$H110)) -> 57497095.96 | H107: 0.05 | I107: =('Project Charact'!$G$100*'Toll Rate'!I57*'Project Charact'!$G$23*(Traffic!AA45+SQRT(H107*(F107-Traffic!AA45)*(Traffic!AB45-Traffic!AA45)))*('T & R'!H110))+('Project Charact'!$G$100*'Toll Rate'!I57*'Project Charact'!$G$23*(Traffic!AA45+SQRT(H107*(F107-Traffic!AA45)*(Traffic!AB45-Traffic!AA45)))*(1-'T & R'!H110)) -> 45743131.09 | J107: 0.95 | K107: =('Project Charact'!$G$100*'Toll Rate'!I57*'Project Charact'!$G$23*(Traffic!AB45-SQRT((1-J107)*(Traffic!AB45-F107)*(Traffic!AB45-Traffic!AA45)))*('T & R'!H110))+('Project Charact'!$G$100*'Toll Rate'!I57*'Project Charact'!$G$23*(Traffic!AB45-SQRT((1-J107)*(Traffic!AB45-F107)*(Traffic!AB45-Traffic!AA45)))*(1-'T & R'!H110)) -> 66726884.14 | L107: 0.9 | M107: 0.05 | N107: =(NORMINV(M107,$F107,$W107)*'Project Charact'!$G$100*'Toll Rate'!$I57*'Project Charact'!$G$23*'T & R'!$H110)+(NORMINV(M107,$F107,$W107)*'Project Charact'!$G$100*'Toll Rate'!$I57*(1+'Project Charact'!$G$108)*'Project Charact'!$G$23*(1-'T & R'!$H110)) -> 48899431.71 | O107: 0.95 | P107: =(NORMINV(O107,$F107,$W107)*'Project Charact'!$G$100*'Toll Rate'!$I57*'Project Charact'!$G$23*'T & R'!$H110)+(NORMINV(O107,$F107,$W107)*'Project Charact'!$G$100*'Toll Rate'!$I57*(1+'Project Charact'!$G$108)*'Project Charact'!$G$23*(1-'T & R'!$H110)) -> 66094760.22 | Q107: 0.9 | W107: =+Traffic!O45 -> 4623.513896
D108: 33 | E108: 2047 | F108: =+IF(Traffic!J46>Traffic!$K$8,Traffic!K46*Traffic!R46,Traffic!G46) -> 51875.82592 | G108: =+((F108*'Project Charact'!$G$100)*'Toll Rate'!$I58*'Project Charact'!$G$23*'T & R'!$H111)+((F108*'Project Charact'!$G$100)*'Toll Rate'!$I58*(1+'Project Charact'!$G$108)*'Project Charact'!$G$23*(1-'T & R'!$H111)) -> 60113213.83 | H108: 0.05 | I108: =('Project Charact'!$G$100*'Toll Rate'!I58*'Project Charact'!$G$23*(Traffic!AA46+SQRT(H108*(F108-Traffic!AA46)*(Traffic!AB46-Traffic!AA46)))*('T & R'!H111))+('Project Charact'!$G$100*'Toll Rate'!I58*'Project Charact'!$G$23*(Traffic!AA46+SQRT(H108*(F108-Traffic!AA46)*(Traffic!AB46-Traffic!AA46)))*(1-'T & R'!H111)) -> 47824443.56 | J108: 0.95 | K108: =('Project Charact'!$G$100*'Toll Rate'!I58*'Project Charact'!$G$23*(Traffic!AB46-SQRT((1-J108)*(Traffic!AB46-F108)*(Traffic!AB46-Traffic!AA46)))*('T & R'!H111))+('Project Charact'!$G$100*'Toll Rate'!I58*'Project Charact'!$G$23*(Traffic!AB46-SQRT((1-J108)*(Traffic!AB46-F108)*(Traffic!AB46-Traffic!AA46)))*(1-'T & R'!H111)) -> 69762957.36 | L108: =J108-H108 -> 0.9 | M108: 0.05 | N108: =(NORMINV(M108,$F108,$W108)*'Project Charact'!$G$100*'Toll Rate'!$I58*'Project Charact'!$G$23*'T & R'!$H111)+(NORMINV(M108,$F108,$W108)*'Project Charact'!$G$100*'Toll Rate'!$I58*(1+'Project Charact'!$G$108)*'Project Charact'!$G$23*(1-'T & R'!$H111)) -> 51124355.85 | O108: 0.95 | P108: =(NORMINV(O108,$F108,$W108)*'Project Charact'!$G$100*'Toll Rate'!$I58*'Project Charact'!$G$23*'T & R'!$H111)+(NORMINV(O108,$F108,$W108)*'Project Charact'!$G$100*'Toll Rate'!$I58*(1+'Project Charact'!$G$108)*'Project Charact'!$G$23*(1-'T & R'!$H111)) -> 69102071.81 | Q108: =O108-M108 -> 0.9 | W108: =+Traffic!O46 -> 4715.984174
D109: 34 | E109: =1+E108 -> 2048 | F109: =+IF(Traffic!J47>Traffic!$K$8,Traffic!K47*Traffic!R47,Traffic!G47) -> 52913.34244 | G109: =+((F109*'Project Charact'!$G$100)*'Toll Rate'!$I59*'Project Charact'!$G$23*'T & R'!$H112)+((F109*'Project Charact'!$G$100)*'Toll Rate'!$I59*(1+'Project Charact'!$G$108)*'Project Charact'!$G$23*(1-'T & R'!$H112)) -> 62848365.06 | H109: 0.05 | I109: =('Project Charact'!$G$100*'Toll Rate'!I59*'Project Charact'!$G$23*(Traffic!AA47+SQRT(H109*(F109-Traffic!AA47)*(Traffic!AB47-Traffic!AA47)))*('T & R'!H112))+('Project Charact'!$G$100*'Toll Rate'!I59*'Project Charact'!$G$23*(Traffic!AA47+SQRT(H109*(F109-Traffic!AA47)*(Traffic!AB47-Traffic!AA47)))*(1-'T & R'!H112)) -> 50000455.74 | J109: 0.95 | K109: =('Project Charact'!$G$100*'Toll Rate'!I59*'Project Charact'!$G$23*(Traffic!AB47-SQRT((1-J109)*(Traffic!AB47-F109)*(Traffic!AB47-Traffic!AA47)))*('T & R'!H112))+('Project Charact'!$G$100*'Toll Rate'!I59*'Project Charact'!$G$23*(Traffic!AB47-SQRT((1-J109)*(Traffic!AB47-F109)*(Traffic!AB47-Traffic!AA47)))*(1-'T & R'!H112)) -> 72937171.92 | L109: 0.9 | M109: 0.05 | N109: =(NORMINV(M109,$F109,$W109)*'Project Charact'!$G$100*'Toll Rate'!$I59*'Project Charact'!$G$23*'T & R'!$H112)+(NORMINV(M109,$F109,$W109)*'Project Charact'!$G$100*'Toll Rate'!$I59*(1+'Project Charact'!$G$108)*'Project Charact'!$G$23*(1-'T & R'!$H112)) -> 53450514.04 | O109: 0.95 | P109: =(NORMINV(O109,$F109,$W109)*'Project Charact'!$G$100*'Toll Rate'!$I59*'Project Charact'!$G$23*'T & R'!$H112)+(NORMINV(O109,$F109,$W109)*'Project Charact'!$G$100*'Toll Rate'!$I59*(1+'Project Charact'!$G$108)*'Project Charact'!$G$23*(1-'T & R'!$H112)) -> 72246216.08 | Q109: 0.9 | W109: =+Traffic!O47 -> 4810.303858
D110: 35 | E110: 2049 | F110: =+IF(Traffic!J48>Traffic!$K$8,Traffic!K48*Traffic!R48,Traffic!G48) -> 53971.60929 | G110: =+((F110*'Project Charact'!$G$100)*'Toll Rate'!$I60*'Project Charact'!$G$23*'T & R'!$H113)+((F110*'Project Charact'!$G$100)*'Toll Rate'!$I60*(1+'Project Charact'!$G$108)*'Project Charact'!$G$23*(1-'T & R'!$H113)) -> 65707965.67 | H110: 0.05 | I110: =('Project Charact'!$G$100*'Toll Rate'!I60*'Project Charact'!$G$23*(Traffic!AA48+SQRT(H110*(F110-Traffic!AA48)*(Traffic!AB48-Traffic!AA48)))*('T & R'!H113))+('Project Charact'!$G$100*'Toll Rate'!I60*'Project Charact'!$G$23*(Traffic!AA48+SQRT(H110*(F110-Traffic!AA48)*(Traffic!AB48-Traffic!AA48)))*(1-'T & R'!H113)) -> 52275476.47 | J110: 0.95 | K110: =('Project Charact'!$G$100*'Toll Rate'!I60*'Project Charact'!$G$23*(Traffic!AB48-SQRT((1-J110)*(Traffic!AB48-F110)*(Traffic!AB48-Traffic!AA48)))*('T & R'!H113))+('Project Charact'!$G$100*'Toll Rate'!I60*'Project Charact'!$G$23*(Traffic!AB48-SQRT((1-J110)*(Traffic!AB48-F110)*(Traffic!AB48-Traffic!AA48)))*(1-'T & R'!H113)) -> 76255813.25 | L110: 0.9 | M110: 0.05 | N110: =(NORMINV(M110,$F110,$W110)*'Project Charact'!$G$100*'Toll Rate'!$I60*'Project Charact'!$G$23*'T & R'!$H113)+(NORMINV(M110,$F110,$W110)*'Project Charact'!$G$100*'Toll Rate'!$I60*(1+'Project Charact'!$G$108)*'Project Charact'!$G$23*(1-'T & R'!$H113)) -> 55882512.43 | O110: 0.95 | P110: =(NORMINV(O110,$F110,$W110)*'Project Charact'!$G$100*'Toll Rate'!$I60*'Project Charact'!$G$23*'T & R'!$H113)+(NORMINV(O110,$F110,$W110)*'Project Charact'!$G$100*'Toll Rate'!$I60*(1+'Project Charact'!$G$108)*'Project Charact'!$G$23*(1-'T & R'!$H113)) -> 75533418.91 | Q110: 0.9 | W110: =+Traffic!O48 -> 4906.509935
D111: 36 | E111: 2050 | F111: =+IF(Traffic!J49>Traffic!$K$8,Traffic!K49*Traffic!R49,Traffic!G49) -> 55051.04147 | G111: =+((F111*'Project Charact'!$G$100)*'Toll Rate'!$I61*'Project Charact'!$G$23*'T & R'!$H114)+((F111*'Project Charact'!$G$100)*'Toll Rate'!$I61*(1+'Project Charact'!$G$108)*'Project Charact'!$G$23*(1-'T & R'!$H114)) -> 67859901.54 | H111: 0.05 | I111: =('Project Charact'!$G$100*'Toll Rate'!I61*'Project Charact'!$G$23*(Traffic!AA49+SQRT(H111*(F111-Traffic!AA49)*(Traffic!AB49-Traffic!AA49)))*('T & R'!H114))+('Project Charact'!$G$100*'Toll Rate'!I61*'Project Charact'!$G$23*(Traffic!AA49+SQRT(H111*(F111-Traffic!AA49)*(Traffic!AB49-Traffic!AA49)))*(1-'T & R'!H114)) -> 54654010.65 | J111: 0.95 | K111: =('Project Charact'!$G$100*'Toll Rate'!I61*'Project Charact'!$G$23*(Traffic!AB49-SQRT((1-J111)*(Traffic!AB49-F111)*(Traffic!AB49-Traffic!AA49)))*('T & R'!H114))+('Project Charact'!$G$100*'Toll Rate'!I61*'Project Charact'!$G$23*(Traffic!AB49-SQRT((1-J111)*(Traffic!AB49-F111)*(Traffic!AB49-Traffic!AA49)))*(1-'T & R'!H114)) -> 79725452.75 | L111: 0.9 | M111: 0.05 | N111: =(NORMINV(M111,$F111,$W111)*'Project Charact'!$G$100*'Toll Rate'!$I61*'Project Charact'!$G$23*'T & R'!$H114)+(NORMINV(M111,$F111,$W111)*'Project Charact'!$G$100*'Toll Rate'!$I61*(1+'Project Charact'!$G$108)*'Project Charact'!$G$23*(1-'T & R'!$H114)) -> 57712664.71 | O111: 0.95 | P111: =(NORMINV(O111,$F111,$W111)*'Project Charact'!$G$100*'Toll Rate'!$I61*'Project Charact'!$G$23*'T & R'!$H114)+(NORMINV(O111,$F111,$W111)*'Project Charact'!$G$100*'Toll Rate'!$I61*(1+'Project Charact'!$G$108)*'Project Charact'!$G$23*(1-'T & R'!$H114)) -> 78007138.38 | Q111: 0.9 | W111: =+Traffic!O49 -> 5004.640134
D112: 37 | E112: 2051 | F112: =+IF(Traffic!J50>Traffic!$K$8,Traffic!K50*Traffic!R50,Traffic!G50) -> 56152.0623 | G112: =+((F112*'Project Charact'!$G$100)*'Toll Rate'!$I62*'Project Charact'!$G$23*'T & R'!$H115)+((F112*'Project Charact'!$G$100)*'Toll Rate'!$I62*(1+'Project Charact'!$G$108)*'Project Charact'!$G$23*(1-'T & R'!$H115)) -> 70947527.06 | H112: 0.05 | I112: =('Project Charact'!$G$100*'Toll Rate'!I62*'Project Charact'!$G$23*(Traffic!AA50+SQRT(H112*(F112-Traffic!AA50)*(Traffic!AB50-Traffic!AA50)))*('T & R'!H115))+('Project Charact'!$G$100*'Toll Rate'!I62*'Project Charact'!$G$23*(Traffic!AA50+SQRT(H112*(F112-Traffic!AA50)*(Traffic!AB50-Traffic!AA50)))*(1-'T & R'!H115)) -> 57140768.14 | J112: 0.95 | K112: =('Project Charact'!$G$100*'Toll Rate'!I62*'Project Charact'!$G$23*(Traffic!AB50-SQRT((1-J112)*(Traffic!AB50-F112)*(Traffic!AB50-Traffic!AA50)))*('T & R'!H115))+('Project Charact'!$G$100*'Toll Rate'!I62*'Project Charact'!$G$23*(Traffic!AB50-SQRT((1-J112)*(Traffic!AB50-F112)*(Traffic!AB50-Traffic!AA50)))*(1-'T & R'!H115)) -> 83352960.85 | L112: 0.9 | M112: 0.05 | N112: =(NORMINV(M112,$F112,$W112)*'Project Charact'!$G$100*'Toll Rate'!$I62*'Project Charact'!$G$23*'T & R'!$H115)+(NORMINV(M112,$F112,$W112)*'Project Charact'!$G$100*'Toll Rate'!$I62*(1+'Project Charact'!$G$108)*'Project Charact'!$G$23*(1-'T & R'!$H115)) -> 60338590.95 | O112: 0.95 | P112: =(NORMINV(O112,$F112,$W112)*'Project Charact'!$G$100*'Toll Rate'!$I62*'Project Charact'!$G$23*'T & R'!$H115)+(NORMINV(O112,$F112,$W112)*'Project Charact'!$G$100*'Toll Rate'!$I62*(1+'Project Charact'!$G$108)*'Project Charact'!$G$23*(1-'T & R'!$H115)) -> 81556463.17 | Q112: 0.9 | W112: =+Traffic!O50 -> 5104.732936
D113: 38 | E113: 2052 | F113: =+IF(Traffic!J51>Traffic!$K$8,Traffic!K51*Traffic!R51,Traffic!G51) -> 57275.10355 | G113: =+((F113*'Project Charact'!$G$100)*'Toll Rate'!$I63*'Project Charact'!$G$23*'T & R'!$H116)+((F113*'Project Charact'!$G$100)*'Toll Rate'!$I63*(1+'Project Charact'!$G$108)*'Project Charact'!$G$23*(1-'T & R'!$H116)) -> 74175639.55 | H113: 0.05 | I113: =('Project Charact'!$G$100*'Toll Rate'!I63*'Project Charact'!$G$23*(Traffic!AA51+SQRT(H113*(F113-Traffic!AA51)*(Traffic!AB51-Traffic!AA51)))*('T & R'!H116))+('Project Charact'!$G$100*'Toll Rate'!I63*'Project Charact'!$G$23*(Traffic!AA51+SQRT(H113*(F113-Traffic!AA51)*(Traffic!AB51-Traffic!AA51)))*(1-'T & R'!H116)) -> 59740673.09 | J113: 0.95 | K113: =('Project Charact'!$G$100*'Toll Rate'!I63*'Project Charact'!$G$23*(Traffic!AB51-SQRT((1-J113)*(Traffic!AB51-F113)*(Traffic!AB51-Traffic!AA51)))*('T & R'!H116))+('Project Charact'!$G$100*'Toll Rate'!I63*'Project Charact'!$G$23*(Traffic!AB51-SQRT((1-J113)*(Traffic!AB51-F113)*(Traffic!AB51-Traffic!AA51)))*(1-'T & R'!H116)) -> 87145520.57 | L113: 0.9 | M113: 0.05 | N113: =(NORMINV(M113,$F113,$W113)*'Project Charact'!$G$100*'Toll Rate'!$I63*'Project Charact'!$G$23*'T & R'!$H116)+(NORMINV(M113,$F113,$W113)*'Project Charact'!$G$100*'Toll Rate'!$I63*(1+'Project Charact'!$G$108)*'Project Charact'!$G$23*(1-'T & R'!$H116)) -> 63083996.84 | O113: 0.95 | P113: =(NORMINV(O113,$F113,$W113)*'Project Charact'!$G$100*'Toll Rate'!$I63*'Project Charact'!$G$23*'T & R'!$H116)+(NORMINV(O113,$F113,$W113)*'Project Charact'!$G$100*'Toll Rate'!$I63*(1+'Project Charact'!$G$108)*'Project Charact'!$G$23*(1-'T & R'!$H116)) -> 85267282.25 | Q113: 0.9 | W113: =+Traffic!O51 -> 5206.827595
D114: 39 | E114: 2053 | F114: =+IF(Traffic!J52>Traffic!$K$8,Traffic!K52*Traffic!R52,Traffic!G52) -> 58420.60562 | G114: =+((F114*'Project Charact'!$G$100)*'Toll Rate'!$I64*'Project Charact'!$G$23*'T & R'!$H117)+((F114*'Project Charact'!$G$100)*'Toll Rate'!$I64*(1+'Project Charact'!$G$108)*'Project Charact'!$G$23*(1-'T & R'!$H117)) -> 77550631.15 | H114: 0.05 | I114: =('Project Charact'!$G$100*'Toll Rate'!I64*'Project Charact'!$G$23*(Traffic!AA52+SQRT(H114*(F114-Traffic!AA52)*(Traffic!AB52-Traffic!AA52)))*('T & R'!H117))+('Project Charact'!$G$100*'Toll Rate'!I64*'Project Charact'!$G$23*(Traffic!AA52+SQRT(H114*(F114-Traffic!AA52)*(Traffic!AB52-Traffic!AA52)))*(1-'T & R'!H117)) -> 62458873.71 | J114: 0.95 | K114: =('Project Charact'!$G$100*'Toll Rate'!I64*'Project Charact'!$G$23*(Traffic!AB52-SQRT((1-J114)*(Traffic!AB52-F114)*(Traffic!AB52-Traffic!AA52)))*('T & R'!H117))+('Project Charact'!$G$100*'Toll Rate'!I64*'Project Charact'!$G$23*(Traffic!AB52-SQRT((1-J114)*(Traffic!AB52-F114)*(Traffic!AB52-Traffic!AA52)))*(1-'T & R'!H117)) -> 91110641.75 | L114: 0.9 | M114: 0.05 | N114: =(NORMINV(M114,$F114,$W114)*'Project Charact'!$G$100*'Toll Rate'!$I64*'Project Charact'!$G$23*'T & R'!$H117)+(NORMINV(M114,$F114,$W114)*'Project Charact'!$G$100*'Toll Rate'!$I64*(1+'Project Charact'!$G$108)*'Project Charact'!$G$23*(1-'T & R'!$H117)) -> 65954318.7 | O114: 0.95 | P114: =(NORMINV(O114,$F114,$W114)*'Project Charact'!$G$100*'Toll Rate'!$I64*'Project Charact'!$G$23*'T & R'!$H117)+(NORMINV(O114,$F114,$W114)*'Project Charact'!$G$100*'Toll Rate'!$I64*(1+'Project Charact'!$G$108)*'Project Charact'!$G$23*(1-'T & R'!$H117)) -> 89146943.59 | Q114: 0.9 | W114: =+Traffic!O52 -> 5310.964147
D115: 40 | E115: 2054 | F115: =+IF(Traffic!J53>Traffic!$K$8,Traffic!K53*Traffic!R53,Traffic!G53) -> 58469.81052 | G115: =+((F115*'Project Charact'!$G$100)*'Toll Rate'!$I65*'Project Charact'!$G$23*'T & R'!$H118)+((F115*'Project Charact'!$G$100)*'Toll Rate'!$I65*(1+'Project Charact'!$G$108)*'Project Charact'!$G$23*(1-'T & R'!$H118)) -> 79556347.07 | H115: 0.05 | I115: =('Project Charact'!$G$100*'Toll Rate'!I65*'Project Charact'!$G$23*(Traffic!AA53+SQRT(H115*(F115-Traffic!AA53)*(Traffic!AB53-Traffic!AA53)))*('T & R'!H118))+('Project Charact'!$G$100*'Toll Rate'!I65*'Project Charact'!$G$23*(Traffic!AA53+SQRT(H115*(F115-Traffic!AA53)*(Traffic!AB53-Traffic!AA53)))*(1-'T & R'!H118)) -> 64030849.68 | J115: 0.95 | K115: =('Project Charact'!$G$100*'Toll Rate'!I65*'Project Charact'!$G$23*(Traffic!AB53-SQRT((1-J115)*(Traffic!AB53-F115)*(Traffic!AB53-Traffic!AA53)))*('T & R'!H118))+('Project Charact'!$G$100*'Toll Rate'!I65*'Project Charact'!$G$23*(Traffic!AB53-SQRT((1-J115)*(Traffic!AB53-F115)*(Traffic!AB53-Traffic!AA53)))*(1-'T & R'!H118)) -> 93398814.48 | L115: 0.9 | M115: 0.05 | N115: =(NORMINV(M115,$F115,$W115)*'Project Charact'!$G$100*'Toll Rate'!$I65*'Project Charact'!$G$23*'T & R'!$H118)+(NORMINV(M115,$F115,$W115)*'Project Charact'!$G$100*'Toll Rate'!$I65*(1+'Project Charact'!$G$108)*'Project Charact'!$G$23*(1-'T & R'!$H118)) -> 67670126.81 | O115: 0.95 | P115: =(NORMINV(O115,$F115,$W115)*'Project Charact'!$G$100*'Toll Rate'!$I65*'Project Charact'!$G$23*'T & R'!$H118)+(NORMINV(O115,$F115,$W115)*'Project Charact'!$G$100*'Toll Rate'!$I65*(1+'Project Charact'!$G$108)*'Project Charact'!$G$23*(1-'T & R'!$H118)) -> 91442567.33 | Q115: 0.9 | W115: =+Traffic!O53 -> 5310.964147
D116: 41 | E116: 2055 | F116: =+IF(Traffic!J54>Traffic!$K$8,Traffic!K54*Traffic!R54,Traffic!G54) -> 58469.81052 | G116: =+((F116*'Project Charact'!$G$100)*'Toll Rate'!$I66*'Project Charact'!$G$23*'T & R'!$H119)+((F116*'Project Charact'!$G$100)*'Toll Rate'!$I66*(1+'Project Charact'!$G$108)*'Project Charact'!$G$23*(1-'T & R'!$H119)) -> 81545255.75 | H116: 0.05 | I116: =('Project Charact'!$G$100*'Toll Rate'!I66*'Project Charact'!$G$23*(Traffic!AA54+SQRT(H116*(F116-Traffic!AA54)*(Traffic!AB54-Traffic!AA54)))*('T & R'!H119))+('Project Charact'!$G$100*'Toll Rate'!I66*'Project Charact'!$G$23*(Traffic!AA54+SQRT(H116*(F116-Traffic!AA54)*(Traffic!AB54-Traffic!AA54)))*(1-'T & R'!H119)) -> 65631620.92 | J116: 0.95 | K116: =('Project Charact'!$G$100*'Toll Rate'!I66*'Project Charact'!$G$23*(Traffic!AB54-SQRT((1-J116)*(Traffic!AB54-F116)*(Traffic!AB54-Traffic!AA54)))*('T & R'!H119))+('Project Charact'!$G$100*'Toll Rate'!I66*'Project Charact'!$G$23*(Traffic!AB54-SQRT((1-J116)*(Traffic!AB54-F116)*(Traffic!AB54-Traffic!AA54)))*(1-'T & R'!H119)) -> 95733784.84 | L116: 0.9 | M116: 0.05 | N116: =(NORMINV(M116,$F116,$W116)*'Project Charact'!$G$100*'Toll Rate'!$I66*'Project Charact'!$G$23*'T & R'!$H119)+(NORMINV(M116,$F116,$W116)*'Project Charact'!$G$100*'Toll Rate'!$I66*(1+'Project Charact'!$G$108)*'Project Charact'!$G$23*(1-'T & R'!$H119)) -> 69361879.98 | O116: 0.95 | P116: =(NORMINV(O116,$F116,$W116)*'Project Charact'!$G$100*'Toll Rate'!$I66*'Project Charact'!$G$23*'T & R'!$H119)+(NORMINV(O116,$F116,$W116)*'Project Charact'!$G$100*'Toll Rate'!$I66*(1+'Project Charact'!$G$108)*'Project Charact'!$G$23*(1-'T & R'!$H119)) -> 93728631.51 | Q116: 0.9 | W116: =+Traffic!O54 -> 5310.964147
D117: 42 | E117: 2056 | F117: =+IF(Traffic!J55>Traffic!$K$8,Traffic!K55*Traffic!R55,Traffic!G55) -> 58469.81052 | G117: =+((F117*'Project Charact'!$G$100)*'Toll Rate'!$I67*'Project Charact'!$G$23*'T & R'!$H120)+((F117*'Project Charact'!$G$100)*'Toll Rate'!$I67*(1+'Project Charact'!$G$108)*'Project Charact'!$G$23*(1-'T & R'!$H120)) -> 83583887.14 | H117: 0.05 | I117: =('Project Charact'!$G$100*'Toll Rate'!I67*'Project Charact'!$G$23*(Traffic!AA55+SQRT(H117*(F117-Traffic!AA55)*(Traffic!AB55-Traffic!AA55)))*('T & R'!H120))+('Project Charact'!$G$100*'Toll Rate'!I67*'Project Charact'!$G$23*(Traffic!AA55+SQRT(H117*(F117-Traffic!AA55)*(Traffic!AB55-Traffic!AA55)))*(1-'T & R'!H120)) -> 67272411.45 | J117: 0.95 | K117: =('Project Charact'!$G$100*'Toll Rate'!I67*'Project Charact'!$G$23*(Traffic!AB55-SQRT((1-J117)*(Traffic!AB55-F117)*(Traffic!AB55-Traffic!AA55)))*('T & R'!H120))+('Project Charact'!$G$100*'Toll Rate'!I67*'Project Charact'!$G$23*(Traffic!AB55-SQRT((1-J117)*(Traffic!AB55-F117)*(Traffic!AB55-Traffic!AA55)))*(1-'T & R'!H120)) -> 98127129.46 | L117: 0.9 | M117: 0.05 | N117: =(NORMINV(M117,$F117,$W117)*'Project Charact'!$G$100*'Toll Rate'!$I67*'Project Charact'!$G$23*'T & R'!$H120)+(NORMINV(M117,$F117,$W117)*'Project Charact'!$G$100*'Toll Rate'!$I67*(1+'Project Charact'!$G$108)*'Project Charact'!$G$23*(1-'T & R'!$H120)) -> 71095926.98 | O117: 0.95 | P117: =(NORMINV(O117,$F117,$W117)*'Project Charact'!$G$100*'Toll Rate'!$I67*'Project Charact'!$G$23*'T & R'!$H120)+(NORMINV(O117,$F117,$W117)*'Project Charact'!$G$100*'Toll Rate'!$I67*(1+'Project Charact'!$G$108)*'Project Charact'!$G$23*(1-'T & R'!$H120)) -> 96071847.3 | Q117: 0.9 | W117: =+Traffic!O55 -> 5310.964147
D118: 43 | E118: 2057 | F118: =+IF(Traffic!J56>Traffic!$K$8,Traffic!K56*Traffic!R56,Traffic!G56) -> 58469.81052 | G118: =+((F118*'Project Charact'!$G$100)*'Toll Rate'!$I68*'Project Charact'!$G$23*'T & R'!$H121)+((F118*'Project Charact'!$G$100)*'Toll Rate'!$I68*(1+'Project Charact'!$G$108)*'Project Charact'!$G$23*(1-'T & R'!$H121)) -> 85673484.32 | H118: 0.05 | I118: =('Project Charact'!$G$100*'Toll Rate'!I68*'Project Charact'!$G$23*(Traffic!AA56+SQRT(H118*(F118-Traffic!AA56)*(Traffic!AB56-Traffic!AA56)))*('T & R'!H121))+('Project Charact'!$G$100*'Toll Rate'!I68*'Project Charact'!$G$23*(Traffic!AA56+SQRT(H118*(F118-Traffic!AA56)*(Traffic!AB56-Traffic!AA56)))*(1-'T & R'!H121)) -> 68954221.73 | J118: 0.95 | K118: =('Project Charact'!$G$100*'Toll Rate'!I68*'Project Charact'!$G$23*(Traffic!AB56-SQRT((1-J118)*(Traffic!AB56-F118)*(Traffic!AB56-Traffic!AA56)))*('T & R'!H121))+('Project Charact'!$G$100*'Toll Rate'!I68*'Project Charact'!$G$23*(Traffic!AB56-SQRT((1-J118)*(Traffic!AB56-F118)*(Traffic!AB56-Traffic!AA56)))*(1-'T & R'!H121)) -> 100580307.7 | L118: 0.9 | M118: 0.05 | N118: =(NORMINV(M118,$F118,$W118)*'Project Charact'!$G$100*'Toll Rate'!$I68*'Project Charact'!$G$23*'T & R'!$H121)+(NORMINV(M118,$F118,$W118)*'Project Charact'!$G$100*'Toll Rate'!$I68*(1+'Project Charact'!$G$108)*'Project Charact'!$G$23*(1-'T & R'!$H121)) -> 72873325.16 | O118: 0.95 | P118: =(NORMINV(O118,$F118,$W118)*'Project Charact'!$G$100*'Toll Rate'!$I68*'Project Charact'!$G$23*'T & R'!$H121)+(NORMINV(O118,$F118,$W118)*'Project Charact'!$G$100*'Toll Rate'!$I68*(1+'Project Charact'!$G$108)*'Project Charact'!$G$23*(1-'T & R'!$H121)) -> 98473643.48 | Q118: 0.9 | W118: =+Traffic!O56 -> 5310.964147
D119: 44 | E119: 2058 | F119: =+IF(Traffic!J57>Traffic!$K$8,Traffic!K57*Traffic!R57,Traffic!G57) -> 58469.81052 | G119: =+((F119*'Project Charact'!$G$100)*'Toll Rate'!$I69*'Project Charact'!$G$23*'T & R'!$H122)+((F119*'Project Charact'!$G$100)*'Toll Rate'!$I69*(1+'Project Charact'!$G$108)*'Project Charact'!$G$23*(1-'T & R'!$H122)) -> 87815321.43 | H119: 0.05 | I119: =('Project Charact'!$G$100*'Toll Rate'!I69*'Project Charact'!$G$23*(Traffic!AA57+SQRT(H119*(F119-Traffic!AA57)*(Traffic!AB57-Traffic!AA57)))*('T & R'!H122))+('Project Charact'!$G$100*'Toll Rate'!I69*'Project Charact'!$G$23*(Traffic!AA57+SQRT(H119*(F119-Traffic!AA57)*(Traffic!AB57-Traffic!AA57)))*(1-'T & R'!H122)) -> 70678077.28 | J119: 0.95 | K119: =('Project Charact'!$G$100*'Toll Rate'!I69*'Project Charact'!$G$23*(Traffic!AB57-SQRT((1-J119)*(Traffic!AB57-F119)*(Traffic!AB57-Traffic!AA57)))*('T & R'!H122))+('Project Charact'!$G$100*'Toll Rate'!I69*'Project Charact'!$G$23*(Traffic!AB57-SQRT((1-J119)*(Traffic!AB57-F119)*(Traffic!AB57-Traffic!AA57)))*(1-'T & R'!H122)) -> 103094815.4 | L119: 0.9 | M119: 0.05 | N119: =(NORMINV(M119,$F119,$W119)*'Project Charact'!$G$100*'Toll Rate'!$I69*'Project Charact'!$G$23*'T & R'!$H122)+(NORMINV(M119,$F119,$W119)*'Project Charact'!$G$100*'Toll Rate'!$I69*(1+'Project Charact'!$G$108)*'Project Charact'!$G$23*(1-'T & R'!$H122)) -> 74695158.28 | O119: 0.95 | P119: =(NORMINV(O119,$F119,$W119)*'Project Charact'!$G$100*'Toll Rate'!$I69*'Project Charact'!$G$23*'T & R'!$H122)+(NORMINV(O119,$F119,$W119)*'Project Charact'!$G$100*'Toll Rate'!$I69*(1+'Project Charact'!$G$108)*'Project Charact'!$G$23*(1-'T & R'!$H122)) -> 100935484.6 | Q119: 0.9 | W119: =+Traffic!O57 -> 5310.964147
D120: 45 | E120: 2059 | F120: =+IF(Traffic!J58>Traffic!$K$8,Traffic!K58*Traffic!R58,Traffic!G58) -> 58469.81052 | G120: =+((F120*'Project Charact'!$G$100)*'Toll Rate'!$I70*'Project Charact'!$G$23*'T & R'!$H123)+((F120*'Project Charact'!$G$100)*'Toll Rate'!$I70*(1+'Project Charact'!$G$108)*'Project Charact'!$G$23*(1-'T & R'!$H123)) -> 90010704.46 | H120: 0.05 | I120: =('Project Charact'!$G$100*'Toll Rate'!I70*'Project Charact'!$G$23*(Traffic!AA58+SQRT(H120*(F120-Traffic!AA58)*(Traffic!AB58-Traffic!AA58)))*('T & R'!H123))+('Project Charact'!$G$100*'Toll Rate'!I70*'Project Charact'!$G$23*(Traffic!AA58+SQRT(H120*(F120-Traffic!AA58)*(Traffic!AB58-Traffic!AA58)))*(1-'T & R'!H123)) -> 72445029.21 | J120: 0.95 | K120: =('Project Charact'!$G$100*'Toll Rate'!I70*'Project Charact'!$G$23*(Traffic!AB58-SQRT((1-J120)*(Traffic!AB58-F120)*(Traffic!AB58-Traffic!AA58)))*('T & R'!H123))+('Project Charact'!$G$100*'Toll Rate'!I70*'Project Charact'!$G$23*(Traffic!AB58-SQRT((1-J120)*(Traffic!AB58-F120)*(Traffic!AB58-Traffic!AA58)))*(1-'T & R'!H123)) -> 105672185.8 | L120: 0.9 | M120: 0.05 | N120: =(NORMINV(M120,$F120,$W120)*'Project Charact'!$G$100*'Toll Rate'!$I70*'Project Charact'!$G$23*'T & R'!$H123)+(NORMINV(M120,$F120,$W120)*'Project Charact'!$G$100*'Toll Rate'!$I70*(1+'Project Charact'!$G$108)*'Project Charact'!$G$23*(1-'T & R'!$H123)) -> 76562537.24 | O120: 0.95 | P120: =(NORMINV(O120,$F120,$W120)*'Project Charact'!$G$100*'Toll Rate'!$I70*'Project Charact'!$G$23*'T & R'!$H123)+(NORMINV(O120,$F120,$W120)*'Project Charact'!$G$100*'Toll Rate'!$I70*(1+'Project Charact'!$G$108)*'Project Charact'!$G$23*(1-'T & R'!$H123)) -> 103458871.7 | Q120: 0.9 | W120: =+Traffic!O58 -> 5310.964147
D121: 46 | E121: 2060 | F121: =+IF(Traffic!J59>Traffic!$K$8,Traffic!K59*Traffic!R59,Traffic!G59) -> 58469.81052 | G121: =+((F121*'Project Charact'!$G$100)*'Toll Rate'!$I71*'Project Charact'!$G$23*'T & R'!$H124)+((F121*'Project Charact'!$G$100)*'Toll Rate'!$I71*(1+'Project Charact'!$G$108)*'Project Charact'!$G$23*(1-'T & R'!$H124)) -> 92260972.07 | H121: 0.05 | I121: =('Project Charact'!$G$100*'Toll Rate'!I71*'Project Charact'!$G$23*(Traffic!AA59+SQRT(H121*(F121-Traffic!AA59)*(Traffic!AB59-Traffic!AA59)))*('T & R'!H124))+('Project Charact'!$G$100*'Toll Rate'!I71*'Project Charact'!$G$23*(Traffic!AA59+SQRT(H121*(F121-Traffic!AA59)*(Traffic!AB59-Traffic!AA59)))*(1-'T & R'!H124)) -> 74256154.94 | J121: 0.95 | K121: =('Project Charact'!$G$100*'Toll Rate'!I71*'Project Charact'!$G$23*(Traffic!AB59-SQRT((1-J121)*(Traffic!AB59-F121)*(Traffic!AB59-Traffic!AA59)))*('T & R'!H124))+('Project Charact'!$G$100*'Toll Rate'!I71*'Project Charact'!$G$23*(Traffic!AB59-SQRT((1-J121)*(Traffic!AB59-F121)*(Traffic!AB59-Traffic!AA59)))*(1-'T & R'!H124)) -> 108313990.4 | L121: 0.9 | M121: 0.05 | N121: =(NORMINV(M121,$F121,$W121)*'Project Charact'!$G$100*'Toll Rate'!$I71*'Project Charact'!$G$23*'T & R'!$H124)+(NORMINV(M121,$F121,$W121)*'Project Charact'!$G$100*'Toll Rate'!$I71*(1+'Project Charact'!$G$108)*'Project Charact'!$G$23*(1-'T & R'!$H124)) -> 78476600.67 | O121: 0.95 | P121: =(NORMINV(O121,$F121,$W121)*'Project Charact'!$G$100*'Toll Rate'!$I71*'Project Charact'!$G$23*'T & R'!$H124)+(NORMINV(O121,$F121,$W121)*'Project Charact'!$G$100*'Toll Rate'!$I71*(1+'Project Charact'!$G$108)*'Project Charact'!$G$23*(1-'T & R'!$H124)) -> 106045343.5 | Q121: 0.9 | W121: =+Traffic!O59 -> 5310.964147
D122: 47 | E122: 2061 | F122: =+IF(Traffic!J60>Traffic!$K$8,Traffic!K60*Traffic!R60,Traffic!G60) -> 58469.81052 | G122: =+((F122*'Project Charact'!$G$100)*'Toll Rate'!$I72*'Project Charact'!$G$23*'T & R'!$H125)+((F122*'Project Charact'!$G$100)*'Toll Rate'!$I72*(1+'Project Charact'!$G$108)*'Project Charact'!$G$23*(1-'T & R'!$H125)) -> 94567496.37 | H122: 0.05 | I122: =('Project Charact'!$G$100*'Toll Rate'!I72*'Project Charact'!$G$23*(Traffic!AA60+SQRT(H122*(F122-Traffic!AA60)*(Traffic!AB60-Traffic!AA60)))*('T & R'!H125))+('Project Charact'!$G$100*'Toll Rate'!I72*'Project Charact'!$G$23*(Traffic!AA60+SQRT(H122*(F122-Traffic!AA60)*(Traffic!AB60-Traffic!AA60)))*(1-'T & R'!H125)) -> 76112558.81 | J122: 0.95 | K122: =('Project Charact'!$G$100*'Toll Rate'!I72*'Project Charact'!$G$23*(Traffic!AB60-SQRT((1-J122)*(Traffic!AB60-F122)*(Traffic!AB60-Traffic!AA60)))*('T & R'!H125))+('Project Charact'!$G$100*'Toll Rate'!I72*'Project Charact'!$G$23*(Traffic!AB60-SQRT((1-J122)*(Traffic!AB60-F122)*(Traffic!AB60-Traffic!AA60)))*(1-'T & R'!H125)) -> 111021840.2 | L122: 0.9 | M122: 0.05 | N122: =(NORMINV(M122,$F122,$W122)*'Project Charact'!$G$100*'Toll Rate'!$I72*'Project Charact'!$G$23*'T & R'!$H125)+(NORMINV(M122,$F122,$W122)*'Project Charact'!$G$100*'Toll Rate'!$I72*(1+'Project Charact'!$G$108)*'Project Charact'!$G$23*(1-'T & R'!$H125)) -> 80438515.69 | O122: 0.95 | P122: =(NORMINV(O122,$F122,$W122)*'Project Charact'!$G$100*'Toll Rate'!$I72*'Project Charact'!$G$23*'T & R'!$H125)+(NORMINV(O122,$F122,$W122)*'Project Charact'!$G$100*'Toll Rate'!$I72*(1+'Project Charact'!$G$108)*'Project Charact'!$G$23*(1-'T & R'!$H125)) -> 108696477.1 | Q122: 0.9 | W122: =+Traffic!O60 -> 5310.964147
D123: 48 | E123: 2062 | F123: =+IF(Traffic!J61>Traffic!$K$8,Traffic!K61*Traffic!R61,Traffic!G61) -> 58469.81052 | G123: =+((F123*'Project Charact'!$G$100)*'Toll Rate'!$I73*'Project Charact'!$G$23*'T & R'!$H126)+((F123*'Project Charact'!$G$100)*'Toll Rate'!$I73*(1+'Project Charact'!$G$108)*'Project Charact'!$G$23*(1-'T & R'!$H126)) -> 96931683.78 | H123: 0.05 | I123: =('Project Charact'!$G$100*'Toll Rate'!I73*'Project Charact'!$G$23*(Traffic!AA61+SQRT(H123*(F123-Traffic!AA61)*(Traffic!AB61-Traffic!AA61)))*('T & R'!H126))+('Project Charact'!$G$100*'Toll Rate'!I73*'Project Charact'!$G$23*(Traffic!AA61+SQRT(H123*(F123-Traffic!AA61)*(Traffic!AB61-Traffic!AA61)))*(1-'T & R'!H126)) -> 78015372.78 | J123: 0.95 | K123: =('Project Charact'!$G$100*'Toll Rate'!I73*'Project Charact'!$G$23*(Traffic!AB61-SQRT((1-J123)*(Traffic!AB61-F123)*(Traffic!AB61-Traffic!AA61)))*('T & R'!H126))+('Project Charact'!$G$100*'Toll Rate'!I73*'Project Charact'!$G$23*(Traffic!AB61-SQRT((1-J123)*(Traffic!AB61-F123)*(Traffic!AB61-Traffic!AA61)))*(1-'T & R'!H126)) -> 113797386.2 | L123: 0.9 | M123: 0.05 | N123: =(NORMINV(M123,$F123,$W123)*'Project Charact'!$G$100*'Toll Rate'!$I73*'Project Charact'!$G$23*'T & R'!$H126)+(NORMINV(M123,$F123,$W123)*'Project Charact'!$G$100*'Toll Rate'!$I73*(1+'Project Charact'!$G$108)*'Project Charact'!$G$23*(1-'T & R'!$H126)) -> 82449478.58 | O123: 0.95 | P123: =(NORMINV(O123,$F123,$W123)*'Project Charact'!$G$100*'Toll Rate'!$I73*'Project Charact'!$G$23*'T & R'!$H126)+(NORMINV(O123,$F123,$W123)*'Project Charact'!$G$100*'Toll Rate'!$I73*(1+'Project Charact'!$G$108)*'Project Charact'!$G$23*(1-'T & R'!$H126)) -> 111413889 | Q123: 0.9 | W123: =+Traffic!O61 -> 5310.964147
D124: 49 | E124: 2063 | F124: =+IF(Traffic!J62>Traffic!$K$8,Traffic!K62*Traffic!R62,Traffic!G62) -> 58469.81052 | G124: =+((F124*'Project Charact'!$G$100)*'Toll Rate'!$I74*'Project Charact'!$G$23*'T & R'!$H127)+((F124*'Project Charact'!$G$100)*'Toll Rate'!$I74*(1+'Project Charact'!$G$108)*'Project Charact'!$G$23*(1-'T & R'!$H127)) -> 99354975.88 | H124: 0.05 | I124: =('Project Charact'!$G$100*'Toll Rate'!I74*'Project Charact'!$G$23*(Traffic!AA62+SQRT(H124*(F124-Traffic!AA62)*(Traffic!AB62-Traffic!AA62)))*('T & R'!H127))+('Project Charact'!$G$100*'Toll Rate'!I74*'Project Charact'!$G$23*(Traffic!AA62+SQRT(H124*(F124-Traffic!AA62)*(Traffic!AB62-Traffic!AA62)))*(1-'T & R'!H127)) -> 79965757.1 | J124: 0.95 | K124: =('Project Charact'!$G$100*'Toll Rate'!I74*'Project Charact'!$G$23*(Traffic!AB62-SQRT((1-J124)*(Traffic!AB62-F124)*(Traffic!AB62-Traffic!AA62)))*('T & R'!H127))+('Project Charact'!$G$100*'Toll Rate'!I74*'Project Charact'!$G$23*(Traffic!AB62-SQRT((1-J124)*(Traffic!AB62-F124)*(Traffic!AB62-Traffic!AA62)))*(1-'T & R'!H127)) -> 116642320.8 | L124: 0.9 | M124: 0.05 | N124: =(NORMINV(M124,$F124,$W124)*'Project Charact'!$G$100*'Toll Rate'!$I74*'Project Charact'!$G$23*'T & R'!$H127)+(NORMINV(M124,$F124,$W124)*'Project Charact'!$G$100*'Toll Rate'!$I74*(1+'Project Charact'!$G$108)*'Project Charact'!$G$23*(1-'T & R'!$H127)) -> 84510715.55 | O124: 0.95 | P124: =(NORMINV(O124,$F124,$W124)*'Project Charact'!$G$100*'Toll Rate'!$I74*'Project Charact'!$G$23*'T & R'!$H127)+(NORMINV(O124,$F124,$W124)*'Project Charact'!$G$100*'Toll Rate'!$I74*(1+'Project Charact'!$G$108)*'Project Charact'!$G$23*(1-'T & R'!$H127)) -> 114199236.2 | Q124: 0.9 | W124: =+Traffic!O62 -> 5310.964147
D125: 50 | E125: 2064 | F125: =+IF(Traffic!J63>Traffic!$K$8,Traffic!K63*Traffic!R63,Traffic!G63) -> 58469.81052 | G125: =+((F125*'Project Charact'!$G$100)*'Toll Rate'!$I75*'Project Charact'!$G$23*'T & R'!$H128)+((F125*'Project Charact'!$G$100)*'Toll Rate'!$I75*(1+'Project Charact'!$G$108)*'Project Charact'!$G$23*(1-'T & R'!$H128)) -> 101838850.3 | H125: 0.05 | I125: =('Project Charact'!$G$100*'Toll Rate'!I75*'Project Charact'!$G$23*(Traffic!AA63+SQRT(H125*(F125-Traffic!AA63)*(Traffic!AB63-Traffic!AA63)))*('T & R'!H128))+('Project Charact'!$G$100*'Toll Rate'!I75*'Project Charact'!$G$23*(Traffic!AA63+SQRT(H125*(F125-Traffic!AA63)*(Traffic!AB63-Traffic!AA63)))*(1-'T & R'!H128)) -> 81964901.03 | J125: 0.95 | K125: =('Project Charact'!$G$100*'Toll Rate'!I75*'Project Charact'!$G$23*(Traffic!AB63-SQRT((1-J125)*(Traffic!AB63-F125)*(Traffic!AB63-Traffic!AA63)))*('T & R'!H128))+('Project Charact'!$G$100*'Toll Rate'!I75*'Project Charact'!$G$23*(Traffic!AB63-SQRT((1-J125)*(Traffic!AB63-F125)*(Traffic!AB63-Traffic!AA63)))*(1-'T & R'!H128)) -> 119558378.9 | L125: 0.9 | M125: 0.05 | N125: =(NORMINV(M125,$F125,$W125)*'Project Charact'!$G$100*'Toll Rate'!$I75*'Project Charact'!$G$23*'T & R'!$H128)+(NORMINV(M125,$F125,$W125)*'Project Charact'!$G$100*'Toll Rate'!$I75*(1+'Project Charact'!$G$108)*'Project Charact'!$G$23*(1-'T & R'!$H128)) -> 86623483.43 | O125: 0.95 | P125: =(NORMINV(O125,$F125,$W125)*'Project Charact'!$G$100*'Toll Rate'!$I75*'Project Charact'!$G$23*'T & R'!$H128)+(NORMINV(O125,$F125,$W125)*'Project Charact'!$G$100*'Toll Rate'!$I75*(1+'Project Charact'!$G$108)*'Project Charact'!$G$23*(1-'T & R'!$H128)) -> 117054217.1 | Q125: 0.9 | W125: =+Traffic!O63 -> 5310.964147
D127: Average | F127: =AVERAGE(F76:F125) -> 41105.64375 | G127: 47213896.46 | I127: =AVERAGE(I76:I125) -> 37607523.43 | K127: =AVERAGE(K76:K125) -> 54857923.96 | N127: =AVERAGE(N76:N125) -> 40156400.6 | P127: =AVERAGE(P76:P125) -> 54271392.32
D129: TOTAL | F129: =SUM(F76:F125) -> 2055282.187 | G129: =SUM(G76:G125) -> 2360694823 | I129: =SUM(I76:I125) -> 1880376171 | K129: =SUM(K76:K125) -> 2742896198 | N129: =SUM(N76:N125) -> 2007820030 | P129: =SUM(P76:P125) -> 2713569616
G134: BACK TO MENU
B139: Analysis of Results (Trucks) - Section 1
D141: =+D75 -> Year No. | F141: TRAFFIC (AADT) | G141: ANNUAL REVENUE | H141: CONFIDENCE INTERVAL | M141: CONFIDENCE INTERVAL
D142: Year No. | E142: Year | F142: Most Likely | G142: Most Likely | H142: Lower Bound | I142: Lower Revenue Limit | J142: Upper Bound | K142: Upper Revenue Limit | L142: Confidence Interval | M142: Lower Bound | N142: Lower Revenue Limit | O142: Upper Bound | P142: Upper Revenue Limit | Q142: Confidence Interval | W142: SD
D143: 1 | E143: ='Project Charact'!G17 -> 2015 | F143: =Traffic!I14*IF('Project Charact'!$G$113<100%,'Project Charact'!$G$113,100%) -> 462 | G143: =+(F143*'Project Charact'!$G$100)*'Toll Rate'!$J26*'Project Charact'!$G$23*'T & R'!$H143+(F143*'Project Charact'!$G$100)*'Toll Rate'!$J26*(1+'Project Charact'!$G$108)*'Project Charact'!$G$23*(1-'T & R'!$H143) -> 999375.3 | H143: 0.05 | I143: =('Project Charact'!$G$100*'Toll Rate'!J26*'Project Charact'!$G$23*(Traffic!AC14+SQRT(H143*(F143-Traffic!AC14)*(Traffic!AD14-Traffic!AC14)))*('T & R'!$H143))+('Project Charact'!$G$100*'Toll Rate'!J26*'Project Charact'!$G$23*(Traffic!AC14+SQRT(H143*(F143-Traffic!AAC14)*(Traffic!AD14-Traffic!AC14)))*(1-'T & R'!$H143)) -> 748103.7071 | J143: 0.95 | K143: =('Project Charact'!$G$100*'Toll Rate'!J26*'Project Charact'!$G$23*(Traffic!AD14-SQRT((1-J143)*(Traffic!AD14-F143)*(Traffic!AD14-Traffic!AC14)))*('T & R'!H143))+('Project Charact'!$G$100*'Toll Rate'!J26*'Project Charact'!$G$23*(Traffic!AD14-SQRT((1-J143)*(Traffic!AD14-F143)*(Traffic!AD14-Traffic!AC14)))*(1-'T & R'!H143)) -> 1031080.122 | L143: =J143-H143 -> 0.9 | M143: 0.05 | N143: =(NORMINV(M143,F143,W143)*'Project Charact'!$G$100*'Toll Rate'!$J26*'Project Charact'!$G$23*'T & R'!$H143)+(NORMINV(M143,F143,W143)*'Project Charact'!$G$100*'Toll Rate'!$J26*(1+'Project Charact'!$G$108)*'Project Charact'!$G$23*(1-'T & R'!$H143)) -> 849936.5648 | O143: 0.95 | P143: =(NORMINV(O143,F143,W143)*'Project Charact'!$G$100*'Toll Rate'!$J26*'Project Charact'!$G$23*'T & R'!$H143)+(NORMINV(O143,F143,W143)*'Project Charact'!$G$100*'Toll Rate'!$J26*(1+'Project Charact'!$G$108)*'Project Charact'!$G$23*(1-'T & R'!$H143)) -> 1148814.035 | Q143: =O143-M143 -> 0.9 | W143: =+Traffic!P14*IF('Project Charact'!$G$113<100%,'Project Charact'!$G$113,100%) -> 42
D144: 2 | E144: =1+E143 -> 2016 | F144: =Traffic!I15*IF('Project Charact'!$G$113<100%,'Project Charact'!$G$113,100%) -> 475.86 | G144: =+(F144*'Project Charact'!$G$100)*'Toll Rate'!$J27*'Project Charact'!$G$23*'T & R'!$H144+(F144*'Project Charact'!$G$100)*'Toll Rate'!$J27*(1+'Project Charact'!$G$108)*'Project Charact'!$G$23*(1-'T & R'!$H144) -> 1055090.473 | H144: 0.05 | I144: =('Project Charact'!$G$100*'Toll Rate'!J27*'Project Charact'!$G$23*(Traffic!AC15+SQRT(H144*(F144-Traffic!AC15)*(Traffic!AD15-Traffic!AC15)))*('T & R'!$H144))+('Project Charact'!$G$100*'Toll Rate'!J27*'Project Charact'!$G$23*(Traffic!AC15+SQRT(H144*(F144-Traffic!AAC15)*(Traffic!AD15-Traffic!AC15)))*(1-'T & R'!$H144)) -> 886958.8443 | J144: 0.95 | K144: =('Project Charact'!$G$100*'Toll Rate'!J27*'Project Charact'!$G$23*(Traffic!AD15-SQRT((1-J144)*(Traffic!AD15-F144)*(Traffic!AD15-Traffic!AC15)))*('T & R'!H144))+('Project Charact'!$G$100*'Toll Rate'!J27*'Project Charact'!$G$23*(Traffic!AD15-SQRT((1-J144)*(Traffic!AD15-F144)*(Traffic!AD15-Traffic!AC15)))*(1-'T & R'!H144)) -> 1226139.939 | L144: 0.9 | M144: 0.05 | N144: =(NORMINV(M144,F144,W144)*'Project Charact'!$G$100*'Toll Rate'!$J27*'Project Charact'!$G$23*'T & R'!$H144)+(NORMINV(M144,F144,W144)*'Project Charact'!$G$100*'Toll Rate'!$J27*(1+'Project Charact'!$G$108)*'Project Charact'!$G$23*(1-'T & R'!$H144)) -> 874781.9648 | O144: 0.95 | P144: =(NORMINV(O144,F144,W144)*'Project Charact'!$G$100*'Toll Rate'!$J27*'Project Charact'!$G$23*'T & R'!$H144)+(NORMINV(O144,F144,W144)*'Project Charact'!$G$100*'Toll Rate'!$J27*(1+'Project Charact'!$G$108)*'Project Charact'!$G$23*(1-'T & R'!$H144)) -> 1235398.981 | Q144: 0.9 | W144: =+Traffic!P15*IF('Project Charact'!$G$114<100%,'Project Charact'!$G$114,100%) -> 49.44
D145: 3 | E145: 2017 | F145: =Traffic!I16*IF('Project Charact'!$G$113<100%,'Project Charact'!$G$113,100%) -> 490.1358 | G145: =+(F145*'Project Charact'!$G$100)*'Toll Rate'!$J28*'Project Charact'!$G$23*'T & R'!$H145+(F145*'Project Charact'!$G$100)*'Toll Rate'!$J28*(1+'Project Charact'!$G$108)*'Project Charact'!$G$23*(1-'T & R'!$H145) -> 1113911.767 | H145: 0.05 | I145: =('Project Charact'!$G$100*'Toll Rate'!J28*'Project Charact'!$G$23*(Traffic!AC16+SQRT(H145*(F145-Traffic!AC16)*(Traffic!AD16-Traffic!AC16)))*('T & R'!$H145))+('Project Charact'!$G$100*'Toll Rate'!J28*'Project Charact'!$G$23*(Traffic!AC16+SQRT(H145*(F145-Traffic!AAC16)*(Traffic!AD16-Traffic!AC16)))*(1-'T & R'!$H145)) -> 1034300.364 | J145: 0.95 | K145: =('Project Charact'!$G$100*'Toll Rate'!J28*'Project Charact'!$G$23*(Traffic!AD16-SQRT((1-J145)*(Traffic!AD16-F145)*(Traffic!AD16-Traffic!AC16)))*('T & R'!H145))+('Project Charact'!$G$100*'Toll Rate'!J28*'Project Charact'!$G$23*(Traffic!AD16-SQRT((1-J145)*(Traffic!AD16-F145)*(Traffic!AD16-Traffic!AC16)))*(1-'T & R'!H145)) -> 1442326.996 | L145: 0.9 | M145: 0.05 | N145: =(NORMINV(M145,F145,W145)*'Project Charact'!$G$100*'Toll Rate'!$J28*'Project Charact'!$G$23*'T & R'!$H145)+(NORMINV(M145,F145,W145)*'Project Charact'!$G$100*'Toll Rate'!$J28*(1+'Project Charact'!$G$108)*'Project Charact'!$G$23*(1-'T & R'!$H145)) -> 899755.9709 | O145: 0.95 | P145: =(NORMINV(O145,F145,W145)*'Project Charact'!$G$100*'Toll Rate'!$J28*'Project Charact'!$G$23*'T & R'!$H145)+(NORMINV(O145,F145,W145)*'Project Charact'!$G$100*'Toll Rate'!$J28*(1+'Project Charact'!$G$108)*'Project Charact'!$G$23*(1-'T & R'!$H145)) -> 1328067.563 | Q145: 0.9 | W145: =+Traffic!P16*IF('Project Charact'!$G$115<100%,'Project Charact'!$G$115,100%) -> 57.2886
D146: 4 | E146: 2018 | F146: =Traffic!I17*IF('Project Charact'!$G$113<100%,'Project Charact'!$G$113,100%) -> 504.839874 | G146: =+(F146*'Project Charact'!$G$100)*'Toll Rate'!$J29*'Project Charact'!$G$23*'T & R'!$H146+(F146*'Project Charact'!$G$100)*'Toll Rate'!$J29*(1+'Project Charact'!$G$108)*'Project Charact'!$G$23*(1-'T & R'!$H146) -> 1176012.348 | H146: 0.05 | I146: =('Project Charact'!$G$100*'Toll Rate'!J29*'Project Charact'!$G$23*(Traffic!AC17+SQRT(H146*(F146-Traffic!AC17)*(Traffic!AD17-Traffic!AC17)))*('T & R'!$H146))+('Project Charact'!$G$100*'Toll Rate'!J29*'Project Charact'!$G$23*(Traffic!AC17+SQRT(H146*(F146-Traffic!AAC17)*(Traffic!AD17-Traffic!AC17)))*(1-'T & R'!$H146)) ->  | J146: 0.95 | K146: =('Project Charact'!$G$100*'Toll Rate'!J29*'Project Charact'!$G$23*(Traffic!AD17-SQRT((1-J146)*(Traffic!AD17-F146)*(Traffic!AD17-Traffic!AC17)))*('T & R'!H146))+('Project Charact'!$G$100*'Toll Rate'!J29*'Project Charact'!$G$23*(Traffic!AD17-SQRT((1-J146)*(Traffic!AD17-F146)*(Traffic!AD17-Traffic!AC17)))*(1-'T & R'!H146)) -> 1680245.47 | L146: 0.9 | M146: 0.05 | N146: =(NORMINV(M146,F146,W146)*'Project Charact'!$G$100*'Toll Rate'!$J29*'Project Charact'!$G$23*'T & R'!$H146)+(NORMINV(M146,F146,W146)*'Project Charact'!$G$100*'Toll Rate'!$J29*(1+'Project Charact'!$G$108)*'Project Charact'!$G$23*(1-'T & R'!$H146)) -> 924795.7017 | O146: 0.95 | P146: =(NORMINV(O146,F146,W146)*'Project Charact'!$G$100*'Toll Rate'!$J29*'Project Charact'!$G$23*'T & R'!$H146)+(NORMINV(O146,F146,W146)*'Project Charact'!$G$100*'Toll Rate'!$J29*(1+'Project Charact'!$G$108)*'Project Charact'!$G$23*(1-'T & R'!$H146)) -> 1427228.994 | Q146: 0.9 | W146: =+Traffic!P17*IF('Project Charact'!$G$116<100%,'Project Charact'!$G$116,100%) -> 65.56362
D147: 5 | E147: 2019 | F147: =Traffic!I18*IF('Project Charact'!$G$113<100%,'Project Charact'!$G$113,100%) -> 519.9850702 | G147: =+(F147*'Project Charact'!$G$100)*'Toll Rate'!$J30*'Project Charact'!$G$23*'T & R'!$H147+(F147*'Project Charact'!$G$100)*'Toll Rate'!$J30*(1+'Project Charact'!$G$108)*'Project Charact'!$G$23*(1-'T & R'!$H147) -> 1241575.036 | H147: 0.05 | I147: =('Project Charact'!$G$100*'Toll Rate'!J30*'Project Charact'!$G$23*(Traffic!AC18+SQRT(H147*(F147-Traffic!AC18)*(Traffic!AD18-Traffic!AC18)))*('T & R'!$H147))+('Project Charact'!$G$100*'Toll Rate'!J30*'Project Charact'!$G$23*(Traffic!AC18+SQRT(H147*(F147-Traffic!AAC18)*(Traffic!AD18-Traffic!AC18)))*(1-'T & R'!$H147)) ->  | J147: 0.95 | K147: =('Project Charact'!$G$100*'Toll Rate'!J30*'Project Charact'!$G$23*(Traffic!AD18-SQRT((1-J147)*(Traffic!AD18-F147)*(Traffic!AD18-Traffic!AC18)))*('T & R'!H147))+('Project Charact'!$G$100*'Toll Rate'!J30*'Project Charact'!$G$23*(Traffic!AD18-SQRT((1-J147)*(Traffic!AD18-F147)*(Traffic!AD18-Traffic!AC18)))*(1-'T & R'!H147)) -> 1775113.896 | L147: 0.9 | M147: 0.05 | N147: =(NORMINV(M147,F147,W147)*'Project Charact'!$G$100*'Toll Rate'!$J30*'Project Charact'!$G$23*'T & R'!$H147)+(NORMINV(M147,F147,W147)*'Project Charact'!$G$100*'Toll Rate'!$J30*(1+'Project Charact'!$G$108)*'Project Charact'!$G$23*(1-'T & R'!$H147)) -> 976353.062 | O147: 0.95 | P147: =(NORMINV(O147,F147,W147)*'Project Charact'!$G$100*'Toll Rate'!$J30*'Project Charact'!$G$23*'T & R'!$H147)+(NORMINV(O147,F147,W147)*'Project Charact'!$G$100*'Toll Rate'!$J30*(1+'Project Charact'!$G$108)*'Project Charact'!$G$23*(1-'T & R'!$H147)) -> 1506797.01 | Q147: 0.9 | W147: =+Traffic!P18*IF('Project Charact'!$G$117<100%,'Project Charact'!$G$117,100%) -> 67.5305286
D148: 6 | E148: 2020 | F148: =+IF(Traffic!J19>Traffic!$K$8,Traffic!K19*Traffic!S19,Traffic!I19) -> 765.120889 | G148: =+(F148*'Project Charact'!$G$100)*'Toll Rate'!$J31*'Project Charact'!$G$23*'T & R'!$H148+(F148*'Project Charact'!$G$100)*'Toll Rate'!$J31*(1+'Project Charact'!$G$108)*'Project Charact'!$G$23*(1-'T & R'!$H148) -> 1831853.354 | H148: 0.05 | I148: =('Project Charact'!$G$100*'Toll Rate'!J31*'Project Charact'!$G$23*(Traffic!AC19+SQRT(H148*(F148-Traffic!AC19)*(Traffic!AD19-Traffic!AC19)))*('T & R'!$H148))+('Project Charact'!$G$100*'Toll Rate'!J31*'Project Charact'!$G$23*(Traffic!AC19+SQRT(H148*(F148-Traffic!AAC19)*(Traffic!AD19-Traffic!AC19)))*(1-'T & R'!$H148)) -> 1392440.523 | J148: 0.95 | K148: =('Project Charact'!$G$100*'Toll Rate'!J31*'Project Charact'!$G$23*(Traffic!AD19-SQRT((1-J148)*(Traffic!AD19-F148)*(Traffic!AD19-Traffic!AC19)))*('T & R'!H148))+('Project Charact'!$G$100*'Toll Rate'!J31*'Project Charact'!$G$23*(Traffic!AD19-SQRT((1-J148)*(Traffic!AD19-F148)*(Traffic!AD19-Traffic!AC19)))*(1-'T & R'!H148)) -> 1936943.633 | L148: 0.9 | M148: 0.05 | N148: =(NORMINV(M148,F148,W148)*'Project Charact'!$G$100*'Toll Rate'!$J31*'Project Charact'!$G$23*'T & R'!$H148)+(NORMINV(M148,F148,W148)*'Project Charact'!$G$100*'Toll Rate'!$J31*(1+'Project Charact'!$G$108)*'Project Charact'!$G$23*(1-'T & R'!$H148)) -> 1557932.387 | O148: 0.95 | P148: =(NORMINV(O148,F148,W148)*'Project Charact'!$G$100*'Toll Rate'!$J31*'Project Charact'!$G$23*'T & R'!$H148)+(NORMINV(O148,F148,W148)*'Project Charact'!$G$100*'Toll Rate'!$J31*(1+'Project Charact'!$G$108)*'Project Charact'!$G$23*(1-'T & R'!$H148)) -> 2105774.321 | Q148: 0.9 | W148: =+Traffic!P19 -> 69.55644446
D149: 7 | E149: 2021 | F149: =+IF(Traffic!J20>Traffic!$K$8,Traffic!K20*Traffic!S20,Traffic!I20) -> 788.0745157 | G149: =+(F149*'Project Charact'!$G$100)*'Toll Rate'!$J32*'Project Charact'!$G$23*'T & R'!$H149+(F149*'Project Charact'!$G$100)*'Toll Rate'!$J32*(1+'Project Charact'!$G$108)*'Project Charact'!$G$23*(1-'T & R'!$H149) -> 1933979.179 | H149: 0.05 | I149: =('Project Charact'!$G$100*'Toll Rate'!J32*'Project Charact'!$G$23*(Traffic!AC20+SQRT(H149*(F149-Traffic!AC20)*(Traffic!AD20-Traffic!AC20)))*('T & R'!$H149))+('Project Charact'!$G$100*'Toll Rate'!J32*'Project Charact'!$G$23*(Traffic!AC20+SQRT(H149*(F149-Traffic!AAC20)*(Traffic!AD20-Traffic!AC20)))*(1-'T & R'!$H149)) -> 1470069.082 | J149: 0.95 | K149: =('Project Charact'!$G$100*'Toll Rate'!J32*'Project Charact'!$G$23*(Traffic!AD20-SQRT((1-J149)*(Traffic!AD20-F149)*(Traffic!AD20-Traffic!AC20)))*('T & R'!H149))+('Project Charact'!$G$100*'Toll Rate'!J32*'Project Charact'!$G$23*(Traffic!AD20-SQRT((1-J149)*(Traffic!AD20-F149)*(Traffic!AD20-Traffic!AC20)))*(1-'T & R'!H149)) -> 2044928.24 | L149: 0.9 | M149: 0.05 | N149: =(NORMINV(M149,F149,W149)*'Project Charact'!$G$100*'Toll Rate'!$J32*'Project Charact'!$G$23*'T & R'!$H149)+(NORMINV(M149,F149,W149)*'Project Charact'!$G$100*'Toll Rate'!$J32*(1+'Project Charact'!$G$108)*'Project Charact'!$G$23*(1-'T & R'!$H149)) -> 1644787.118 | O149: 0.95 | P149: =(NORMINV(O149,F149,W149)*'Project Charact'!$G$100*'Toll Rate'!$J32*'Project Charact'!$G$23*'T & R'!$H149)+(NORMINV(O149,F149,W149)*'Project Charact'!$G$100*'Toll Rate'!$J32*(1+'Project Charact'!$G$108)*'Project Charact'!$G$23*(1-'T & R'!$H149)) -> 2223171.239 | Q149: 0.9 | W149: =+Traffic!P20 -> 71.64313779
D150: 8 | E150: 2022 | F150: =+IF(Traffic!J21>Traffic!$K$8,Traffic!K21*Traffic!S21,Traffic!I21) -> 811.7167512 | G150: =+(F150*'Project Charact'!$G$100)*'Toll Rate'!$J33*'Project Charact'!$G$23*'T & R'!$H150+(F150*'Project Charact'!$G$100)*'Toll Rate'!$J33*(1+'Project Charact'!$G$108)*'Project Charact'!$G$23*(1-'T & R'!$H150) -> 2041798.518 | H150: 0.05 | I150: =('Project Charact'!$G$100*'Toll Rate'!J33*'Project Charact'!$G$23*(Traffic!AC21+SQRT(H150*(F150-Traffic!AC21)*(Traffic!AD21-Traffic!AC21)))*('T & R'!$H150))+('Project Charact'!$G$100*'Toll Rate'!J33*'Project Charact'!$G$23*(Traffic!AC21+SQRT(H150*(F150-Traffic!AAC21)*(Traffic!AD21-Traffic!AC21)))*(1-'T & R'!$H150)) -> 1552025.434 | J150: 0.95 | K150: =('Project Charact'!$G$100*'Toll Rate'!J33*'Project Charact'!$G$23*(Traffic!AD21-SQRT((1-J150)*(Traffic!AD21-F150)*(Traffic!AD21-Traffic!AC21)))*('T & R'!H150))+('Project Charact'!$G$100*'Toll Rate'!J33*'Project Charact'!$G$23*(Traffic!AD21-SQRT((1-J150)*(Traffic!AD21-F150)*(Traffic!AD21-Traffic!AC21)))*(1-'T & R'!H150)) -> 2158932.99 | L150: 0.9 | M150: 0.05 | N150: =(NORMINV(M150,F150,W150)*'Project Charact'!$G$100*'Toll Rate'!$J33*'Project Charact'!$G$23*'T & R'!$H150)+(NORMINV(M150,F150,W150)*'Project Charact'!$G$100*'Toll Rate'!$J33*(1+'Project Charact'!$G$108)*'Project Charact'!$G$23*(1-'T & R'!$H150)) -> 1736484 | O150: 0.95 | P150: =(NORMINV(O150,F150,W150)*'Project Charact'!$G$100*'Toll Rate'!$J33*'Project Charact'!$G$23*'T & R'!$H150)+(NORMINV(O150,F150,W150)*'Project Charact'!$G$100*'Toll Rate'!$J33*(1+'Project Charact'!$G$108)*'Project Charact'!$G$23*(1-'T & R'!$H150)) -> 2347113.036 | Q150: 0.9 | W150: =+Traffic!P21 -> 73.79243193
D151: 9 | E151: 2023 | F151: =+IF(Traffic!J22>Traffic!$K$8,Traffic!K22*Traffic!S22,Traffic!I22) -> 836.0682537 | G151: =+(F151*'Project Charact'!$G$100)*'Toll Rate'!$J34*'Project Charact'!$G$23*'T & R'!$H151+(F151*'Project Charact'!$G$100)*'Toll Rate'!$J34*(1+'Project Charact'!$G$108)*'Project Charact'!$G$23*(1-'T & R'!$H151) -> 2155628.785 | H151: 0.05 | I151: =('Project Charact'!$G$100*'Toll Rate'!J34*'Project Charact'!$G$23*(Traffic!AC22+SQRT(H151*(F151-Traffic!AC22)*(Traffic!AD22-Traffic!AC22)))*('T & R'!$H151))+('Project Charact'!$G$100*'Toll Rate'!J34*'Project Charact'!$G$23*(Traffic!AC22+SQRT(H151*(F151-Traffic!AAC22)*(Traffic!AD22-Traffic!AC22)))*(1-'T & R'!$H151)) -> 1638550.851 | J151: 0.95 | K151: =('Project Charact'!$G$100*'Toll Rate'!J34*'Project Charact'!$G$23*(Traffic!AD22-SQRT((1-J151)*(Traffic!AD22-F151)*(Traffic!AD22-Traffic!AC22)))*('T & R'!H151))+('Project Charact'!$G$100*'Toll Rate'!J34*'Project Charact'!$G$23*(Traffic!AD22-SQRT((1-J151)*(Traffic!AD22-F151)*(Traffic!AD22-Traffic!AC22)))*(1-'T & R'!H151)) -> 2279293.504 | L151: 0.9 | M151: 0.05 | N151: =(NORMINV(M151,F151,W151)*'Project Charact'!$G$100*'Toll Rate'!$J34*'Project Charact'!$G$23*'T & R'!$H151)+(NORMINV(M151,F151,W151)*'Project Charact'!$G$100*'Toll Rate'!$J34*(1+'Project Charact'!$G$108)*'Project Charact'!$G$23*(1-'T & R'!$H151)) -> 1833292.983 | O151: 0.95 | P151: =(NORMINV(O151,F151,W151)*'Project Charact'!$G$100*'Toll Rate'!$J34*'Project Charact'!$G$23*'T & R'!$H151)+(NORMINV(O151,F151,W151)*'Project Charact'!$G$100*'Toll Rate'!$J34*(1+'Project Charact'!$G$108)*'Project Charact'!$G$23*(1-'T & R'!$H151)) -> 2477964.588 | Q151: 0.9 | W151: =+Traffic!P22 -> 76.00620488
D152: 10 | E152: 2024 | F152: =+IF(Traffic!J23>Traffic!$K$8,Traffic!K23*Traffic!S23,Traffic!I23) -> 861.1503013 | G152: =+(F152*'Project Charact'!$G$100)*'Toll Rate'!$J35*'Project Charact'!$G$23*'T & R'!$H152+(F152*'Project Charact'!$G$100)*'Toll Rate'!$J35*(1+'Project Charact'!$G$108)*'Project Charact'!$G$23*(1-'T & R'!$H152) -> 2275805.09 | H152: 0.05 | I152: =('Project Charact'!$G$100*'Toll Rate'!J35*'Project Charact'!$G$23*(Traffic!AC23+SQRT(H152*(F152-Traffic!AC23)*(Traffic!AD23-Traffic!AC23)))*('T & R'!$H152))+('Project Charact'!$G$100*'Toll Rate'!J35*'Project Charact'!$G$23*(Traffic!AC23+SQRT(H152*(F152-Traffic!AAC23)*(Traffic!AD23-Traffic!AC23)))*(1-'T & R'!$H152)) -> 1729900.061 | J152: 0.95 | K152: =('Project Charact'!$G$100*'Toll Rate'!J35*'Project Charact'!$G$23*(Traffic!AD23-SQRT((1-J152)*(Traffic!AD23-F152)*(Traffic!AD23-Traffic!AC23)))*('T & R'!H152))+('Project Charact'!$G$100*'Toll Rate'!J35*'Project Charact'!$G$23*(Traffic!AD23-SQRT((1-J152)*(Traffic!AD23-F152)*(Traffic!AD23-Traffic!AC23)))*(1-'T & R'!H152)) -> 2406364.117 | L152: 0.9 | M152: 0.05 | N152: =(NORMINV(M152,F152,W152)*'Project Charact'!$G$100*'Toll Rate'!$J35*'Project Charact'!$G$23*'T & R'!$H152)+(NORMINV(M152,F152,W152)*'Project Charact'!$G$100*'Toll Rate'!$J35*(1+'Project Charact'!$G$108)*'Project Charact'!$G$23*(1-'T & R'!$H152)) -> 1935499.067 | O152: 0.95 | P152: =(NORMINV(O152,F152,W152)*'Project Charact'!$G$100*'Toll Rate'!$J35*'Project Charact'!$G$23*'T & R'!$H152)+(NORMINV(O152,F152,W152)*'Project Charact'!$G$100*'Toll Rate'!$J35*(1+'Project Charact'!$G$108)*'Project Charact'!$G$23*(1-'T & R'!$H152)) -> 2616111.113 | Q152: 0.9 | W152: =+Traffic!P23 -> 78.28639103
D153: 11 | E153: 2025 | F153: =+IF(Traffic!J24>Traffic!$K$8,Traffic!K24*Traffic!S24,Traffic!I24) -> 882.6790589 | G153: =+(F153*'Project Charact'!$G$100)*'Toll Rate'!$J36*'Project Charact'!$G$23*'T & R'!$H153+(F153*'Project Charact'!$G$100)*'Toll Rate'!$J36*(1+'Project Charact'!$G$108)*'Project Charact'!$G$23*(1-'T & R'!$H153) -> 2364450.859 | H153: 0.05 | I153: =('Project Charact'!$G$100*'Toll Rate'!J36*'Project Charact'!$G$23*(Traffic!AC24+SQRT(H153*(F153-Traffic!AC24)*(Traffic!AD24-Traffic!AC24)))*('T & R'!$H153))+('Project Charact'!$G$100*'Toll Rate'!J36*'Project Charact'!$G$23*(Traffic!AC24+SQRT(H153*(F153-Traffic!AAC24)*(Traffic!AD24-Traffic!AC24)))*(1-'T & R'!$H153)) -> 1809042.815 | J153: 0.95 | K153: =('Project Charact'!$G$100*'Toll Rate'!J36*'Project Charact'!$G$23*(Traffic!AD24-SQRT((1-J153)*(Traffic!AD24-F153)*(Traffic!AD24-Traffic!AC24)))*('T & R'!H153))+('Project Charact'!$G$100*'Toll Rate'!J36*'Project Charact'!$G$23*(Traffic!AD24-SQRT((1-J153)*(Traffic!AD24-F153)*(Traffic!AD24-Traffic!AC24)))*(1-'T & R'!H153)) -> 2528186.3 | L153: 0.9 | M153: 0.05 | N153: =(NORMINV(M153,F153,W153)*'Project Charact'!$G$100*'Toll Rate'!$J36*'Project Charact'!$G$23*'T & R'!$H153)+(NORMINV(M153,F153,W153)*'Project Charact'!$G$100*'Toll Rate'!$J36*(1+'Project Charact'!$G$108)*'Project Charact'!$G$23*(1-'T & R'!$H153)) -> 2010889.443 | O153: 0.95 | P153: =(NORMINV(O153,F153,W153)*'Project Charact'!$G$100*'Toll Rate'!$J36*'Project Charact'!$G$23*'T & R'!$H153)+(NORMINV(O153,F153,W153)*'Project Charact'!$G$100*'Toll Rate'!$J36*(1+'Project Charact'!$G$108)*'Project Charact'!$G$23*(1-'T & R'!$H153)) -> 2718012.275 | Q153: 0.9 | W153: =+Traffic!P24 -> 80.24355081
D154: 12 | E154: 2026 | F154: =+IF(Traffic!J25>Traffic!$K$8,Traffic!K25*Traffic!S25,Traffic!I25) -> 904.7460353 | G154: =+(F154*'Project Charact'!$G$100)*'Toll Rate'!$J37*'Project Charact'!$G$23*'T & R'!$H154+(F154*'Project Charact'!$G$100)*'Toll Rate'!$J37*(1+'Project Charact'!$G$108)*'Project Charact'!$G$23*(1-'T & R'!$H154) -> 2484151.184 | H154: 0.05 | I154: =('Project Charact'!$G$100*'Toll Rate'!J37*'Project Charact'!$G$23*(Traffic!AC25+SQRT(H154*(F154-Traffic!AC25)*(Traffic!AD25-Traffic!AC25)))*('T & R'!$H154))+('Project Charact'!$G$100*'Toll Rate'!J37*'Project Charact'!$G$23*(Traffic!AC25+SQRT(H154*(F154-Traffic!AAC25)*(Traffic!AD25-Traffic!AC25)))*(1-'T & R'!$H154)) -> 1900625.607 | J154: 0.95 | K154: =('Project Charact'!$G$100*'Toll Rate'!J37*'Project Charact'!$G$23*(Traffic!AD25-SQRT((1-J154)*(Traffic!AD25-F154)*(Traffic!AD25-Traffic!AC25)))*('T & R'!H154))+('Project Charact'!$G$100*'Toll Rate'!J37*'Project Charact'!$G$23*(Traffic!AD25-SQRT((1-J154)*(Traffic!AD25-F154)*(Traffic!AD25-Traffic!AC25)))*(1-'T & R'!H154)) -> 2656175.732 | L154: 0.9 | M154: 0.05 | N154: =(NORMINV(M154,F154,W154)*'Project Charact'!$G$100*'Toll Rate'!$J37*'Project Charact'!$G$23*'T & R'!$H154)+(NORMINV(M154,F154,W154)*'Project Charact'!$G$100*'Toll Rate'!$J37*(1+'Project Charact'!$G$108)*'Project Charact'!$G$23*(1-'T & R'!$H154)) -> 2112690.722 | O154: 0.95 | P154: =(NORMINV(O154,F154,W154)*'Project Charact'!$G$100*'Toll Rate'!$J37*'Project Charact'!$G$23*'T & R'!$H154)+(NORMINV(O154,F154,W154)*'Project Charact'!$G$100*'Toll Rate'!$J37*(1+'Project Charact'!$G$108)*'Project Charact'!$G$23*(1-'T & R'!$H154)) -> 2855611.646 | Q154: 0.9 | W154: =+Traffic!P25 -> 82.24963958
D155: 13 | E155: 2027 | F155: =+IF(Traffic!J26>Traffic!$K$8,Traffic!K26*Traffic!S26,Traffic!I26) -> 927.3646862 | G155: =+(F155*'Project Charact'!$G$100)*'Toll Rate'!$J38*'Project Charact'!$G$23*'T & R'!$H155+(F155*'Project Charact'!$G$100)*'Toll Rate'!$J38*(1+'Project Charact'!$G$108)*'Project Charact'!$G$23*(1-'T & R'!$H155) -> 2609911.337 | H155: 0.05 | I155: =('Project Charact'!$G$100*'Toll Rate'!J38*'Project Charact'!$G$23*(Traffic!AC26+SQRT(H155*(F155-Traffic!AC26)*(Traffic!AD26-Traffic!AC26)))*('T & R'!$H155))+('Project Charact'!$G$100*'Toll Rate'!J38*'Project Charact'!$G$23*(Traffic!AC26+SQRT(H155*(F155-Traffic!AAC26)*(Traffic!AD26-Traffic!AC26)))*(1-'T & R'!$H155)) -> 1996844.779 | J155: 0.95 | K155: =('Project Charact'!$G$100*'Toll Rate'!J38*'Project Charact'!$G$23*(Traffic!AD26-SQRT((1-J155)*(Traffic!AD26-F155)*(Traffic!AD26-Traffic!AC26)))*('T & R'!H155))+('Project Charact'!$G$100*'Toll Rate'!J38*'Project Charact'!$G$23*(Traffic!AD26-SQRT((1-J155)*(Traffic!AD26-F155)*(Traffic!AD26-Traffic!AC26)))*(1-'T & R'!H155)) -> 2790644.628 | L155: 0.9 | M155: 0.05 | N155: =(NORMINV(M155,F155,W155)*'Project Charact'!$G$100*'Toll Rate'!$J38*'Project Charact'!$G$23*'T & R'!$H155)+(NORMINV(M155,F155,W155)*'Project Charact'!$G$100*'Toll Rate'!$J38*(1+'Project Charact'!$G$108)*'Project Charact'!$G$23*(1-'T & R'!$H155)) -> 2219645.689 | O155: 0.95 | P155: =(NORMINV(O155,F155,W155)*'Project Charact'!$G$100*'Toll Rate'!$J38*'Project Charact'!$G$23*'T & R'!$H155)+(NORMINV(O155,F155,W155)*'Project Charact'!$G$100*'Toll Rate'!$J38*(1+'Project Charact'!$G$108)*'Project Charact'!$G$23*(1-'T & R'!$H155)) -> 3000176.986 | Q155: 0.9 | W155: =+Traffic!P26 -> 84.30588057
D156: 14 | E156: 2028 | F156: =+IF(Traffic!J27>Traffic!$K$8,Traffic!K27*Traffic!S27,Traffic!I27) -> 950.5488034 | G156: =+(F156*'Project Charact'!$G$100)*'Toll Rate'!$J39*'Project Charact'!$G$23*'T & R'!$H156+(F156*'Project Charact'!$G$100)*'Toll Rate'!$J39*(1+'Project Charact'!$G$108)*'Project Charact'!$G$23*(1-'T & R'!$H156) -> 2742038.099 | H156: 0.05 | I156: =('Project Charact'!$G$100*'Toll Rate'!J39*'Project Charact'!$G$23*(Traffic!AC27+SQRT(H156*(F156-Traffic!AC27)*(Traffic!AD27-Traffic!AC27)))*('T & R'!$H156))+('Project Charact'!$G$100*'Toll Rate'!J39*'Project Charact'!$G$23*(Traffic!AC27+SQRT(H156*(F156-Traffic!AAC27)*(Traffic!AD27-Traffic!AC27)))*(1-'T & R'!$H156)) -> 2097935.045 | J156: 0.95 | K156: =('Project Charact'!$G$100*'Toll Rate'!J39*'Project Charact'!$G$23*(Traffic!AD27-SQRT((1-J156)*(Traffic!AD27-F156)*(Traffic!AD27-Traffic!AC27)))*('T & R'!H156))+('Project Charact'!$G$100*'Toll Rate'!J39*'Project Charact'!$G$23*(Traffic!AD27-SQRT((1-J156)*(Traffic!AD27-F156)*(Traffic!AD27-Traffic!AC27)))*(1-'T & R'!H156)) -> 2931921.012 | L156: 0.9 | M156: 0.05 | N156: =(NORMINV(M156,F156,W156)*'Project Charact'!$G$100*'Toll Rate'!$J39*'Project Charact'!$G$23*'T & R'!$H156)+(NORMINV(M156,F156,W156)*'Project Charact'!$G$100*'Toll Rate'!$J39*(1+'Project Charact'!$G$108)*'Project Charact'!$G$23*(1-'T & R'!$H156)) -> 2332015.252 | O156: 0.95 | P156: =(NORMINV(O156,F156,W156)*'Project Charact'!$G$100*'Toll Rate'!$J39*'Project Charact'!$G$23*'T & R'!$H156)+(NORMINV(O156,F156,W156)*'Project Charact'!$G$100*'Toll Rate'!$J39*(1+'Project Charact'!$G$108)*'Project Charact'!$G$23*(1-'T & R'!$H156)) -> 3152060.946 | Q156: 0.9 | W156: =+Traffic!P27 -> 86.41352758
D157: 15 | E157: 2029 | F157: =+IF(Traffic!J28>Traffic!$K$8,Traffic!K28*Traffic!S28,Traffic!I28) -> 974.3125235 | G157: =+(F157*'Project Charact'!$G$100)*'Toll Rate'!$J40*'Project Charact'!$G$23*'T & R'!$H157+(F157*'Project Charact'!$G$100)*'Toll Rate'!$J40*(1+'Project Charact'!$G$108)*'Project Charact'!$G$23*(1-'T & R'!$H157) -> 2880853.778 | H157: 0.05 | I157: =('Project Charact'!$G$100*'Toll Rate'!J40*'Project Charact'!$G$23*(Traffic!AC28+SQRT(H157*(F157-Traffic!AC28)*(Traffic!AD28-Traffic!AC28)))*('T & R'!$H157))+('Project Charact'!$G$100*'Toll Rate'!J40*'Project Charact'!$G$23*(Traffic!AC28+SQRT(H157*(F157-Traffic!AAC28)*(Traffic!AD28-Traffic!AC28)))*(1-'T & R'!$H157)) -> 2204143.007 | J157: 0.95 | K157: =('Project Charact'!$G$100*'Toll Rate'!J40*'Project Charact'!$G$23*(Traffic!AD28-SQRT((1-J157)*(Traffic!AD28-F157)*(Traffic!AD28-Traffic!AC28)))*('T & R'!H157))+('Project Charact'!$G$100*'Toll Rate'!J40*'Project Charact'!$G$23*(Traffic!AD28-SQRT((1-J157)*(Traffic!AD28-F157)*(Traffic!AD28-Traffic!AC28)))*(1-'T & R'!H157)) -> 3080349.514 | L157: 0.9 | M157: 0.05 | N157: =(NORMINV(M157,F157,W157)*'Project Charact'!$G$100*'Toll Rate'!$J40*'Project Charact'!$G$23*'T & R'!$H157)+(NORMINV(M157,F157,W157)*'Project Charact'!$G$100*'Toll Rate'!$J40*(1+'Project Charact'!$G$108)*'Project Charact'!$G$23*(1-'T & R'!$H157)) -> 2450073.525 | O157: 0.95 | P157: =(NORMINV(O157,F157,W157)*'Project Charact'!$G$100*'Toll Rate'!$J40*'Project Charact'!$G$23*'T & R'!$H157)+(NORMINV(O157,F157,W157)*'Project Charact'!$G$100*'Toll Rate'!$J40*(1+'Project Charact'!$G$108)*'Project Charact'!$G$23*(1-'T & R'!$H157)) -> 3311634.031 | Q157: 0.9 | W157: =+Traffic!P28 -> 88.57386577
D158: 16 | E158: 2030 | F158: =+IF(Traffic!J29>Traffic!$K$8,Traffic!K29*Traffic!S29,Traffic!I29) -> 998.6703365 | G158: =+(F158*'Project Charact'!$G$100)*'Toll Rate'!$J41*'Project Charact'!$G$23*'T & R'!$H158+(F158*'Project Charact'!$G$100)*'Toll Rate'!$J41*(1+'Project Charact'!$G$108)*'Project Charact'!$G$23*(1-'T & R'!$H158) -> 3026697 | H158: 0.05 | I158: =('Project Charact'!$G$100*'Toll Rate'!J41*'Project Charact'!$G$23*(Traffic!AC29+SQRT(H158*(F158-Traffic!AC29)*(Traffic!AD29-Traffic!AC29)))*('T & R'!$H158))+('Project Charact'!$G$100*'Toll Rate'!J41*'Project Charact'!$G$23*(Traffic!AC29+SQRT(H158*(F158-Traffic!AAC29)*(Traffic!AD29-Traffic!AC29)))*(1-'T & R'!$H158)) -> 2315727.747 | J158: 0.95 | K158: =('Project Charact'!$G$100*'Toll Rate'!J41*'Project Charact'!$G$23*(Traffic!AD29-SQRT((1-J158)*(Traffic!AD29-F158)*(Traffic!AD29-Traffic!AC29)))*('T & R'!H158))+('Project Charact'!$G$100*'Toll Rate'!J41*'Project Charact'!$G$23*(Traffic!AD29-SQRT((1-J158)*(Traffic!AD29-F158)*(Traffic!AD29-Traffic!AC29)))*(1-'T & R'!H158)) -> 3236292.208 | L158: 0.9 | M158: 0.05 | N158: =(NORMINV(M158,F158,W158)*'Project Charact'!$G$100*'Toll Rate'!$J41*'Project Charact'!$G$23*'T & R'!$H158)+(NORMINV(M158,F158,W158)*'Project Charact'!$G$100*'Toll Rate'!$J41*(1+'Project Charact'!$G$108)*'Project Charact'!$G$23*(1-'T & R'!$H158)) -> 2574108.497 | O158: 0.95 | P158: =(NORMINV(O158,F158,W158)*'Project Charact'!$G$100*'Toll Rate'!$J41*'Project Charact'!$G$23*'T & R'!$H158)+(NORMINV(O158,F158,W158)*'Project Charact'!$G$100*'Toll Rate'!$J41*(1+'Project Charact'!$G$108)*'Project Charact'!$G$23*(1-'T & R'!$H158)) -> 3479285.504 | Q158: 0.9 | W158: =+Traffic!P29 -> 90.78821241
D159: 17 | E159: 2031 | F159: =+IF(Traffic!J30>Traffic!$K$8,Traffic!K30*Traffic!S30,Traffic!I30) -> 1023.637095 | G159: =+(F159*'Project Charact'!$G$100)*'Toll Rate'!$J42*'Project Charact'!$G$23*'T & R'!$H159+(F159*'Project Charact'!$G$100)*'Toll Rate'!$J42*(1+'Project Charact'!$G$108)*'Project Charact'!$G$23*(1-'T & R'!$H159) -> 3179923.536 | H159: 0.05 | I159: =('Project Charact'!$G$100*'Toll Rate'!J42*'Project Charact'!$G$23*(Traffic!AC30+SQRT(H159*(F159-Traffic!AC30)*(Traffic!AD30-Traffic!AC30)))*('T & R'!$H159))+('Project Charact'!$G$100*'Toll Rate'!J42*'Project Charact'!$G$23*(Traffic!AC30+SQRT(H159*(F159-Traffic!AAC30)*(Traffic!AD30-Traffic!AC30)))*(1-'T & R'!$H159)) -> 2432961.464 | J159: 0.95 | K159: =('Project Charact'!$G$100*'Toll Rate'!J42*'Project Charact'!$G$23*(Traffic!AD30-SQRT((1-J159)*(Traffic!AD30-F159)*(Traffic!AD30-Traffic!AC30)))*('T & R'!H159))+('Project Charact'!$G$100*'Toll Rate'!J42*'Project Charact'!$G$23*(Traffic!AD30-SQRT((1-J159)*(Traffic!AD30-F159)*(Traffic!AD30-Traffic!AC30)))*(1-'T & R'!H159)) -> 3400129.501 | L159: 0.9 | M159: 0.05 | N159: =(NORMINV(M159,F159,W159)*'Project Charact'!$G$100*'Toll Rate'!$J42*'Project Charact'!$G$23*'T & R'!$H159)+(NORMINV(M159,F159,W159)*'Project Charact'!$G$100*'Toll Rate'!$J42*(1+'Project Charact'!$G$108)*'Project Charact'!$G$23*(1-'T & R'!$H159)) -> 2704422.739 | O159: 0.95 | P159: =(NORMINV(O159,F159,W159)*'Project Charact'!$G$100*'Toll Rate'!$J42*'Project Charact'!$G$23*'T & R'!$H159)+(NORMINV(O159,F159,W159)*'Project Charact'!$G$100*'Toll Rate'!$J42*(1+'Project Charact'!$G$108)*'Project Charact'!$G$23*(1-'T & R'!$H159)) -> 3655424.332 | Q159: 0.9 | W159: =+Traffic!P30 -> 93.05791772
D160: 18 | E160: 2032 | F160: =+IF(Traffic!J31>Traffic!$K$8,Traffic!K31*Traffic!S31,Traffic!I31) -> 1049.228022 | G160: =+(F160*'Project Charact'!$G$100)*'Toll Rate'!$J43*'Project Charact'!$G$23*'T & R'!$H160+(F160*'Project Charact'!$G$100)*'Toll Rate'!$J43*(1+'Project Charact'!$G$108)*'Project Charact'!$G$23*(1-'T & R'!$H160) -> 3340907.165 | H160: 0.05 | I160: =('Project Charact'!$G$100*'Toll Rate'!J43*'Project Charact'!$G$23*(Traffic!AC31+SQRT(H160*(F160-Traffic!AC31)*(Traffic!AD31-Traffic!AC31)))*('T & R'!$H160))+('Project Charact'!$G$100*'Toll Rate'!J43*'Project Charact'!$G$23*(Traffic!AC31+SQRT(H160*(F160-Traffic!AAC31)*(Traffic!AD31-Traffic!AC31)))*(1-'T & R'!$H160)) -> 2556130.138 | J160: 0.95 | K160: =('Project Charact'!$G$100*'Toll Rate'!J43*'Project Charact'!$G$23*(Traffic!AD31-SQRT((1-J160)*(Traffic!AD31-F160)*(Traffic!AD31-Traffic!AC31)))*('T & R'!H160))+('Project Charact'!$G$100*'Toll Rate'!J43*'Project Charact'!$G$23*(Traffic!AD31-SQRT((1-J160)*(Traffic!AD31-F160)*(Traffic!AD31-Traffic!AC31)))*(1-'T & R'!H160)) -> 3572261.057 | L160: 0.9 | M160: 0.05 | N160: =(NORMINV(M160,F160,W160)*'Project Charact'!$G$100*'Toll Rate'!$J43*'Project Charact'!$G$23*'T & R'!$H160)+(NORMINV(M160,F160,W160)*'Project Charact'!$G$100*'Toll Rate'!$J43*(1+'Project Charact'!$G$108)*'Project Charact'!$G$23*(1-'T & R'!$H160)) -> 2841334.141 | O160: 0.95 | P160: =(NORMINV(O160,F160,W160)*'Project Charact'!$G$100*'Toll Rate'!$J43*'Project Charact'!$G$23*'T & R'!$H160)+(NORMINV(O160,F160,W160)*'Project Charact'!$G$100*'Toll Rate'!$J43*(1+'Project Charact'!$G$108)*'Project Charact'!$G$23*(1-'T & R'!$H160)) -> 3840480.189 | Q160: 0.9 | W160: =+Traffic!P31 -> 95.38436567
D161: 19 | E161: 2033 | F161: =+IF(Traffic!J32>Traffic!$K$8,Traffic!K32*Traffic!S32,Traffic!I32) -> 1075.458723 | G161: =+(F161*'Project Charact'!$G$100)*'Toll Rate'!$J44*'Project Charact'!$G$23*'T & R'!$H161+(F161*'Project Charact'!$G$100)*'Toll Rate'!$J44*(1+'Project Charact'!$G$108)*'Project Charact'!$G$23*(1-'T & R'!$H161) -> 3510040.59 | H161: 0.05 | I161: =('Project Charact'!$G$100*'Toll Rate'!J44*'Project Charact'!$G$23*(Traffic!AC32+SQRT(H161*(F161-Traffic!AC32)*(Traffic!AD32-Traffic!AC32)))*('T & R'!$H161))+('Project Charact'!$G$100*'Toll Rate'!J44*'Project Charact'!$G$23*(Traffic!AC32+SQRT(H161*(F161-Traffic!AAC32)*(Traffic!AD32-Traffic!AC32)))*(1-'T & R'!$H161)) -> 2685534.226 | J161: 0.95 | K161: =('Project Charact'!$G$100*'Toll Rate'!J44*'Project Charact'!$G$23*(Traffic!AD32-SQRT((1-J161)*(Traffic!AD32-F161)*(Traffic!AD32-Traffic!AC32)))*('T & R'!H161))+('Project Charact'!$G$100*'Toll Rate'!J44*'Project Charact'!$G$23*(Traffic!AD32-SQRT((1-J161)*(Traffic!AD32-F161)*(Traffic!AD32-Traffic!AC32)))*(1-'T & R'!H161)) -> 3753106.773 | L161: 0.9 | M161: 0.05 | N161: =(NORMINV(M161,F161,W161)*'Project Charact'!$G$100*'Toll Rate'!$J44*'Project Charact'!$G$23*'T & R'!$H161)+(NORMINV(M161,F161,W161)*'Project Charact'!$G$100*'Toll Rate'!$J44*(1+'Project Charact'!$G$108)*'Project Charact'!$G$23*(1-'T & R'!$H161)) -> 2985176.681 | O161: 0.95 | P161: =(NORMINV(O161,F161,W161)*'Project Charact'!$G$100*'Toll Rate'!$J44*'Project Charact'!$G$23*'T & R'!$H161)+(NORMINV(O161,F161,W161)*'Project Charact'!$G$100*'Toll Rate'!$J44*(1+'Project Charact'!$G$108)*'Project Charact'!$G$23*(1-'T & R'!$H161)) -> 4034904.499 | Q161: 0.9 | W161: =+Traffic!P32 -> 97.76897481
D162: 20 | E162: 2034 | F162: =+IF(Traffic!J33>Traffic!$K$8,Traffic!K33*Traffic!S33,Traffic!I33) -> 1102.345191 | G162: =+(F162*'Project Charact'!$G$100)*'Toll Rate'!$J45*'Project Charact'!$G$23*'T & R'!$H162+(F162*'Project Charact'!$G$100)*'Toll Rate'!$J45*(1+'Project Charact'!$G$108)*'Project Charact'!$G$23*(1-'T & R'!$H162) -> 3687736.395 | H162: 0.05 | I162: =('Project Charact'!$G$100*'Toll Rate'!J45*'Project Charact'!$G$23*(Traffic!AC33+SQRT(H162*(F162-Traffic!AC33)*(Traffic!AD33-Traffic!AC33)))*('T & R'!$H162))+('Project Charact'!$G$100*'Toll Rate'!J45*'Project Charact'!$G$23*(Traffic!AC33+SQRT(H162*(F162-Traffic!AAC33)*(Traffic!AD33-Traffic!AC33)))*(1-'T & R'!$H162)) -> 2821489.397 | J162: 0.95 | K162: =('Project Charact'!$G$100*'Toll Rate'!J45*'Project Charact'!$G$23*(Traffic!AD33-SQRT((1-J162)*(Traffic!AD33-F162)*(Traffic!AD33-Traffic!AC33)))*('T & R'!H162))+('Project Charact'!$G$100*'Toll Rate'!J45*'Project Charact'!$G$23*(Traffic!AD33-SQRT((1-J162)*(Traffic!AD33-F162)*(Traffic!AD33-Traffic!AC33)))*(1-'T & R'!H162)) -> 3943107.803 | L162: 0.9 | M162: 0.05 | N162: =(NORMINV(M162,F162,W162)*'Project Charact'!$G$100*'Toll Rate'!$J45*'Project Charact'!$G$23*'T & R'!$H162)+(NORMINV(M162,F162,W162)*'Project Charact'!$G$100*'Toll Rate'!$J45*(1+'Project Charact'!$G$108)*'Project Charact'!$G$23*(1-'T & R'!$H162)) -> 3136301.251 | O162: 0.95 | P162: =(NORMINV(O162,F162,W162)*'Project Charact'!$G$100*'Toll Rate'!$J45*'Project Charact'!$G$23*'T & R'!$H162)+(NORMINV(O162,F162,W162)*'Project Charact'!$G$100*'Toll Rate'!$J45*(1+'Project Charact'!$G$108)*'Project Charact'!$G$23*(1-'T & R'!$H162)) -> 4239171.539 | Q162: 0.9 | W162: =+Traffic!P33 -> 100.2131992
D163: 21 | E163: 2035 | F163: =+IF(Traffic!J34>Traffic!$K$8,Traffic!K34*Traffic!S34,Traffic!I34) -> 1124.392095 | G163: =+(F163*'Project Charact'!$G$100)*'Toll Rate'!$J46*'Project Charact'!$G$23*'T & R'!$H163+(F163*'Project Charact'!$G$100)*'Toll Rate'!$J46*(1+'Project Charact'!$G$108)*'Project Charact'!$G$23*(1-'T & R'!$H163) -> 3812207.857 | H163: 0.05 | I163: =('Project Charact'!$G$100*'Toll Rate'!J46*'Project Charact'!$G$23*(Traffic!AC34+SQRT(H163*(F163-Traffic!AC34)*(Traffic!AD34-Traffic!AC34)))*('T & R'!$H163))+('Project Charact'!$G$100*'Toll Rate'!J46*'Project Charact'!$G$23*(Traffic!AC34+SQRT(H163*(F163-Traffic!AAC34)*(Traffic!AD34-Traffic!AC34)))*(1-'T & R'!$H163)) -> 2936115.406 | J163: 0.95 | K163: =('Project Charact'!$G$100*'Toll Rate'!J46*'Project Charact'!$G$23*(Traffic!AD34-SQRT((1-J163)*(Traffic!AD34-F163)*(Traffic!AD34-Traffic!AC34)))*('T & R'!H163))+('Project Charact'!$G$100*'Toll Rate'!J46*'Project Charact'!$G$23*(Traffic!AD34-SQRT((1-J163)*(Traffic!AD34-F163)*(Traffic!AD34-Traffic!AC34)))*(1-'T & R'!H163)) -> 4122519.208 | L163: 0.9 | M163: 0.05 | N163: =(NORMINV(M163,F163,W163)*'Project Charact'!$G$100*'Toll Rate'!$J46*'Project Charact'!$G$23*'T & R'!$H163)+(NORMINV(M163,F163,W163)*'Project Charact'!$G$100*'Toll Rate'!$J46*(1+'Project Charact'!$G$108)*'Project Charact'!$G$23*(1-'T & R'!$H163)) -> 3242160.228 | O163: 0.95 | P163: =(NORMINV(O163,F163,W163)*'Project Charact'!$G$100*'Toll Rate'!$J46*'Project Charact'!$G$23*'T & R'!$H163)+(NORMINV(O163,F163,W163)*'Project Charact'!$G$100*'Toll Rate'!$J46*(1+'Project Charact'!$G$108)*'Project Charact'!$G$23*(1-'T & R'!$H163)) -> 4382255.486 | Q163: 0.9 | W163: =+Traffic!P34 -> 102.2174632
D164: 22 | E164: 2036 | F164: =+IF(Traffic!J35>Traffic!$K$8,Traffic!K35*Traffic!S35,Traffic!I35) -> 1146.879937 | G164: =+(F164*'Project Charact'!$G$100)*'Toll Rate'!$J47*'Project Charact'!$G$23*'T & R'!$H164+(F164*'Project Charact'!$G$100)*'Toll Rate'!$J47*(1+'Project Charact'!$G$108)*'Project Charact'!$G$23*(1-'T & R'!$H164) -> 3985663.315 | H164: 0.05 | I164: =('Project Charact'!$G$100*'Toll Rate'!J47*'Project Charact'!$G$23*(Traffic!AC35+SQRT(H164*(F164-Traffic!AC35)*(Traffic!AD35-Traffic!AC35)))*('T & R'!$H164))+('Project Charact'!$G$100*'Toll Rate'!J47*'Project Charact'!$G$23*(Traffic!AC35+SQRT(H164*(F164-Traffic!AAC35)*(Traffic!AD35-Traffic!AC35)))*(1-'T & R'!$H164)) -> 3069708.657 | J164: 0.95 | K164: =('Project Charact'!$G$100*'Toll Rate'!J47*'Project Charact'!$G$23*(Traffic!AD35-SQRT((1-J164)*(Traffic!AD35-F164)*(Traffic!AD35-Traffic!AC35)))*('T & R'!H164))+('Project Charact'!$G$100*'Toll Rate'!J47*'Project Charact'!$G$23*(Traffic!AD35-SQRT((1-J164)*(Traffic!AD35-F164)*(Traffic!AD35-Traffic!AC35)))*(1-'T & R'!H164)) -> 4310093.832 | L164: 0.9 | M164: 0.05 | N164: =(NORMINV(M164,F164,W164)*'Project Charact'!$G$100*'Toll Rate'!$J47*'Project Charact'!$G$23*'T & R'!$H164)+(NORMINV(M164,F164,W164)*'Project Charact'!$G$100*'Toll Rate'!$J47*(1+'Project Charact'!$G$108)*'Project Charact'!$G$23*(1-'T & R'!$H164)) -> 3389678.518 | O164: 0.95 | P164: =(NORMINV(O164,F164,W164)*'Project Charact'!$G$100*'Toll Rate'!$J47*'Project Charact'!$G$23*'T & R'!$H164)+(NORMINV(O164,F164,W164)*'Project Charact'!$G$100*'Toll Rate'!$J47*(1+'Project Charact'!$G$108)*'Project Charact'!$G$23*(1-'T & R'!$H164)) -> 4581648.111 | Q164: 0.9 | W164: =+Traffic!P35 -> 104.2618124
D165: 23 | E165: 2037 | F165: =+IF(Traffic!J36>Traffic!$K$8,Traffic!K36*Traffic!S36,Traffic!I36) -> 1169.817535 | G165: =+(F165*'Project Charact'!$G$100)*'Toll Rate'!$J48*'Project Charact'!$G$23*'T & R'!$H165+(F165*'Project Charact'!$G$100)*'Toll Rate'!$J48*(1+'Project Charact'!$G$108)*'Project Charact'!$G$23*(1-'T & R'!$H165) -> 4167010.995 | H165: 0.05 | I165: =('Project Charact'!$G$100*'Toll Rate'!J48*'Project Charact'!$G$23*(Traffic!AC36+SQRT(H165*(F165-Traffic!AC36)*(Traffic!AD36-Traffic!AC36)))*('T & R'!$H165))+('Project Charact'!$G$100*'Toll Rate'!J48*'Project Charact'!$G$23*(Traffic!AC36+SQRT(H165*(F165-Traffic!AAC36)*(Traffic!AD36-Traffic!AC36)))*(1-'T & R'!$H165)) -> 3209380.401 | J165: 0.95 | K165: =('Project Charact'!$G$100*'Toll Rate'!J48*'Project Charact'!$G$23*(Traffic!AD36-SQRT((1-J165)*(Traffic!AD36-F165)*(Traffic!AD36-Traffic!AC36)))*('T & R'!H165))+('Project Charact'!$G$100*'Toll Rate'!J48*'Project Charact'!$G$23*(Traffic!AD36-SQRT((1-J165)*(Traffic!AD36-F165)*(Traffic!AD36-Traffic!AC36)))*(1-'T & R'!H165)) -> 4506203.102 | L165: 0.9 | M165: 0.05 | N165: =(NORMINV(M165,F165,W165)*'Project Charact'!$G$100*'Toll Rate'!$J48*'Project Charact'!$G$23*'T & R'!$H165)+(NORMINV(M165,F165,W165)*'Project Charact'!$G$100*'Toll Rate'!$J48*(1+'Project Charact'!$G$108)*'Project Charact'!$G$23*(1-'T & R'!$H165)) -> 3543908.891 | O165: 0.95 | P165: =(NORMINV(O165,F165,W165)*'Project Charact'!$G$100*'Toll Rate'!$J48*'Project Charact'!$G$23*'T & R'!$H165)+(NORMINV(O165,F165,W165)*'Project Charact'!$G$100*'Toll Rate'!$J48*(1+'Project Charact'!$G$108)*'Project Charact'!$G$23*(1-'T & R'!$H165)) -> 4790113.1 | Q165: 0.9 | W165: =+Traffic!P36 -> 106.3470487
D166: 24 | E166: 2038 | F166: =+IF(Traffic!J37>Traffic!$K$8,Traffic!K37*Traffic!S37,Traffic!I37) -> 1193.213886 | G166: =+(F166*'Project Charact'!$G$100)*'Toll Rate'!$J49*'Project Charact'!$G$23*'T & R'!$H166+(F166*'Project Charact'!$G$100)*'Toll Rate'!$J49*(1+'Project Charact'!$G$108)*'Project Charact'!$G$23*(1-'T & R'!$H166) -> 4356609.996 | H166: 0.05 | I166: =('Project Charact'!$G$100*'Toll Rate'!J49*'Project Charact'!$G$23*(Traffic!AC37+SQRT(H166*(F166-Traffic!AC37)*(Traffic!AD37-Traffic!AC37)))*('T & R'!$H166))+('Project Charact'!$G$100*'Toll Rate'!J49*'Project Charact'!$G$23*(Traffic!AC37+SQRT(H166*(F166-Traffic!AAC37)*(Traffic!AD37-Traffic!AC37)))*(1-'T & R'!$H166)) -> 3355407.209 | J166: 0.95 | K166: =('Project Charact'!$G$100*'Toll Rate'!J49*'Project Charact'!$G$23*(Traffic!AD37-SQRT((1-J166)*(Traffic!AD37-F166)*(Traffic!AD37-Traffic!AC37)))*('T & R'!H166))+('Project Charact'!$G$100*'Toll Rate'!J49*'Project Charact'!$G$23*(Traffic!AD37-SQRT((1-J166)*(Traffic!AD37-F166)*(Traffic!AD37-Traffic!AC37)))*(1-'T & R'!H166)) -> 4711235.343 | L166: 0.9 | M166: 0.05 | N166: =(NORMINV(M166,F166,W166)*'Project Charact'!$G$100*'Toll Rate'!$J49*'Project Charact'!$G$23*'T & R'!$H166)+(NORMINV(M166,F166,W166)*'Project Charact'!$G$100*'Toll Rate'!$J49*(1+'Project Charact'!$G$108)*'Project Charact'!$G$23*(1-'T & R'!$H166)) -> 3705156.745 | O166: 0.95 | P166: =(NORMINV(O166,F166,W166)*'Project Charact'!$G$100*'Toll Rate'!$J49*'Project Charact'!$G$23*'T & R'!$H166)+(NORMINV(O166,F166,W166)*'Project Charact'!$G$100*'Toll Rate'!$J49*(1+'Project Charact'!$G$108)*'Project Charact'!$G$23*(1-'T & R'!$H166)) -> 5008063.246 | Q166: 0.9 | W166: =+Traffic!P37 -> 108.4739896
D167: 25 | E167: 2039 | F167: =+IF(Traffic!J38>Traffic!$K$8,Traffic!K38*Traffic!S38,Traffic!I38) -> 1217.078164 | G167: =+(F167*'Project Charact'!$G$100)*'Toll Rate'!$J50*'Project Charact'!$G$23*'T & R'!$H167+(F167*'Project Charact'!$G$100)*'Toll Rate'!$J50*(1+'Project Charact'!$G$108)*'Project Charact'!$G$23*(1-'T & R'!$H167) -> 4554835.75 | H167: 0.05 | I167: =('Project Charact'!$G$100*'Toll Rate'!J50*'Project Charact'!$G$23*(Traffic!AC38+SQRT(H167*(F167-Traffic!AC38)*(Traffic!AD38-Traffic!AC38)))*('T & R'!$H167))+('Project Charact'!$G$100*'Toll Rate'!J50*'Project Charact'!$G$23*(Traffic!AC38+SQRT(H167*(F167-Traffic!AAC38)*(Traffic!AD38-Traffic!AC38)))*(1-'T & R'!$H167)) -> 3508078.237 | J167: 0.95 | K167: =('Project Charact'!$G$100*'Toll Rate'!J50*'Project Charact'!$G$23*(Traffic!AD38-SQRT((1-J167)*(Traffic!AD38-F167)*(Traffic!AD38-Traffic!AC38)))*('T & R'!H167))+('Project Charact'!$G$100*'Toll Rate'!J50*'Project Charact'!$G$23*(Traffic!AD38-SQRT((1-J167)*(Traffic!AD38-F167)*(Traffic!AD38-Traffic!AC38)))*(1-'T & R'!H167)) -> 4925596.551 | L167: 0.9 | M167: 0.05 | N167: =(NORMINV(M167,F167,W167)*'Project Charact'!$G$100*'Toll Rate'!$J50*'Project Charact'!$G$23*'T & R'!$H167)+(NORMINV(M167,F167,W167)*'Project Charact'!$G$100*'Toll Rate'!$J50*(1+'Project Charact'!$G$108)*'Project Charact'!$G$23*(1-'T & R'!$H167)) -> 3873741.377 | O167: 0.95 | P167: =(NORMINV(O167,F167,W167)*'Project Charact'!$G$100*'Toll Rate'!$J50*'Project Charact'!$G$23*'T & R'!$H167)+(NORMINV(O167,F167,W167)*'Project Charact'!$G$100*'Toll Rate'!$J50*(1+'Project Charact'!$G$108)*'Project Charact'!$G$23*(1-'T & R'!$H167)) -> 5235930.124 | Q167: 0.9 | W167: =+Traffic!P38 -> 110.6434694
D168: 26 | E168: 2040 | F168: =+IF(Traffic!J39>Traffic!$K$8,Traffic!K39*Traffic!S39,Traffic!I39) -> 1241.419727 | G168: =+(F168*'Project Charact'!$G$100)*'Toll Rate'!$J51*'Project Charact'!$G$23*'T & R'!$H168+(F168*'Project Charact'!$G$100)*'Toll Rate'!$J51*(1+'Project Charact'!$G$108)*'Project Charact'!$G$23*(1-'T & R'!$H168) -> 4762080.777 | H168: 0.05 | I168: =('Project Charact'!$G$100*'Toll Rate'!J51*'Project Charact'!$G$23*(Traffic!AC39+SQRT(H168*(F168-Traffic!AC39)*(Traffic!AD39-Traffic!AC39)))*('T & R'!$H168))+('Project Charact'!$G$100*'Toll Rate'!J51*'Project Charact'!$G$23*(Traffic!AC39+SQRT(H168*(F168-Traffic!AAC39)*(Traffic!AD39-Traffic!AC39)))*(1-'T & R'!$H168)) -> 3667695.797 | J168: 0.95 | K168: =('Project Charact'!$G$100*'Toll Rate'!J51*'Project Charact'!$G$23*(Traffic!AD39-SQRT((1-J168)*(Traffic!AD39-F168)*(Traffic!AD39-Traffic!AC39)))*('T & R'!H168))+('Project Charact'!$G$100*'Toll Rate'!J51*'Project Charact'!$G$23*(Traffic!AD39-SQRT((1-J168)*(Traffic!AD39-F168)*(Traffic!AD39-Traffic!AC39)))*(1-'T & R'!H168)) -> 5149711.194 | L168: 0.9 | M168: 0.05 | N168: =(NORMINV(M168,F168,W168)*'Project Charact'!$G$100*'Toll Rate'!$J51*'Project Charact'!$G$23*'T & R'!$H168)+(NORMINV(M168,F168,W168)*'Project Charact'!$G$100*'Toll Rate'!$J51*(1+'Project Charact'!$G$108)*'Project Charact'!$G$23*(1-'T & R'!$H168)) -> 4049996.61 | O168: 0.95 | P168: =(NORMINV(O168,F168,W168)*'Project Charact'!$G$100*'Toll Rate'!$J51*'Project Charact'!$G$23*'T & R'!$H168)+(NORMINV(O168,F168,W168)*'Project Charact'!$G$100*'Toll Rate'!$J51*(1+'Project Charact'!$G$108)*'Project Charact'!$G$23*(1-'T & R'!$H168)) -> 5474164.944 | Q168: 0.9 | W168: =+Traffic!P39 -> 112.8563388
D169: 27 | E169: 2041 | F169: =+IF(Traffic!J40>Traffic!$K$8,Traffic!K40*Traffic!S40,Traffic!I40) -> 1266.248122 | G169: =+(F169*'Project Charact'!$G$100)*'Toll Rate'!$J52*'Project Charact'!$G$23*'T & R'!$H169+(F169*'Project Charact'!$G$100)*'Toll Rate'!$J52*(1+'Project Charact'!$G$108)*'Project Charact'!$G$23*(1-'T & R'!$H169) -> 4978755.452 | H169: 0.05 | I169: =('Project Charact'!$G$100*'Toll Rate'!J52*'Project Charact'!$G$23*(Traffic!AC40+SQRT(H169*(F169-Traffic!AC40)*(Traffic!AD40-Traffic!AC40)))*('T & R'!$H169))+('Project Charact'!$G$100*'Toll Rate'!J52*'Project Charact'!$G$23*(Traffic!AC40+SQRT(H169*(F169-Traffic!AAC40)*(Traffic!AD40-Traffic!AC40)))*(1-'T & R'!$H169)) -> 3834575.955 | J169: 0.95 | K169: =('Project Charact'!$G$100*'Toll Rate'!J52*'Project Charact'!$G$23*(Traffic!AD40-SQRT((1-J169)*(Traffic!AD40-F169)*(Traffic!AD40-Traffic!AC40)))*('T & R'!H169))+('Project Charact'!$G$100*'Toll Rate'!J52*'Project Charact'!$G$23*(Traffic!AD40-SQRT((1-J169)*(Traffic!AD40-F169)*(Traffic!AD40-Traffic!AC40)))*(1-'T & R'!H169)) -> 5384023.053 | L169: 0.9 | M169: 0.05 | N169: =(NORMINV(M169,F169,W169)*'Project Charact'!$G$100*'Toll Rate'!$J52*'Project Charact'!$G$23*'T & R'!$H169)+(NORMINV(M169,F169,W169)*'Project Charact'!$G$100*'Toll Rate'!$J52*(1+'Project Charact'!$G$108)*'Project Charact'!$G$23*(1-'T & R'!$H169)) -> 4234271.456 | O169: 0.95 | P169: =(NORMINV(O169,F169,W169)*'Project Charact'!$G$100*'Toll Rate'!$J52*'Project Charact'!$G$23*'T & R'!$H169)+(NORMINV(O169,F169,W169)*'Project Charact'!$G$100*'Toll Rate'!$J52*(1+'Project Charact'!$G$108)*'Project Charact'!$G$23*(1-'T & R'!$H169)) -> 5723239.449 | Q169: 0.9 | W169: =+Traffic!P40 -> 115.1134656
D170: 28 | E170: 2042 | F170: =+IF(Traffic!J41>Traffic!$K$8,Traffic!K41*Traffic!S41,Traffic!I41) -> 1291.573084 | G170: =+(F170*'Project Charact'!$G$100)*'Toll Rate'!$J53*'Project Charact'!$G$23*'T & R'!$H170+(F170*'Project Charact'!$G$100)*'Toll Rate'!$J53*(1+'Project Charact'!$G$108)*'Project Charact'!$G$23*(1-'T & R'!$H170) -> 5205288.826 | H170: 0.05 | I170: =('Project Charact'!$G$100*'Toll Rate'!J53*'Project Charact'!$G$23*(Traffic!AC41+SQRT(H170*(F170-Traffic!AC41)*(Traffic!AD41-Traffic!AC41)))*('T & R'!$H170))+('Project Charact'!$G$100*'Toll Rate'!J53*'Project Charact'!$G$23*(Traffic!AC41+SQRT(H170*(F170-Traffic!AAC41)*(Traffic!AD41-Traffic!AC41)))*(1-'T & R'!$H170)) -> 4009049.161 | J170: 0.95 | K170: =('Project Charact'!$G$100*'Toll Rate'!J53*'Project Charact'!$G$23*(Traffic!AD41-SQRT((1-J170)*(Traffic!AD41-F170)*(Traffic!AD41-Traffic!AC41)))*('T & R'!H170))+('Project Charact'!$G$100*'Toll Rate'!J53*'Project Charact'!$G$23*(Traffic!AD41-SQRT((1-J170)*(Traffic!AD41-F170)*(Traffic!AD41-Traffic!AC41)))*(1-'T & R'!H170)) -> 5628996.102 | L170: 0.9 | M170: 0.05 | N170: =(NORMINV(M170,F170,W170)*'Project Charact'!$G$100*'Toll Rate'!$J53*'Project Charact'!$G$23*'T & R'!$H170)+(NORMINV(M170,F170,W170)*'Project Charact'!$G$100*'Toll Rate'!$J53*(1+'Project Charact'!$G$108)*'Project Charact'!$G$23*(1-'T & R'!$H170)) -> 4426930.807 | O170: 0.95 | P170: =(NORMINV(O170,F170,W170)*'Project Charact'!$G$100*'Toll Rate'!$J53*'Project Charact'!$G$23*'T & R'!$H170)+(NORMINV(O170,F170,W170)*'Project Charact'!$G$100*'Toll Rate'!$J53*(1+'Project Charact'!$G$108)*'Project Charact'!$G$23*(1-'T & R'!$H170)) -> 5983646.844 | Q170: 0.9 | W170: =+Traffic!P41 -> 117.4157349
D171: 29 | E171: 2043 | F171: =+IF(Traffic!J42>Traffic!$K$8,Traffic!K42*Traffic!S42,Traffic!I42) -> 1317.404546 | G171: =+(F171*'Project Charact'!$G$100)*'Toll Rate'!$J54*'Project Charact'!$G$23*'T & R'!$H171+(F171*'Project Charact'!$G$100)*'Toll Rate'!$J54*(1+'Project Charact'!$G$108)*'Project Charact'!$G$23*(1-'T & R'!$H171) -> 5442129.467 | H171: 0.05 | I171: =('Project Charact'!$G$100*'Toll Rate'!J54*'Project Charact'!$G$23*(Traffic!AC42+SQRT(H171*(F171-Traffic!AC42)*(Traffic!AD42-Traffic!AC42)))*('T & R'!$H171))+('Project Charact'!$G$100*'Toll Rate'!J54*'Project Charact'!$G$23*(Traffic!AC42+SQRT(H171*(F171-Traffic!AAC42)*(Traffic!AD42-Traffic!AC42)))*(1-'T & R'!$H171)) -> 4191460.898 | J171: 0.95 | K171: =('Project Charact'!$G$100*'Toll Rate'!J54*'Project Charact'!$G$23*(Traffic!AD42-SQRT((1-J171)*(Traffic!AD42-F171)*(Traffic!AD42-Traffic!AC42)))*('T & R'!H171))+('Project Charact'!$G$100*'Toll Rate'!J54*'Project Charact'!$G$23*(Traffic!AD42-SQRT((1-J171)*(Traffic!AD42-F171)*(Traffic!AD42-Traffic!AC42)))*(1-'T & R'!H171)) -> 5885115.425 | L171: 0.9 | M171: 0.05 | N171: =(NORMINV(M171,F171,W171)*'Project Charact'!$G$100*'Toll Rate'!$J54*'Project Charact'!$G$23*'T & R'!$H171)+(NORMINV(M171,F171,W171)*'Project Charact'!$G$100*'Toll Rate'!$J54*(1+'Project Charact'!$G$108)*'Project Charact'!$G$23*(1-'T & R'!$H171)) -> 4628356.159 | O171: 0.95 | P171: =(NORMINV(O171,F171,W171)*'Project Charact'!$G$100*'Toll Rate'!$J54*'Project Charact'!$G$23*'T & R'!$H171)+(NORMINV(O171,F171,W171)*'Project Charact'!$G$100*'Toll Rate'!$J54*(1+'Project Charact'!$G$108)*'Project Charact'!$G$23*(1-'T & R'!$H171)) -> 6255902.776 | Q171: 0.9 | W171: =+Traffic!P42 -> 119.7640496
D172: 30 | E172: 2044 | F172: =+IF(Traffic!J43>Traffic!$K$8,Traffic!K43*Traffic!S43,Traffic!I43) -> 1343.752637 | G172: =+(F172*'Project Charact'!$G$100)*'Toll Rate'!$J55*'Project Charact'!$G$23*'T & R'!$H172+(F172*'Project Charact'!$G$100)*'Toll Rate'!$J55*(1+'Project Charact'!$G$108)*'Project Charact'!$G$23*(1-'T & R'!$H172) -> 5689746.358 | H172: 0.05 | I172: =('Project Charact'!$G$100*'Toll Rate'!J55*'Project Charact'!$G$23*(Traffic!AC43+SQRT(H172*(F172-Traffic!AC43)*(Traffic!AD43-Traffic!AC43)))*('T & R'!$H172))+('Project Charact'!$G$100*'Toll Rate'!J55*'Project Charact'!$G$23*(Traffic!AC43+SQRT(H172*(F172-Traffic!AAC43)*(Traffic!AD43-Traffic!AC43)))*(1-'T & R'!$H172)) -> 4382172.369 | J172: 0.95 | K172: =('Project Charact'!$G$100*'Toll Rate'!J55*'Project Charact'!$G$23*(Traffic!AD43-SQRT((1-J172)*(Traffic!AD43-F172)*(Traffic!AD43-Traffic!AC43)))*('T & R'!H172))+('Project Charact'!$G$100*'Toll Rate'!J55*'Project Charact'!$G$23*(Traffic!AD43-SQRT((1-J172)*(Traffic!AD43-F172)*(Traffic!AD43-Traffic!AC43)))*(1-'T & R'!H172)) -> 6152888.177 | L172: 0.9 | M172: 0.05 | N172: =(NORMINV(M172,F172,W172)*'Project Charact'!$G$100*'Toll Rate'!$J55*'Project Charact'!$G$23*'T & R'!$H172)+(NORMINV(M172,F172,W172)*'Project Charact'!$G$100*'Toll Rate'!$J55*(1+'Project Charact'!$G$108)*'Project Charact'!$G$23*(1-'T & R'!$H172)) -> 4838946.364 | O172: 0.95 | P172: =(NORMINV(O172,F172,W172)*'Project Charact'!$G$100*'Toll Rate'!$J55*'Project Charact'!$G$23*'T & R'!$H172)+(NORMINV(O172,F172,W172)*'Project Charact'!$G$100*'Toll Rate'!$J55*(1+'Project Charact'!$G$108)*'Project Charact'!$G$23*(1-'T & R'!$H172)) -> 6540546.352 | Q172: 0.9 | W172: =+Traffic!P43 -> 122.1593306
D173: 31 | E173: 2045 | F173: =+IF(Traffic!J44>Traffic!$K$8,Traffic!K44*Traffic!S44,Traffic!I44) -> 1363.908926 | G173: =+(F173*'Project Charact'!$G$100)*'Toll Rate'!$J56*'Project Charact'!$G$23*'T & R'!$H173+(F173*'Project Charact'!$G$100)*'Toll Rate'!$J56*(1+'Project Charact'!$G$108)*'Project Charact'!$G$23*(1-'T & R'!$H173) -> 5919469.867 | H173: 0.05 | I173: =('Project Charact'!$G$100*'Toll Rate'!J56*'Project Charact'!$G$23*(Traffic!AC44+SQRT(H173*(F173-Traffic!AC44)*(Traffic!AD44-Traffic!AC44)))*('T & R'!$H173))+('Project Charact'!$G$100*'Toll Rate'!J56*'Project Charact'!$G$23*(Traffic!AC44+SQRT(H173*(F173-Traffic!AAC44)*(Traffic!AD44-Traffic!AC44)))*(1-'T & R'!$H173)) -> 4559102.579 | J173: 0.95 | K173: =('Project Charact'!$G$100*'Toll Rate'!J56*'Project Charact'!$G$23*(Traffic!AD44-SQRT((1-J173)*(Traffic!AD44-F173)*(Traffic!AD44-Traffic!AC44)))*('T & R'!H173))+('Project Charact'!$G$100*'Toll Rate'!J56*'Project Charact'!$G$23*(Traffic!AD44-SQRT((1-J173)*(Traffic!AD44-F173)*(Traffic!AD44-Traffic!AC44)))*(1-'T & R'!H173)) -> 6401311.037 | L173: 0.9 | M173: 0.05 | N173: =(NORMINV(M173,F173,W173)*'Project Charact'!$G$100*'Toll Rate'!$J56*'Project Charact'!$G$23*'T & R'!$H173)+(NORMINV(M173,F173,W173)*'Project Charact'!$G$100*'Toll Rate'!$J56*(1+'Project Charact'!$G$108)*'Project Charact'!$G$23*(1-'T & R'!$H173)) -> 5034318.823 | O173: 0.95 | P173: =(NORMINV(O173,F173,W173)*'Project Charact'!$G$100*'Toll Rate'!$J56*'Project Charact'!$G$23*'T & R'!$H173)+(NORMINV(O173,F173,W173)*'Project Charact'!$G$100*'Toll Rate'!$J56*(1+'Project Charact'!$G$108)*'Project Charact'!$G$23*(1-'T & R'!$H173)) -> 6804620.911 | Q173: 0.9 | W173: =+Traffic!P44 -> 123.9917206
D174: 32 | E174: 2046 | F174: =+IF(Traffic!J45>Traffic!$K$8,Traffic!K45*Traffic!S45,Traffic!I45) -> 1384.36756 | G174: =+(F174*'Project Charact'!$G$100)*'Toll Rate'!$J57*'Project Charact'!$G$23*'T & R'!$H174+(F174*'Project Charact'!$G$100)*'Toll Rate'!$J57*(1+'Project Charact'!$G$108)*'Project Charact'!$G$23*(1-'T & R'!$H174) -> 6158468.463 | H174: 0.05 | I174: =('Project Charact'!$G$100*'Toll Rate'!J57*'Project Charact'!$G$23*(Traffic!AC45+SQRT(H174*(F174-Traffic!AC45)*(Traffic!AD45-Traffic!AC45)))*('T & R'!$H174))+('Project Charact'!$G$100*'Toll Rate'!J57*'Project Charact'!$G$23*(Traffic!AC45+SQRT(H174*(F174-Traffic!AAC45)*(Traffic!AD45-Traffic!AC45)))*(1-'T & R'!$H174)) -> 4743176.345 | J174: 0.95 | K174: =('Project Charact'!$G$100*'Toll Rate'!J57*'Project Charact'!$G$23*(Traffic!AD45-SQRT((1-J174)*(Traffic!AD45-F174)*(Traffic!AD45-Traffic!AC45)))*('T & R'!H174))+('Project Charact'!$G$100*'Toll Rate'!J57*'Project Charact'!$G$23*(Traffic!AD45-SQRT((1-J174)*(Traffic!AD45-F174)*(Traffic!AD45-Traffic!AC45)))*(1-'T & R'!H174)) -> 6659763.97 | L174: 0.9 | M174: 0.05 | N174: =(NORMINV(M174,F174,W174)*'Project Charact'!$G$100*'Toll Rate'!$J57*'Project Charact'!$G$23*'T & R'!$H174)+(NORMINV(M174,F174,W174)*'Project Charact'!$G$100*'Toll Rate'!$J57*(1+'Project Charact'!$G$108)*'Project Charact'!$G$23*(1-'T & R'!$H174)) -> 5237579.446 | O174: 0.95 | P174: =(NORMINV(O174,F174,W174)*'Project Charact'!$G$100*'Toll Rate'!$J57*'Project Charact'!$G$23*'T & R'!$H174)+(NORMINV(O174,F174,W174)*'Project Charact'!$G$100*'Toll Rate'!$J57*(1+'Project Charact'!$G$108)*'Project Charact'!$G$23*(1-'T & R'!$H174)) -> 7079357.48 | Q174: 0.9 | W174: =+Traffic!P45 -> 125.8515964
D175: 33 | E175: 2047 | F175: =+IF(Traffic!J46>Traffic!$K$8,Traffic!K46*Traffic!S46,Traffic!I46) -> 1405.133074 | G175: =+(F175*'Project Charact'!$G$100)*'Toll Rate'!$J58*'Project Charact'!$G$23*'T & R'!$H175+(F175*'Project Charact'!$G$100)*'Toll Rate'!$J58*(1+'Project Charact'!$G$108)*'Project Charact'!$G$23*(1-'T & R'!$H175) -> 6407116.627 | H175: 0.05 | I175: =('Project Charact'!$G$100*'Toll Rate'!J58*'Project Charact'!$G$23*(Traffic!AC46+SQRT(H175*(F175-Traffic!AC46)*(Traffic!AD46-Traffic!AC46)))*('T & R'!$H175))+('Project Charact'!$G$100*'Toll Rate'!J58*'Project Charact'!$G$23*(Traffic!AC46+SQRT(H175*(F175-Traffic!AAC46)*(Traffic!AD46-Traffic!AC46)))*(1-'T & R'!$H175)) -> 4934682.09 | J175: 0.95 | K175: =('Project Charact'!$G$100*'Toll Rate'!J58*'Project Charact'!$G$23*(Traffic!AD46-SQRT((1-J175)*(Traffic!AD46-F175)*(Traffic!AD46-Traffic!AC46)))*('T & R'!H175))+('Project Charact'!$G$100*'Toll Rate'!J58*'Project Charact'!$G$23*(Traffic!AD46-SQRT((1-J175)*(Traffic!AD46-F175)*(Traffic!AD46-Traffic!AC46)))*(1-'T & R'!H175)) -> 6928651.94 | L175: =J175-H175 -> 0.9 | M175: 0.05 | N175: =(NORMINV(M175,F175,W175)*'Project Charact'!$G$100*'Toll Rate'!$J58*'Project Charact'!$G$23*'T & R'!$H175)+(NORMINV(M175,F175,W175)*'Project Charact'!$G$100*'Toll Rate'!$J58*(1+'Project Charact'!$G$108)*'Project Charact'!$G$23*(1-'T & R'!$H175)) -> 5449046.716 | O175: 0.95 | P175: =(NORMINV(O175,F175,W175)*'Project Charact'!$G$100*'Toll Rate'!$J58*'Project Charact'!$G$23*'T & R'!$H175)+(NORMINV(O175,F175,W175)*'Project Charact'!$G$100*'Toll Rate'!$J58*(1+'Project Charact'!$G$108)*'Project Charact'!$G$23*(1-'T & R'!$H175)) -> 7365186.538 | Q175: =O175-M175 -> 0.9 | W175: =+Traffic!P46 -> 127.7393703
D176: 34 | E176: =1+E175 -> 2048 | F176: =+IF(Traffic!J47>Traffic!$K$8,Traffic!K47*Traffic!S47,Traffic!I47) -> 1426.21007 | G176: =+(F176*'Project Charact'!$G$100)*'Toll Rate'!$J59*'Project Charact'!$G$23*'T & R'!$H176+(F176*'Project Charact'!$G$100)*'Toll Rate'!$J59*(1+'Project Charact'!$G$108)*'Project Charact'!$G$23*(1-'T & R'!$H176) -> 6665803.961 | H176: 0.05 | I176: =('Project Charact'!$G$100*'Toll Rate'!J59*'Project Charact'!$G$23*(Traffic!AC47+SQRT(H176*(F176-Traffic!AC47)*(Traffic!AD47-Traffic!AC47)))*('T & R'!$H176))+('Project Charact'!$G$100*'Toll Rate'!J59*'Project Charact'!$G$23*(Traffic!AC47+SQRT(H176*(F176-Traffic!AAC47)*(Traffic!AD47-Traffic!AC47)))*(1-'T & R'!$H176)) -> 5133919.879 | J176: 0.95 | K176: =('Project Charact'!$G$100*'Toll Rate'!J59*'Project Charact'!$G$23*(Traffic!AD47-SQRT((1-J176)*(Traffic!AD47-F176)*(Traffic!AD47-Traffic!AC47)))*('T & R'!H176))+('Project Charact'!$G$100*'Toll Rate'!J59*'Project Charact'!$G$23*(Traffic!AD47-SQRT((1-J176)*(Traffic!AD47-F176)*(Traffic!AD47-Traffic!AC47)))*(1-'T & R'!H176)) -> 7208396.262 | L176: 0.9 | M176: 0.05 | N176: =(NORMINV(M176,F176,W176)*'Project Charact'!$G$100*'Toll Rate'!$J59*'Project Charact'!$G$23*'T & R'!$H176)+(NORMINV(M176,F176,W176)*'Project Charact'!$G$100*'Toll Rate'!$J59*(1+'Project Charact'!$G$108)*'Project Charact'!$G$23*(1-'T & R'!$H176)) -> 5669051.977 | O176: 0.95 | P176: =(NORMINV(O176,F176,W176)*'Project Charact'!$G$100*'Toll Rate'!$J59*'Project Charact'!$G$23*'T & R'!$H176)+(NORMINV(O176,F176,W176)*'Project Charact'!$G$100*'Toll Rate'!$J59*(1+'Project Charact'!$G$108)*'Project Charact'!$G$23*(1-'T & R'!$H176)) -> 7662555.945 | Q176: 0.9 | W176: =+Traffic!P47 -> 129.6554609
D177: 35 | E177: 2049 | F177: =+IF(Traffic!J48>Traffic!$K$8,Traffic!K48*Traffic!S48,Traffic!I48) -> 1447.603221 | G177: =+(F177*'Project Charact'!$G$100)*'Toll Rate'!$J60*'Project Charact'!$G$23*'T & R'!$H177+(F177*'Project Charact'!$G$100)*'Toll Rate'!$J60*(1+'Project Charact'!$G$108)*'Project Charact'!$G$23*(1-'T & R'!$H177) -> 6934935.796 | H177: 0.05 | I177: =('Project Charact'!$G$100*'Toll Rate'!J60*'Project Charact'!$G$23*(Traffic!AC48+SQRT(H177*(F177-Traffic!AC48)*(Traffic!AD48-Traffic!AC48)))*('T & R'!$H177))+('Project Charact'!$G$100*'Toll Rate'!J60*'Project Charact'!$G$23*(Traffic!AC48+SQRT(H177*(F177-Traffic!AAC48)*(Traffic!AD48-Traffic!AC48)))*(1-'T & R'!$H177)) -> 5341201.895 | J177: 0.95 | K177: =('Project Charact'!$G$100*'Toll Rate'!J60*'Project Charact'!$G$23*(Traffic!AD48-SQRT((1-J177)*(Traffic!AD48-F177)*(Traffic!AD48-Traffic!AC48)))*('T & R'!H177))+('Project Charact'!$G$100*'Toll Rate'!J60*'Project Charact'!$G$23*(Traffic!AD48-SQRT((1-J177)*(Traffic!AD48-F177)*(Traffic!AD48-Traffic!AC48)))*(1-'T & R'!H177)) -> 7499435.261 | L177: 0.9 | M177: 0.05 | N177: =(NORMINV(M177,F177,W177)*'Project Charact'!$G$100*'Toll Rate'!$J60*'Project Charact'!$G$23*'T & R'!$H177)+(NORMINV(M177,F177,W177)*'Project Charact'!$G$100*'Toll Rate'!$J60*(1+'Project Charact'!$G$108)*'Project Charact'!$G$23*(1-'T & R'!$H177)) -> 5897939.951 | O177: 0.95 | P177: =(NORMINV(O177,F177,W177)*'Project Charact'!$G$100*'Toll Rate'!$J60*'Project Charact'!$G$23*'T & R'!$H177)+(NORMINV(O177,F177,W177)*'Project Charact'!$G$100*'Toll Rate'!$J60*(1+'Project Charact'!$G$108)*'Project Charact'!$G$23*(1-'T & R'!$H177)) -> 7971931.641 | Q177: 0.9 | W177: =+Traffic!P48 -> 131.6002928
D178: 36 | E178: 2050 | F178: =+IF(Traffic!J49>Traffic!$K$8,Traffic!K49*Traffic!S49,Traffic!I49) -> 1469.317269 | G178: =+(F178*'Project Charact'!$G$100)*'Toll Rate'!$J61*'Project Charact'!$G$23*'T & R'!$H178+(F178*'Project Charact'!$G$100)*'Toll Rate'!$J61*(1+'Project Charact'!$G$108)*'Project Charact'!$G$23*(1-'T & R'!$H178) -> 7050958.06 | H178: 0.05 | I178: =('Project Charact'!$G$100*'Toll Rate'!J61*'Project Charact'!$G$23*(Traffic!AC49+SQRT(H178*(F178-Traffic!AC49)*(Traffic!AD49-Traffic!AC49)))*('T & R'!$H178))+('Project Charact'!$G$100*'Toll Rate'!J61*'Project Charact'!$G$23*(Traffic!AC49+SQRT(H178*(F178-Traffic!AAC49)*(Traffic!AD49-Traffic!AC49)))*(1-'T & R'!$H178)) -> 5504800.131 | J178: 0.95 | K178: =('Project Charact'!$G$100*'Toll Rate'!J61*'Project Charact'!$G$23*(Traffic!AD49-SQRT((1-J178)*(Traffic!AD49-F178)*(Traffic!AD49-Traffic!AC49)))*('T & R'!H178))+('Project Charact'!$G$100*'Toll Rate'!J61*'Project Charact'!$G$23*(Traffic!AD49-SQRT((1-J178)*(Traffic!AD49-F178)*(Traffic!AD49-Traffic!AC49)))*(1-'T & R'!H178)) -> 7802224.96 | L178: 0.9 | M178: 0.05 | N178: =(NORMINV(M178,F178,W178)*'Project Charact'!$G$100*'Toll Rate'!$J61*'Project Charact'!$G$23*'T & R'!$H178)+(NORMINV(M178,F178,W178)*'Project Charact'!$G$100*'Toll Rate'!$J61*(1+'Project Charact'!$G$108)*'Project Charact'!$G$23*(1-'T & R'!$H178)) -> 5996613.156 | O178: 0.95 | P178: =(NORMINV(O178,F178,W178)*'Project Charact'!$G$100*'Toll Rate'!$J61*'Project Charact'!$G$23*'T & R'!$H178)+(NORMINV(O178,F178,W178)*'Project Charact'!$G$100*'Toll Rate'!$J61*(1+'Project Charact'!$G$108)*'Project Charact'!$G$23*(1-'T & R'!$H178)) -> 8105302.963 | Q178: 0.9 | W178: =+Traffic!P49 -> 133.5742972
D179: 37 | E179: 2051 | F179: =+IF(Traffic!J50>Traffic!$K$8,Traffic!K50*Traffic!S50,Traffic!I50) -> 1491.357028 | G179: =+(F179*'Project Charact'!$G$100)*'Toll Rate'!$J62*'Project Charact'!$G$23*'T & R'!$H179+(F179*'Project Charact'!$G$100)*'Toll Rate'!$J62*(1+'Project Charact'!$G$108)*'Project Charact'!$G$23*(1-'T & R'!$H179) -> 7335640.491 | H179: 0.05 | I179: =('Project Charact'!$G$100*'Toll Rate'!J62*'Project Charact'!$G$23*(Traffic!AC50+SQRT(H179*(F179-Traffic!AC50)*(Traffic!AD50-Traffic!AC50)))*('T & R'!$H179))+('Project Charact'!$G$100*'Toll Rate'!J62*'Project Charact'!$G$23*(Traffic!AC50+SQRT(H179*(F179-Traffic!AAC50)*(Traffic!AD50-Traffic!AC50)))*(1-'T & R'!$H179)) -> 5727056.437 | J179: 0.95 | K179: =('Project Charact'!$G$100*'Toll Rate'!J62*'Project Charact'!$G$23*(Traffic!AD50-SQRT((1-J179)*(Traffic!AD50-F179)*(Traffic!AD50-Traffic!AC50)))*('T & R'!H179))+('Project Charact'!$G$100*'Toll Rate'!J62*'Project Charact'!$G$23*(Traffic!AD50-SQRT((1-J179)*(Traffic!AD50-F179)*(Traffic!AD50-Traffic!AC50)))*(1-'T & R'!H179)) -> 8117239.793 | L179: 0.9 | M179: 0.05 | N179: =(NORMINV(M179,F179,W179)*'Project Charact'!$G$100*'Toll Rate'!$J62*'Project Charact'!$G$23*'T & R'!$H179)+(NORMINV(M179,F179,W179)*'Project Charact'!$G$100*'Toll Rate'!$J62*(1+'Project Charact'!$G$108)*'Project Charact'!$G$23*(1-'T & R'!$H179)) -> 6238726.413 | O179: 0.95 | P179: =(NORMINV(O179,F179,W179)*'Project Charact'!$G$100*'Toll Rate'!$J62*'Project Charact'!$G$23*'T & R'!$H179)+(NORMINV(O179,F179,W179)*'Project Charact'!$G$100*'Toll Rate'!$J62*(1+'Project Charact'!$G$108)*'Project Charact'!$G$23*(1-'T & R'!$H179)) -> 8432554.57 | Q179: 0.9 | W179: =+Traffic!P50 -> 135.5779116
D180: 38 | E180: 2052 | F180: =+IF(Traffic!J51>Traffic!$K$8,Traffic!K51*Traffic!S51,Traffic!I51) -> 1513.727383 | G180: =+(F180*'Project Charact'!$G$100)*'Toll Rate'!$J63*'Project Charact'!$G$23*'T & R'!$H180+(F180*'Project Charact'!$G$100)*'Toll Rate'!$J63*(1+'Project Charact'!$G$108)*'Project Charact'!$G$23*(1-'T & R'!$H180) -> 7631816.976 | H180: 0.05 | I180: =('Project Charact'!$G$100*'Toll Rate'!J63*'Project Charact'!$G$23*(Traffic!AC51+SQRT(H180*(F180-Traffic!AC51)*(Traffic!AD51-Traffic!AC51)))*('T & R'!$H180))+('Project Charact'!$G$100*'Toll Rate'!J63*'Project Charact'!$G$23*(Traffic!AC51+SQRT(H180*(F180-Traffic!AAC51)*(Traffic!AD51-Traffic!AC51)))*(1-'T & R'!$H180)) -> 5958286.34 | J180: 0.95 | K180: =('Project Charact'!$G$100*'Toll Rate'!J63*'Project Charact'!$G$23*(Traffic!AD51-SQRT((1-J180)*(Traffic!AD51-F180)*(Traffic!AD51-Traffic!AC51)))*('T & R'!H180))+('Project Charact'!$G$100*'Toll Rate'!J63*'Project Charact'!$G$23*(Traffic!AD51-SQRT((1-J180)*(Traffic!AD51-F180)*(Traffic!AD51-Traffic!AC51)))*(1-'T & R'!H180)) -> 8444973.349 | L180: 0.9 | M180: 0.05 | N180: =(NORMINV(M180,F180,W180)*'Project Charact'!$G$100*'Toll Rate'!$J63*'Project Charact'!$G$23*'T & R'!$H180)+(NORMINV(M180,F180,W180)*'Project Charact'!$G$100*'Toll Rate'!$J63*(1+'Project Charact'!$G$108)*'Project Charact'!$G$23*(1-'T & R'!$H180)) -> 6490614.991 | O180: 0.95 | P180: =(NORMINV(O180,F180,W180)*'Project Charact'!$G$100*'Toll Rate'!$J63*'Project Charact'!$G$23*'T & R'!$H180)+(NORMINV(O180,F180,W180)*'Project Charact'!$G$100*'Toll Rate'!$J63*(1+'Project Charact'!$G$108)*'Project Charact'!$G$23*(1-'T & R'!$H180)) -> 8773018.961 | Q180: 0.9 | W180: =+Traffic!P51 -> 137.6115803
D181: 39 | E181: 2053 | F181: =+IF(Traffic!J52>Traffic!$K$8,Traffic!K52*Traffic!S52,Traffic!I52) -> 1536.433294 | G181: =+(F181*'Project Charact'!$G$100)*'Toll Rate'!$J64*'Project Charact'!$G$23*'T & R'!$H181+(F181*'Project Charact'!$G$100)*'Toll Rate'!$J64*(1+'Project Charact'!$G$108)*'Project Charact'!$G$23*(1-'T & R'!$H181) -> 7939951.587 | H181: 0.05 | I181: =('Project Charact'!$G$100*'Toll Rate'!J64*'Project Charact'!$G$23*(Traffic!AC52+SQRT(H181*(F181-Traffic!AC52)*(Traffic!AD52-Traffic!AC52)))*('T & R'!$H181))+('Project Charact'!$G$100*'Toll Rate'!J64*'Project Charact'!$G$23*(Traffic!AC52+SQRT(H181*(F181-Traffic!AAC52)*(Traffic!AD52-Traffic!AC52)))*(1-'T & R'!$H181)) -> 6198852.151 | J181: 0.95 | K181: =('Project Charact'!$G$100*'Toll Rate'!J64*'Project Charact'!$G$23*(Traffic!AD52-SQRT((1-J181)*(Traffic!AD52-F181)*(Traffic!AD52-Traffic!AC52)))*('T & R'!H181))+('Project Charact'!$G$100*'Toll Rate'!J64*'Project Charact'!$G$23*(Traffic!AD52-SQRT((1-J181)*(Traffic!AD52-F181)*(Traffic!AD52-Traffic!AC52)))*(1-'T & R'!H181)) -> 8785939.148 | L181: 0.9 | M181: 0.05 | N181: =(NORMINV(M181,F181,W181)*'Project Charact'!$G$100*'Toll Rate'!$J64*'Project Charact'!$G$23*'T & R'!$H181)+(NORMINV(M181,F181,W181)*'Project Charact'!$G$100*'Toll Rate'!$J64*(1+'Project Charact'!$G$108)*'Project Charact'!$G$23*(1-'T & R'!$H181)) -> 6752673.572 | O181: 0.95 | P181: =(NORMINV(O181,F181,W181)*'Project Charact'!$G$100*'Toll Rate'!$J64*'Project Charact'!$G$23*'T & R'!$H181)+(NORMINV(O181,F181,W181)*'Project Charact'!$G$100*'Toll Rate'!$J64*(1+'Project Charact'!$G$108)*'Project Charact'!$G$23*(1-'T & R'!$H181)) -> 9127229.602 | Q181: 0.9 | W181: =+Traffic!P52 -> 139.675754
D182: 40 | E182: 2054 | F182: =+IF(Traffic!J53>Traffic!$K$8,Traffic!K53*Traffic!S53,Traffic!I53) -> 1530.18948 | G182: =+(F182*'Project Charact'!$G$100)*'Toll Rate'!$J65*'Project Charact'!$G$23*'T & R'!$H182+(F182*'Project Charact'!$G$100)*'Toll Rate'!$J65*(1+'Project Charact'!$G$108)*'Project Charact'!$G$23*(1-'T & R'!$H182) -> 8105377.041 | H182: 0.05 | I182: =('Project Charact'!$G$100*'Toll Rate'!J65*'Project Charact'!$G$23*(Traffic!AC53+SQRT(H182*(F182-Traffic!AC53)*(Traffic!AD53-Traffic!AC53)))*('T & R'!$H182))+('Project Charact'!$G$100*'Toll Rate'!J65*'Project Charact'!$G$23*(Traffic!AC53+SQRT(H182*(F182-Traffic!AAC53)*(Traffic!AD53-Traffic!AC53)))*(1-'T & R'!$H182)) -> 6349622.669 | J182: 0.95 | K182: =('Project Charact'!$G$100*'Toll Rate'!J65*'Project Charact'!$G$23*(Traffic!AD53-SQRT((1-J182)*(Traffic!AD53-F182)*(Traffic!AD53-Traffic!AC53)))*('T & R'!H182))+('Project Charact'!$G$100*'Toll Rate'!J65*'Project Charact'!$G$23*(Traffic!AD53-SQRT((1-J182)*(Traffic!AD53-F182)*(Traffic!AD53-Traffic!AC53)))*(1-'T & R'!H182)) -> 9000766.959 | L182: 0.9 | M182: 0.05 | N182: =(NORMINV(M182,F182,W182)*'Project Charact'!$G$100*'Toll Rate'!$J65*'Project Charact'!$G$23*'T & R'!$H182)+(NORMINV(M182,F182,W182)*'Project Charact'!$G$100*'Toll Rate'!$J65*(1+'Project Charact'!$G$108)*'Project Charact'!$G$23*(1-'T & R'!$H182)) -> 6888417.076 | O182: 0.95 | P182: =(NORMINV(O182,F182,W182)*'Project Charact'!$G$100*'Toll Rate'!$J65*'Project Charact'!$G$23*'T & R'!$H182)+(NORMINV(O182,F182,W182)*'Project Charact'!$G$100*'Toll Rate'!$J65*(1+'Project Charact'!$G$108)*'Project Charact'!$G$23*(1-'T & R'!$H182)) -> 9322337.006 | Q182: 0.9 | W182: =+Traffic!P53 -> 139.675754
D183: 41 | E183: 2055 | F183: =+IF(Traffic!J54>Traffic!$K$8,Traffic!K54*Traffic!S54,Traffic!I54) -> 1530.18948 | G183: =+(F183*'Project Charact'!$G$100)*'Toll Rate'!$J66*'Project Charact'!$G$23*'T & R'!$H183+(F183*'Project Charact'!$G$100)*'Toll Rate'!$J66*(1+'Project Charact'!$G$108)*'Project Charact'!$G$23*(1-'T & R'!$H183) -> 8308011.467 | H183: 0.05 | I183: =('Project Charact'!$G$100*'Toll Rate'!J66*'Project Charact'!$G$23*(Traffic!AC54+SQRT(H183*(F183-Traffic!AC54)*(Traffic!AD54-Traffic!AC54)))*('T & R'!$H183))+('Project Charact'!$G$100*'Toll Rate'!J66*'Project Charact'!$G$23*(Traffic!AC54+SQRT(H183*(F183-Traffic!AAC54)*(Traffic!AD54-Traffic!AC54)))*(1-'T & R'!$H183)) -> 6508363.236 | J183: 0.95 | K183: =('Project Charact'!$G$100*'Toll Rate'!J66*'Project Charact'!$G$23*(Traffic!AD54-SQRT((1-J183)*(Traffic!AD54-F183)*(Traffic!AD54-Traffic!AC54)))*('T & R'!H183))+('Project Charact'!$G$100*'Toll Rate'!J66*'Project Charact'!$G$23*(Traffic!AD54-SQRT((1-J183)*(Traffic!AD54-F183)*(Traffic!AD54-Traffic!AC54)))*(1-'T & R'!H183)) -> 9225786.133 | L183: 0.9 | M183: 0.05 | N183: =(NORMINV(M183,F183,W183)*'Project Charact'!$G$100*'Toll Rate'!$J66*'Project Charact'!$G$23*'T & R'!$H183)+(NORMINV(M183,F183,W183)*'Project Charact'!$G$100*'Toll Rate'!$J66*(1+'Project Charact'!$G$108)*'Project Charact'!$G$23*(1-'T & R'!$H183)) -> 7060627.503 | O183: 0.95 | P183: =(NORMINV(O183,F183,W183)*'Project Charact'!$G$100*'Toll Rate'!$J66*'Project Charact'!$G$23*'T & R'!$H183)+(NORMINV(O183,F183,W183)*'Project Charact'!$G$100*'Toll Rate'!$J66*(1+'Project Charact'!$G$108)*'Project Charact'!$G$23*(1-'T & R'!$H183)) -> 9555395.432 | Q183: 0.9 | W183: =+Traffic!P54 -> 139.675754
